Workbook

Sheet NOTES
A2: The model has actual and test data to illustrate the workings of the model.
A4: Issue | B4: Location | C4: Item | D4: Comment
A6: 1 | B6: Model update'!D37:H41 | C6: Real Vanilla WACC (rvw) | D6: Values updated for 2019 cost of debt and inflation correction
A8: =A6+1 -> 2 | B8: Model update'!G54:G58 | C8: DuoS Xt for2019 | D8: Values updated for 2019 cost of debt and inflation correction
A10: =A8+1 -> 3 | B10: Model update'!G66:G70 | C10: Metering Xt for2019 | D10: Values updated for 2019 cost of debt
A12: =A10+1 -> 4 | B12: Model update'!G94:G98 | C12: Ifactor (t) 2019 | D12: Values may require updating
A14: =A12+1 -> 5 | B14: Model update'!G105:G109 | C14: S factor (t) 2019 | D14: Values may require updating
A16: =A14+1 -> 6 | B16: Model update'!G116:G120 | C16: Pass through amounts (t) 2019 | D16: NIL for 2019
A18: =A16+1 -> 7 | B18: Model update'!G127:G131 | C18: Licence Fee (t-1) 2017-18 | D18: Values updated
A20: =A18+1 -> 8 | B20: Metering!D32 | C20: B factor for year t | D20: Formula modified
A22: =A20+1 -> 9 | B22: Metering!E31 and I27 | C22: T - factor | D22: Added Tt-1 and adjusted formula in I27 so that it is (Tt-Tt-1)/R
A24: =A22+1 -> 10 | B24: Metering!E32 and I28 | C24: B - factor | D24: Added Bt-1 and adjusted formula in I28 so that it is (Bt-Bt-1)/R
A26: =A24+1 -> 11 | B26: 2019DistRevCapForm'!C28 | C26: B - factor | D26: Formula modified
A28: =A26+1 -> 12 | B28: 2019TransRevCont'!C15 | C28: DPPC revenue under/over recovery approved | D28: Formula modified
A30: =A28+1 -> 13 | B30: 2019JSRevCont'!B15 | C30: JSA revenue under/over recovery approved | D30: Formula modified
A32: =A30+1 -> 14 | B32: Indicative prices for 2020'!A1:O65 | C32: TSS indicative prices for 2020 | D32: DNSP required to populate with relevant data
A34: =A32+1 -> 15 | B34: The following is test data to illustrate the workings of the model. | D34: Input data required from DNSPs
B35: 2019 Unmetered supply'!G7:I7 | C35: Proposed 2019 Unmetered Supply Tariffs
B36: 2019 Unmetered supply'!K7:M7 | C36: Qt-2 (2017)
B38: Metering!D8:D12 | C38: Proposed Metering Tariffs P(t) for 2019
B39: Metering!F8:F12 | C39: Forecast Quantities (Qt) for 2019
B40: Metering!D80:D84 | C40: Estimated Quantities (Qt-1) for 2018
B42: Prop2019DistTar!D6:P30 | C42: Proposed Distribution Tariffs (Pt) for 2019
B43: Prop2019DistTar!AF6:AR30 | C43: Forecast Quantities (Qt) for 2019
B44: Est2018DistRev!R6:AD30 | C44: Estimated Distribution Quantities for 2018 (Qt-1)
B46: Prop2019TransTar!D6:P30 | C46: Proposed Transmission Tariffs (Pt) for 2019
B47: 2019TransRevCont'!C20:C23 | C47: Table 3 - Transmission charges for year t
B48: 2019TransRevCont'!D42:D45 | C48: Transmission charges for year t-1
B50: Prop2019JSTar!D6:P30 | C50: Proposed Jurisdictional scheme Tariffs (Pt) for 2019
B51: 2019JSRevCont'!C20:C21 | C51: Table 3 - PFIT & TFIT charges for year t
B52: 2019JSRevCont'!D40:D41 | C52: PFIT & TFIT charges for year t-1

Sheet Formulae
B2: DUoS
B3: Figure 14.1 Revenue cap formulae
B4: (1) | H4: i=1,..,n and j=1,..,m and t=1,..,5
B5: (2) | H5: t = 1,2,…,5
B6: (3) | H6: t = 1
B7: (4) | H7: t = 2,…,5
B9: where;
C10: is the total annual revenue in year t.
D11: is the price of component 'j' of tariff 'i' in year t.
D12: is the forecast quantity of component 'j' of tariff 'i' in year t.
C13: is the adjusted annual smoothed revenue requirement for year t.
D14: is the annual adjustment f–factor scheme amount in year t. This amount will be calculated as per the method set out in the relevant f–factor scheme.
D15: is the sum of:
B16: · the final carryover amount from the application of the DMIS from the 2011–15 regulatory control period. This amount will be calculated using the method set out in the DMIS and will be deducted from/added to allowed revenue in the 2017 pricing proposal.
D17: is the sum of:
B18: · the recovery of license fee charges by the Victorian Essential Services Commission indexed by one and a half years of interest, calculated using the following method:
B20: where:
C21: are the licence fees paid by DNSP to the Victorian Essential Services Commission in the financial year ending in June of regulatory year t–1,
C22: is the approved nominal weighted average cost of capital (WACC) for the relevant regulatory year using the following method:
B25: · any under or over recovery of actual revenue collected through DUoS charges in regulatory year t–2 as calculated using the method in appendix A,
B26: · the AER approved pass through amounts (positive or negative) with respect to regulatory year t.
C27: is the annual smoothed revenue requirement as stated in the Post Tax Revenue Model (PTRM) for year t (when year t is the first year of the 2016–20 regulatory control period).[43]
C28: is the s‑factor determined in accordance with the service target performance incentive scheme (STPIS) for regulatory year t.[44]
C29: is the annual percentage change in the ABS CPI All Groups, Weighted Average of Eight Capital Cities[45] from the June quarter in year t–2 to the June quarter in year t–1, calculated using the following method :
B30: The ABS CPI All Groups, Weighted Average of Eight Capital Cities for the June quarter in regulatory year t–1
B31: divided by
B32: The ABS CPI All Groups, Weighted Average of Eight Capital Cities for the June quarter in regulatory year t–2
B33: minus one.
B34: For example, for the 2017 regulatory year, t–2 is June quarter 2015 and t–1 is June quarter 2016 and for the 2018 regulatory year, t–2 is June quarter 2016 and t–1 is June quarter 2017 and so on.
C35: is the X factor for each year of the 2016–20 regulatory control period as determined in the PTRM, and annually revised for the return on debt update in accordance with the formula specified in attachment 3—rate of return—calculated for the relevant year.
B38: [43] | C38: Our final F&A stated that if necessary an adjustment for inflation may be required to the annual smoothed revenue requirement for year t. However, as the annual smoothed revenue requirement for year t as stated in our preliminary decision PTRM is in nominal dollars there is no need to adjust it for inflation. This approach is consistent with past regulatory practice.
B39: [44] | C39: For the first two regulatory years of the 2016–20 regulatory control period, the value of St is to be adjusted to account for the change in revenue requirements between the regulatory control periods, as explained in attachment 11. In the formulas in the STPIS, the AR(t+1) is equivalent to ARt in this formula. Calculations of the S factor adjustment are to be made accordingly.
B40: [45] | C40: If the ABS does not or ceases to publish the index, then CPI will mean an index which the AER considers is the best available alternative index
B44: Figure 14.2 Side constraints [46]
C50: where each tariff class has "n" tariffs, with each up to "m" components, and where:
D51: is the proposed price for component ‘j’ of tariff 'i' for year t.
C52: is the price charged for component ‘j’ of tariff 'i' in year t–1.
D53: is the forecast quantity of component ‘j’ of tariff 'i' in year t.
C54: is the annual percentage change in the ABS CPI All Groups, Weighted Average of Eight Capital Cities[4] from the June quarter in year t–2 to the June quarter in year t–1, calculated using the following method :
C55: The ABS CPI All Groups, Weighted Average of Eight Capital Cities[47] for the June quarter in regulatory year t–1
C56: divided by
C57: The ABS CPI All Groups, Weighted Average of Eight Capital Cities for the June quarter in regulatory year t–2
C58: minus one.
B59: For example, for the 2017 regulatory year, t–2 is June quarter 2015 and t–1 is June quarter 2016 and for the 2018 regulatory year, t–2 is June quarter 2016 and t–1 is June quarter 2017 and so on.
D60: is the X factor for each year of the 2016–20 regulatory control period as determined in the PTRM, and annually revised for the return on debt update in accordance with the formula specified in attachment 3—rate of return—calculated for the relevant year. If X>0, then X will be set equal to zero for the purposes of the side constraint formula.
C61: is the s‑factor determined in accordance with the STPIS for regulatory year t.[5]
D62: is the annual percentage change from the f–factor scheme amount in year t. This amount will be calculated as per the method set out in attachment 19—f–factor scheme.
D63: is the annual percentage change from the final carryover amount from the application of the DMIS from the 2011–15 regulatory control period. This amount will be calculated using the method set out in the DMIS and will be deducted from/added to allowed revenue in the 2017 pricing proposal.
D64: is annual percentage change from the sum of:
B65: · the recovery of license fee charges by the Victorian Essential Services Commission indexed by one and a half years of interest, calculated using the following method:
B67: where:
B68: are the licence fees paid byDNSP to the Victorian Essential Services Commission in the financial year ending in June of regulatory year t–1,
C69: is the approved nominal weighted average cost of capital (WACC) for the relevant regulatory year using the following method:
B72: where the
B73: is as set out in our final decision PTRM and updated annually
B74: · the AER approved pass through amounts (positive or negative) with respect to regulatory year t.
B75: With the exception of the CPI, X factor and S factor, the percentage for each of the other factors above can be calculated by dividing the incremental revenues (as used in the total annual revenue formula) for each factor by the expected revenues for regulatory year t–1 (based on the prices in year t–1 multiplied by the forecast quantities for year t).
B77: [46] | C77: All parameters are in nominal terms unless otherwise specified.
B78: [47] | C78: If the ABS does not or ceases to publish the index, then CPI will mean an index which the AER considers is the best available alternative index.
H83: Table 14.1 | I83: Example calculation of DUoS unders and overs account ($'000, nominal)
I84: Year t–2 | J84: Year t–1 | K84: Year t
I85: (actual) | J85: (estimate) | K85: (forecast)
H86: (A) Revenue from DUoS charges | I86: 46 779 | J86: 40 269 | K86: 39 510
H87: (B) Less TAR for regulatory year = | I87: 43 039 | J87: 41 427 | K87: 44 429
H88: + Adjusted annual smoothed revenues (AARt) | I88: 40 189 | J88: 41 393 | K88: 44 393
H89: + f–factor scheme amount (It) | I89: –12 | J89: 10 | K89: 14
H90: + DMIS carryover amount (Tt) | I90: 1013 | J90: 0 | K90: 0
H91: + Annual adjustments (Bt)a = | I91: 1849 | J91: 24 | K91: 22
H92: + License fee recovery | I92: 25 | J92: 24 | K92: 22
H93: + Approved pass through amounts | I93: 1824 | J93: 0 | K93: 0
H95: (A minus B) Under/over recovery of revenue for regulatory year | I95: 3740 | J95: –1158 | K95: –4919b
H97: DUoS unders and overs account
H98: Nominal WACC (per cent) | I98: 0.05 | J98: 0.055 | K98: 0.06
H99: Opening balance | I99: 1737 | J99: 5656c | K99: 4778
H100: Interest on opening balance | I100: 87 | J100: 311 | K100: 287
H101: Under/over recovery of revenue for regulatory year | I101: 3740 | J101: –1158 | K101: –4919b
H102: Interest on under/over recovery for regulatory year | I102: 92 | J102: –31 | K102: –145
H103: Closing balance | I103: 5656 | J103: 4778 | K103: 0d
G104: Notes: | H104: (a) Bt parameter calculations in the DUoS unders and overs account exclude approved DUoS revenue under/over recovery for regulatory year.
H105: (b) Approved DUoS revenue under/over recovery for regulatory year t.
H106: (c) Opening balance is the previous year's closing balance.
H107: (d) The DNSP is expected to achieve a closing balance as close to zero as practicable in its DUoS unders and overs account in each forecast year in its annual pricing proposals in the 2016–20 regulatory control period.
H113: Table 14.2 | I113: Example calculation of designated pricing proposal charges unders and overs account ($'000, nominal)
I114: Year t–2 | J114: Year t–1 | K114: Year t
I115: (actual) | J115: (estimate) | K115: (forecast)
H116: (A) Revenue from designated pricing proposal charges (DPPC) | I116: 40 077 | J116: 34 944 | K116: 36 609
H117: (B) Less DPPC related payments for regulatory year = | I117: 34 365 | J117: 38 734 | K117: 39 200
H118: + DPPC charges to be paid to TNSP | I118: 33 672 | J118: 37 933 | K118: 38 000
H119: + Avoided TUoS/DPPC payments | I119: 572 | J119: 734 | K119: 800
H120: + Inter–distributor payments | I120: 121 | J120: 67 | K120: 400
H122: (A minus B) Under/over recovery of revenue for regulatory year | I122: 5712 | J122: –3790 | K122: –2540a
H124: DPPC unders and overs account
H125: Nominal WACC (per cent) | I125: 0.05 | J125: 0.055 | K125: 0.06
H126: Opening balance | I126: 167 | J126: 6028b | K126: 2467
H127: Interest on opening balance | I127: 8 | J127: 332 | K127: 148
H128: Under/over recovery of revenue for regulatory year | I128: 5712 | J128: –3790 | K128: –2540a
H129: Interest on under/over recovery for regulatory year | I129: 141 | J129: –103 | K129: –75
H130: Closing balance | I130: 6028 | J130: 2467 | K130: 0c
G131: Notes: | H131: (a) Approved DPPC revenue under/over recovery for regulatory year t.
H132: (b) Opening balance is the previous year's closing balance.
H133: (c)The DNSP is expected to achieve a closing balance as close to zero as practicable in its DPPC unders and overs account in each forecast year in its annual pricing proposals in the 2016–20 regulatory control period.
H139: Table 14.3 Example calculation of jurisdictional scheme amounts unders and overs account ($'000, nominal)
I140: Year t–2 | J140: Year t–1 | K140: Year t
I141: (actual) | J141: (estimate) | K141: (forecast)
H142: (A) Revenue from jurisdictional schemes | I142: 19 777 | J142: 23 121 | K142: 26 965
H143: (B) Less jurisdictional scheme payments for regulatory year = | I143: 20 272 | J143: 20 959 | K143: 28 641
H144: + Jurisdictional scheme 1 payments | I144: 14 159 | J144: 13 954 | K144: 13 961
H145: + Jurisdictional scheme 2 payments | I145: 6113 | J145: 7005 | K145: 14 680
H147: (A minus B) Under/over recovery of revenue for regulatory year | I147: –495 | J147: 2162 | K147: –1676a
H149: Jurisdictional scheme amount unders and overs account
H150: Nominal WACC (per cent) | I150: 0.05 | J150: 0.055 | K150: 0.06
H151: Opening balance | I151: –52 | J151: –562b | K151: 1628
H152: Interest on opening balance | I152: –3 | J152: –31 | K152: 98
H153: Under/over recovery of revenue for regulatory year | I153: –495 | J153: 2162 | K153: –1676a
H154: Interest on under/over recovery for regulatory year | I154: –12 | J154: 59 | K154: –50
H155: Closing balance | I155: –562 | J155: 1628 | K155: 0c
G156: Notes: | H156: (a) Approved jurisdictional scheme amounts revenue under/over recovery for regulatory year t.
H157: (b) Opening balance is the previous year's closing balance.
H158: (c) The DNSP is expected to achieve a closing balance as close to zero as practicable in its jurisdictional scheme amount unders and overs account in each forecast year in its annual pricing proposals in the 2016–20 regulatory control period.
B166: Metering
B167: Figure 16.3 | C167: Annual metering charges revenue cap formula
A168: (1) | H168: i=1,..,n and j=1,..,m and t=1,..,5
A170: (2) | H170: t = 1,2,…,5
A172: (3) | H172: t = 1,2,…,5
B175: where;
C176: is the total annual revenue for annual metering charges in year t.
E177: is the price of component 'j' of metering service 'i' in year t.
E178: is the forecast quantity of component 'j' of metering service 'i' in year t.
D179: is the annual revenue requirement for year t. When year t is the first year of the 2016–20 regulatory control period,
D180: is the annual revenue requirement in the annual metering charges Post Tax Revenue Model (PTRM) for year t.
E181: is equal to zero for all years except 2017 and is a once off adjustment to 2017 charges for the unders and overs recoveries relating to Advanced Metering Infrastructure actual revenues and actual costs incurred in 2014 and 2015.
E182: is the sum of annual adjustment factors in year t as calculated in the unders and overs account in appendix C.
D184: is the annual revenue requirement for year t–1.
C185: is the annual percentage change in the ABS CPI All Groups, Weighted Average of Eight Capital Cities[39] from the June quarter in year t–2 to the June quarter in year t–1, calculated using the following method:
B186: The ABS CPI All Groups, Weighted Average of Eight Capital Cities for the June quarter in regulatory year t–1
B187: divided by
B188: The ABS CPI All Groups, Weighted Average of Eight Capital Cities for the June quarter in regulatory year t–2
B189: minus one.
B190: For example, for the 2017 regulatory year, t–2 is June quarter 2015 and t–1 is June quarter 2016 and for the 2018 regulatory year, t–2 is June quarter 2016 and t–1 is June quarter 2017 and so on.
D191: is the X factor for each year of the 2016–20 regulatory control period as determined in the annual metering charges PTRM.
B194: [39] | C194: If the ABS does not or ceases to publish the index, then CPI will mean an index which the AER considers is the best available alternative index
B199: Figure 16.4 Side constraints
B201: where:
E202: is the price of annual metering charges service 'i' in year t.
D203: is the price of annual metering charges service 'i' in year t–1.
C204: is the annual percentage change in the ABS CPI All Groups, Weighted Average of Eight Capital Cities from the June quarter in year t–2 to the June quarter in year t–1, calculated using the following method:
B205: The ABS CPI All Groups, Weighted Average of Eight Capital Cities[40] for the June quarter in regulatory year t–1
B206: divided by
B207: The ABS CPI All Groups, Weighted Average of Eight Capital Cities for the June quarter in regulatory year t–2
B208: minus one.
B209: For example, for the 2017 regulatory year, t–2 is June quarter 2015 and t–1 is June quarter 2016 and for the 2018 regulatory year, t–2 is June quarter 2016 and t–1 is June quarter 2017 and so on.
D210: is the X factor for each year of the 2016–20 regulatory control period as determined in the annual metering charges PTRM.
E211: is the annual percentage change for the unders and overs recoveries relating to Advanced Metering Infrastructure actual revenues and actual costs incurred in 2014 and 2015. It is equal to zero for all years except 2017 and is a once off adjustment to 2017 charges.
E212: is the annual percentage change from the sum of annual adjustment factors in year t as calculated in the unders and overs account in appendix C.
B213: With the exception of the CPI and the X factor, the percentage for each of the other factors above can be calculated by dividing the incremental revenues (as used in the total annual revenue formula) for each factor by the expected revenues for regulatory year t–1 (based on the prices in year t–1 multiplied by the forecast quantities for year t).
B215: [40] | C215: If the ABS does not or ceases to publish the index, then CPI will mean an index which the AER considers is the best available alternative index.
H220: Table 16.xx | I220: Example calculation of annual metering charges unders and overs account ($'000, nominal)
I221: Year t–2 | J221: Year t–1 | K221: Year t
I222: (actual) | J222: (estimate) | K222: (forecast)
H223: (A) Revenue from annual metering charges | I223: 8 449 | J223: 7 389 | K223: 6 460
H224: (B) Less TARM for regulatory year = | I224: 7 366 | J224: 7 422 | K224: 7 573
H225: + Annual revenue requirement (ARt) | I225: 7 349 | J225: 7 412 | K225: 7 559
H226: + T factor (Tt) – true‑ups relating to the AMI–Order in Council | I226: 17 | J226: 10 | K226: 14
H228: (A minus B) Under/over recovery of revenue for regulatory year | I228: 1 083 | J228: –33 | K228: –1 113a
H230: Annual metering charges unders and overs account
H231: Nominal WACC (per cent) | I231: 0.05 | J231: 0.055 | K231: 0.06
H232: Opening balance | I232: –50 | J232: 1 057b | K232: 1 081
H233: Interest on opening balance | I233: –3 | J233: 58 | K233: 65
H234: Under/over recovery of revenue for regulatory year | I234: 1 083 | J234: –33 | K234: –1 113b
H235: Interest on under/over recovery for regulatory year | I235: 27 | J235: –1 | K235: –33
H236: Closing balance | I236: 1 057 | J236: 1 081 | K236: 0c
G237: Notes: | H237: (a) Approved annual metering charges revenue under/over recovery for regulatory year t. This is the Bt parameter in the annual metering charges revenue cap formula.
H238: (b) Opening balance is the previous year's closing balance.
H239: (c) The DNSP is expected to achieve a closing balance as close to zero as practicable in its annual metering charges unders and overs account in each forecast year in its annual pricing proposals in the 2016–20 regulatory control period.

Sheet Model update
A3: Tariff Approval Template for | C3: =A58 -> United Energy
A5: calendar year commencing | C5: 2019
A7: t | B7: = | C7: =C5 -> 2019
A8: t-1 | B8: = | C8: =C7-1 -> 2018
A9: t-2 | B9: = | C9: 2017
A10: t-3 | B10: = | C10: 2016
A11: t-4 | B11: = | C11: 2015
A13: Please fill in yellow highlighted cells where appropriate
A15: CPI | B15: The ABS changed the index reference base in September 2012 from 1989-90 to 2011-12.
A16: CPI Index Sept 2011 | C16: 99.8
A17: CPI Index Sept 2012 | C17: 101.8 | E17: CPI 2013 | F17: =C17/C16-1 -> 0.02004008016
A18: CPI Index Sept 2013 | C18: 104 | E18: CPI 2014 | F18: =C18/C17-1 -> 0.02161100196
A19: CPI Index Sept 2014 | C19: 106.4 | E19: CPI 2015 | F19: =C19/C18-1 -> 0.02307692308
A20: CPI Index Sept 2015 | C20: 108 | E20: CPI 2016 | F20: =C20/C19-1 -> 0.01503759398
A21: CPI Index June 2015 | C21: 107.5
A22: CPI Index June 2016 | C22: 108.6 | E22: CPI 2017 | F22: =IF(OR(C21="",C22=""),0,C22/C21-1) -> 0.01023255814
A23: CPI Index June 2017 | C23: 110.7 | E23: CPI 2018 | F23: =IF(OR(C22="",C23=""),0,C23/C22-1) -> 0.01933701657
A24: CPI Index June 2018 | C24: 113 | E24: CPI 2019 | F24: 0.02077687444
A25: CPI Index June 2019 | E25: CPI 2020 | F25: 0
A28: ="CPI " &$C$9 -> CPI 2017 | C28: =VLOOKUP(A28,E$17:F$25,2,FALSE) -> 0.01023255814 | D28: (t-2)
A29: ="CPI " &$C$8 -> CPI 2018 | C29: =VLOOKUP(A29,E$17:F$25,2,FALSE) -> 0.01933701657 | D29: (t-1)
A30: ="CPI " &$C$5 -> CPI 2019 | C30: 0.02077687444 | D30: (t)
A35: Real Vanilla WACC (rvw)
A36: ="rvw for "&C$5 -> rvw for 2019 | D36: rvw for 2016 | E36: rvw for 2017 | F36: rvw for 2018 | G36: rvw for 2019 | H36: rvw for 2020
A37: =$A$54 -> Jemena | B37: =HLOOKUP($A$36,$D$36:$H$41,2,FALSE) -> 0.03766911607 | D37: 0.03932862871 | E37: 0.03873057145 | F37: 0.03821466541 | G37: 0.03766911607 | H37: 0.03766911607
A38: =$A$55 -> CitiPower | B38: =HLOOKUP($A$36,$D$36:$H$41,3,FALSE) -> 0.03508047475 | D38: 0.0367000241 | E38: 0.03612756881 | F38: 0.03563047885 | G38: 0.03508047475 | H38: 0.03508047475
A39: =$A$56 -> Powercor | B39: =HLOOKUP($A$36,$D$36:$H$41,4,FALSE) -> 0.03508047475 | D39: 0.0367000241 | E39: 0.03612756881 | F39: 0.03563047885 | G39: 0.03508047475 | H39: 0.03508047475
A40: =$A$57 -> AusNet Services | B40: =HLOOKUP($A$36,$D$36:$H$41,5,FALSE) -> 0.03742733406 | D40: 0.03871679489 | E40: 0.03826233619 | F40: 0.03801328469 | G40: 0.03742733406 | H40: 0.03742733406
A41: =$A$58 -> United Energy | B41: =HLOOKUP($A$36,$D$36:$H$41,6,FALSE) -> 0.03751614965 | D41: 0.0393301904 | E41: 0.03869503169 | F41: 0.03812382202 | G41: 0.03751614965 | H41: 0.03751614965
A43: ="rvw (t) "&C$5 -> rvw (t) 2019 | B43: =VLOOKUP(C$3,A37:B41,2,FALSE) -> 0.03751614965 | C43: (t) | D43: =VLOOKUP($C$3,$A$37:$H$41,4,FALSE) -> 0.0393301904 | E43: =VLOOKUP($C$3,$A37:$H$41,5,FALSE) -> 0.03869503169 | F43: =VLOOKUP($C$3,$A$37:$H$41,6,FALSE) -> 0.03812382202 | G43: =VLOOKUP($C$3,$A$37:$H$41,7,FALSE) -> 0.03751614965 | H43: =VLOOKUP($C$3,$A$37:$H$41,8,FALSE) -> 0.03751614965
A45: ="rvw for "&C$5-1 -> rvw for 2018 | B45: =IF(C$5=2016,F$183,HLOOKUP($A45,D$36:H$43,8,FALSE)) -> 0.03812382202 | C45: (t-1)
A47: ="rvw for "&C$5-2 -> rvw for 2017 | B47: =IF(OR(C$5=2016,C$5=2017),F$183,HLOOKUP($A47,D$36:H$43,8,FALSE)) -> 0.03869503169 | C47: (t-2)
A52: DuoS
A53: ="Xt for "&C$5 -> Xt for 2019 | D53: AR for 2016 | E53: Xt for 2017 | F53: Xt for 2018 | G53: Xt for 2019 | H53: Xt for 2020
A54: Jemena | B54: =IF(C$5=2016,"n/a",HLOOKUP($A$53,$E$53:$H$58,2,FALSE)) -> -0.01194800863 | D54: 238498758 | E54: -0.0325 | F54: 0.0027 | G54: -0.01194800863 | H54: -0.02386245157
A55: CitiPower | B55: =IF(C$5=2016,"n/a",HLOOKUP($A$53,$E$53:$H$58,3,FALSE)) -> -0.001232459035 | D55: 282881283 | E55: 0.004 | F55: -0.0005 | G55: -0.001232459035 | H55: -0.02947637269
A56: Powercor | B56: =IF(C$5=2016,"n/a",HLOOKUP($A$53,$E$53:$H$58,4,FALSE)) -> -0.03021164125 | D56: 621773294 | E56: 0.0468 | F56: -0.0081 | G56: -0.03021164125 | H56: -0.03390125883
A57: AusNet Services | B57: =IF(C$5=2016,"n/a",HLOOKUP($A$53,$E$53:$H$58,5,FALSE)) -> -0.03013217637 | D57: 586045137 | E57: 0.003 | F57: -0.0184 | G57: -0.03013217637 | H57: -0.03013217637
A58: United Energy | B58: =IF(C$5=2016,"n/a",HLOOKUP($A$53,$E$53:$H$58,6,FALSE)) -> -0.02611202001 | D58: 375069867 | E58: -0.0383 | F58: -0.0316 | G58: -0.02611202001 | H58: -0.003957117526
A60: ="Xt for"&C$5 -> Xt for2019 | B60: =VLOOKUP(C$3,A54:B58,2,FALSE) -> -0.02611202001 | D60: =VLOOKUP($C$3,$A$54:$H$58,4,FALSE) -> 375069867 | E60: =VLOOKUP($C$3,$A$54:$H$58,5,FALSE) -> -0.0383 | F60: =VLOOKUP($C$3,$A$54:$H$58,6,FALSE) -> -0.0316 | G60: =VLOOKUP($C$3,$A$54:$H$58,7,FALSE) -> -0.02611202001 | H60: =VLOOKUP($C$3,$A$54:$H$58,8,FALSE) -> -0.003957117526
A64: Metering
A65: ="Xt for "&C$5 -> Xt for 2019 | D65: AR for 2016 | E65: Xt for 2017 | F65: Xt for 2018 | G65: Xt for 2019 | H65: Xt for 2020
A66: Jemena | B66: =IF(C$5=2016,"n/a",HLOOKUP($A$65,$E$65:$H$70,2,FALSE)) -> -0.01181844246 | D66: 44212949.02 | E66: 0.3473 | F66: -0.0136 | G66: -0.01181844246 | H66: -0.015
A67: CitiPower | B67: =IF(C$5=2016,"n/a",HLOOKUP($A$65,$E$65:$H$70,3,FALSE)) -> 0.07936799905 | D67: 32973195.04 | E67: 0.1402 | F67: 0.0767 | G67: 0.07936799905 | H67: 0.075
A68: Powercor | B68: =IF(C$5=2016,"n/a",HLOOKUP($A$65,$E$65:$H$70,4,FALSE)) -> 0.08490086085 | D68: 79145313.2 | E68: 0.1096 | F68: 0.0819 | G68: 0.08490086085 | H68: 0.08
A69: AusNet Services | B69: =IF(C$5=2016,"n/a",HLOOKUP($A$65,$E$65:$H$70,5,FALSE)) -> 0.1693485927 | D69: 92754610.44 | E69: 0.0231 | F69: 0.1658 | G69: 0.1693485927 | H69: 0.165
A70: United Energy | B70: =IF(C$5=2016,"n/a",HLOOKUP($A$65,$E$65:$H$70,6,FALSE)) -> 0.05954200889 | D70: 62733316.95 | E70: 0.3081 | F70: 0.057 | G70: 0.05954200889 | H70: 0.055
A72: ="Xt for"&C$5 -> Xt for2019 | B72: =VLOOKUP(C$3,A66:B70,2,FALSE) -> 0.05954200889 | D72: =VLOOKUP($C$3,$A$66:$H$70,4,FALSE) -> 62733316.95 | E72: =VLOOKUP($C$3,$A$66:$H$70,5,FALSE) -> 0.3081 | F72: =VLOOKUP($C$3,$A$66:$H$70,6,FALSE) -> 0.057 | G72: =VLOOKUP($C$3,$A$66:$H$70,7,FALSE) -> 0.05954200889 | H72: =VLOOKUP($C$3,$A$66:$H$70,8,FALSE) -> 0.055
A76: DuoS
A77: Real Pre-tax WACC (rptw)
A78: ="rptw for "&C$5 -> rptw for 2019 | D78: rptw for 2016 | E78: rptw for 2017 | F78: rptw for 2018 | G78: rptw for 2019 | H78: rptw for 2020
A79: =$A$54 -> Jemena | B79: =HLOOKUP($A$78,$D$78:$H$83,2,FALSE) -> 0.04530393293 | D79: 0.04723374708 | E79: 0.04663553542 | F79: 0.04611949618 | G79: 0.04530393293
A80: =$A$55 -> CitiPower | B80: =HLOOKUP($A$78,$D$78:$H$83,3,FALSE) -> 0.04257942963 | D80: 0.04696344556 | E80: 0.04636538831 | F80: 0.04584948227 | G80: 0.04257942963
A81: =$A$56 -> Powercor | B81: =HLOOKUP($A$78,$D$78:$H$83,4,FALSE) -> 0.04158200864 | D81: 0.04347088828 | E81: 0.0428982852 | F81: 0.0424010669 | G81: 0.04158200864
A82: =$A$57 -> AusNet Services | B82: =HLOOKUP($A$78,$D$78:$H$83,5,FALSE) -> 0.04377949723 | D82: 0.04533877046 | E82: 0.04488419444 | F82: 0.04463507863 | G82: 0.04377949723
A83: =$A$58 -> United Energy | B83: =HLOOKUP($A$78,$D$78:$H$83,6,FALSE) -> 0.04610722815 | D83: 0.04819181771 | E83: 0.04755649502 | F83: 0.04698513788 | G83: 0.04610722815
A85: ="rptw (t) "&C$5 -> rptw (t) 2019 | B85: =VLOOKUP(C$3,A79:B83,2,FALSE) -> 0.04610722815 | C85: (t) | D85: =VLOOKUP($C$3,$A$79:$H$83,4,FALSE) -> 0.04819181771 | E85: =VLOOKUP($C$3,$A79:$H$83,5,FALSE) -> 0.04755649502 | F85: =VLOOKUP($C$3,$A$79:$H$83,6,FALSE) -> 0.04698513788 | G85: =VLOOKUP($C$3,$A$79:$H$83,7,FALSE) -> 0.04610722815 | H85: =VLOOKUP($C$3,$A$79:$H$83,8,FALSE) -> 0
A87: ="rptw for "&C$5-1 -> rptw for 2018 | B87: =IF(C$5=2016,B$183,HLOOKUP($A87,D$78:H$85,8,FALSE)) -> 0.04698513788 | C87: (t-1)
A89: ="rptw for "&C$5-2 -> rptw for 2017 | B89: =IF(OR(C$5=2016,C$5=2017),B$183,HLOOKUP($A89,D$78:H$85,8,FALSE)) -> 0.04755649502 | C89: (t-2)
A93: F factor Scheme | B93: =$C$5 -> 2019 | D93: 2016 | E93: =+D93+1 -> 2017 | F93: =+E93+1 -> 2018 | G93: 2019 | H93: 2020
A94: =$A$54 -> Jemena | B94: =HLOOKUP($B$93,$D$93:$H$98,2,FALSE) -> 117300 | D94: -680000 | E94: 70000 | F94: 655000 | G94: 117300
A95: =$A$55 -> CitiPower | B95: =HLOOKUP($B$93,$D$93:$H$98,3,FALSE) -> 43200 | D95: -15000 | E95: 410000 | F95: 140000 | G95: 43200
A96: =$A$56 -> Powercor | B96: =HLOOKUP($B$93,$D$93:$H$98,4,FALSE) -> 4639200 | D96: -1530000 | E96: 1420000 | F96: 1755000 | G96: 4639200
A97: =$A$57 -> AusNet Services | B97: =HLOOKUP($B$93,$D$93:$H$98,5,FALSE) -> 1485000 | D97: 1870000 | E97: 3420000 | F97: 750000 | G97: 1485000
A98: =$A$58 -> United Energy | B98: =HLOOKUP($B$93,$D$93:$H$98,6,FALSE) -> 224400 | D98: -2245000 | E98: 555000 | F98: 1000000 | G98: 224400
A100: ="Ifactor (t) "&C$5 -> Ifactor (t) 2019 | B100: =VLOOKUP(C$3,A94:B98,2,FALSE) -> 224400 | D100: =VLOOKUP($C$3,$A$94:$H$98,4,FALSE) -> -2245000 | E100: =VLOOKUP($C$3,$A$94:$H$98,5,FALSE) -> 555000 | F100: =VLOOKUP($C$3,$A$94:$H$98,6,FALSE) -> 1000000 | G100: =VLOOKUP($C$3,$A$94:$H$98,7,FALSE) -> 224400 | H100: =VLOOKUP($C$3,$A$94:$H$98,8,FALSE) -> 0
A104: S factor Scheme | B104: =$C$5 -> 2019 | D104: 2016 | E104: =+D104+1 -> 2017 | F104: =+E104+1 -> 2018 | G104: 2019 | H104: 2020
A105: =$A$54 -> Jemena | B105: =HLOOKUP($B$104,$D$104:$H$109,2,FALSE) -> 0.006950679651 | D105: 0.03997406406 | E105: 0.01488310469 | F105: -0.03971153723 | G105: 0.006950679651
A106: =$A$55 -> CitiPower | B106: =HLOOKUP($B$104,$D$104:$H$109,3,FALSE) -> 0.003830022123 | D106: -0.01268789003 | E106: 0.004032145684 | F106: 0.01857052664 | G106: 0.003830022123
A107: =$A$56 -> Powercor | B107: =HLOOKUP($B$104,$D$104:$H$109,4,FALSE) -> 0.02521273932 | D107: -0.01184910821 | E107: 0.05100648542 | F107: -0.01384168227 | G107: 0.02521273932
A108: =$A$57 -> AusNet Services | B108: =HLOOKUP($B$104,$D$104:$H$109,5,FALSE) -> 0.03014790749 | D108: 0.03357397489 | E108: 0.03217876587 | F108: -0.06343364122 | G108: 0.03014790749
A109: =$A$58 -> United Energy | B109: =HLOOKUP($B$104,$D$104:$H$109,6,FALSE) -> 0.01682414399 | D109: -0.02947870448 | E109: 0.02836672327 | F109: 0.02276703882 | G109: 0.01682414399
A111: ="S factor (t) "&C$5 -> S factor (t) 2019 | B111: =VLOOKUP(C$3,A105:B109,2,FALSE) -> 0.01682414399 | D111: =VLOOKUP($C$3,$A$105:$H$109,4,FALSE) -> -0.02947870448 | E111: =VLOOKUP($C$3,$A$105:$H$109,5,FALSE) -> 0.02836672327 | F111: =VLOOKUP($C$3,$A$105:$H$109,6,FALSE) -> 0.02276703882 | G111: =VLOOKUP($C$3,$A$105:$H$109,7,FALSE) -> 0.01682414399 | H111: =VLOOKUP($C$3,$A$105:$H$109,8,FALSE) -> 0
A115: Pass through Amounts | B115: =$C$5 -> 2019 | D115: 2016 | E115: =+D115+1 -> 2017 | F115: =+E115+1 -> 2018 | G115: 2019 | H115: 2020
A116: =$A$54 -> Jemena | B116: =HLOOKUP($B$115,$D$115:$H$120,2,FALSE) -> 0 | D116: 0 | E116: 0 | F116: 0 | G116: 0
A117: =$A$55 -> CitiPower | B117: =HLOOKUP($B$115,$D$115:$H$120,3,FALSE) -> 0 | D117: 0 | E117: 0 | F117: 0 | G117: 0
A118: =$A$56 -> Powercor | B118: =HLOOKUP($B$115,$D$115:$H$120,4,FALSE) -> 0 | D118: 0 | E118: 0 | F118: 0 | G118: 0
A119: =$A$57 -> AusNet Services | B119: =HLOOKUP($B$115,$D$115:$H$120,5,FALSE) -> 0 | D119: =-(5723000*(1+0.0975)) -> -6280992.5 | E119: 0 | F119: 0 | G119: 0
A120: =$A$58 -> United Energy | B120: =HLOOKUP($B$115,$D$115:$H$120,6,FALSE) -> 0 | D120: 0 | E120: 0 | F120: 0 | G120: 0
A122: ="Pass through amounts (t) "&C$5 -> Pass through amounts (t) 2019 | B122: =VLOOKUP(C$3,A116:B120,2,FALSE) -> 0 | D122: =VLOOKUP($C$3,$A$116:$H$120,4,FALSE) -> 0 | E122: =VLOOKUP($C$3,$A$116:$H$120,5,FALSE) -> 0 | F122: =VLOOKUP($C$3,$A$116:$H$120,6,FALSE) -> 0 | G122: =VLOOKUP($C$3,$A$116:$H$120,7,FALSE) -> 0 | H122: =VLOOKUP($C$3,$A$116:$H$120,8,FALSE) -> 0
A126: License Fees | B126: =$C$5 -> 2019 | D126: 2016 | E126: =+D126+1 -> 2017 | F126: =+E126+1 -> 2018 | G126: 2019 | H126: 2020
A127: =$A$54 -> Jemena | B127: =HLOOKUP($B$126,$D$126:$H$131,2,FALSE) -> 77350 | D127: 36033 | E127: 39516 | F127: 76545 | G127: 77350
A128: =$A$55 -> CitiPower | B128: =HLOOKUP($B$126,$D$126:$H$131,3,FALSE) -> 78912 | D128: 36475 | E128: 40445 | F128: 78091 | G128: 78912
A129: =$A$56 -> Powercor | B129: =HLOOKUP($B$126,$D$126:$H$131,4,FALSE) -> 187026 | D129: 85205 | E129: 94964 | F129: 185081 | G129: 187026
A130: =$A$57 -> AusNet Services | B130: =HLOOKUP($B$126,$D$126:$H$131,5,FALSE) -> 170003 | D130: 74811 | E130: 85031 | F130: 168235 | G130: 170003
A131: =$A$58 -> United Energy | B131: =HLOOKUP($B$126,$D$126:$H$131,6,FALSE) -> 159925 | D131: 74197 | E131: 81712 | F131: 158262 | G131: 159925
A133: ="Licence Fee (t-1) "&TEXT(C$5-2,"####")&"-"&RIGHT(TEXT(C$5-1,"##"),2) -> Licence Fee (t-1) 2017-18 | B133: =VLOOKUP(C$3,A127:B131,2,FALSE) -> 159925 | D133: =VLOOKUP($C$3,$A$127:$H$131,4,FALSE) -> 74197 | E133: =VLOOKUP($C$3,$A$127:$H$131,5,FALSE) -> 81712 | F133: =VLOOKUP($C$3,$A$127:$H$131,6,FALSE) -> 158262 | G133: =VLOOKUP($C$3,$A$127:$H$131,7,FALSE) -> 159925 | H133: =VLOOKUP($C$3,$A$127:$H$131,8,FALSE) -> 0
A137: DMIA Carryover adjustment | B137: =$C$5 -> 2019 | D137: 2016 | E137: =+D137+1 -> 2017 | F137: =+E137+1 -> 2018 | G137: 2019 | H137: 2020
A138: =$A$54 -> Jemena | B138: =HLOOKUP($B$137,$D$137:$H$142,2,FALSE) -> 0 | E138: =H154 -> -91239.84446
A139: =$A$55 -> CitiPower | B139: =HLOOKUP($B$137,$D$137:$H$142,3,FALSE) -> 0
A140: =$A$56 -> Powercor | B140: =HLOOKUP($B$137,$D$137:$H$142,4,FALSE) -> 0
A141: =$A$57 -> AusNet Services | B141: =HLOOKUP($B$137,$D$137:$H$142,5,FALSE) -> 0
A142: =$A$58 -> United Energy | B142: =HLOOKUP($B$137,$D$137:$H$142,6,FALSE) -> 0 | E142: =H163 -> -479660.6938
A144: ="T factor (t) "&C$5 -> T factor (t) 2019 | B144: =VLOOKUP(C$3,A138:B142,2,FALSE) -> 0 | D144: =VLOOKUP($C$3,$A$138:$H$142,4,FALSE) -> 0 | E144: =VLOOKUP($C$3,$A$138:$H$142,5,FALSE) -> -479660.6938 | F144: =VLOOKUP($C$3,$A$138:$H$142,6,FALSE) -> 0 | G144: =VLOOKUP($C$3,$A$138:$H$142,7,FALSE) -> 0 | H144: =VLOOKUP($C$3,$A$138:$H$142,8,FALSE) -> 0
A147: DMIA Carryover adjustment
A148: Jemena | C148: 2011-15 | D148: 2016 | E148: 2017
A149: CPI - PTRM | D149: 0.02323079821 | E149: 0.02323079821
A150: Nominal Vanilla WACC - PTRM | C150: 0.1033058648 | D150: =(1+D149)*(1+D37)-1 -> 0.06347306235 | E150: =(1+E149)*(1+E37)-1 -> 0.06286111175
C152: 2011 | D152: 2012 | E152: 2013 | F152: 2014 | G152: 2015 | H152: Total
A153: Ex-ante revenue minus ex post expenditure ($nominal) | C153: -263938 | D153: -16375.4 | E153: 163676.6714 | F153: 153066.6261 | G153: 125690.5855 | H153: =SUM(C153:G153) -> 162120.4829
A154: DMIA Carryover adjustment | C154: =0-(C153/(1+$C150))*(1+$C150)^5*(1+$D150)*(1+$E150) -> 442067.5528 | D154: =C154-(D153/(1+$C150))*(1+$C150)^4*(1+$D150)*(1+$E150) -> 466926.4987 | E154: =D154-(E153/(1+$C150))*(1+$C150)^3*(1+$D150)*(1+$E150) -> 241719.6213 | F154: =E154-(F153/(1+$C150))*(1+$C150)^2*(1+$D150)*(1+$E150) -> 50831.26114 | G154: =F154-(G153/(1+$C150))*(1+$C150)^1*(1+$D150)*(1+$E150) -> -91239.84446 | H154: =G154 -> -91239.84446
A157: UED | C157: 2011-15 | D157: 2016 | E157: 2017
A158: CPI - PTRM | D158: 0.02323079821 | E158: 0.02323079821
A159: Nominal Vanilla WACC - PTRM | C159: 0.09489772882 | D159: =(1+D158)*(1+D41)-1 -> 0.06347466033 | E159: =(1+E158)*(1+E41)-1 -> 0.06282474637
C161: 2011 | D161: 2012 | E161: 2013 | F161: 2014 | G161: 2015 | H161: Total
A162: Ex-ante revenue minus ex post expenditure ($nominal) | C162: 406960 | D162: 327739.2 | E162: 91075.34272 | F162: -227853.7479 | G162: -450364.8291 | H162: =SUM(C162:G162) -> 147555.9658
A163: DMIA Carryover adjustment | C163: =0-(C162/(1+$C159))*(1+$C159)^5*(1+$D159)*(1+$E159) -> -661050.6678 | D163: =C163-(D162/(1+$C159))*(1+$C159)^4*(1+$D159)*(1+$E159) -> -1147276.309 | E163: =D163-(E162/(1+$C159))*(1+$C159)^3*(1+$D159)*(1+$E159) -> -1270682.438 | F163: =E163-(F162/(1+$C159))*(1+$C159)^2*(1+$D159)*(1+$E159) -> -988702.2892 | G163: =F163-(G162/(1+$C159))*(1+$C159)^1*(1+$D159)*(1+$E159) -> -479660.6938 | H163: =G163 -> -479660.6938
A172: Regulatory Period 2011-15
A174: DuoS
A175: Real Pre-tax WACC for distribution tariffs | D175: Real Vanilla WACC for distribution tariffs
A177: =$A$54 -> Jemena | B177: 0.087 | D177: =$A$54 -> Jemena | F177: 0.0756
A178: =$A$55 -> CitiPower | B178: 0.0786 | D178: =$A$55 -> CitiPower | F178: 0.0674
A179: =$A$56 -> Powercor | B179: 0.0776 | D179: =$A$56 -> Powercor | F179: 0.0674
A180: =$A$57 -> AusNet Services | B180: 0.078 | D180: =$A$57 -> AusNet Services | F180: 0.0699
A181: =$A$58 -> United Energy | B181: 0.0791 | D181: =$A$58 -> United Energy | F181: 0.0674
A183: pretax WACCD | B183: =VLOOKUP($C$3,A177:B181,2,FALSE) -> 0.0791 | D183: Real Vanilla WACCD | F183: =VLOOKUP($C$3,D177:F181,3,FALSE) -> 0.0674
A188: Pass Through Costs | E188: 2014 | F188: 2015
A190: =A204 -> F Factor pass through | E190: =B204 -> 980000 | F190: =C204 -> -70000
A191: VBRC | E191: =B215 -> 0 | F191: =C215 -> 0
A192: Powerline Replacement program | E192: =B226 -> 0 | F192: =C226 -> 0
A193: TOTAL PASS THROUGH AMOUNTS | E193: =SUM(E190:E192) -> 980000 | F193: =SUM(F190:F192) -> -70000
A197: F factor Scheme | B197: 2014 | C197: 2015
A198: =$A$54 -> Jemena | B198: 370000 | C198: -855000
A199: =$A$55 -> CitiPower | B199: 10000 | C199: -65000
A200: =$A$56 -> Powercor | B200: 2470000 | C200: -2405000
A201: =$A$57 -> AusNet Services | B201: 1970000 | C201: 2020000
A202: =$A$58 -> United Energy | B202: 980000 | C202: -70000
A204: F Factor pass through | B204: =VLOOKUP($C$3,$A$198:$C$202,2,FALSE) -> 980000 | C204: =VLOOKUP($C$3,$A$198:$C$202,3,FALSE) -> -70000
A208: VBRC | B208: 2014 | C208: 2015
A209: =$A$54 -> Jemena | B209: 0 | C209: 0
A210: =$A$55 -> CitiPower | B210: 0 | C210: 0
A211: =$A$56 -> Powercor | B211: =H245 -> 7193170.454 | C211: =I245 -> 8768550.378
A212: =$A$57 -> AusNet Services | B212: =H262 -> 6039778.158 | C212: =I262 -> 8341755.212
A213: =$A$58 -> United Energy | B213: 0 | C213: 0
A215: VBRC pass through | B215: =VLOOKUP($C$3,$A$209:$C$213,2,FALSE) -> 0 | C215: =VLOOKUP($C$3,$A$209:$C$213,3,FALSE) -> 0
A219: Powerline Replacement program | B219: 2014 | C219: 2015
A220: =$A$54 -> Jemena | B220: 0 | C220: 0
A221: =$A$55 -> CitiPower | B221: 0 | C221: 0
A222: =$A$56 -> Powercor | B222: =H249 -> 0 | C222: 8777690.455
A223: =$A$57 -> AusNet Services | B223: 0 | C223: 5723419.31
A224: =$A$58 -> United Energy | B224: 0 | C224: 0
A226: Powerline Replacement program | B226: =VLOOKUP($C$3,$A$219:$C$224,2,FALSE) -> 0 | C226: =VLOOKUP($C$3,$A$219:$C$224,3,FALSE) -> 0
A231: VBRC
A233: Powercor | E233: 2011 | F233: 2012 | G233: 2013 | H233: 2014 | I233: 2015
A234: Pass through amounts approved (Nominal $) - Forecast CPI | G234: 10270612 | H234: 7181525 | I234: 8777217
A235: (As per AER's Final Decision on Powercor's VBRC pass through, table 7.2, 7 March 2012)
A236: Forecast CPI in PTRM | E236: 0.0257487534 | F236: 0.0257487534 | G236: 0.0257487534 | H236: 0.0257487534 | I236: 0.0257487534
E237: =1+E236 -> 1.025748753 | F237: =E237*(1+F236) -> 1.052160505 | G237: =F237*(1+G236) -> 1.079252326 | H237: =G237*(1+H236) -> 1.107041729 | I237: =H237*(1+I236) -> 1.135546673
A239: Pass through amounts approved (Real $2010) | G239: =G234/G237 -> 9516414.047 | H239: =H234/H237 -> 6487131.257 | I239: =I234/I237 -> 7729507.918
A242: Actual CPI | E242: =173.3/168.6-1 -> 0.02787663108 | F242: =179.4/173.3-1 -> 0.03519907675 | G242: =C17/C16-1 -> 0.02004008016 | H242: =C18/C17-1 -> 0.02161100196 | I242: =C19/C18-1 -> 0.02307692308
E243: =1+E242 -> 1.027876631 | F243: =E243*(1+F242) -> 1.06405694 | G243: =F243*(1+G242) -> 1.085380726 | H243: =G243*(1+H242) -> 1.108836891 | I243: 1.134425434
A245: Pass through amounts approved (Nominal $) - Actual CPI | G245: =G239*G243 -> 10328932.39 | H245: =H239*H243 -> 7193170.454 | I245: =I239*I243 -> 8768550.378
A250: AusNet Services | E250: 2011 | F250: 2012 | G250: 2013 | H250: 2014 | I250: 2015
A251: Pass through amounts approved (Nominal $) - Forecast CPI | G251: 5790000 | H251: 6030000 | I251: 8350000
A252: As per AER's Final Decision on AusNet Services's VBRC pass through, table 1.3, 19 October 2012
A253: Forecast CPI in PTRM | E253: 0.0257487534 | F253: 0.0257487534 | G253: 0.0257487534 | H253: 0.0257487534 | I253: 0.0257487534
E254: =1+E253 -> 1.025748753 | F254: =E254*(1+F253) -> 1.052160505 | G254: =F254*(1+G253) -> 1.079252326 | H254: =G254*(1+H253) -> 1.107041729 | I254: =H254*(1+I253) -> 1.135546673
A256: Pass through amounts approved (Real $2010) | G256: =G251/G254 -> 5364825.127 | H256: =H251/H254 -> 5446949.148 | I256: =I251/I254 -> 7353286.482
A259: Actual CPI | E259: =173.3/168.6-1 -> 0.02787663108 | F259: =179.4/173.3-1 -> 0.03519907675 | G259: =C17/C16-1 -> 0.02004008016 | H259: =C18/C17-1 -> 0.02161100196 | I259: =C19/C18-1 -> 0.02307692308
E260: =1+E259 -> 1.027876631 | F260: =E260*(1+F259) -> 1.06405694 | G260: =F260*(1+G259) -> 1.085380726 | H260: =G260*(1+H259) -> 1.108836891 | I260: 1.134425434
A262: Pass through amounts approved (Nominal $) - Actual CPI | G262: =G256*G260 -> 5822877.791 | H262: =H256*H260 -> 6039778.158 | I262: =I256*I260 -> 8341755.212
A270: AMI Transitional Adjustment in 2018 prices ($)
A271: =C3 -> United Energy
C272: 2009 | D272: 2010 | E272: 2011 | F272: 2012 | G272: 2013 | H272: 2014 | I272: 2015 | J272: 2016 | K272: 2017 | L272: 2018 | M272: 2019 | N272: 2020
A273: CPI | C273: 0.04981084489 | D273: 0.01261261261 | E273: 0.02787663108 | F273: 0.03519907675 | G273: =$F17 -> 0.02004008016 | H273: =$F18 -> 0.02161100196 | I273: =$F19 -> 0.02307692308 | J273: =$F20 -> 0.01503759398 | K273: =$F22 -> 0.01023255814 | L273: =$F23 -> 0.01933701657 | M273: =$F24 -> 0.02077687444 | N273: =$F25 -> 0
A275: Vanilla' WACC (Real) | C275: 0.06771645866 | D275: =$C275 -> 0.06771645866 | E275: =$C275 -> 0.06771645866 | F275: 0.06771645866 | G275: 0.06771645866 | H275: 0.05023909437 | I275: =H275 -> 0.05023909437 | J275: =D43 -> 0.0393301904 | K275: =E43 -> 0.03869503169 | L275: =F43 -> 0.03812382202 | M275: =G43 -> 0.03751614965 | N275: =H43 -> 0.03751614965
A276: Vanilla' WACC (nominal) | C276: =(1+C275)*(1+C273)-1 -> 0.1209003176 | D276: 0.08118315273 | E276: 0.09748079647 | F276: 0.1052990922 | G276: 0.08911358208 | H276: 0.0729358135 | I276: 0.07447538116 | J276: 0.05495921582 | K276: 0.04932353899 | L276: 0.05819803957 | M276: 0.05907249241 | N276: 0.03751614965
A278: Future value index | C278: =(1+C276)^0.5 -> 1.058725799 | D278: =C278*(D276+1) -> 1.144676497 | E278: 1.256260474 | F278: 1.388543561 | G278: 1.512281652 | H278: 1.622581145 | I278: 1.743423494 | J278: 1.839240682 | K278: 1.929958541 | L278: 2.042278345 | M278: 2.162920817 | N278: 2.244065278
A280: AMI Transitional Adjustment - Revenue and Costs 2009-2015
A281: Over \ (under) recovery of revenue and costs (000's)
A282: NPV at 1 January 2009 | D282: -481.9237445
A284: AMI Transitional Adjustment in 2018 prices ($) | D284: =-D282*L278*10^3 -> 984222.4273
A286: AMI Transitional Adjustment - Revenue 2016-2020
A287: Increase \ (Reduction) in revenue 2016-2020 (000's)
A288: NPV at 1 January 2016 | D288: -4121.115231
A290: AMI Transitional Adjustment in 2018 prices ($) | D290: =D288*L278/I278*10^3 -> -4827550.176
A292: Total AMI Transitional Adjustment in 2018 prices ($) | D292: =SUM(D284,D290) -> -3843327.748

Sheet 2019 Unmetered supply
B1: ="Tariff Approval - " &'Model update'!C3 -> Tariff Approval - United Energy
B3: ="PROPOSED "&'Model update'!C5&" UNMETERED SUPPLY TARIFF" -> PROPOSED 2019 UNMETERED SUPPLY TARIFF
C4: ="P t-1 ("&'Model update'!$C$8&")" -> P t-1 (2018) | G4: ="Pt ("&'Model update'!$C$7&")" -> Pt (2019) | K4: ="Qt-2 ("&'Model update'!$C$9&")" -> Qt-2 (2017) | O4: P t-1 * Qt-2 | T4: Pt * Qt-2
C5: ($) per NMI | D5: ($) per meter | E5: ($) per light | G5: ($) per NMI | H5: ($) per meter | I5: ($) per light | K5: NMIs | L5: Meters | M5: Lights | O5: $ Comp1 | P5: $ Comp2 | Q5: $ Comp3 | R5: Total $ | T5: NMIs | U5: Meters | V5: Lights
B6: Proposed tariff | C6: ExistTarComp1 | D6: ExistTarComp2 | E6: ExistTarComp3 | G6: PropTarComp1 | H6: PropTarComp2 | I6: PropTarComp3 | K6: ActVolComp1 | L6: ActVolComp2 | M6: ActVolComp3 | O6: $Comp1 | P6: ExistRevComp2 | Q6: ExistRevComp3 | R6: Exist Rev Total | T6: $PropRevComp1 | U6: $PropRevComp2 | V6: $ PropRevComp3 | W6: Total $
B7: metering data services - unmetered supplies | E7: 1.347 | I7: =ROUNDDOWN(E7*(1+C14),3) -> 1.374 | M7: 120759 | O7: =IF($B7="","",C7*K7) -> 0 | P7: =IF($B7="","",D7*L7) -> 0 | Q7: =IF($B7="","",E7*M7) -> 162662.373 | R7: =SUM(O7:Q7) -> 162662.373 | T7: =IF($B7="","",G7*K7) -> 0 | U7: =IF($B7="","",H7*L7) -> 0 | V7: =IF($B7="","",I7*M7) -> 165922.866 | W7: =SUM(T7:V7) -> 165922.866
B10: UNMETERED SUPPLY TARIFF CONTROL
B12: CPI
B14: ="CPI "&'Model update'!C5 -> CPI 2019 | C14: ='Model update'!C30 -> 0.02077687444
B19: =""&'Model update'!C5& " Unmetered Supplies price control" -> 2019 Unmetered Supplies price control
B21: Average price movement allowed | G21: =1+C14 -> 1.020776874
B23: Proposed metering tariff revenue (Pt*Qt-2) | G23: ='2019 Unmetered supply'!W7 -> 165922.866
B24: Existing metering tariff revenue (Pt-1*Qt-2) | G24: ='2019 Unmetered supply'!R7 -> 162662.373
B25: Average price movement | G25: =IF(G23>0,G23/G24,"") -> 1.020044543
B27: =IF(G25="","", IF(G25<=G21,"UNMETERED SUPPLIES PRICE CONTROL FORMULA COMPLIANT","UNMETERED SUPPLIES CONTROL FORMULA BREACHED")) -> UNMETERED SUPPLIES PRICE CONTROL FORMULA COMPLIANT

Sheet Metering
B1: ="Tariff Approval - "&'Model update'!C3 -> Tariff Approval - United Energy
B3: ="PROPOSED "&'Model update'!$C$5&" METERING TARIFFS AND REVENUE" -> PROPOSED 2019 METERING TARIFFS AND REVENUE
D5: ="Proposed Metering Tariffs P(t) for " &'Model update'!$C$5 -> Proposed Metering Tariffs P(t) for 2019 | E5: ="Current Metering Tariffs P(t-1) for" &'Model update'!$C$8 -> Current Metering Tariffs P(t-1) for2018 | F5: ="Forecast Quantities (Qt) for "&'Model update'!$C$5 -> Forecast Quantities (Qt) for 2019 | H5: ="Forecast Revenue (Pt "&'Model update'!$C$5&")*(Qt " &'Model update'!$C$5&")" -> Forecast Revenue (Pt 2019)*(Qt 2019) | I5: ="Revenue (Pt-1 "&'Model update'!$C$8&")*(Qt " &'Model update'!$C$5&")" -> Revenue (Pt-1 2018)*(Qt 2019) | K5: Movement | L5: Side Constraint
B6: Proposed tariff | C6: Existing tariff | D6: PropTar $/Cust/year | E6: ExistTar $/Cust/year | F6: FcastVol Cust # | H6: PropRev Fixed | I6: ExistRev Fixed
B8: single phase single element meter | C8: single phase single element meter | D8: 57 | E8: 57.581 | F8: 537954 | H8: =D8*F8 -> 30663378 | I8: =E8*F8 -> 30975929.27 | K8: =IFERROR(H8/I8,"") -> 0.9899098661 | L8: =IF(B8="","",IF(K8<$I$30,"COMPLIANT","BREACHED")) -> COMPLIANT
B9: single phase single element meter with contactor | C9: single phase single element meter with contactor | D9: 57 | E9: 57.581 | F9: 55062 | H9: 3138534 | I9: 3170525.022 | K9: =IFERROR(H9/I9,"") -> 0.9899098661 | L9: COMPLIANT
B10: three phase direct connected meter | C10: three phase direct connected meter | D10: 64.28 | E10: 64.927 | F10: 102706 | H10: 6601941.68 | I10: 6668392.462 | K10: 0.9900349623 | L10: COMPLIANT
B11: three phase Current transformer connected meter | C11: three phase Current transformer connected meter | D11: 68.15 | E11: 68.845 | F11: 3188 | H11: 217262.2 | I11: 219477.86 | K11: 0.9899048587 | L11: COMPLIANT
H12: 0 | I12: 0
H13: 0 | I13: 0
H14: 0 | I14: 0
H15: 0 | I15: 0
H16: 0 | I16: 0
H17: =SUM(H7:H16) -> 40621115.88 | I17: =SUM(I7:I16) -> 41034324.62
B22: Year (t) | D22: ='Model update'!C5 -> 2019 | E22: =D22-1 -> 2018
B24: Table 1- Compliance with AER Final Determination Total Metering Annual Revenue | H24: Metering tariff rebalancing control
B25: Revenue from Metering charges for year t | D25: =H17 -> 40621115.88 | H25: ="CPI "&'Model update'!$C$5 -> CPI 2019 | I25: =D37 -> 0.02077687444
B26: Total Annual Metering Revenue for year t | D26: =D33 -> 40622420.45 | H26: ="X "& 'Model update'!$C$5 -> X 2019 | I26: =MIN(D38,0) -> 0
D27: =IF(D25="","",IF(D26>=D25,"METERING REVENUE CAP FORMULA COMPLIANT","METERING REVENUE CAP FORMULA BREACHED")) -> METERING REVENUE CAP FORMULA COMPLIANT | H27: ="Tt "&'Model update'!$C$5 -> Tt 2019 | I27: =(D31-E31)/I$17 -> 0.09366128927
H28: ="Bt "&'Model update'!$C$5 -> Bt 2019 | I28: =(D32-E32)/I$17 -> -0.05426309356
B29: Table 2 - Total Annual Revenue for year t (TARMt)
B30: Adjusted Annual Smoothed Metering Revenue for year t | D30: =D39 -> 40463426.3 | I30: =(1+I25)*(1-I26)*(1+0.02)+SUM(I27:I28) -> 1.080590608
B31: T factor for year t | E31: ='Model update'!D292 -> -3843327.748
B32: B factor for year t | D32: =-F68*(1+F66)^0.5 -> 158994.1481 | E32: 2385643.544
B33: Total Annual Revenue for year t | D33: =SUM(D30:D32) -> 40622420.45
B35: Table 3 - Adjusted Annual Revenue for year t (ARt)
B36: Adjusted Annual Smoothed Revenue for year t-1 | D36: 42149500.36
B37: CPI for period t | D37: ='Model update'!C30 -> 0.02077687444
B38: X factor for period t | D38: ='Model update'!B72 -> 0.05954200889
B39: Adjusted Annual Smoothed Revenue for year t | D39: =IF(D22=2016,'Model update'!D72,(D36*(1+D37)*(1-D38))) -> 40463426.3
B44: Table 4 - Metering Services Recovery Arrangements
D45: Year t-2 | E45: Year t-1 | F45: Year t
D46: (actual) | E46: (estimate) | F46: (forecast)
D47: =E47-1 -> 2017 | E47: =F47-1 -> 2018 | F47: =D$22 -> 2019
B49: (A) Revenue from Metering proposal charges | D49: 42579408 | E49: =E89 -> 40688838.62 | F49: =D25 -> 40621115.88
B52: (B) Less TARM for regulatory year = | D52: =SUM(D53:D54) -> 43849328.04 | E52: =SUM(E53:E54) -> 38306172.61 | F52: =SUM(F53:F54) -> 40463426.3
B53: + Adjusted annual smoothed revenue | D53: 43849328.04 | E53: =D36 -> 42149500.36 | F53: =D30 -> 40463426.3
B54: + T factor | D54: 0 | E54: =E31 -> -3843327.748 | F54: =D31 -> 0
B57: (A minus B) Under/over recovery of revenue for regulatory year | D57: =D49-D52 -> -1269920.044 | E57: =E49-E52 -> 2382666.003 | F57: =F49-F52 -> 157689.5795
B61: Table 5 - Metering Services Unders and Overs Account
D62: Year t-2 | E62: Year t-1 | F62: Year t
D63: (actual) | E63: (estimate) | F63: (forecast)
B64: Calendar year | D64: =E64-1 -> 2017 | E64: =F64-1 -> 2018 | F64: =D$22 -> 2019
B66: Nominal WACC | D66: =(1+'Model update'!$B$47)*(1+'Model update'!$C$28)-1 -> 0.04932353899 | E66: =(1+'Model update'!$B$45)*(1+'Model update'!$C$29)-1 -> 0.05819803957 | F66: =(1+'Model update'!$B$43)*(1+'Model update'!$C$30)-1 -> 0.05907249241
B68: Opening balance | D68: -1106767.606 | E68: =D72 -> -2462218.876 | F68: =E72 -> -154496.3758
B69: Interest on Opening balance | D69: =D68*D66 -> -54589.69514 | E69: =E68*E66 -> -143296.3116 | F69: =F68*F66 -> -9126.485984
B70: Under/over recovery of revenue for regulatory year | D70: =D57 -> -1269920.044 | E70: =E57 -> 2382666.003 | F70: =F57 -> 157689.5795
B71: Interest on under/over recovery for regulatory year | D71: =D70*((1+D66)^0.5-1) -> -30941.53106 | E71: =E70*((1+E66)^0.5-1) -> 68352.80846 | F71: =F70*((1+F66)^0.5-1) -> 4590.734417
B72: Closing balance of Metering Services overs/ (unders) account | D72: =SUM(D68:D71) -> -2462218.876 | E72: =SUM(E68:E71) -> -154496.3758 | F72: -1342.547816
B74: The DNSP is expected to achieve a closing balance as close to zero as practicable in its annual metering charges unders and overs account in each forecast year in its annual pricing proposals in the 2016–20 regulatory control period.
C77: ="Current Metering Tariffs P(t-1) for " &'Model update'!$C$8 -> Current Metering Tariffs P(t-1) for 2018 | D77: ="Estimated Quantities (Qt-1) for "&'Model update'!$C$5-1 -> Estimated Quantities (Qt-1) for 2018 | E77: ="Revenue (Pt-1 "&'Model update'!$C$8&")*(Qt-1 " &'Model update'!$C$5-1&")" -> Revenue (Pt-1 2018)*(Qt-1 2018)
B78: Existing tariff | C78: ExistTar $/Cust/year | D78: FcastVol Cust # | E78: ExistRev Fixed
B80: single phase single element meter | C80: =E8 -> 57.581 | D80: 531954 | E80: =C80*D80 -> 30630443.27
B81: single phase single element meter with contactor | C81: =E9 -> 57.581 | D81: 55062 | E81: 3170525.022
B82: three phase direct connected meter | C82: 64.927 | D82: 102706 | E82: 6668392.462
B83: three phase Current transformer connected meter | C83: 68.845 | D83: 3188 | E83: 219477.86
E84: 0
E85: 0
E86: 0
E87: 0
E88: 0
E89: =SUM(E79:E88) -> 40688838.62

Sheet Prop2019DistTar
B1: ="Tariff Approval - "&'Model update'!$C$3 -> Tariff Approval - United Energy
B3: ="PROPOSED "&'Model update'!$C$5&" DISTRIBUTION TARIFFS" -> PROPOSED 2019 DISTRIBUTION TARIFFS
D4: ="Proposed Distribution Tariffs (Pt) for "&'Model update'!$C$5 -> Proposed Distribution Tariffs (Pt) for 2019 | R4: ="Current Distribution Tariffs (Pt-1) for "&'Model update'!$C$8 -> Current Distribution Tariffs (Pt-1) for 2018 | AF4: ="Forecast Quantities (Qt) for "&'Model update'!$C$5 -> Forecast Quantities (Qt) for 2019 | AT4: ="Forecast Revenue (Pt "&'Model update'!$C$5&")*(Qt " &'Model update'!$C$5&")" -> Forecast Revenue (Pt 2019)*(Qt 2019) | BI4: ="Revenue (Pt-1 "&'Model update'!$C$8&")*(Qt " &'Model update'!$C$5&")" -> Revenue (Pt-1 2018)*(Qt 2019)
B5: Proposed tariff | C5: Existing tariff | D5: PropTar Fixed | E5: PropTar PkBlk1 | F5: PropTar PkBlk2 | G5: PropTar PkBlk3 | H5: PropTar PkBlk4 | I5: PropTar OPkBlk1 | J5: PropTar OPkBlk2 | K5: PropTar OPkBlk3 | L5: PropTar OPkBlk4 | M5: PropTar DemBlk1 | N5: PropTar DemBlk2 | O5: PropTar DemBlk3 | P5: PropTar DemBlk4 | R5: ExistTar Fixed | S5: ExistTar PkBlk1 | T5: ExistTar PkBlk2 | U5: ExistTar PkBlk3 | V5: ExistTar PkBlk4 | W5: ExistTar OPkBlk1 | X5: ExistTar OPkBlk2 | Y5: ExistTar OPkBlk3 | Z5: ExistTar OPkBlk4 | AA5: ExistTar DemBlk1 | AB5: ExistTar DemBlk2 | AC5: ExistTar DemBlk3 | AD5: ExistTar DemBlk4 | AF5: FcastVol Fixed | AG5: FcastVol PkBlk1 | AH5: FcastVol PkBlk2 | AI5: FcastVol PkBlk3 | AJ5: FcastVol PkBlk4 | AK5: FcastVol OPkBlk1 | AL5: FcastVol OPkBlk2 | AM5: FcastVol OPkBlk3 | AN5: FcastVol OPkBlk4 | AO5: FcastVol DemBlk1 | AP5: FcastVol DemBlk2 | AQ5: FcastVol DemBlk3 | AR5: FcastVol DemBlk4 | AT5: PropRev Fixed | AU5: PropRev PkBlk1 | AV5: PropRev PkBlk2 | AW5: PropRev PkBlk3 | AX5: PropRev PkBlk4 | AY5: PropRev OPkBlk1 | AZ5: PropRev OPkBlk2 | BA5: PropRev OPkBlk3 | BB5: PropRev OPkBlk4 | BC5: PropRev DemBlk1 | BD5: PropRev DemBlk2 | BE5: PropRev DemBlk3 | BF5: PropRev DemBlk4 | BG5: PropRev Total | BI5: ExistRev Fixed | BJ5: ExistRev PkBlk1 | BK5: ExistRev PkBlk2 | BL5: ExistRev PkBlk3 | BM5: ExistRev PkBlk4 | BN5: ExistRev OPkBlk1 | BO5: ExistRev OPkBlk2 | BP5: ExistRev OPkBlk3 | BQ5: ExistRev OPkBlk4 | BR5: ExistRev DemBlk1 | BS5: ExistRev DemBlk2 | BT5: ExistRev DemBlk3 | BU5: ExistRev DemBlk4 | BV5: ExistRev Total
B6: =C6 -> Low voltage small 1 rate | C6: =Est2018DistRev!B6 -> Low voltage small 1 rate | D6: 7.09 | E6: 7.72 | F6: 0 | G6: 0 | H6: 6.19 | I6: 0 | J6: 0 | K6: 0 | L6: 0 | M6: 0 | N6: 0 | O6: 0 | P6: 0 | R6: =Est2018DistRev!D6 -> 6.865 | S6: =Est2018DistRev!E6 -> 8.465 | T6: =Est2018DistRev!F6 -> 0 | U6: =Est2018DistRev!G6 -> 0 | V6: =Est2018DistRev!H6 -> 5.449 | W6: =Est2018DistRev!I6 -> 0 | X6: =Est2018DistRev!J6 -> 0 | Y6: =Est2018DistRev!K6 -> 0 | Z6: =Est2018DistRev!L6 -> 0 | AA6: =Est2018DistRev!M6 -> 0 | AB6: =Est2018DistRev!N6 -> 0 | AC6: =Est2018DistRev!O6 -> 0 | AD6: =Est2018DistRev!P6 -> 0 | AF6: 206859021.7 | AG6: 943855173.4 | AH6: 0 | AI6: 0 | AJ6: 1520207629 | AK6: 0 | AL6: 0 | AM6: 0 | AN6: 0 | AO6: 0 | AP6: 0 | AQ6: 0 | AT6: =D6/100*AF6 -> 14666304.64 | AU6: =E6/100*AG6 -> 72865619.39 | AV6: =F6/100*AH6 -> 0 | AW6: =G6/100*AI6 -> 0 | AX6: =H6/100*AJ6 -> 94100852.22 | AY6: =I6/100*AK6 -> 0 | AZ6: =J6/100*AL6 -> 0 | BA6: =K6/100*AM6 -> 0 | BB6: =L6/100*AN6 -> 0 | BC6: =M6/100*AO6 -> 0 | BD6: =N6/100*AP6 -> 0 | BE6: =O6/100*AQ6 -> 0 | BF6: =P6/100*AR6 -> 0 | BG6: =SUM(AT6:BF6) -> 181632776.2 | BI6: =R6/100*AF6 -> 14200871.84 | BJ6: =S6/100*AG6 -> 79897340.43 | BK6: =T6/100*AH6 -> 0 | BL6: =U6/100*AI6 -> 0 | BM6: =V6/100*AJ6 -> 82836113.69 | BN6: =W6/100*AK6 -> 0 | BO6: =X6/100*AL6 -> 0 | BP6: =Y6/100*AM6 -> 0 | BQ6: =Z6/100*AN6 -> 0 | BR6: =AA6/100*AO6 -> 0 | BS6: =AB6/100*AP6 -> 0 | BT6: =AC6/100*AQ6 -> 0 | BU6: =AD6/100*AR6 -> 0 | BV6: =SUM(BI6:BU6) -> 176934326
B7: =C7 -> Winter economy tariff | C7: =Est2018DistRev!B7 -> Winter economy tariff | D7: 9.13 | E7: 7.49 | F7: 0 | G7: 0 | H7: 5.55 | I7: 2.08 | J7: 0 | K7: 0 | L7: 0 | M7: 0 | N7: 0 | O7: 0 | P7: 0 | R7: =Est2018DistRev!D7 -> 8.841 | S7: =Est2018DistRev!E7 -> 6.593 | T7: =Est2018DistRev!F7 -> 0 | U7: =Est2018DistRev!G7 -> 0 | V7: =Est2018DistRev!H7 -> 4.885 | W7: =Est2018DistRev!I7 -> 1.831 | X7: =Est2018DistRev!J7 -> 0 | Y7: =Est2018DistRev!K7 -> 0 | Z7: =Est2018DistRev!L7 -> 0 | AA7: =Est2018DistRev!M7 -> 0 | AB7: =Est2018DistRev!N7 -> 0 | AC7: =Est2018DistRev!O7 -> 0 | AD7: =Est2018DistRev!P7 -> 0 | AF7: 42656.46073 | AG7: 298454.7293 | AH7: 0 | AI7: 0 | AJ7: 543138.8553 | AK7: 0 | AL7: 0 | AM7: 0 | AN7: 0 | AO7: 0 | AP7: 0 | AQ7: 0 | AT7: 3894.534865 | AU7: 22354.25922 | AV7: 0 | AW7: 0 | AX7: 30144.20647 | AY7: 0 | AZ7: 0 | BA7: 0 | BB7: 0 | BC7: 0 | BD7: 0 | BE7: 0 | BF7: 0 | BG7: 56393.00055 | BI7: 3771.257693 | BJ7: 19677.1203 | BK7: 0 | BL7: 0 | BM7: 26532.33308 | BN7: 0 | BO7: 0 | BP7: 0 | BQ7: 0 | BR7: 0 | BS7: 0 | BT7: 0 | BU7: 0 | BV7: 49980.71107
B8: Reverse cycle airconditioning time of use | C8: =Est2018DistRev!B8 -> Reverse cycle airconditioning time of use | D8: 0 | E8: 0 | F8: 0 | G8: 0 | H8: 0 | I8: 0 | J8: 0 | K8: 0 | L8: 0 | M8: 0 | N8: 0 | O8: 0 | P8: 0 | R8: =Est2018DistRev!D8 -> 0 | S8: =Est2018DistRev!E8 -> 0 | T8: =Est2018DistRev!F8 -> 0 | U8: =Est2018DistRev!G8 -> 0 | V8: =Est2018DistRev!H8 -> 0 | W8: =Est2018DistRev!I8 -> 0 | X8: =Est2018DistRev!J8 -> 0 | Y8: =Est2018DistRev!K8 -> 0 | Z8: =Est2018DistRev!L8 -> 0 | AA8: =Est2018DistRev!M8 -> 0 | AB8: =Est2018DistRev!N8 -> 0 | AC8: =Est2018DistRev!O8 -> 0 | AD8: =Est2018DistRev!P8 -> 0 | AF8: 0 | AG8: 0 | AH8: 0 | AI8: 0 | AJ8: 0 | AK8: 0 | AL8: 0 | AM8: 0 | AN8: 0 | AO8: 0 | AP8: 0 | AQ8: 0 | AT8: 0 | AU8: 0 | AV8: 0 | AW8: 0 | AX8: 0 | AY8: 0 | AZ8: 0 | BA8: 0 | BB8: 0 | BC8: 0 | BD8: 0 | BE8: 0 | BF8: 0 | BG8: 0 | BI8: 0 | BJ8: 0 | BK8: 0 | BL8: 0 | BM8: 0 | BN8: 0 | BO8: 0 | BP8: 0 | BQ8: 0 | BR8: 0 | BS8: 0 | BT8: 0 | BU8: 0 | BV8: 0
B9: Low voltage small 2 rate | C9: =Est2018DistRev!B9 -> Low voltage small 2 rate | D9: 14.48 | E9: 0 | F9: 0 | G9: 11.43 | H9: 0 | I9: 0 | J9: 8.67 | K9: 1.98 | L9: 0 | M9: 0 | N9: 0 | O9: 0 | P9: 0 | R9: =Est2018DistRev!D9 -> 14.02 | S9: =Est2018DistRev!E9 -> 0 | T9: =Est2018DistRev!F9 -> 0 | U9: =Est2018DistRev!G9 -> 10.063 | V9: =Est2018DistRev!H9 -> 0 | W9: =Est2018DistRev!I9 -> 0 | X9: =Est2018DistRev!J9 -> 7.632 | Y9: =Est2018DistRev!K9 -> 1.745 | Z9: =Est2018DistRev!L9 -> 0 | AA9: =Est2018DistRev!M9 -> 0 | AB9: =Est2018DistRev!N9 -> 0 | AC9: =Est2018DistRev!O9 -> 0 | AD9: =Est2018DistRev!P9 -> 0 | AF9: 1340451.159 | AG9: 0 | AH9: 0 | AI9: 3869362.149 | AJ9: 0 | AK9: 0 | AL9: 6191506.811 | AM9: 13287140.18 | AN9: 0 | AO9: 0 | AP9: 0 | AQ9: 0 | AT9: 194097.3278 | AU9: 0 | AV9: 0 | AW9: 442268.0937 | AX9: 0 | AY9: 0 | AZ9: 536803.6406 | BA9: 263085.3755 | BB9: 0 | BC9: 0 | BD9: 0 | BE9: 0 | BF9: 0 | BG9: 1436254.438 | BI9: 187931.2525 | BJ9: 0 | BK9: 0 | BL9: 389373.9131 | BM9: 0 | BN9: 0 | BO9: 472535.7999 | BP9: 231860.5961 | BQ9: 0 | BR9: 0 | BS9: 0 | BT9: 0 | BU9: 0 | BV9: 1281701.562
B10: Dedicated circuit | C10: =Est2018DistRev!B10 -> Dedicated circuit | D10: 0 | E10: 0 | F10: 0 | G10: 0 | H10: 0 | I10: 0 | J10: 0 | K10: 1.99 | L10: 0 | M10: 0 | N10: 0 | O10: 0 | P10: 0 | R10: =Est2018DistRev!D10 -> 0 | S10: =Est2018DistRev!E10 -> 0 | T10: =Est2018DistRev!F10 -> 0 | U10: =Est2018DistRev!G10 -> 0 | V10: =Est2018DistRev!H10 -> 0 | W10: =Est2018DistRev!I10 -> 0 | X10: =Est2018DistRev!J10 -> 0 | Y10: =Est2018DistRev!K10 -> 1.931 | Z10: =Est2018DistRev!L10 -> 0 | AA10: =Est2018DistRev!M10 -> 0 | AB10: =Est2018DistRev!N10 -> 0 | AC10: =Est2018DistRev!O10 -> 0 | AD10: =Est2018DistRev!P10 -> 0 | AF10: 2556582.814 | AG10: 0 | AH10: 0 | AI10: 0 | AJ10: 0 | AK10: 0 | AL10: 0 | AM10: 84158747.77 | AN10: 0 | AO10: 0 | AP10: 0 | AQ10: 0 | AT10: 0 | AU10: 0 | AV10: 0 | AW10: 0 | AX10: 0 | AY10: 0 | AZ10: 0 | BA10: 1674759.081 | BB10: 0 | BC10: 0 | BD10: 0 | BE10: 0 | BF10: 0 | BG10: 1674759.081 | BI10: 0 | BJ10: 0 | BK10: 0 | BL10: 0 | BM10: 0 | BN10: 0 | BO10: 0 | BP10: 1625105.42 | BQ10: 0 | BR10: 0 | BS10: 0 | BT10: 0 | BU10: 0 | BV10: 1625105.42
B11: Low voltage medium 1 rate | C11: =Est2018DistRev!B11 -> Low voltage medium 1 rate | D11: 12.03 | E11: 9.46 | F11: 0 | G11: 0 | H11: 7.19 | I11: 0 | J11: 0 | K11: 0 | L11: 0 | M11: 0 | N11: 0 | O11: 0 | P11: 0 | R11: =Est2018DistRev!D11 -> 11.652 | S11: =Est2018DistRev!E11 -> 10.241 | T11: =Est2018DistRev!F11 -> 0 | U11: =Est2018DistRev!G11 -> 0 | V11: =Est2018DistRev!H11 -> 6.391 | W11: =Est2018DistRev!I11 -> 0 | X11: =Est2018DistRev!J11 -> 0 | Y11: =Est2018DistRev!K11 -> 0 | Z11: =Est2018DistRev!L11 -> 0 | AA11: =Est2018DistRev!M11 -> 0 | AB11: =Est2018DistRev!N11 -> 0 | AC11: =Est2018DistRev!O11 -> 0 | AD11: =Est2018DistRev!P11 -> 0 | AF11: 12146313.83 | AG11: 160384013.5 | AH11: 0 | AI11: 0 | AJ11: 248017894.4 | AK11: 0 | AL11: 0 | AM11: 0 | AN11: 0 | AO11: 0 | AP11: 0 | AQ11: 0 | AT11: 1461201.554 | AU11: 15172327.68 | AV11: 0 | AW11: 0 | AX11: 17832486.61 | AY11: 0 | AZ11: 0 | BA11: 0 | BB11: 0 | BC11: 0 | BD11: 0 | BE11: 0 | BF11: 0 | BG11: 34466015.84 | BI11: 1415288.488 | BJ11: 16424926.83 | BK11: 0 | BL11: 0 | BM11: 15850823.63 | BN11: 0 | BO11: 0 | BP11: 0 | BQ11: 0 | BR11: 0 | BS11: 0 | BT11: 0 | BU11: 0 | BV11: 33691038.95
B12: Low voltage medium 2 rate 5 day | C12: =Est2018DistRev!B12 -> Low voltage medium 2 rate 5 day | D12: 23.03 | E12: 0 | F12: 0 | G12: 12.42 | H12: 0 | I12: 0 | J12: 9.31 | K12: 2.32 | L12: 0 | M12: 0 | N12: 0 | O12: 0 | P12: 0 | R12: =Est2018DistRev!D12 -> 22.303 | S12: =Est2018DistRev!E12 -> 0 | T12: =Est2018DistRev!F12 -> 0 | U12: =Est2018DistRev!G12 -> 10.83 | V12: =Est2018DistRev!H12 -> 0 | W12: =Est2018DistRev!I12 -> 0 | X12: =Est2018DistRev!J12 -> 8.116 | Y12: =Est2018DistRev!K12 -> 2.022 | Z12: =Est2018DistRev!L12 -> 0 | AA12: =Est2018DistRev!M12 -> 0 | AB12: =Est2018DistRev!N12 -> 0 | AC12: =Est2018DistRev!O12 -> 0 | AD12: =Est2018DistRev!P12 -> 0 | AF12: 3142786.31 | AG12: 0 | AH12: 0 | AI12: 48750958.34 | AJ12: 0 | AK12: 0 | AL12: 71461261.27 | AM12: 72558263.79 | AN12: 0 | AO12: 0 | AP12: 0 | AQ12: 0 | AT12: 723783.6872 | AU12: 0 | AV12: 0 | AW12: 6054869.026 | AX12: 0 | AY12: 0 | AZ12: 6653043.424 | BA12: 1683351.72 | BB12: 0 | BC12: 0 | BD12: 0 | BE12: 0 | BF12: 0 | BG12: 15115047.86 | BI12: 700935.6307 | BJ12: 0 | BK12: 0 | BL12: 5279728.789 | BM12: 0 | BN12: 0 | BO12: 5799795.965 | BP12: 1467128.094 | BQ12: 0 | BR12: 0 | BS12: 0 | BT12: 0 | BU12: 0 | BV12: 13247588.48
B13: Low voltage medium 2 rate 7 day | C13: =Est2018DistRev!B13 -> Low voltage medium 2 rate 7 day | D13: 24.51 | E13: 0 | F13: 0 | G13: 10.24 | H13: 0 | I13: 0 | J13: 7.93 | K13: 1.87 | L13: 0 | M13: 0 | N13: 0 | O13: 0 | P13: 0 | R13: =Est2018DistRev!D13 -> 23.742 | S13: =Est2018DistRev!E13 -> 0 | T13: =Est2018DistRev!F13 -> 0 | U13: =Est2018DistRev!G13 -> 10.307 | V13: =Est2018DistRev!H13 -> 0 | W13: =Est2018DistRev!I13 -> 0 | X13: =Est2018DistRev!J13 -> 7.981 | Y13: =Est2018DistRev!K13 -> 1.88 | Z13: =Est2018DistRev!L13 -> 0 | AA13: =Est2018DistRev!M13 -> 0 | AB13: =Est2018DistRev!N13 -> 0 | AC13: =Est2018DistRev!O13 -> 0 | AD13: =Est2018DistRev!P13 -> 0 | AF13: 1806435.361 | AG13: 0 | AH13: 0 | AI13: 24677811.01 | AJ13: 0 | AK13: 0 | AL13: 38638672.97 | AM13: 17093353.14 | AN13: 0 | AO13: 0 | AP13: 0 | AQ13: 0 | AT13: 442757.3069 | AU13: 0 | AV13: 0 | AW13: 2527007.848 | AX13: 0 | AY13: 0 | AZ13: 3064046.766 | BA13: 319645.7038 | BB13: 0 | BC13: 0 | BD13: 0 | BE13: 0 | BF13: 0 | BG13: 6353457.625 | BI13: 428883.8833 | BJ13: 0 | BK13: 0 | BL13: 2543541.981 | BM13: 0 | BN13: 0 | BO13: 3083752.49 | BP13: 321355.0391 | BQ13: 0 | BR13: 0 | BS13: 0 | BT13: 0 | BU13: 0 | BV13: 6377533.393
B14: Unmetered supplies | C14: =Est2018DistRev!B14 -> Unmetered supplies | D14: 0 | E14: 0 | F14: 0 | G14: 8.73 | H14: 0 | I14: 0 | J14: 6.39 | K14: 1.57 | L14: 0 | M14: 0 | N14: 0 | O14: 0 | P14: 0 | R14: =Est2018DistRev!D14 -> 0 | S14: =Est2018DistRev!E14 -> 0 | T14: =Est2018DistRev!F14 -> 0 | U14: =Est2018DistRev!G14 -> 8.459 | V14: =Est2018DistRev!H14 -> 0 | W14: =Est2018DistRev!I14 -> 0 | X14: =Est2018DistRev!J14 -> 6.188 | Y14: =Est2018DistRev!K14 -> 1.525 | Z14: =Est2018DistRev!L14 -> 0 | AA14: =Est2018DistRev!M14 -> 0 | AB14: =Est2018DistRev!N14 -> 0 | AC14: =Est2018DistRev!O14 -> 0 | AD14: =Est2018DistRev!P14 -> 0 | AF14: 2772880.659 | AG14: 0 | AH14: 0 | AI14: 12344107.45 | AJ14: 0 | AK14: 0 | AL14: 20839763.87 | AM14: 61038507.71 | AN14: 0 | AO14: 0 | AP14: 0 | AQ14: 0 | AT14: 0 | AU14: 0 | AV14: 0 | AW14: 1077640.581 | AX14: 0 | AY14: 0 | AZ14: 1331660.911 | BA14: 958304.5711 | BB14: 0 | BC14: 0 | BD14: 0 | BE14: 0 | BF14: 0 | BG14: 3367606.063 | BI14: 0 | BJ14: 0 | BK14: 0 | BL14: 1044188.049 | BM14: 0 | BN14: 0 | BO14: 1289564.588 | BP14: 930837.2426 | BQ14: 0 | BR14: 0 | BS14: 0 | BT14: 0 | BU14: 0 | BV14: 3264589.88
B15: Low voltage large 1 rate | C15: =Est2018DistRev!B15 -> Low voltage large 1 rate | D15: 14.08 | E15: 7.02 | F15: 0 | G15: 0 | H15: 5.54 | I15: 0 | J15: 0 | K15: 0 | L15: 0 | M15: 0 | N15: 0 | O15: 0 | P15: 0 | R15: =Est2018DistRev!D15 -> 13.641 | S15: =Est2018DistRev!E15 -> 6.247 | T15: =Est2018DistRev!F15 -> 0 | U15: =Est2018DistRev!G15 -> 0 | V15: =Est2018DistRev!H15 -> 4.929 | W15: =Est2018DistRev!I15 -> 0 | X15: =Est2018DistRev!J15 -> 0 | Y15: =Est2018DistRev!K15 -> 0 | Z15: =Est2018DistRev!L15 -> 0 | AA15: =Est2018DistRev!M15 -> 0 | AB15: =Est2018DistRev!N15 -> 0 | AC15: =Est2018DistRev!O15 -> 0 | AD15: =Est2018DistRev!P15 -> 0 | AF15: 2053.793549 | AG15: 535639.4375 | AH15: 0 | AI15: 0 | AJ15: 716644.2615 | AK15: 0 | AL15: 0 | AM15: 0 | AN15: 0 | AO15: 0 | AP15: 0 | AQ15: 0 | AT15: 289.1741317 | AU15: 37601.88851 | AV15: 0 | AW15: 0 | AX15: 39702.09209 | AY15: 0 | AZ15: 0 | BA15: 0 | BB15: 0 | BC15: 0 | BD15: 0 | BE15: 0 | BF15: 0 | BG15: 77593.15473 | BI15: 280.157978 | BJ15: 33461.39566 | BK15: 0 | BL15: 0 | BM15: 35323.39565 | BN15: 0 | BO15: 0 | BP15: 0 | BQ15: 0 | BR15: 0 | BS15: 0 | BT15: 0 | BU15: 0 | BV15: 69064.94929
B16: Low voltage large 2 rate | C16: =Est2018DistRev!B16 -> Low voltage large 2 rate | D16: 20.32 | E16: 0 | F16: 0 | G16: 11.3 | H16: 0 | I16: 0 | J16: 8.99 | K16: 2.15 | L16: 0 | M16: 0 | N16: 0 | O16: 0 | P16: 0 | R16: =Est2018DistRev!D16 -> 19.678 | S16: =Est2018DistRev!E16 -> 0 | T16: =Est2018DistRev!F16 -> 0 | U16: =Est2018DistRev!G16 -> 9.78 | V16: =Est2018DistRev!H16 -> 0 | W16: =Est2018DistRev!I16 -> 0 | X16: =Est2018DistRev!J16 -> 7.776 | Y16: =Est2018DistRev!K16 -> 1.861 | Z16: =Est2018DistRev!L16 -> 0 | AA16: =Est2018DistRev!M16 -> 0 | AB16: =Est2018DistRev!N16 -> 0 | AC16: =Est2018DistRev!O16 -> 0 | AD16: =Est2018DistRev!P16 -> 0 | AF16: 6881.086986 | AG16: 0 | AH16: 0 | AI16: 913090.0885 | AJ16: 0 | AK16: 0 | AL16: 1108281.091 | AM16: 1553601.334 | AN16: 0 | AO16: 0 | AP16: 0 | AQ16: 0 | AT16: 1398.236876 | AU16: 0 | AV16: 0 | AW16: 103179.18 | AX16: 0 | AY16: 0 | AZ16: 99634.47011 | BA16: 33402.42867 | BB16: 0 | BC16: 0 | BD16: 0 | BE16: 0 | BF16: 0 | BG16: 237614.3157 | BI16: 1354.060297 | BJ16: 0 | BK16: 0 | BL16: 89300.21065 | BM16: 0 | BN16: 0 | BO16: 86179.93766 | BP16: 28912.52082 | BQ16: 0 | BR16: 0 | BS16: 0 | BT16: 0 | BU16: 0 | BV16: 205746.7294
B17: Low voltage KW time of use | C17: =Est2018DistRev!B17 -> Low voltage KW time of use | D17: 0 | E17: 0 | F17: 0 | G17: 10.3 | H17: 0 | I17: 0 | J17: 6.04 | K17: 2.4 | L17: 0 | M17: 0 | N17: 49.33 | O17: 0 | P17: 0 | R17: =Est2018DistRev!D17 -> 0 | S17: =Est2018DistRev!E17 -> 0 | T17: =Est2018DistRev!F17 -> 0 | U17: =Est2018DistRev!G17 -> 8.913 | V17: =Est2018DistRev!H17 -> 0 | W17: =Est2018DistRev!I17 -> 0 | X17: =Est2018DistRev!J17 -> 5.222 | Y17: =Est2018DistRev!K17 -> 2.075 | Z17: =Est2018DistRev!L17 -> 0 | AA17: =Est2018DistRev!M17 -> 0 | AB17: =Est2018DistRev!N17 -> 42.68 | AC17: =Est2018DistRev!O17 -> 0 | AD17: =Est2018DistRev!P17 -> 0 | AF17: 67773.95967 | AG17: 0 | AH17: 0 | AI17: 2979941.977 | AJ17: 0 | AK17: 0 | AL17: 4372012.915 | AM17: 6961060.934 | AN17: 0 | AO17: 0 | AP17: 574892.5731 | AQ17: 0 | AT17: 0 | AU17: 0 | AV17: 0 | AW17: 306934.0236 | AX17: 0 | AY17: 0 | AZ17: 264069.5801 | BA17: 167065.4624 | BB17: 0 | BC17: 0 | BD17: 283594.5063 | BE17: 0 | BF17: 0 | BG17: 1021663.572 | BI17: 0 | BJ17: 0 | BK17: 0 | BL17: 265602.2284 | BM17: 0 | BN17: 0 | BO17: 228306.5144 | BP17: 144442.0144 | BQ17: 0 | BR17: 0 | BS17: 245364.1502 | BT17: 0 | BU17: 0 | BV17: 883714.9074
B18: Low voltage KW time of use - HOT | C18: =Est2018DistRev!B18 -> Low voltage KW time of use - HOT | D18: 0 | E18: 0 | F18: 0 | G18: 7.34 | H18: 0 | I18: 0 | J18: 5.64 | K18: 1.66 | L18: 0 | M18: 0 | N18: 64.58 | O18: 0 | P18: 0 | R18: =Est2018DistRev!D18 -> 0 | S18: =Est2018DistRev!E18 -> 0 | T18: =Est2018DistRev!F18 -> 0 | U18: =Est2018DistRev!G18 -> 7.76 | V18: =Est2018DistRev!H18 -> 0 | W18: =Est2018DistRev!I18 -> 0 | X18: =Est2018DistRev!J18 -> 5.965 | Y18: =Est2018DistRev!K18 -> 1.753 | Z18: =Est2018DistRev!L18 -> 0 | AA18: =Est2018DistRev!M18 -> 0 | AB18: =Est2018DistRev!N18 -> 68.291 | AC18: =Est2018DistRev!O18 -> 0 | AD18: =Est2018DistRev!P18 -> 0 | AF18: 6805.949179 | AG18: 0 | AH18: 0 | AI18: 183616.8054 | AJ18: 0 | AK18: 0 | AL18: 433724.4082 | AM18: 926538.1008 | AN18: 0 | AO18: 0 | AP18: 109607.5488 | AQ18: 0 | AT18: 0 | AU18: 0 | AV18: 0 | AW18: 13477.47352 | AX18: 0 | AY18: 0 | AZ18: 24462.05662 | BA18: 15380.53247 | BB18: 0 | BC18: 0 | BD18: 70784.55504 | BE18: 0 | BF18: 0 | BG18: 124104.6177 | BI18: 0 | BJ18: 0 | BK18: 0 | BL18: 14248.6641 | BM18: 0 | BN18: 0 | BO18: 25871.66095 | BP18: 16242.21291 | BQ18: 0 | BR18: 0 | BS18: 74852.09118 | BT18: 0 | BU18: 0 | BV18: 131214.6291
B19: Low voltage large KVA time of use | C19: =Est2018DistRev!B19 -> Low voltage large KVA time of use | D19: 0 | E19: 0 | F19: 0 | G19: 1.48 | H19: 0 | I19: 0 | J19: 1.26 | K19: 1.24 | L19: 0 | M19: 14.95 | N19: 22.36 | O19: 0 | P19: 0 | R19: =Est2018DistRev!D19 -> 0 | S19: =Est2018DistRev!E19 -> 0 | T19: =Est2018DistRev!F19 -> 0 | U19: =Est2018DistRev!G19 -> 1.406 | V19: =Est2018DistRev!H19 -> 0 | W19: =Est2018DistRev!I19 -> 0 | X19: =Est2018DistRev!J19 -> 1.192 | Y19: =Est2018DistRev!K19 -> 1.18 | Z19: =Est2018DistRev!L19 -> 0 | AA19: =Est2018DistRev!M19 -> 14.196 | AB19: =Est2018DistRev!N19 -> 21.178 | AC19: =Est2018DistRev!O19 -> 0 | AD19: =Est2018DistRev!P19 -> 0 | AF19: 1176060.684 | AG19: 0 | AH19: 0 | AI19: 473574249.8 | AJ19: 0 | AK19: 0 | AL19: 668096504 | AM19: 1311174632 | AN19: 0 | AO19: 326114206.9 | AP19: 95205640.61 | AQ19: 0 | AT19: 0 | AU19: 0 | AV19: 0 | AW19: 7008898.896 | AX19: 0 | AY19: 0 | AZ19: 8418015.95 | BA19: 16258565.44 | BB19: 0 | BC19: 48754073.93 | BD19: 21287981.24 | BE19: 0 | BF19: 0 | BG19: 101727535.5 | BI19: 0 | BJ19: 0 | BK19: 0 | BL19: 6658453.952 | BM19: 0 | BN19: 0 | BO19: 7963710.328 | BP19: 15471860.66 | BQ19: 0 | BR19: 46295172.81 | BS19: 20162650.57 | BT19: 0 | BU19: 0 | BV19: 96551848.31
B20: Low voltage large KVA time of use - HOT | C20: =Est2018DistRev!B20 -> Low voltage large KVA time of use - HOT | D20: 0 | E20: 0 | F20: 0 | G20: 0 | H20: 0 | I20: 0 | J20: 0 | K20: 0 | L20: 0 | M20: 0 | N20: 0 | O20: 0 | P20: 0 | R20: =Est2018DistRev!D20 -> 0 | S20: =Est2018DistRev!E20 -> 0 | T20: =Est2018DistRev!F20 -> 0 | U20: =Est2018DistRev!G20 -> 0 | V20: =Est2018DistRev!H20 -> 0 | W20: =Est2018DistRev!I20 -> 0 | X20: =Est2018DistRev!J20 -> 0 | Y20: =Est2018DistRev!K20 -> 0 | Z20: =Est2018DistRev!L20 -> 0 | AA20: =Est2018DistRev!M20 -> 0 | AB20: =Est2018DistRev!N20 -> 0 | AC20: =Est2018DistRev!O20 -> 0 | AD20: =Est2018DistRev!P20 -> 0 | AF20: 0 | AG20: 0 | AH20: 0 | AI20: 0 | AJ20: 0 | AK20: 0 | AL20: 0 | AM20: 0 | AN20: 0 | AO20: 0 | AP20: 0 | AQ20: 0 | AT20: 0 | AU20: 0 | AV20: 0 | AW20: 0 | AX20: 0 | AY20: 0 | AZ20: 0 | BA20: 0 | BB20: 0 | BC20: 0 | BD20: 0 | BE20: 0 | BF20: 0 | BG20: 0 | BI20: 0 | BJ20: 0 | BK20: 0 | BL20: 0 | BM20: 0 | BN20: 0 | BO20: 0 | BP20: 0 | BQ20: 0 | BR20: 0 | BS20: 0 | BT20: 0 | BU20: 0 | BV20: 0
B21: High voltage KVA time of use | C21: =Est2018DistRev!B21 -> High voltage KVA time of use | D21: 0 | E21: 0 | F21: 0 | G21: 0.89 | H21: 0 | I21: 0 | J21: 0.78 | K21: 0.77 | L21: 0 | M21: 9.05 | N21: 12.43 | O21: 0 | P21: 0 | R21: =Est2018DistRev!D21 -> 0 | S21: =Est2018DistRev!E21 -> 0 | T21: =Est2018DistRev!F21 -> 0 | U21: =Est2018DistRev!G21 -> 0.843 | V21: =Est2018DistRev!H21 -> 0 | W21: =Est2018DistRev!I21 -> 0 | X21: =Est2018DistRev!J21 -> 0.744 | Y21: =Est2018DistRev!K21 -> 0.731 | Z21: =Est2018DistRev!L21 -> 0 | AA21: =Est2018DistRev!M21 -> 8.591 | AB21: =Est2018DistRev!N21 -> 11.798 | AC21: =Est2018DistRev!O21 -> 0 | AD21: =Est2018DistRev!P21 -> 0 | AF21: 35844.29161 | AG21: 0 | AH21: 0 | AI21: 176841358.1 | AJ21: 0 | AK21: 0 | AL21: 258896130 | AM21: 654578037.7 | AN21: 0 | AO21: 104519165.9 | AP21: 32848258.18 | AQ21: 0 | AT21: 0 | AU21: 0 | AV21: 0 | AW21: 1573888.087 | AX21: 0 | AY21: 0 | AZ21: 2019389.814 | BA21: 5040250.89 | BB21: 0 | BC21: 9458984.518 | BD21: 4083038.492 | BE21: 0 | BF21: 0 | BG21: 22175551.8 | BI21: 0 | BJ21: 0 | BK21: 0 | BL21: 1490772.649 | BM21: 0 | BN21: 0 | BO21: 1926187.208 | BP21: 4784965.456 | BQ21: 0 | BR21: 8979241.546 | BS21: 3875437.5 | BT21: 0 | BU21: 0 | BV21: 21056604.36
B22: High voltage KVA time of use - HOT | C22: =Est2018DistRev!B22 -> High voltage KVA time of use - HOT | D22: 0 | E22: 0 | F22: 0 | G22: 0 | H22: 0 | I22: 0 | J22: 0 | K22: 0 | L22: 0 | M22: 0 | N22: 0 | O22: 0 | P22: 0 | R22: =Est2018DistRev!D22 -> 0 | S22: =Est2018DistRev!E22 -> 0 | T22: =Est2018DistRev!F22 -> 0 | U22: =Est2018DistRev!G22 -> 0 | V22: =Est2018DistRev!H22 -> 0 | W22: =Est2018DistRev!I22 -> 0 | X22: =Est2018DistRev!J22 -> 0 | Y22: =Est2018DistRev!K22 -> 0 | Z22: =Est2018DistRev!L22 -> 0 | AA22: =Est2018DistRev!M22 -> 0 | AB22: =Est2018DistRev!N22 -> 0 | AC22: =Est2018DistRev!O22 -> 0 | AD22: =Est2018DistRev!P22 -> 0 | AF22: 0 | AG22: 0 | AH22: 0 | AI22: 0 | AJ22: 0 | AK22: 0 | AL22: 0 | AM22: 0 | AN22: 0 | AO22: 0 | AP22: 0 | AQ22: 0 | AT22: 0 | AU22: 0 | AV22: 0 | AW22: 0 | AX22: 0 | AY22: 0 | AZ22: 0 | BA22: 0 | BB22: 0 | BC22: 0 | BD22: 0 | BE22: 0 | BF22: 0 | BG22: 0 | BI22: 0 | BJ22: 0 | BK22: 0 | BL22: 0 | BM22: 0 | BN22: 0 | BO22: 0 | BP22: 0 | BQ22: 0 | BR22: 0 | BS22: 0 | BT22: 0 | BU22: 0 | BV22: 0
B23: Subtransmission KVA time of use | C23: =Est2018DistRev!B23 -> Subtransmission KVA time of use | D23: 0 | E23: 0 | F23: 0 | G23: 0.51 | H23: 0 | I23: 0 | J23: 0.39 | K23: 0.34 | L23: 0 | M23: 0.89 | N23: 1.3 | O23: 0 | P23: 0 | R23: =Est2018DistRev!D23 -> 0 | S23: =Est2018DistRev!E23 -> 0 | T23: =Est2018DistRev!F23 -> 0 | U23: =Est2018DistRev!G23 -> 0.48 | V23: =Est2018DistRev!H23 -> 0 | W23: =Est2018DistRev!I23 -> 0 | X23: =Est2018DistRev!J23 -> 0.374 | Y23: =Est2018DistRev!K23 -> 0.324 | Z23: =Est2018DistRev!L23 -> 0 | AA23: =Est2018DistRev!M23 -> 0.841 | AB23: =Est2018DistRev!N23 -> 1.232 | AC23: =Est2018DistRev!O23 -> 0 | AD23: =Est2018DistRev!P23 -> 0 | AF23: 388.1848269 | AG23: 0 | AH23: 0 | AI23: 8469104.472 | AJ23: 0 | AK23: 0 | AL23: 11811835.97 | AM23: 17135510.08 | AN23: 0 | AO23: 4251731.381 | AP23: 1524422.842 | AQ23: 0 | AT23: 0 | AU23: 0 | AV23: 0 | AW23: 43192.43281 | AX23: 0 | AY23: 0 | AZ23: 46066.16029 | BA23: 58260.73426 | BB23: 0 | BC23: 37840.40929 | BD23: 19817.49695 | BE23: 0 | BF23: 0 | BG23: 205177.2336 | BI23: 0 | BJ23: 0 | BK23: 0 | BL23: 40651.70147 | BM23: 0 | BN23: 0 | BO23: 44176.26653 | BP23: 55519.05264 | BQ23: 0 | BR23: 35757.06091 | BS23: 18780.88941 | BT23: 0 | BU23: 0 | BV23: 194884.971
B24: TOD | C24: =Est2018DistRev!B24 -> TOD | D24: 6.74 | E24: 0 | F24: 4.93 | G24: 17.48 | H24: 0 | I24: 0 | J24: 10.3 | K24: 3.37 | L24: 3.63 | M24: 0 | N24: 0 | O24: 0 | P24: 0 | R24: =Est2018DistRev!D24 -> 6.53 | S24: =Est2018DistRev!E24 -> 0 | T24: =Est2018DistRev!F24 -> 4.424 | U24: =Est2018DistRev!G24 -> 15.698 | V24: =Est2018DistRev!H24 -> 0 | W24: =Est2018DistRev!I24 -> 0 | X24: =Est2018DistRev!J24 -> 9.252 | Y24: =Est2018DistRev!K24 -> 3.027 | Z24: =Est2018DistRev!L24 -> 3.259 | AA24: =Est2018DistRev!M24 -> 0 | AB24: =Est2018DistRev!N24 -> 0 | AC24: =Est2018DistRev!O24 -> 0 | AD24: =Est2018DistRev!P24 -> 0 | AF24: 14958828.75 | AG24: 0 | AH24: 11157824.73 | AI24: 21858787.26 | AJ24: 0 | AK24: 0 | AL24: 41608118.3 | AM24: 106719624.5 | AN24: 23289542.67 | AO24: 0 | AP24: 0 | AQ24: 0 | AT24: 1008225.058 | AU24: 0 | AV24: 550080.759 | AW24: 3820916.013 | AX24: 0 | AY24: 0 | AZ24: 4285636.185 | BA24: 3596451.346 | BB24: 845410.3988 | BC24: 0 | BD24: 0 | BE24: 0 | BF24: 0 | BG24: 14106719.76 | BI24: 976811.5172 | BJ24: 0 | BK24: 493622.1659 | BL24: 3431392.424 | BM24: 0 | BN24: 0 | BO24: 3849583.105 | BP24: 3230403.034 | BQ24: 759006.1955 | BR24: 0 | BS24: 0 | BT24: 0 | BU24: 0 | BV24: 12740818.44
B25: TOD9 | C25: =Est2018DistRev!B25 -> TOD9 | D25: 6.99 | E25: 0 | F25: 5.11 | G25: 16.48 | H25: 0 | I25: 0 | J25: 10.24 | K25: 3.9 | L25: 4.1 | M25: 0 | N25: 0 | O25: 0 | P25: 0 | R25: =Est2018DistRev!D25 -> 6.774 | S25: =Est2018DistRev!E25 -> 0 | T25: =Est2018DistRev!F25 -> 5.487 | U25: =Est2018DistRev!G25 -> 17.7 | V25: =Est2018DistRev!H25 -> 0 | W25: =Est2018DistRev!I25 -> 0 | X25: =Est2018DistRev!J25 -> 11 | Y25: =Est2018DistRev!K25 -> 4.193 | Z25: =Est2018DistRev!L25 -> 4.408 | AA25: =Est2018DistRev!M25 -> 0 | AB25: =Est2018DistRev!N25 -> 0 | AC25: =Est2018DistRev!O25 -> 0 | AD25: =Est2018DistRev!P25 -> 0 | AF25: 1230260.531 | AG25: 0 | AH25: 591618.8357 | AI25: 1033562.689 | AJ25: 0 | AK25: 0 | AL25: 2066829.117 | AM25: 6482902.611 | AN25: 1333840.095 | AO25: 0 | AP25: 0 | AQ25: 0 | AT25: 85995.2111 | AU25: 0 | AV25: 30231.72251 | AW25: 170331.1312 | AX25: 0 | AY25: 0 | AZ25: 211643.3016 | BA25: 252833.2018 | BB25: 54687.44391 | BC25: 0 | BD25: 0 | BE25: 0 | BF25: 0 | BG25: 805722.0121 | BI25: 83337.84835 | BJ25: 0 | BK25: 32462.12552 | BL25: 182940.596 | BM25: 0 | BN25: 0 | BO25: 227351.2029 | BP25: 271828.1065 | BQ25: 58795.6714 | BR25: 0 | BS25: 0 | BT25: 0 | BU25: 0 | BV25: 856715.5506
B26: TOU | C26: =Est2018DistRev!B26 -> TOU | D26: 0 | E26: 0 | F26: 0 | G26: 10.14 | H26: 0 | I26: 0 | J26: 6.16 | K26: 2.97 | L26: 0 | M26: 0 | N26: 44.02 | O26: 0 | P26: 0 | R26: =Est2018DistRev!D26 -> 0 | S26: =Est2018DistRev!E26 -> 0 | T26: =Est2018DistRev!F26 -> 0 | U26: =Est2018DistRev!G26 -> 9.646 | V26: =Est2018DistRev!H26 -> 0 | W26: =Est2018DistRev!I26 -> 0 | X26: =Est2018DistRev!J26 -> 5.86 | Y26: =Est2018DistRev!K26 -> 2.829 | Z26: =Est2018DistRev!L26 -> 0 | AA26: =Est2018DistRev!M26 -> 0 | AB26: =Est2018DistRev!N26 -> 41.891 | AC26: =Est2018DistRev!O26 -> 0 | AD26: =Est2018DistRev!P26 -> 0 | AF26: 245380.3348 | AG26: 0 | AH26: 0 | AI26: 4426421.454 | AJ26: 0 | AK26: 0 | AL26: 7275039.43 | AM26: 8972065.135 | AN26: 0 | AO26: 0 | AP26: 995491.8472 | AQ26: 0 | AT26: 0 | AU26: 0 | AV26: 0 | AW26: 448839.1354 | AX26: 0 | AY26: 0 | AZ26: 448142.4289 | BA26: 266470.3345 | BB26: 0 | BC26: 0 | BD26: 438215.5111 | BE26: 0 | BF26: 0 | BG26: 1601667.41 | BI26: 0 | BJ26: 0 | BK26: 0 | BL26: 426972.6134 | BM26: 0 | BN26: 0 | BO26: 426317.3106 | BP26: 253819.7227 | BQ26: 0 | BR26: 0 | BS26: 417021.4897 | BT26: 0 | BU26: 0 | BV26: 1524131.136
B27: TODFLEX | C27: =Est2018DistRev!B27 -> TODFLEX | D27: 7.53 | E27: 0 | F27: 4.88 | G27: 17.98 | H27: 0 | I27: 0 | J27: 10.32 | K27: 4.14 | L27: 4.88 | M27: 0 | N27: 0 | O27: 0 | P27: 0 | R27: =Est2018DistRev!D27 -> 7.295 | S27: =Est2018DistRev!E27 -> 0 | T27: =Est2018DistRev!F27 -> 4.729 | U27: =Est2018DistRev!G27 -> 17.414 | V27: =Est2018DistRev!H27 -> 0 | W27: =Est2018DistRev!I27 -> 0 | X27: =Est2018DistRev!J27 -> 9.996 | Y27: =Est2018DistRev!K27 -> 4.009 | Z27: =Est2018DistRev!L27 -> 4.729 | AA27: =Est2018DistRev!M27 -> 0 | AB27: =Est2018DistRev!N27 -> 0 | AC27: =Est2018DistRev!O27 -> 0 | AD27: =Est2018DistRev!P27 -> 0 | AF27: 748713.2967 | AG27: 0 | AH27: 1841551.61 | AI27: 897829.5467 | AJ27: 0 | AK27: 0 | AL27: 1476591.166 | AM27: 3741242.014 | AN27: 3096046.168 | AO27: 0 | AP27: 0 | AQ27: 0 | AT27: 56378.11124 | AU27: 0 | AV27: 89867.71859 | AW27: 161429.7525 | AX27: 0 | AY27: 0 | AZ27: 152384.2083 | BA27: 154887.4194 | BB27: 151087.053 | BC27: 0 | BD27: 0 | BE27: 0 | BF27: 0 | BG27: 766034.263 | BI27: 54618.635 | BJ27: 0 | BK27: 87086.97566 | BL27: 156348.0373 | BM27: 0 | BN27: 0 | BO27: 147600.0529 | BP27: 149986.3924 | BQ27: 146412.0233 | BR27: 0 | BS27: 0 | BT27: 0 | BU27: 0 | BV27: 742052.1165
B28: Low Voltage KW 1 rate | C28: =Est2018DistRev!B28 -> Low Voltage KW 1 rate | D28: 0 | E28: 2.8 | F28: 2.8 | G28: 2.8 | H28: 2.8 | I28: 2.8 | J28: 2.8 | K28: 2.8 | L28: 2.8 | M28: 0 | N28: 0 | O28: 26.98 | P28: 10.65 | R28: =Est2018DistRev!D28 -> 0 | S28: =Est2018DistRev!E28 -> 2.712 | T28: =Est2018DistRev!F28 -> 2.712 | U28: =Est2018DistRev!G28 -> 2.712 | V28: =Est2018DistRev!H28 -> 2.712 | W28: =Est2018DistRev!I28 -> 2.712 | X28: =Est2018DistRev!J28 -> 2.712 | Y28: =Est2018DistRev!K28 -> 2.712 | Z28: =Est2018DistRev!L28 -> 2.712 | AA28: =Est2018DistRev!M28 -> 0 | AB28: =Est2018DistRev!N28 -> 0 | AC28: =Est2018DistRev!O28 -> 26.13 | AD28: =Est2018DistRev!P28 -> 10.311 | AF28: 2365.964603 | AG28: 0 | AH28: 0 | AI28: 10094.26433 | AJ28: 0 | AK28: 0 | AL28: 19252.67605 | AM28: 0 | AN28: 0 | AO28: 0 | AP28: 0 | AQ28: 2402.709273 | AR28: 4357.306608 | AT28: 0 | AU28: 0 | AV28: 0 | AW28: 282.6394012 | AX28: 0 | AY28: 0 | AZ28: 539.0749295 | BA28: 0 | BB28: 0 | BC28: 0 | BD28: 0 | BE28: 648.2509619 | BF28: 464.0531538 | BG28: 1934.018446 | BI28: 0 | BJ28: 0 | BK28: 0 | BL28: 273.7564486 | BM28: 0 | BN28: 0 | BO28: 522.1325745 | BP28: 0 | BQ28: 0 | BR28: 0 | BS28: 0 | BT28: 627.8279331 | BU28: 449.2818844 | BV28: 1872.998841
B29: Low voltage medium KW time of use (opt-in) | C29: =Est2018DistRev!B29 -> Low voltage medium KW time of use (opt-in) | D29: 0 | E29: 0 | F29: 0 | G29: 3.5 | H29: 0 | I29: 0 | J29: 3.5 | K29: 0 | L29: 0 | M29: 0 | N29: 0 | O29: 39.62 | P29: 26.41 | R29: =Est2018DistRev!D29 -> 0 | S29: =Est2018DistRev!E29 -> 3.686 | T29: =Est2018DistRev!F29 -> 3.686 | U29: =Est2018DistRev!G29 -> 3.686 | V29: =Est2018DistRev!H29 -> 3.686 | W29: =Est2018DistRev!I29 -> 3.686 | X29: =Est2018DistRev!J29 -> 3.686 | Y29: =Est2018DistRev!K29 -> 3.686 | Z29: =Est2018DistRev!L29 -> 3.686 | AA29: =Est2018DistRev!M29 -> 0 | AB29: =Est2018DistRev!N29 -> 0 | AC29: =Est2018DistRev!O29 -> 30.492 | AD29: =Est2018DistRev!P29 -> 20.328 | AF29: 61897.88761 | AG29: 0 | AH29: 0 | AI29: 6336827.861 | AJ29: 0 | AK29: 0 | AL29: 8872080.024 | AM29: 0 | AN29: 0 | AO29: 0 | AP29: 0 | AQ29: 602643.8077 | AR29: 1112070.385 | AT29: 0 | AU29: 0 | AV29: 0 | AW29: 221788.9751 | AX29: 0 | AY29: 0 | AZ29: 310522.8008 | BA29: 0 | BB29: 0 | BC29: 0 | BD29: 0 | BE29: 238767.4766 | BF29: 293697.7886 | BG29: 1064777.041 | BI29: 0 | BJ29: 0 | BK29: 0 | BL29: 233575.4749 | BM29: 0 | BN29: 0 | BO29: 327024.8697 | BP29: 0 | BQ29: 0 | BR29: 0 | BS29: 0 | BT29: 183758.1498 | BU29: 226061.6678 | BV29: 970420.1622
B30: Low voltage medium KW 1 rate (mandatory) | C30: =Est2018DistRev!B30 -> Low voltage medium KW 1 rate (mandatory) | D30: 0 | E30: 0 | F30: 0 | G30: 3.5 | H30: 0 | I30: 0 | J30: 3.5 | K30: 0 | L30: 0 | M30: 0 | N30: 0 | O30: 39.62 | P30: 26.41 | R30: =Est2018DistRev!D30 -> 0 | S30: =Est2018DistRev!E30 -> 5.657 | T30: =Est2018DistRev!F30 -> 5.657 | U30: =Est2018DistRev!G30 -> 5.657 | V30: =Est2018DistRev!H30 -> 5.657 | W30: =Est2018DistRev!I30 -> 5.657 | X30: =Est2018DistRev!J30 -> 5.657 | Y30: =Est2018DistRev!K30 -> 5.657 | Z30: =Est2018DistRev!L30 -> 5.657 | AA30: =Est2018DistRev!M30 -> 0 | AB30: =Est2018DistRev!N30 -> 0 | AC30: =Est2018DistRev!O30 -> 18.955 | AD30: =Est2018DistRev!P30 -> 12.636 | AF30: 2660202.423 | AG30: 0 | AH30: 0 | AI30: 283591412.7 | AJ30: 0 | AK30: 0 | AL30: 392448914.1 | AM30: 0 | AN30: 0 | AO30: 0 | AP30: 0 | AQ30: 27235556.86 | AR30: 49015175.38 | AT30: 0 | AU30: 0 | AV30: 0 | AW30: 9925699.443 | AX30: 0 | AY30: 0 | AZ30: 13735711.99 | BA30: 0 | BB30: 0 | BC30: 0 | BD30: 0 | BE30: 10790727.63 | BF30: 12944907.82 | BG30: 47397046.88 | BI30: 0 | BJ30: 0 | BK30: 0 | BL30: 16042766.21 | BM30: 0 | BN30: 0 | BO30: 22200835.07 | BP30: 0 | BQ30: 0 | BR30: 0 | BS30: 0 | BT30: 5162499.803 | BU30: 6193557.561 | BV30: 49599658.65
AT31: 0 | AU31: 0 | AV31: 0 | AW31: 0 | AX31: 0 | AY31: 0 | AZ31: 0 | BA31: 0 | BB31: 0 | BC31: 0 | BD31: 0 | BE31: 0 | BF31: 0 | BG31: 0 | BI31: 0 | BJ31: 0 | BK31: 0 | BL31: 0 | BM31: 0 | BN31: 0 | BO31: 0 | BP31: 0 | BQ31: 0 | BR31: 0 | BS31: 0 | BT31: 0 | BU31: 0 | BV31: 0
AT32: 0 | AU32: 0 | AV32: 0 | AW32: 0 | AX32: 0 | AY32: 0 | AZ32: 0 | BA32: 0 | BB32: 0 | BC32: 0 | BD32: 0 | BE32: 0 | BF32: 0 | BG32: 0 | BI32: 0 | BJ32: 0 | BK32: 0 | BL32: 0 | BM32: 0 | BN32: 0 | BO32: 0 | BP32: 0 | BQ32: 0 | BR32: 0 | BS32: 0 | BT32: 0 | BU32: 0 | BV32: 0
AT33: 0 | AU33: 0 | AV33: 0 | AW33: 0 | AX33: 0 | AY33: 0 | AZ33: 0 | BA33: 0 | BB33: 0 | BC33: 0 | BD33: 0 | BE33: 0 | BF33: 0 | BG33: 0 | BI33: 0 | BJ33: 0 | BK33: 0 | BL33: 0 | BM33: 0 | BN33: 0 | BO33: 0 | BP33: 0 | BQ33: 0 | BR33: 0 | BS33: 0 | BT33: 0 | BU33: 0 | BV33: 0
AT34: 0 | AU34: 0 | AV34: 0 | AW34: 0 | AX34: 0 | AY34: 0 | AZ34: 0 | BA34: 0 | BB34: 0 | BC34: 0 | BD34: 0 | BE34: 0 | BF34: 0 | BG34: 0 | BI34: 0 | BJ34: 0 | BK34: 0 | BL34: 0 | BM34: 0 | BN34: 0 | BO34: 0 | BP34: 0 | BQ34: 0 | BR34: 0 | BS34: 0 | BT34: 0 | BU34: 0 | BV34: 0
AT35: 0 | AU35: 0 | AV35: 0 | AW35: 0 | AX35: 0 | AY35: 0 | AZ35: 0 | BA35: 0 | BB35: 0 | BC35: 0 | BD35: 0 | BE35: 0 | BF35: 0 | BG35: 0 | BI35: 0 | BJ35: 0 | BK35: 0 | BL35: 0 | BM35: 0 | BN35: 0 | BO35: 0 | BP35: 0 | BQ35: 0 | BR35: 0 | BS35: 0 | BT35: 0 | BU35: 0 | BV35: 0
AT36: 0 | AU36: 0 | AV36: 0 | AW36: 0 | AX36: 0 | AY36: 0 | AZ36: 0 | BA36: 0 | BB36: 0 | BC36: 0 | BD36: 0 | BE36: 0 | BF36: 0 | BG36: 0 | BI36: 0 | BJ36: 0 | BK36: 0 | BL36: 0 | BM36: 0 | BN36: 0 | BO36: 0 | BP36: 0 | BQ36: 0 | BR36: 0 | BS36: 0 | BT36: 0 | BU36: 0 | BV36: 0
AT37: 0 | AU37: 0 | AV37: 0 | AW37: 0 | AX37: 0 | AY37: 0 | AZ37: 0 | BA37: 0 | BB37: 0 | BC37: 0 | BD37: 0 | BE37: 0 | BF37: 0 | BG37: 0 | BI37: 0 | BJ37: 0 | BK37: 0 | BL37: 0 | BM37: 0 | BN37: 0 | BO37: 0 | BP37: 0 | BQ37: 0 | BR37: 0 | BS37: 0 | BT37: 0 | BU37: 0 | BV37: 0
AT38: 0 | AU38: 0 | AV38: 0 | AW38: 0 | AX38: 0 | AY38: 0 | AZ38: 0 | BA38: 0 | BB38: 0 | BC38: 0 | BD38: 0 | BE38: 0 | BF38: 0 | BG38: 0 | BI38: =R38/100*AF38 -> 0 | BJ38: 0 | BK38: 0 | BL38: 0 | BM38: 0 | BN38: 0 | BO38: 0 | BP38: 0 | BQ38: 0 | BR38: 0 | BS38: 0 | BT38: 0 | BU38: 0 | BV38: 0
AT39: 0 | AU39: 0 | AV39: 0 | AW39: 0 | AX39: 0 | AY39: 0 | AZ39: 0 | BA39: 0 | BB39: 0 | BC39: 0 | BD39: 0 | BE39: 0 | BF39: 0 | BG39: 0 | BI39: 0 | BJ39: 0 | BK39: 0 | BL39: 0 | BM39: 0 | BN39: 0 | BO39: 0 | BP39: 0 | BQ39: 0 | BR39: 0 | BS39: 0 | BT39: 0 | BU39: 0 | BV39: 0
AT40: 0 | AU40: 0 | AV40: 0 | AW40: 0 | AX40: 0 | AY40: 0 | AZ40: 0 | BA40: 0 | BB40: 0 | BC40: 0 | BD40: 0 | BE40: 0 | BF40: 0 | BG40: 0 | BI40: 0 | BJ40: 0 | BK40: 0 | BL40: 0 | BM40: 0 | BN40: 0 | BO40: 0 | BP40: 0 | BQ40: 0 | BR40: 0 | BS40: 0 | BT40: 0 | BU40: 0 | BV40: 0
AT41: 0 | AU41: 0 | AV41: 0 | AW41: 0 | AX41: 0 | AY41: 0 | AZ41: 0 | BA41: 0 | BB41: 0 | BC41: 0 | BD41: 0 | BE41: 0 | BF41: 0 | BG41: 0 | BI41: 0 | BJ41: 0 | BK41: 0 | BL41: 0 | BM41: 0 | BN41: 0 | BO41: 0 | BP41: 0 | BQ41: 0 | BR41: 0 | BS41: 0 | BT41: 0 | BU41: 0 | BV41: 0
AT42: 0 | AU42: 0 | AV42: 0 | AW42: 0 | AX42: 0 | AY42: 0 | AZ42: 0 | BA42: 0 | BB42: 0 | BC42: 0 | BD42: 0 | BE42: 0 | BF42: 0 | BG42: 0 | BI42: 0 | BJ42: 0 | BK42: 0 | BL42: 0 | BM42: 0 | BN42: 0 | BO42: 0 | BP42: 0 | BQ42: 0 | BR42: 0 | BS42: 0 | BT42: 0 | BU42: 0 | BV42: 0
AT43: 0 | AU43: 0 | AV43: 0 | AW43: 0 | AX43: 0 | AY43: 0 | AZ43: 0 | BA43: 0 | BB43: 0 | BC43: 0 | BD43: 0 | BE43: 0 | BF43: 0 | BG43: 0 | BI43: 0 | BJ43: 0 | BK43: 0 | BL43: 0 | BM43: 0 | BN43: 0 | BO43: 0 | BP43: 0 | BQ43: 0 | BR43: 0 | BS43: 0 | BT43: 0 | BU43: 0 | BV43: 0
AT44: 0 | AU44: 0 | AV44: 0 | AW44: 0 | AX44: 0 | AY44: 0 | AZ44: 0 | BA44: 0 | BB44: 0 | BC44: 0 | BD44: 0 | BE44: 0 | BF44: 0 | BG44: 0 | BI44: 0 | BJ44: 0 | BK44: 0 | BL44: 0 | BM44: 0 | BN44: 0 | BO44: 0 | BP44: 0 | BQ44: 0 | BR44: 0 | BS44: 0 | BT44: 0 | BU44: 0 | BV44: 0
AT45: 0 | AU45: 0 | AV45: 0 | AW45: 0 | AX45: 0 | AY45: 0 | AZ45: 0 | BA45: 0 | BB45: 0 | BC45: 0 | BD45: 0 | BE45: 0 | BF45: 0 | BG45: 0 | BI45: 0 | BJ45: 0 | BK45: 0 | BL45: 0 | BM45: 0 | BN45: 0 | BO45: 0 | BP45: 0 | BQ45: 0 | BR45: 0 | BS45: 0 | BT45: 0 | BU45: 0 | BV45: 0
AT46: 0 | AU46: 0 | AV46: 0 | AW46: 0 | AX46: 0 | AY46: 0 | AZ46: 0 | BA46: 0 | BB46: 0 | BC46: 0 | BD46: 0 | BE46: 0 | BF46: 0 | BG46: 0 | BI46: 0 | BJ46: 0 | BK46: 0 | BL46: 0 | BM46: 0 | BN46: 0 | BO46: 0 | BP46: 0 | BQ46: 0 | BR46: 0 | BS46: 0 | BT46: 0 | BU46: 0 | BV46: 0
AT47: 0 | AU47: 0 | AV47: 0 | AW47: 0 | AX47: 0 | AY47: 0 | AZ47: 0 | BA47: 0 | BB47: 0 | BC47: 0 | BD47: 0 | BE47: 0 | BF47: 0 | BG47: 0 | BI47: 0 | BJ47: 0 | BK47: 0 | BL47: 0 | BM47: 0 | BN47: 0 | BO47: 0 | BP47: 0 | BQ47: 0 | BR47: 0 | BS47: 0 | BT47: 0 | BU47: 0 | BV47: 0
AT48: 0 | AU48: 0 | AV48: 0 | AW48: 0 | AX48: 0 | AY48: 0 | AZ48: 0 | BA48: 0 | BB48: 0 | BC48: 0 | BD48: 0 | BE48: 0 | BF48: 0 | BG48: 0 | BI48: 0 | BJ48: 0 | BK48: 0 | BL48: 0 | BM48: 0 | BN48: 0 | BO48: 0 | BP48: 0 | BQ48: 0 | BR48: 0 | BS48: 0 | BT48: 0 | BU48: 0 | BV48: 0
AT49: 0 | AU49: 0 | AV49: 0 | AW49: 0 | AX49: 0 | AY49: 0 | AZ49: 0 | BA49: 0 | BB49: 0 | BC49: 0 | BD49: 0 | BE49: 0 | BF49: 0 | BG49: 0 | BI49: 0 | BJ49: 0 | BK49: 0 | BL49: 0 | BM49: 0 | BN49: 0 | BO49: 0 | BP49: 0 | BQ49: 0 | BR49: 0 | BS49: 0 | BT49: 0 | BU49: 0 | BV49: 0
AT50: 0 | AU50: 0 | AV50: 0 | AW50: 0 | AX50: 0 | AY50: 0 | AZ50: 0 | BA50: 0 | BB50: 0 | BC50: 0 | BD50: 0 | BE50: 0 | BF50: 0 | BG50: 0 | BI50: 0 | BJ50: 0 | BK50: 0 | BL50: 0 | BM50: 0 | BN50: 0 | BO50: 0 | BP50: 0 | BQ50: 0 | BR50: 0 | BS50: 0 | BT50: 0 | BU50: 0 | BV50: 0
AT51: 0 | AU51: 0 | AV51: 0 | AW51: 0 | AX51: 0 | AY51: 0 | AZ51: 0 | BA51: 0 | BB51: 0 | BC51: 0 | BD51: 0 | BE51: 0 | BF51: 0 | BG51: 0 | BI51: 0 | BJ51: 0 | BK51: 0 | BL51: 0 | BM51: 0 | BN51: 0 | BO51: 0 | BP51: 0 | BQ51: 0 | BR51: 0 | BS51: 0 | BT51: 0 | BU51: 0 | BV51: 0
AT52: 0 | AU52: 0 | AV52: 0 | AW52: 0 | AX52: 0 | AY52: 0 | AZ52: 0 | BA52: 0 | BB52: 0 | BC52: 0 | BD52: 0 | BE52: 0 | BF52: 0 | BG52: 0 | BI52: 0 | BJ52: 0 | BK52: 0 | BL52: 0 | BM52: 0 | BN52: 0 | BO52: 0 | BP52: 0 | BQ52: 0 | BR52: 0 | BS52: 0 | BT52: 0 | BU52: 0 | BV52: 0
AT53: 0 | AU53: 0 | AV53: 0 | AW53: 0 | AX53: 0 | AY53: 0 | AZ53: 0 | BA53: 0 | BB53: 0 | BC53: 0 | BD53: 0 | BE53: 0 | BF53: 0 | BG53: 0 | BI53: 0 | BJ53: 0 | BK53: 0 | BL53: 0 | BM53: 0 | BN53: 0 | BO53: 0 | BP53: 0 | BQ53: 0 | BR53: 0 | BS53: 0 | BT53: 0 | BU53: 0 | BV53: 0
AT54: 0 | AU54: 0 | AV54: 0 | AW54: 0 | AX54: 0 | AY54: 0 | AZ54: 0 | BA54: 0 | BB54: 0 | BC54: 0 | BD54: 0 | BE54: 0 | BF54: 0 | BG54: 0 | BI54: 0 | BJ54: 0 | BK54: 0 | BL54: 0 | BM54: 0 | BN54: 0 | BO54: 0 | BP54: 0 | BQ54: 0 | BR54: 0 | BS54: 0 | BT54: 0 | BU54: 0 | BV54: 0
AT55: 0 | AU55: 0 | AV55: 0 | AW55: 0 | AX55: 0 | AY55: 0 | AZ55: 0 | BA55: 0 | BB55: 0 | BC55: 0 | BD55: 0 | BE55: 0 | BF55: 0 | BG55: 0 | BI55: 0 | BJ55: 0 | BK55: 0 | BL55: 0 | BM55: 0 | BN55: 0 | BO55: 0 | BP55: 0 | BQ55: 0 | BR55: 0 | BS55: 0 | BT55: 0 | BU55: 0 | BV55: 0
AT56: 0 | AU56: 0 | AV56: 0 | AW56: 0 | AX56: 0 | AY56: 0 | AZ56: 0 | BA56: 0 | BB56: 0 | BC56: 0 | BD56: 0 | BE56: 0 | BF56: 0 | BG56: 0 | BI56: 0 | BJ56: 0 | BK56: 0 | BL56: 0 | BM56: 0 | BN56: 0 | BO56: 0 | BP56: 0 | BQ56: 0 | BR56: 0 | BS56: 0 | BT56: 0 | BU56: 0 | BV56: 0
AT57: 0 | AU57: 0 | AV57: 0 | AW57: 0 | AX57: 0 | AY57: 0 | AZ57: 0 | BA57: 0 | BB57: 0 | BC57: 0 | BD57: 0 | BE57: 0 | BF57: 0 | BG57: 0 | BI57: 0 | BJ57: 0 | BK57: 0 | BL57: 0 | BM57: 0 | BN57: 0 | BO57: 0 | BP57: 0 | BQ57: 0 | BR57: 0 | BS57: 0 | BT57: 0 | BU57: 0 | BV57: 0
AT58: 0 | AU58: 0 | AV58: 0 | AW58: 0 | AX58: 0 | AY58: 0 | AZ58: 0 | BA58: 0 | BB58: 0 | BC58: 0 | BD58: 0 | BE58: 0 | BF58: 0 | BG58: 0 | BI58: 0 | BJ58: 0 | BK58: 0 | BL58: 0 | BM58: 0 | BN58: 0 | BO58: 0 | BP58: 0 | BQ58: 0 | BR58: 0 | BS58: 0 | BT58: 0 | BU58: 0 | BV58: 0
AT59: 0 | AU59: 0 | AV59: 0 | AW59: 0 | AX59: 0 | AY59: 0 | AZ59: 0 | BA59: 0 | BB59: 0 | BC59: 0 | BD59: 0 | BE59: 0 | BF59: 0 | BG59: 0 | BI59: 0 | BJ59: 0 | BK59: 0 | BL59: 0 | BM59: 0 | BN59: 0 | BO59: 0 | BP59: 0 | BQ59: 0 | BR59: 0 | BS59: 0 | BT59: 0 | BU59: 0 | BV59: 0
AT60: 0 | AU60: 0 | AV60: 0 | AW60: 0 | AX60: 0 | AY60: 0 | AZ60: 0 | BA60: 0 | BB60: 0 | BC60: 0 | BD60: 0 | BE60: 0 | BF60: 0 | BG60: 0 | BI60: 0 | BJ60: 0 | BK60: 0 | BL60: 0 | BM60: 0 | BN60: 0 | BO60: 0 | BP60: 0 | BQ60: 0 | BR60: 0 | BS60: 0 | BT60: 0 | BU60: 0 | BV60: 0
AT61: 0 | AU61: 0 | AV61: 0 | AW61: 0 | AX61: 0 | AY61: 0 | AZ61: 0 | BA61: 0 | BB61: 0 | BC61: 0 | BD61: 0 | BE61: 0 | BF61: 0 | BG61: 0 | BI61: 0 | BJ61: 0 | BK61: 0 | BL61: 0 | BM61: 0 | BN61: 0 | BO61: 0 | BP61: 0 | BQ61: 0 | BR61: 0 | BS61: 0 | BT61: 0 | BU61: 0 | BV61: 0
AT62: 0 | AU62: 0 | AV62: 0 | AW62: 0 | AX62: 0 | AY62: 0 | AZ62: 0 | BA62: 0 | BB62: 0 | BC62: 0 | BD62: 0 | BE62: 0 | BF62: 0 | BG62: 0 | BI62: 0 | BJ62: 0 | BK62: 0 | BL62: 0 | BM62: 0 | BN62: 0 | BO62: 0 | BP62: 0 | BQ62: 0 | BR62: 0 | BS62: 0 | BT62: 0 | BU62: 0 | BV62: 0
AT63: 0 | AU63: 0 | AV63: 0 | AW63: 0 | AX63: 0 | AY63: 0 | AZ63: 0 | BA63: 0 | BB63: 0 | BC63: 0 | BD63: 0 | BE63: 0 | BF63: 0 | BG63: 0 | BI63: 0 | BJ63: 0 | BK63: 0 | BL63: 0 | BM63: 0 | BN63: 0 | BO63: 0 | BP63: 0 | BQ63: 0 | BR63: 0 | BS63: 0 | BT63: 0 | BU63: 0 | BV63: 0
AT64: 0 | AU64: 0 | AV64: 0 | AW64: 0 | AX64: 0 | AY64: 0 | AZ64: 0 | BA64: 0 | BB64: 0 | BC64: 0 | BD64: 0 | BE64: 0 | BF64: 0 | BG64: 0 | BI64: 0 | BJ64: 0 | BK64: 0 | BL64: 0 | BM64: 0 | BN64: 0 | BO64: 0 | BP64: 0 | BQ64: 0 | BR64: 0 | BS64: 0 | BT64: 0 | BU64: 0 | BV64: 0
AT65: 0 | AU65: 0 | AV65: 0 | AW65: 0 | AX65: 0 | AY65: 0 | AZ65: 0 | BA65: 0 | BB65: 0 | BC65: 0 | BD65: 0 | BE65: 0 | BF65: 0 | BG65: 0 | BI65: 0 | BJ65: 0 | BK65: 0 | BL65: 0 | BM65: 0 | BN65: 0 | BO65: 0 | BP65: 0 | BQ65: 0 | BR65: 0 | BS65: 0 | BT65: 0 | BU65: 0 | BV65: 0
AF66: =SUM(AF6:AF65) -> 251870585.4 | AG66: 1105073281 | AH66: 13590995.17 | AI66: 1070758536 | AJ66: 1769485306 | AK66: 0 | AL66: 1535616518 | AM66: 2366381227 | AN66: 27719428.93 | AO66: 434885104.2 | AP66: 131258313.6 | AQ66: 27840603.38 | AR66: 50131603.07 | AT66: =SUM(AT6:AT65) -> 18644324.84 | AU66: 88097903.21 | AV66: 670180.2001 | AW66: 33900642.73 | AX66: 112003185.1 | AY66: 0 | AZ66: 41601772.77 | BA66: 30742714.24 | BB66: 1051184.896 | BC66: 58250898.85 | BD66: 26183431.8 | BE66: 11030143.36 | BF66: 13239069.66 | BG66: 435415451.7 | BI66: =SUM(BI6:BI65) -> 18054084.57 | BJ66: 96375405.77 | BK66: 613171.267 | BL66: 38290131.25 | BM66: 98748793.05 | BN66: 0 | BO66: 48099314.5 | BP66: 28984265.56 | BQ66: 964213.8902 | BR66: 55310171.41 | BS66: 24794106.69 | BT66: 5346885.78 | BU66: 6420068.511 | BV66: 422000612.3

Sheet 2019DistRevCapForm
B2: ="Tariff Approval - "&'Model update'!$C$3 -> Tariff Approval - United Energy
B4: DUoS
B6: Year (t) | C6: ='Model update'!C5 -> 2019 | H6: =C6-1 -> 2018
B8: Table 1- Compliance with AER Final Determination Total Annual Revenue
B9: Revenue from DUoS charges for year t | C9: =Prop2019DistTar!BG66 -> 435415451.7
B10: Total Annual Revenue for year t | C10: =C18 -> 435416726.2
C11: =IF(C9="","",IF(C10>=C9,"DUoS REVENUE CAP FORMULA COMPLIANT","DUoS REVENUE CAP FORMULA BREACHED")) -> DUoS REVENUE CAP FORMULA COMPLIANT
B13: Table 2 - Total Annual Revenue for year t (TARt)
B14: Adjusted Annual Smoothed Revenue for year t | C14: =C25 -> 449766157.1 | H14: =H25 -> 422294403.7
B15: I factor for year t (F factor Scheme) | C15: ='Model update'!B$100 -> 224400 | H15: =INDEX('Model update'!$D$100:$H$100,1,MATCH($H$6,'Model update'!$D$93:$H$93,0)) -> 1000000
B16: T factor for year t (DMIS carry over amount) | C16: ='Model update'!B144 -> 0 | H16: =INDEX('Model update'!$D$144:$H$144,1,MATCH($H$6,'Model update'!$D$137:$H$137,0)) -> 0
B17: B factor for year t | C17: =C32 -> -14573830.86 | H17: =H32 -> -12136090.53
B18: Total Annual Revenue for year t | C18: =C14+C15+C16+C17 -> 435416726.2 | H18: =H14+H15+H16+H17 -> 411158313.2
B20: Table 3 - Adjusted Annual Revenue for year t (AARt)
B21: Adjusted Annual Smoothed Revenue for year t-1 | C21: =H25 -> 422294403.7 | H21: 392653500.6
B22: CPI for period t | C22: ='Model update'!C30 -> 0.02077687444 | H22: ='Model update'!C29 -> 0.01933701657
B23: X factor for period t | C23: ='Model update'!B60 -> -0.02611202001 | H23: =INDEX('Model update'!$E$60:$H$60,1,MATCH("Xt for "&$H$6,'Model update'!$E$53:$H$53,0)) -> -0.0316
B24: S factor for period t | C24: ='Model update'!B111 -> 0.01682414399 | H24: =INDEX('Model update'!$D$111:$H$111,1,MATCH($H$6,'Model update'!$D$104:$H$104,0)) -> 0.02276703882
B25: Adjusted Annual Smoothed Revenue for year t | C25: =IF(C6=2016,'Model update'!D60*(1+C24),(C21*(1+C22)*(1-C23)*(1+C24))) -> 449766157.1 | H25: =IF(H6=2016,'Model update'!D60*(1+H24),(H21*(1+H22)*(1-H23)*(1+H24))) -> 422294403.7
B27: Table 4- B factor for year t
B28: DUoS revenue under/over recovery approved | C28: =-E71*(1+E69)^0.5 -> -14748061.9 | H28: -12307643.53
B29: License Fee Recovery Amount for year t | C29: =C38 -> 174231.0379 | H29: =H38 -> 171552.9972
B30: Approved Pass through Amount for year t | C30: ='Model update'!B122 -> 0 | H30: =INDEX('Model update'!$D$122:$H$122,1,MATCH($H$6,'Model update'!$D$115:$H$115,0)) -> 0
B31: Pass Through revenue under/over recovery for years 2014 and 2015
B32: B factor for year t | C32: =SUM(C28:C31) -> -14573830.86 | H32: =SUM(H28:H31) -> -12136090.53
B34: Table 5 - License Fee Recovery Amount for year t
B35: Lt-1 | C35: ='Model update'!B133 -> 159925 | H35: =INDEX('Model update'!$D$133:$H$133,1,MATCH($H$6,'Model update'!$D$126:$H$126,0)) -> 158262
B36: Nominal WACC t | C36: =(1+'Model update'!$B$43)*(1+'Model update'!$C$30)-1 -> 0.05907249241 | H36: =(1+'Model update'!$B$45)*(1+'Model update'!$C$29)-1 -> 0.05819803957
B37: Nominal WACC t-1 | C37: =(1+'Model update'!$B$45)*(1+'Model update'!$C$29)-1 -> 0.05819803957 | H37: =(1+'Model update'!$B$47)*(1+'Model update'!$C$28)-1 -> 0.04932353899
B38: License Fee Recovery Amount for year t | C38: =C35*(1+C36)*(1+C37)^0.5 -> 174231.0379 | H38: =H35*(1+H36)*(1+H37)^0.5 -> 171552.9972
B42: Table 6 - DUoS Recovery Arrangements
C43: Year t-2 | D43: Year t-1 | E43: Year t
C44: (actual) | D44: (estimate) | E44: (forecast)
C45: =D45-1 -> 2017 | D45: =E45-1 -> 2018 | E45: =C$6 -> 2019
B47: (A) Revenue from DUoS Charges | C47: 402138656 | D47: =Est2018DistRev!AS66 -> 418259615.7 | E47: =C9 -> 435415451.7
B50: (B) Less TAR for regulatory year = | C50: =SUM(C51:C54) -> 392677041.8 | D50: =SUM(D51:D54) -> 423465956.7 | E50: =SUM(E51:E54) -> 450164788.1
B51: + Adjusted annual smoothed revenue | C51: =H21 -> 392653500.6 | D51: =H14 -> 422294403.7 | E51: =C14 -> 449766157.1
B52: +It | C52: =INDEX('Model update'!$D$100:$H$100,1,MATCH($C$45,'Model update'!$D$93:$H$93,0)) -> 555000 | D52: =H15 -> 1000000 | E52: =C15 -> 224400
B53: +Tt | C53: =INDEX('Model update'!$D$144:$H$144,1,MATCH($C$45,'Model update'!$D$137:$H$137,0)) -> -479660.6938 | D53: 0 | E53: =C16 -> 0
B54: +Bt = | C54: =SUM(C55:C57) -> -51798.18195 | D54: =SUM(D55:D57) -> 171552.9972 | E54: =SUM(E55:E57) -> 174231.0379
B55: +Licence fee recovery | C55: 88101.08487 | D55: =H29 -> 171552.9972 | E55: =C29 -> 174231.0379
B56: +Approved pass throughs | C56: =INDEX('Model update'!$D$122:$H$122,1,MATCH($C$45,'Model update'!$D$115:$H$115,0)) -> 0 | D56: =H30 -> 0 | E56: =C30 -> 0
B57: +Pass Through revenue under/over recovery for years 2014 and 2015 | C57: -139899.2668 | D57: =H31 -> 0
B60: (A minus B) Under/over recovery of revenue for regulatory year | C60: =C47-C50 -> 9461614.23 | D60: =D47-D50 -> -5206341.031 | E60: =E47-E50 -> -14749336.42
B64: Table 7 - DUoS Unders and Overs Account
C65: Year t-2 | D65: Year t-1 | E65: Year t
C66: (actual) | D66: (estimate) | E66: (forecast)
B67: Calendar year | C67: =D67-1 -> 2017 | D67: =E67-1 -> 2018 | E67: =C$6 -> 2019
B69: Nominal WACC | C69: =(1+'Model update'!$B$47)*(1+'Model update'!$C$28)-1 -> 0.04932353899 | D69: =(1+'Model update'!$B$45)*(1+'Model update'!$C$29)-1 -> 0.05819803957 | E69: =(1+'Model update'!$B$43)*(1+'Model update'!$C$30)-1 -> 0.05907249241
B71: Opening balance | C71: 8492804.812 | D71: =C75 -> 18603845.94 | E71: =D75 -> 14330855.19
B72: Interest on Opening balance | C72: =C71*C69 -> 418895.1893 | D72: =D71*D69 -> 1082707.362 | E72: =E71*E69 -> 846559.3344
B73: Under/over recovery of revenue for regulatory year | C73: =C60 -> 9461614.23 | D73: =D60 -> -5206341.031 | E73: =E60 -> -14749336.42
B74: Interest on under/over recovery for regulatory year | C74: =C73*((1+C69)^0.5-1) -> 230531.7032 | D74: =D73*((1+D69)^0.5-1) -> -149357.0777 | E74: =E73*((1+E69)^0.5-1) -> -429389.7322
B75: Closing balance of DUoS overs/ (unders) account | C75: =SUM(C71:C74) -> 18603845.94 | D75: =SUM(D71:D74) -> 14330855.19 | E75: -1311.624289
B77: The DNSP is expected to achieve a closing balance as close to zero as practicable in its DUoS unders and overs account in each forecast year in its annual pricing proposals in the 2016–20 regulatory control period.

Sheet 2019DistTarRebalCont
B1: ="Tariff Approval - "&'Model update'!C3 -> Tariff Approval - United Energy
B3: ='Model update'!C5&" DISTRIBUTION TARIFF REBALANCING CONTROL" -> 2019 DISTRIBUTION TARIFF REBALANCING CONTROL
B6: Distribution tariff rebalancing control
B8: ="CPI "&'Model update'!$C$5 -> CPI 2019 | C8: ='2019DistRevCapForm'!C22 -> 0.02077687444
B9: ="X "& 'Model update'!$C$5 -> X 2019 | C9: =MIN('2019DistRevCapForm'!C23,0) -> -0.02611202001
B10: ="St "&'Model update'!$C$5 -> St 2019 | C10: ='2019DistRevCapForm'!C24 -> 0.01682414399
B11: ="It "&'Model update'!$C$5 -> It 2019 | C11: =('2019DistRevCapForm'!C15-'2019DistRevCapForm'!H15)/Prop2019DistTar!BV$66 -> -0.001837912025
B12: ="Tt "&'Model update'!$C$5 -> Tt 2019 | C12: =('2019DistRevCapForm'!C16-'2019DistRevCapForm'!H16)/Prop2019DistTar!BV$66 -> 0
B13: ="Bt "&'Model update'!$C$5 -> Bt 2019 | C13: =('2019DistRevCapForm'!C17-'2019DistRevCapForm'!H17)/Prop2019DistTar!BV$66 -> -0.005776627464
C16: =(1+C8)*(1-C9)*(1+0.02)*(1+C10)+SUM(C11:C13) -> 1.078740089
B20: Rebalancing control summary | C20: ="Pt-1*(Qt " &'Model update'!$C$5&")" -> Pt-1*(Qt 2019) | D20: ="Pt-1*(Qt " &'Model update'!$C$5&")" -> Pt-1*(Qt 2019)
B21: Tariff Class (Input Class Name) | C21: Existing ($) | D21: Proposed ($) | E21: Movement
B22: Low Voltage Small | C22: =IF(B22="","",SUMIF($B$39:$B$98,$B22,$I$39:$I$98)) -> 197497162.6 | D22: =IF(B22="","",SUMIF($B$39:$B$98,$B22,$F$39:$F$98)) -> 203848198.9 | E22: =IF(B22="","",D22/C22) -> 1.032157608 | F22: =IF(B22="","",IF(E22<$C$16,"COMPLIANT","BREACHED")) -> COMPLIANT
B23: Low Voltage Medium | C23: 106425300.3 | D23: 107143780.8 | E23: 1.006751031 | F23: =IF(B23="","",IF(E23<$C$16,"COMPLIANT","BREACHED")) -> COMPLIANT
B24: Low Voltage Large | C24: 96826659.99 | D24: 102042742.9 | E24: 1.053870318 | F24: COMPLIANT
B25: High Voltage Large | C25: 21056604.36 | D25: 22175551.8 | E25: 1.053139976 | F25: COMPLIANT
B26: Subtransmission Large | C26: 194884.971 | D26: 205177.2336 | E26: 1.052811987 | F26: COMPLIANT
B34: Check Total | C34: =IF(ABS(SUM(C22:C33)-I99)<0.01,"Ok","Error") -> Ok | D34: =IF(ABS(SUM(D22:D33)-F99)<0.01,"Ok","Error") -> Ok
C35: =IF(ABS(SUM(C22:C33)-Prop2019DistTar!BV66)<0.01,"Ok","Error") -> Ok | D35: =IF(ABS(SUM(D22:D33)-Prop2019DistTar!BG66)<0.01,"Ok","Error") -> Ok
F37: ="Forecast Revenue (Pt "&'Model update'!$C$5&")*(Qt " &'Model update'!$C$5&")" -> Forecast Revenue (Pt 2019)*(Qt 2019) | I37: ="Revenue (Pt-1 "&'Model update'!$C$8&")*(Qt " &'Model update'!$C$5&")" -> Revenue (Pt-1 2018)*(Qt 2019)
A38: New Tariff Test | B38: Destination tariff class | C38: Source tariff class | D38: Proposed tariff | E38: Existing tariff | F38: PropRev Total | I38: ExistRev Total
A39: =OR(EXACT(D39,Prop2019DistTar!C$6:C$65)) -> TRUE | B39: Low Voltage Small | C39: Low Voltage Small | D39: =IF(Prop2019DistTar!B6="","",Prop2019DistTar!B6) -> Low voltage small 1 rate | E39: =IF(Prop2019DistTar!C6="","",Prop2019DistTar!C6) -> Low voltage small 1 rate | F39: =Prop2019DistTar!BG6 -> 181632776.2 | I39: =Prop2019DistTar!BV6 -> 176934326
A40: =OR(EXACT(D40,Prop2019DistTar!C$6:C$65)) -> TRUE | B40: Low Voltage Small | C40: Low Voltage Small | D40: =IF(Prop2019DistTar!B7="","",Prop2019DistTar!B7) -> Winter economy tariff | E40: =IF(Prop2019DistTar!C7="","",Prop2019DistTar!C7) -> Winter economy tariff | F40: =Prop2019DistTar!BG7 -> 56393.00055 | I40: =Prop2019DistTar!BV7 -> 49980.71107
A41: =OR(EXACT(D41,Prop2019DistTar!C$6:C$65)) -> TRUE | B41: Low Voltage Medium | C41: Low Voltage Medium | D41: =IF(Prop2019DistTar!B8="","",Prop2019DistTar!B8) -> Reverse cycle airconditioning time of use | E41: =IF(Prop2019DistTar!C8="","",Prop2019DistTar!C8) -> Reverse cycle airconditioning time of use | F41: =Prop2019DistTar!BG8 -> 0 | I41: =Prop2019DistTar!BV8 -> 0
A42: =OR(EXACT(D42,Prop2019DistTar!C$6:C$65)) -> TRUE | B42: Low Voltage Small | C42: Low Voltage Small | D42: =IF(Prop2019DistTar!B9="","",Prop2019DistTar!B9) -> Low voltage small 2 rate | E42: =IF(Prop2019DistTar!C9="","",Prop2019DistTar!C9) -> Low voltage small 2 rate | F42: =Prop2019DistTar!BG9 -> 1436254.438 | I42: =Prop2019DistTar!BV9 -> 1281701.562
A43: =OR(EXACT(D43,Prop2019DistTar!C$6:C$65)) -> TRUE | B43: Low Voltage Small | C43: Low Voltage Small | D43: =IF(Prop2019DistTar!B10="","",Prop2019DistTar!B10) -> Dedicated circuit | E43: =IF(Prop2019DistTar!C10="","",Prop2019DistTar!C10) -> Dedicated circuit | F43: =Prop2019DistTar!BG10 -> 1674759.081 | I43: =Prop2019DistTar!BV10 -> 1625105.42
A44: =OR(EXACT(D44,Prop2019DistTar!C$6:C$65)) -> TRUE | B44: Low Voltage Medium | C44: Low Voltage Medium | D44: =IF(Prop2019DistTar!B11="","",Prop2019DistTar!B11) -> Low voltage medium 1 rate | E44: =IF(Prop2019DistTar!C11="","",Prop2019DistTar!C11) -> Low voltage medium 1 rate | F44: =Prop2019DistTar!BG11 -> 34466015.84 | I44: =Prop2019DistTar!BV11 -> 33691038.95
A45: =OR(EXACT(D45,Prop2019DistTar!C$6:C$65)) -> TRUE | B45: Low Voltage Medium | C45: Low Voltage Medium | D45: =IF(Prop2019DistTar!B12="","",Prop2019DistTar!B12) -> Low voltage medium 2 rate 5 day | E45: =IF(Prop2019DistTar!C12="","",Prop2019DistTar!C12) -> Low voltage medium 2 rate 5 day | F45: =Prop2019DistTar!BG12 -> 15115047.86 | I45: =Prop2019DistTar!BV12 -> 13247588.48
A46: =OR(EXACT(D46,Prop2019DistTar!C$6:C$65)) -> TRUE | B46: Low Voltage Medium | C46: Low Voltage Medium | D46: =IF(Prop2019DistTar!B13="","",Prop2019DistTar!B13) -> Low voltage medium 2 rate 7 day | E46: =IF(Prop2019DistTar!C13="","",Prop2019DistTar!C13) -> Low voltage medium 2 rate 7 day | F46: =Prop2019DistTar!BG13 -> 6353457.625 | I46: =Prop2019DistTar!BV13 -> 6377533.393
A47: =OR(EXACT(D47,Prop2019DistTar!C$6:C$65)) -> TRUE | B47: Low Voltage Small | C47: Low Voltage Small | D47: =IF(Prop2019DistTar!B14="","",Prop2019DistTar!B14) -> Unmetered supplies | E47: =IF(Prop2019DistTar!C14="","",Prop2019DistTar!C14) -> Unmetered supplies | F47: =Prop2019DistTar!BG14 -> 3367606.063 | I47: =Prop2019DistTar!BV14 -> 3264589.88
A48: =OR(EXACT(D48,Prop2019DistTar!C$6:C$65)) -> TRUE | B48: Low Voltage Large | C48: Low Voltage Large | D48: =IF(Prop2019DistTar!B15="","",Prop2019DistTar!B15) -> Low voltage large 1 rate | E48: =IF(Prop2019DistTar!C15="","",Prop2019DistTar!C15) -> Low voltage large 1 rate | F48: =Prop2019DistTar!BG15 -> 77593.15473 | I48: =Prop2019DistTar!BV15 -> 69064.94929
A49: =OR(EXACT(D49,Prop2019DistTar!C$6:C$65)) -> TRUE | B49: Low Voltage Large | C49: Low Voltage Large | D49: =IF(Prop2019DistTar!B16="","",Prop2019DistTar!B16) -> Low voltage large 2 rate | E49: =IF(Prop2019DistTar!C16="","",Prop2019DistTar!C16) -> Low voltage large 2 rate | F49: =Prop2019DistTar!BG16 -> 237614.3157 | I49: =Prop2019DistTar!BV16 -> 205746.7294
A50: =OR(EXACT(D50,Prop2019DistTar!C$6:C$65)) -> TRUE | B50: Low Voltage Medium | C50: Low Voltage Medium | D50: =IF(Prop2019DistTar!B17="","",Prop2019DistTar!B17) -> Low voltage KW time of use | E50: =IF(Prop2019DistTar!C17="","",Prop2019DistTar!C17) -> Low voltage KW time of use | F50: =Prop2019DistTar!BG17 -> 1021663.572 | I50: =Prop2019DistTar!BV17 -> 883714.9074
A51: =OR(EXACT(D51,Prop2019DistTar!C$6:C$65)) -> TRUE | B51: Low Voltage Medium | C51: Low Voltage Medium | D51: =IF(Prop2019DistTar!B18="","",Prop2019DistTar!B18) -> Low voltage KW time of use - HOT | E51: =IF(Prop2019DistTar!C18="","",Prop2019DistTar!C18) -> Low voltage KW time of use - HOT | F51: =Prop2019DistTar!BG18 -> 124104.6177 | I51: =Prop2019DistTar!BV18 -> 131214.6291
A52: =OR(EXACT(D52,Prop2019DistTar!C$6:C$65)) -> TRUE | B52: Low Voltage Large | C52: Low Voltage Large | D52: =IF(Prop2019DistTar!B19="","",Prop2019DistTar!B19) -> Low voltage large KVA time of use | E52: =IF(Prop2019DistTar!C19="","",Prop2019DistTar!C19) -> Low voltage large KVA time of use | F52: =Prop2019DistTar!BG19 -> 101727535.5 | I52: =Prop2019DistTar!BV19 -> 96551848.31
A53: =OR(EXACT(D53,Prop2019DistTar!C$6:C$65)) -> TRUE | B53: Low Voltage Large | C53: Low Voltage Large | D53: =IF(Prop2019DistTar!B20="","",Prop2019DistTar!B20) -> Low voltage large KVA time of use - HOT | E53: =IF(Prop2019DistTar!C20="","",Prop2019DistTar!C20) -> Low voltage large KVA time of use - HOT | F53: =Prop2019DistTar!BG20 -> 0 | I53: =Prop2019DistTar!BV20 -> 0
A54: =OR(EXACT(D54,Prop2019DistTar!C$6:C$65)) -> TRUE | B54: High Voltage Large | C54: High Voltage Large | D54: =IF(Prop2019DistTar!B21="","",Prop2019DistTar!B21) -> High voltage KVA time of use | E54: =IF(Prop2019DistTar!C21="","",Prop2019DistTar!C21) -> High voltage KVA time of use | F54: =Prop2019DistTar!BG21 -> 22175551.8 | I54: =Prop2019DistTar!BV21 -> 21056604.36
A55: =OR(EXACT(D55,Prop2019DistTar!C$6:C$65)) -> TRUE | B55: High Voltage Large | C55: High Voltage Large | D55: =IF(Prop2019DistTar!B22="","",Prop2019DistTar!B22) -> High voltage KVA time of use - HOT | E55: =IF(Prop2019DistTar!C22="","",Prop2019DistTar!C22) -> High voltage KVA time of use - HOT | F55: =Prop2019DistTar!BG22 -> 0 | I55: =Prop2019DistTar!BV22 -> 0
A56: =OR(EXACT(D56,Prop2019DistTar!C$6:C$65)) -> TRUE | B56: Subtransmission Large | C56: Subtransmission Large | D56: =IF(Prop2019DistTar!B23="","",Prop2019DistTar!B23) -> Subtransmission KVA time of use | E56: =IF(Prop2019DistTar!C23="","",Prop2019DistTar!C23) -> Subtransmission KVA time of use | F56: =Prop2019DistTar!BG23 -> 205177.2336 | I56: =Prop2019DistTar!BV23 -> 194884.971
A57: =OR(EXACT(D57,Prop2019DistTar!C$6:C$65)) -> TRUE | B57: Low Voltage Small | C57: Low Voltage Small | D57: =IF(Prop2019DistTar!B24="","",Prop2019DistTar!B24) -> TOD | E57: =IF(Prop2019DistTar!C24="","",Prop2019DistTar!C24) -> TOD | F57: =Prop2019DistTar!BG24 -> 14106719.76 | I57: =Prop2019DistTar!BV24 -> 12740818.44
A58: =OR(EXACT(D58,Prop2019DistTar!C$6:C$65)) -> TRUE | B58: Low Voltage Small | C58: Low Voltage Small | D58: =IF(Prop2019DistTar!B25="","",Prop2019DistTar!B25) -> TOD9 | E58: =IF(Prop2019DistTar!C25="","",Prop2019DistTar!C25) -> TOD9 | F58: =Prop2019DistTar!BG25 -> 805722.0121 | I58: =Prop2019DistTar!BV25 -> 856715.5506
A59: =OR(EXACT(D59,Prop2019DistTar!C$6:C$65)) -> TRUE | B59: Low Voltage Medium | C59: Low Voltage Medium | D59: =IF(Prop2019DistTar!B26="","",Prop2019DistTar!B26) -> TOU | E59: =IF(Prop2019DistTar!C26="","",Prop2019DistTar!C26) -> TOU | F59: =Prop2019DistTar!BG26 -> 1601667.41 | I59: =Prop2019DistTar!BV26 -> 1524131.136
A60: =OR(EXACT(D60,Prop2019DistTar!C$6:C$65)) -> TRUE | B60: Low Voltage Small | C60: Low Voltage Small | D60: =IF(Prop2019DistTar!B27="","",Prop2019DistTar!B27) -> TODFLEX | E60: =IF(Prop2019DistTar!C27="","",Prop2019DistTar!C27) -> TODFLEX | F60: =Prop2019DistTar!BG27 -> 766034.263 | I60: =Prop2019DistTar!BV27 -> 742052.1165
A61: =OR(EXACT(D61,Prop2019DistTar!C$6:C$65)) -> TRUE | B61: Low Voltage Small | C61: Low Voltage Small | D61: =IF(Prop2019DistTar!B28="","",Prop2019DistTar!B28) -> Low Voltage KW 1 rate | E61: =IF(Prop2019DistTar!C28="","",Prop2019DistTar!C28) -> Low Voltage KW 1 rate | F61: =Prop2019DistTar!BG28 -> 1934.018446 | I61: =Prop2019DistTar!BV28 -> 1872.998841
A62: =OR(EXACT(D62,Prop2019DistTar!C$6:C$65)) -> TRUE | B62: Low Voltage Medium | C62: Low Voltage Medium | D62: =IF(Prop2019DistTar!B29="","",Prop2019DistTar!B29) -> Low voltage medium KW time of use (opt-in) | E62: =IF(Prop2019DistTar!C29="","",Prop2019DistTar!C29) -> Low voltage medium KW time of use (opt-in) | F62: =Prop2019DistTar!BG29 -> 1064777.041 | I62: =Prop2019DistTar!BV29 -> 970420.1622
A63: =OR(EXACT(D63,Prop2019DistTar!C$6:C$65)) -> TRUE | B63: Low Voltage Medium | C63: Low Voltage Medium | D63: =IF(Prop2019DistTar!B30="","",Prop2019DistTar!B30) -> Low voltage medium KW 1 rate (mandatory) | E63: =IF(Prop2019DistTar!C30="","",Prop2019DistTar!C30) -> Low voltage medium KW 1 rate (mandatory) | F63: =Prop2019DistTar!BG30 -> 47397046.88 | I63: =Prop2019DistTar!BV30 -> 49599658.65
A64: =OR(EXACT(D64,Prop2019DistTar!C$6:C$65)) -> TRUE | D64: =IF(Prop2019DistTar!B31="","",Prop2019DistTar!B31) ->  | E64: =IF(Prop2019DistTar!C31="","",Prop2019DistTar!C31) ->  | F64: =Prop2019DistTar!BG31 -> 0 | I64: =Prop2019DistTar!BV31 -> 0
A65: =OR(EXACT(D65,Prop2019DistTar!C$6:C$65)) -> TRUE | D65: =IF(Prop2019DistTar!B32="","",Prop2019DistTar!B32) ->  | E65: =IF(Prop2019DistTar!C32="","",Prop2019DistTar!C32) ->  | F65: =Prop2019DistTar!BG32 -> 0 | I65: =Prop2019DistTar!BV32 -> 0
A66: =OR(EXACT(D66,Prop2019DistTar!C$6:C$65)) -> TRUE | D66: =IF(Prop2019DistTar!B33="","",Prop2019DistTar!B33) ->  | E66: =IF(Prop2019DistTar!C33="","",Prop2019DistTar!C33) ->  | F66: =Prop2019DistTar!BG33 -> 0 | I66: =Prop2019DistTar!BV33 -> 0
A67: =OR(EXACT(D67,Prop2019DistTar!C$6:C$65)) -> TRUE | D67: =IF(Prop2019DistTar!B34="","",Prop2019DistTar!B34) ->  | E67: =IF(Prop2019DistTar!C34="","",Prop2019DistTar!C34) ->  | F67: =Prop2019DistTar!BG34 -> 0 | I67: =Prop2019DistTar!BV34 -> 0
A68: =OR(EXACT(D68,Prop2019DistTar!C$6:C$65)) -> TRUE | D68: =IF(Prop2019DistTar!B35="","",Prop2019DistTar!B35) ->  | E68: =IF(Prop2019DistTar!C35="","",Prop2019DistTar!C35) ->  | F68: =Prop2019DistTar!BG35 -> 0 | I68: =Prop2019DistTar!BV35 -> 0
A69: =OR(EXACT(D69,Prop2019DistTar!C$6:C$65)) -> TRUE | D69: =IF(Prop2019DistTar!B36="","",Prop2019DistTar!B36) ->  | E69: =IF(Prop2019DistTar!C36="","",Prop2019DistTar!C36) ->  | F69: =Prop2019DistTar!BG36 -> 0 | I69: =Prop2019DistTar!BV36 -> 0
A70: =OR(EXACT(D70,Prop2019DistTar!C$6:C$65)) -> TRUE | D70: =IF(Prop2019DistTar!B37="","",Prop2019DistTar!B37) ->  | E70: =IF(Prop2019DistTar!C37="","",Prop2019DistTar!C37) ->  | F70: =Prop2019DistTar!BG37 -> 0 | I70: =Prop2019DistTar!BV37 -> 0
A71: =OR(EXACT(D71,Prop2019DistTar!C$6:C$65)) -> TRUE | D71: =IF(Prop2019DistTar!B38="","",Prop2019DistTar!B38) ->  | E71: =IF(Prop2019DistTar!C38="","",Prop2019DistTar!C38) ->  | F71: =Prop2019DistTar!BG38 -> 0 | I71: =Prop2019DistTar!BV38 -> 0
A72: =OR(EXACT(D72,Prop2019DistTar!C$6:C$65)) -> TRUE | D72: =IF(Prop2019DistTar!B39="","",Prop2019DistTar!B39) ->  | E72: =IF(Prop2019DistTar!C39="","",Prop2019DistTar!C39) ->  | F72: =Prop2019DistTar!BG39 -> 0 | I72: =Prop2019DistTar!BV39 -> 0
A73: =OR(EXACT(D73,Prop2019DistTar!C$6:C$65)) -> TRUE | D73: =IF(Prop2019DistTar!B40="","",Prop2019DistTar!B40) ->  | E73: =IF(Prop2019DistTar!C40="","",Prop2019DistTar!C40) ->  | F73: =Prop2019DistTar!BG40 -> 0 | I73: =Prop2019DistTar!BV40 -> 0
A74: =OR(EXACT(D74,Prop2019DistTar!C$6:C$65)) -> TRUE | D74: =IF(Prop2019DistTar!B41="","",Prop2019DistTar!B41) ->  | E74: =IF(Prop2019DistTar!C41="","",Prop2019DistTar!C41) ->  | F74: =Prop2019DistTar!BG41 -> 0 | I74: =Prop2019DistTar!BV41 -> 0
A75: =OR(EXACT(D75,Prop2019DistTar!C$6:C$65)) -> TRUE | D75: =IF(Prop2019DistTar!B42="","",Prop2019DistTar!B42) ->  | E75: =IF(Prop2019DistTar!C42="","",Prop2019DistTar!C42) ->  | F75: =Prop2019DistTar!BG42 -> 0 | I75: =Prop2019DistTar!BV42 -> 0
A76: =OR(EXACT(D76,Prop2019DistTar!C$6:C$65)) -> TRUE | D76: =IF(Prop2019DistTar!B43="","",Prop2019DistTar!B43) ->  | E76: =IF(Prop2019DistTar!C43="","",Prop2019DistTar!C43) ->  | F76: =Prop2019DistTar!BG43 -> 0 | I76: =Prop2019DistTar!BV43 -> 0
A77: =OR(EXACT(D77,Prop2019DistTar!C$6:C$65)) -> TRUE | D77: =IF(Prop2019DistTar!B44="","",Prop2019DistTar!B44) ->  | E77: =IF(Prop2019DistTar!C44="","",Prop2019DistTar!C44) ->  | F77: =Prop2019DistTar!BG44 -> 0 | I77: =Prop2019DistTar!BV44 -> 0
A78: =OR(EXACT(D78,Prop2019DistTar!C$6:C$65)) -> TRUE | D78: =IF(Prop2019DistTar!B45="","",Prop2019DistTar!B45) ->  | E78: =IF(Prop2019DistTar!C45="","",Prop2019DistTar!C45) ->  | F78: =Prop2019DistTar!BG45 -> 0 | I78: =Prop2019DistTar!BV45 -> 0
A79: =OR(EXACT(D79,Prop2019DistTar!C$6:C$65)) -> TRUE | D79: =IF(Prop2019DistTar!B46="","",Prop2019DistTar!B46) ->  | E79: =IF(Prop2019DistTar!C46="","",Prop2019DistTar!C46) ->  | F79: =Prop2019DistTar!BG46 -> 0 | I79: =Prop2019DistTar!BV46 -> 0
A80: =OR(EXACT(D80,Prop2019DistTar!C$6:C$65)) -> TRUE | D80: =IF(Prop2019DistTar!B47="","",Prop2019DistTar!B47) ->  | E80: =IF(Prop2019DistTar!C47="","",Prop2019DistTar!C47) ->  | F80: =Prop2019DistTar!BG47 -> 0 | I80: =Prop2019DistTar!BV47 -> 0
A81: =OR(EXACT(D81,Prop2019DistTar!C$6:C$65)) -> TRUE | D81: =IF(Prop2019DistTar!B48="","",Prop2019DistTar!B48) ->  | E81: =IF(Prop2019DistTar!C48="","",Prop2019DistTar!C48) ->  | F81: =Prop2019DistTar!BG48 -> 0 | I81: =Prop2019DistTar!BV48 -> 0
A82: =OR(EXACT(D82,Prop2019DistTar!C$6:C$65)) -> TRUE | D82: =IF(Prop2019DistTar!B49="","",Prop2019DistTar!B49) ->  | E82: =IF(Prop2019DistTar!C49="","",Prop2019DistTar!C49) ->  | F82: =Prop2019DistTar!BG49 -> 0 | I82: =Prop2019DistTar!BV49 -> 0
A83: =OR(EXACT(D83,Prop2019DistTar!C$6:C$65)) -> TRUE | D83: =IF(Prop2019DistTar!B50="","",Prop2019DistTar!B50) ->  | E83: =IF(Prop2019DistTar!C50="","",Prop2019DistTar!C50) ->  | F83: =Prop2019DistTar!BG50 -> 0 | I83: =Prop2019DistTar!BV50 -> 0
A84: =OR(EXACT(D84,Prop2019DistTar!C$6:C$65)) -> TRUE | D84: =IF(Prop2019DistTar!B51="","",Prop2019DistTar!B51) ->  | E84: =IF(Prop2019DistTar!C51="","",Prop2019DistTar!C51) ->  | F84: =Prop2019DistTar!BG51 -> 0 | I84: =Prop2019DistTar!BV51 -> 0
A85: =OR(EXACT(D85,Prop2019DistTar!C$6:C$65)) -> TRUE | D85: =IF(Prop2019DistTar!B52="","",Prop2019DistTar!B52) ->  | E85: =IF(Prop2019DistTar!C52="","",Prop2019DistTar!C52) ->  | F85: =Prop2019DistTar!BG52 -> 0 | I85: =Prop2019DistTar!BV52 -> 0
A86: =OR(EXACT(D86,Prop2019DistTar!C$6:C$65)) -> TRUE | D86: =IF(Prop2019DistTar!B53="","",Prop2019DistTar!B53) ->  | E86: =IF(Prop2019DistTar!C53="","",Prop2019DistTar!C53) ->  | F86: =Prop2019DistTar!BG53 -> 0 | I86: =Prop2019DistTar!BV53 -> 0
A87: =OR(EXACT(D87,Prop2019DistTar!C$6:C$65)) -> TRUE | D87: =IF(Prop2019DistTar!B54="","",Prop2019DistTar!B54) ->  | E87: =IF(Prop2019DistTar!C54="","",Prop2019DistTar!C54) ->  | F87: =Prop2019DistTar!BG54 -> 0 | I87: =Prop2019DistTar!BV54 -> 0
A88: =OR(EXACT(D88,Prop2019DistTar!C$6:C$65)) -> TRUE | D88: =IF(Prop2019DistTar!B55="","",Prop2019DistTar!B55) ->  | E88: =IF(Prop2019DistTar!C55="","",Prop2019DistTar!C55) ->  | F88: =Prop2019DistTar!BG55 -> 0 | I88: =Prop2019DistTar!BV55 -> 0
A89: =OR(EXACT(D89,Prop2019DistTar!C$6:C$65)) -> TRUE | D89: =IF(Prop2019DistTar!B56="","",Prop2019DistTar!B56) ->  | E89: =IF(Prop2019DistTar!C56="","",Prop2019DistTar!C56) ->  | F89: =Prop2019DistTar!BG56 -> 0 | I89: =Prop2019DistTar!BV56 -> 0
A90: =OR(EXACT(D90,Prop2019DistTar!C$6:C$65)) -> TRUE | D90: =IF(Prop2019DistTar!B57="","",Prop2019DistTar!B57) ->  | E90: =IF(Prop2019DistTar!C57="","",Prop2019DistTar!C57) ->  | F90: =Prop2019DistTar!BG57 -> 0 | I90: =Prop2019DistTar!BV57 -> 0
A91: =OR(EXACT(D91,Prop2019DistTar!C$6:C$65)) -> TRUE | D91: =IF(Prop2019DistTar!B58="","",Prop2019DistTar!B58) ->  | E91: =IF(Prop2019DistTar!C58="","",Prop2019DistTar!C58) ->  | F91: =Prop2019DistTar!BG58 -> 0 | I91: =Prop2019DistTar!BV58 -> 0
A92: =OR(EXACT(D92,Prop2019DistTar!C$6:C$65)) -> TRUE | D92: =IF(Prop2019DistTar!B59="","",Prop2019DistTar!B59) ->  | E92: =IF(Prop2019DistTar!C59="","",Prop2019DistTar!C59) ->  | F92: =Prop2019DistTar!BG59 -> 0 | I92: =Prop2019DistTar!BV59 -> 0
A93: =OR(EXACT(D93,Prop2019DistTar!C$6:C$65)) -> TRUE | D93: =IF(Prop2019DistTar!B60="","",Prop2019DistTar!B60) ->  | E93: =IF(Prop2019DistTar!C60="","",Prop2019DistTar!C60) ->  | F93: =Prop2019DistTar!BG60 -> 0 | I93: =Prop2019DistTar!BV60 -> 0
A94: =OR(EXACT(D94,Prop2019DistTar!C$6:C$65)) -> TRUE | D94: =IF(Prop2019DistTar!B61="","",Prop2019DistTar!B61) ->  | E94: =IF(Prop2019DistTar!C61="","",Prop2019DistTar!C61) ->  | F94: =Prop2019DistTar!BG61 -> 0 | I94: =Prop2019DistTar!BV61 -> 0
A95: =OR(EXACT(D95,Prop2019DistTar!C$6:C$65)) -> TRUE | D95: =IF(Prop2019DistTar!B62="","",Prop2019DistTar!B62) ->  | E95: =IF(Prop2019DistTar!C62="","",Prop2019DistTar!C62) ->  | F95: =Prop2019DistTar!BG62 -> 0 | I95: =Prop2019DistTar!BV62 -> 0
A96: =OR(EXACT(D96,Prop2019DistTar!C$6:C$65)) -> TRUE | D96: =IF(Prop2019DistTar!B63="","",Prop2019DistTar!B63) ->  | E96: =IF(Prop2019DistTar!C63="","",Prop2019DistTar!C63) ->  | F96: =Prop2019DistTar!BG63 -> 0 | I96: =Prop2019DistTar!BV63 -> 0
A97: =OR(EXACT(D97,Prop2019DistTar!C$6:C$65)) -> TRUE | D97: =IF(Prop2019DistTar!B64="","",Prop2019DistTar!B64) ->  | E97: =IF(Prop2019DistTar!C64="","",Prop2019DistTar!C64) ->  | F97: =Prop2019DistTar!BG64 -> 0 | I97: =Prop2019DistTar!BV64 -> 0
A98: =OR(EXACT(D98,Prop2019DistTar!C$6:C$65)) -> TRUE | D98: =IF(Prop2019DistTar!B65="","",Prop2019DistTar!B65) ->  | E98: =IF(Prop2019DistTar!C65="","",Prop2019DistTar!C65) ->  | F98: =Prop2019DistTar!BG65 -> 0 | I98: =Prop2019DistTar!BV65 -> 0
F99: =SUM(F39:F98) -> 435415451.7 | I99: =SUM(I39:I98) -> 422000612.3

Sheet Est2018DistRev
B1: ="Tariff Approval - "&'Model update'!C3 -> Tariff Approval - United Energy
B3: ="ESTIMATED "&'Model update'!$C$8&" Distribution Revenue" -> ESTIMATED 2018 Distribution Revenue
D4: ="Current Distribution Tariffs (Pt-1) for "&'Model update'!$C$8 -> Current Distribution Tariffs (Pt-1) for 2018 | R4: =" Estimated Distribution Quantities for "&'Model update'!$C$8&" (Qt-1)" -> Estimated Distribution Quantities for 2018 (Qt-1) | AF4: ="Estimated Revenue (Pt-1 "&'Model update'!$C$8&")*(Qt-1 " &'Model update'!$C$8&")" -> Estimated Revenue (Pt-1 2018)*(Qt-1 2018)
B5: ="Tariffs "&'Model update'!C8 -> Tariffs 2018 | D5: Current Fixed | E5: CurrentPkBlk1 | F5: CurrentPkBlk2 | G5: Current PkBlk3 | H5: Current PkBlk4 | I5: Current OPkBlk1 | J5: Current OPkBlk2 | K5: Current OPkBlk3 | L5: Current OPkBlk4 | M5: Current DemBlk1 | N5: Current DemBlk2 | O5: Current DemBlk3 | P5: Current DemBlk4 | R5: EstVol Fixed | S5: EstVol PkBlk1 | T5: EstVol PkBlk2 | U5: EstVol PkBlk3 | V5: EstVol PkBlk4 | W5: EstVol OPkBlk1 | X5: EstVol OPkBlk2 | Y5: EstVol OPkBlk3 | Z5: EstVol OPkBlk4 | AA5: EstVol DemBlk1 | AB5: EstVol DemBlk2 | AC5: EstVol DemBlk3 | AD5: EstVol DemBlk4 | AF5: EstRev Fixed | AG5: EstRev PkBlk1 | AH5: EstRev PkBlk2 | AI5: EstRev PkBlk3 | AJ5: EstRev PkBlk4 | AK5: EstRev OPkBlk1 | AL5: EstRev OPkBlk2 | AM5: EstRev OPkBlk3 | AN5: EstRev OPkBlk4 | AO5: EstRev DemBlk1 | AP5: EstRev DemBlk2 | AQ5: EstRev DemBlk3 | AR5: EstRev DemBlk4 | AS5: EstRev Total
B6: Low voltage small 1 rate | D6: 6.865 | E6: 8.465 | F6: 0 | G6: 0 | H6: 5.449 | I6: 0 | J6: 0 | K6: 0 | L6: 0 | M6: 0 | N6: 0 | O6: 0 | P6: 0 | R6: 200952788.4 | S6: 928008318.5 | T6: 0 | U6: 0 | V6: 1503738155 | W6: 0 | X6: 0 | Y6: 0 | Z6: 0 | AA6: 0 | AB6: 0 | AC6: 0 | AF6: =D6/100*R6 -> 13795408.93 | AG6: =E6/100*S6 -> 78555904.16 | AH6: =F6/100*T6 -> 0 | AI6: =G6/100*U6 -> 0 | AJ6: =H6/100*V6 -> 81938692.06 | AK6: =I6/100*W6 -> 0 | AL6: =J6/100*X6 -> 0 | AM6: =K6/100*Y6 -> 0 | AN6: =L6/100*Z6 -> 0 | AO6: =M6/100*AA6 -> 0 | AP6: =N6/100*AB6 -> 0 | AQ6: =O6/100*AC6 -> 0 | AR6: =P6/100*AD6 -> 0 | AS6: =SUM(AF6:AR6) -> 174290005.1
B7: Winter economy tariff | D7: 8.841 | E7: 6.593 | F7: 0 | G7: 0 | H7: 4.885 | I7: 1.831 | J7: 0 | K7: 0 | L7: 0 | M7: 0 | N7: 0 | O7: 0 | P7: 0 | R7: 45377.16506 | S7: 302993.8914 | T7: 0 | U7: 0 | V7: 578609.4826 | W7: 0 | X7: 0 | Y7: 0 | Z7: 0 | AA7: 0 | AB7: 0 | AC7: 0 | AF7: 4011.795163 | AG7: 19976.38726 | AH7: 0 | AI7: 0 | AJ7: 28265.07323 | AK7: 0 | AL7: 0 | AM7: 0 | AN7: 0 | AO7: 0 | AP7: 0 | AQ7: 0 | AR7: 0 | AS7: 52253.25565
B8: Reverse cycle airconditioning time of use | D8: 0 | E8: 0 | F8: 0 | G8: 0 | H8: 0 | I8: 0 | J8: 0 | K8: 0 | L8: 0 | M8: 0 | N8: 0 | O8: 0 | P8: 0 | R8: 0 | S8: 0 | T8: 0 | U8: 0 | V8: 0 | W8: 0 | X8: 0 | Y8: 0 | Z8: 0 | AA8: 0 | AB8: 0 | AC8: 0 | AF8: 0 | AG8: 0 | AH8: 0 | AI8: 0 | AJ8: 0 | AK8: 0 | AL8: 0 | AM8: 0 | AN8: 0 | AO8: 0 | AP8: 0 | AQ8: 0 | AR8: 0 | AS8: 0
B9: Low voltage small 2 rate | D9: 14.02 | E9: 0 | F9: 0 | G9: 10.063 | H9: 0 | I9: 0 | J9: 7.632 | K9: 1.745 | L9: 0 | M9: 0 | N9: 0 | O9: 0 | P9: 0 | R9: 1512412.683 | S9: 0 | T9: 0 | U9: 4357801.9 | V9: 0 | W9: 0 | X9: 6953080.242 | Y9: 14873749.96 | Z9: 0 | AA9: 0 | AB9: 0 | AC9: 0 | AF9: 212040.2581 | AG9: 0 | AH9: 0 | AI9: 438525.6052 | AJ9: 0 | AK9: 0 | AL9: 530659.0841 | AM9: 259546.9369 | AN9: 0 | AO9: 0 | AP9: 0 | AQ9: 0 | AR9: 0 | AS9: 1440771.884
B10: Dedicated circuit | D10: 0 | E10: 0 | F10: 0 | G10: 0 | H10: 0 | I10: 0 | J10: 0 | K10: 1.931 | L10: 0 | M10: 0 | N10: 0 | O10: 0 | P10: 0 | R10: 1960437.019 | S10: 0 | T10: 0 | U10: 0 | V10: 0 | W10: 0 | X10: 0 | Y10: 89664408.34 | Z10: 0 | AA10: 0 | AB10: 0 | AC10: 0 | AF10: 0 | AG10: 0 | AH10: 0 | AI10: 0 | AJ10: 0 | AK10: 0 | AL10: 0 | AM10: 1731419.725 | AN10: 0 | AO10: 0 | AP10: 0 | AQ10: 0 | AR10: 0 | AS10: 1731419.725
B11: Low voltage medium 1 rate | D11: 11.652 | E11: 10.241 | F11: 0 | G11: 0 | H11: 6.391 | I11: 0 | J11: 0 | K11: 0 | L11: 0 | M11: 0 | N11: 0 | O11: 0 | P11: 0 | R11: 12103894.64 | S11: 163534676.5 | T11: 0 | U11: 0 | V11: 244508549.5 | W11: 0 | X11: 0 | Y11: 0 | Z11: 0 | AA11: 0 | AB11: 0 | AC11: 0 | AF11: 1410345.804 | AG11: 16747586.22 | AH11: 0 | AI11: 0 | AJ11: 15626541.4 | AK11: 0 | AL11: 0 | AM11: 0 | AN11: 0 | AO11: 0 | AP11: 0 | AQ11: 0 | AR11: 0 | AS11: 33784473.42
B12: Low voltage medium 2 rate 5 day | D12: 22.303 | E12: 0 | F12: 0 | G12: 10.83 | H12: 0 | I12: 0 | J12: 8.116 | K12: 2.022 | L12: 0 | M12: 0 | N12: 0 | O12: 0 | P12: 0 | R12: 3269874.017 | S12: 0 | T12: 0 | U12: 48815797.8 | V12: 0 | W12: 0 | X12: 76642995.38 | Y12: 73750815.48 | Z12: 0 | AA12: 0 | AB12: 0 | AC12: 0 | AF12: 729280.0021 | AG12: 0 | AH12: 0 | AI12: 5286750.902 | AJ12: 0 | AK12: 0 | AL12: 6220345.505 | AM12: 1491241.489 | AN12: 0 | AO12: 0 | AP12: 0 | AQ12: 0 | AR12: 0 | AS12: 13727617.9
B13: Low voltage medium 2 rate 7 day | D13: 23.742 | E13: 0 | F13: 0 | G13: 10.307 | H13: 0 | I13: 0 | J13: 7.981 | K13: 1.88 | L13: 0 | M13: 0 | N13: 0 | O13: 0 | P13: 0 | R13: 1655208.392 | S13: 0 | T13: 0 | U13: 21784409.06 | V13: 0 | W13: 0 | X13: 35541857.1 | Y13: 15171726.59 | Z13: 0 | AA13: 0 | AB13: 0 | AC13: 0 | AF13: 392979.5765 | AG13: 0 | AH13: 0 | AI13: 2245319.042 | AJ13: 0 | AK13: 0 | AL13: 2836595.615 | AM13: 285228.4599 | AN13: 0 | AO13: 0 | AP13: 0 | AQ13: 0 | AR13: 0 | AS13: 5760122.693
B14: Unmetered supplies | D14: 0 | E14: 0 | F14: 0 | G14: 8.459 | H14: 0 | I14: 0 | J14: 6.188 | K14: 1.525 | L14: 0 | M14: 0 | N14: 0 | O14: 0 | P14: 0 | R14: 1969509.477 | S14: 0 | T14: 0 | U14: 13849579.43 | V14: 0 | W14: 0 | X14: 26202949.44 | Y14: 60264599.84 | Z14: 0 | AA14: 0 | AB14: 0 | AC14: 0 | AF14: 0 | AG14: 0 | AH14: 0 | AI14: 1171535.924 | AJ14: 0 | AK14: 0 | AL14: 1621438.511 | AM14: 919035.1476 | AN14: 0 | AO14: 0 | AP14: 0 | AQ14: 0 | AR14: 0 | AS14: 3712009.582
B15: Low voltage large 1 rate | D15: 13.641 | E15: 6.247 | F15: 0 | G15: 0 | H15: 4.929 | I15: 0 | J15: 0 | K15: 0 | L15: 0 | M15: 0 | N15: 0 | O15: 0 | P15: 0 | R15: 2284.066115 | S15: 593575.6229 | T15: 0 | U15: 0 | V15: 787538.8044 | W15: 0 | X15: 0 | Y15: 0 | Z15: 0 | AA15: 0 | AB15: 0 | AC15: 0 | AF15: 311.5694588 | AG15: 37080.66916 | AH15: 0 | AI15: 0 | AJ15: 38817.78767 | AK15: 0 | AL15: 0 | AM15: 0 | AN15: 0 | AO15: 0 | AP15: 0 | AQ15: 0 | AR15: 0 | AS15: 76210.02629
B16: Low voltage large 2 rate | D16: 19.678 | E16: 0 | F16: 0 | G16: 9.78 | H16: 0 | I16: 0 | J16: 7.776 | K16: 1.861 | L16: 0 | M16: 0 | N16: 0 | O16: 0 | P16: 0 | R16: 6546.679367 | S16: 0 | T16: 0 | U16: 849445.1711 | V16: 0 | W16: 0 | X16: 1153521.686 | Y16: 1508497.259 | Z16: 0 | AA16: 0 | AB16: 0 | AC16: 0 | AF16: 1288.255566 | AG16: 0 | AH16: 0 | AI16: 83075.73774 | AJ16: 0 | AK16: 0 | AL16: 89697.84631 | AM16: 28073.13398 | AN16: 0 | AO16: 0 | AP16: 0 | AQ16: 0 | AR16: 0 | AS16: 202134.9736
B17: Low voltage KW time of use | D17: 0 | E17: 0 | F17: 0 | G17: 8.913 | H17: 0 | I17: 0 | J17: 5.222 | K17: 2.075 | L17: 0 | M17: 0 | N17: 42.68 | O17: 0 | P17: 0 | R17: 48172.70651 | S17: 0 | T17: 0 | U17: 3089851.322 | V17: 0 | W17: 0 | X17: 4905638.084 | Y17: 7484286.26 | Z17: 0 | AA17: 0 | AB17: 593374.188 | AC17: 0 | AF17: 0 | AG17: 0 | AH17: 0 | AI17: 275398.4483 | AJ17: 0 | AK17: 0 | AL17: 256172.4207 | AM17: 155298.9399 | AN17: 0 | AO17: 0 | AP17: 253252.1035 | AQ17: 0 | AR17: 0 | AS17: 940121.9124
B18: Low voltage KW time of use - HOT | D18: 0 | E18: 0 | F18: 0 | G18: 7.76 | H18: 0 | I18: 0 | J18: 5.965 | K18: 1.753 | L18: 0 | M18: 0 | N18: 68.291 | O18: 0 | P18: 0 | R18: 3377.296348 | S18: 0 | T18: 0 | U18: 108342.1137 | V18: 0 | W18: 0 | X18: 359846.0624 | Y18: 701806.4274 | Z18: 0 | AA18: 0 | AB18: 83234.84677 | AC18: 0 | AF18: 0 | AG18: 0 | AH18: 0 | AI18: 8407.348022 | AJ18: 0 | AK18: 0 | AL18: 21464.81762 | AM18: 12302.66667 | AN18: 0 | AO18: 0 | AP18: 56841.90921 | AQ18: 0 | AR18: 0 | AS18: 99016.74152
B19: Low voltage large KVA time of use | D19: 0 | E19: 0 | F19: 0 | G19: 1.406 | H19: 0 | I19: 0 | J19: 1.192 | K19: 1.18 | L19: 0 | M19: 14.196 | N19: 21.178 | O19: 0 | P19: 0 | R19: 764344.9569 | S19: 0 | T19: 0 | U19: 460132576.9 | V19: 0 | W19: 0 | X19: 673775020.5 | Y19: 1285828208 | Z19: 0 | AA19: 322292593.4 | AB19: 94706335.24 | AC19: 0 | AF19: 0 | AG19: 0 | AH19: 0 | AI19: 6469464.031 | AJ19: 0 | AK19: 0 | AL19: 8031398.245 | AM19: 15172772.86 | AN19: 0 | AO19: 45752656.56 | AP19: 20056907.68 | AQ19: 0 | AR19: 0 | AS19: 95483199.37
B20: Low voltage large KVA time of use - HOT | D20: 0 | E20: 0 | F20: 0 | G20: 0 | H20: 0 | I20: 0 | J20: 0 | K20: 0 | L20: 0 | M20: 0 | N20: 0 | O20: 0 | P20: 0 | R20: 0 | S20: 0 | T20: 0 | U20: 0 | V20: 0 | W20: 0 | X20: 0 | Y20: 0 | Z20: 0 | AA20: 0 | AB20: 0 | AC20: 0 | AF20: 0 | AG20: 0 | AH20: 0 | AI20: 0 | AJ20: 0 | AK20: 0 | AL20: 0 | AM20: 0 | AN20: 0 | AO20: 0 | AP20: 0 | AQ20: 0 | AR20: 0 | AS20: 0
B21: High voltage KVA time of use | D21: 0 | E21: 0 | F21: 0 | G21: 0.843 | H21: 0 | I21: 0 | J21: 0.744 | K21: 0.731 | L21: 0 | M21: 8.591 | N21: 11.798 | O21: 0 | P21: 0 | R21: 23617.12423 | S21: 0 | T21: 0 | U21: 174081366.6 | V21: 0 | W21: 0 | X21: 259668945.4 | Y21: 644419593.1 | Z21: 0 | AA21: 104174290.3 | AB21: 32696351.56 | AC21: 0 | AF21: 0 | AG21: 0 | AH21: 0 | AI21: 1467505.92 | AJ21: 0 | AK21: 0 | AL21: 1931936.954 | AM21: 4710707.226 | AN21: 0 | AO21: 8949613.28 | AP21: 3857515.557 | AQ21: 0 | AR21: 0 | AS21: 20917278.94
B22: High voltage KVA time of use - HOT | D22: 0 | E22: 0 | F22: 0 | G22: 0 | H22: 0 | I22: 0 | J22: 0 | K22: 0 | L22: 0 | M22: 0 | N22: 0 | O22: 0 | P22: 0 | R22: 0 | S22: 0 | T22: 0 | U22: 0 | V22: 0 | W22: 0 | X22: 0 | Y22: 0 | Z22: 0 | AA22: 0 | AB22: 0 | AC22: 0 | AF22: 0 | AG22: 0 | AH22: 0 | AI22: 0 | AJ22: 0 | AK22: 0 | AL22: 0 | AM22: 0 | AN22: 0 | AO22: 0 | AP22: 0 | AQ22: 0 | AR22: 0 | AS22: 0
B23: Subtransmission KVA time of use | D23: 0 | E23: 0 | F23: 0 | G23: 0.48 | H23: 0 | I23: 0 | J23: 0.374 | K23: 0.324 | L23: 0 | M23: 0.841 | N23: 1.232 | O23: 0 | P23: 0 | R23: 254.9822872 | S23: 0 | T23: 0 | U23: 8490617.738 | V23: 0 | W23: 0 | X23: 11592624.6 | Y23: 16560893.6 | Z23: 0 | AA23: 4295974.833 | AB23: 1468306.64 | AC23: 0 | AF23: 0 | AG23: 0 | AH23: 0 | AI23: 40754.96514 | AJ23: 0 | AK23: 0 | AL23: 43356.41599 | AM23: 53657.29527 | AN23: 0 | AO23: 36129.14835 | AP23: 18089.5378 | AQ23: 0 | AR23: 0 | AS23: 191987.3626
B24: TOD | D24: 6.53 | E24: 0 | F24: 4.424 | G24: 15.698 | H24: 0 | I24: 0 | J24: 9.252 | K24: 3.027 | L24: 3.259 | M24: 0 | N24: 0 | O24: 0 | P24: 0 | R24: 15646965.57 | S24: 0 | T24: 12981338.04 | U24: 24005631.64 | V24: 0 | W24: 0 | X24: 44926998.69 | Y24: 113601967.9 | Z24: 24041636.92 | AA24: 0 | AB24: 0 | AC24: 0 | AF24: 1021746.852 | AG24: 0 | AH24: 574294.3951 | AI24: 3768404.055 | AJ24: 0 | AK24: 0 | AL24: 4156645.919 | AM24: 3438731.569 | AN24: 783516.9472 | AO24: 0 | AP24: 0 | AQ24: 0 | AR24: 0 | AS24: 13743339.74
B25: TOD9 | D25: 6.774 | E25: 0 | F25: 5.487 | G25: 17.7 | H25: 0 | I25: 0 | J25: 11 | K25: 4.193 | L25: 4.408 | M25: 0 | N25: 0 | O25: 0 | P25: 0 | R25: 698982.3765 | S25: 0 | T25: 458383.2728 | U25: 704379.183 | V25: 0 | W25: 0 | X25: 1715045.284 | Y25: 5147486.298 | Z25: 1156234.759 | AA25: 0 | AB25: 0 | AC25: 0 | AF25: 47349.06618 | AG25: 0 | AH25: 25151.49018 | AI25: 124675.1154 | AJ25: 0 | AK25: 0 | AL25: 188654.9812 | AM25: 215834.1005 | AN25: 50966.82819 | AO25: 0 | AP25: 0 | AQ25: 0 | AR25: 0 | AS25: 652631.5817
B26: TOU | D26: 0 | E26: 0 | F26: 0 | G26: 9.646 | H26: 0 | I26: 0 | J26: 5.86 | K26: 2.829 | L26: 0 | M26: 0 | N26: 41.891 | O26: 0 | P26: 0 | R26: 168848.1992 | S26: 0 | T26: 0 | U26: 4805127.268 | V26: 0 | W26: 0 | X26: 8039117.801 | Y26: 9760139.229 | Z26: 0 | AA26: 0 | AB26: 812870.6615 | AC26: 0 | AF26: 0 | AG26: 0 | AH26: 0 | AI26: 463502.5763 | AJ26: 0 | AK26: 0 | AL26: 471092.3031 | AM26: 276114.3388 | AN26: 0 | AO26: 0 | AP26: 340519.6488 | AQ26: 0 | AR26: 0 | AS26: 1551228.867
B27: TODFLEX | D27: 7.295 | E27: 0 | F27: 4.729 | G27: 17.414 | H27: 0 | I27: 0 | J27: 9.996 | K27: 4.009 | L27: 4.729 | M27: 0 | N27: 0 | O27: 0 | P27: 0 | R27: 707665.9846 | S27: 0 | T27: 1751306.767 | U27: 851710.9317 | V27: 0 | W27: 0 | X27: 1453136.032 | Y27: 3614429.943 | Z27: 3021129.623 | AA27: 0 | AB27: 0 | AC27: 0 | AF27: 51624.23357 | AG27: 0 | AH27: 82819.297 | AI27: 148316.9417 | AJ27: 0 | AK27: 0 | AL27: 145255.4778 | AM27: 144902.4964 | AN27: 142869.2199 | AO27: 0 | AP27: 0 | AQ27: 0 | AR27: 0 | AS27: 715787.6663
B28: Low Voltage KW 1 rate | D28: 0 | E28: 2.712 | F28: 2.712 | G28: 2.712 | H28: 2.712 | I28: 2.712 | J28: 2.712 | K28: 2.712 | L28: 2.712 | M28: 0 | N28: 0 | O28: 26.13 | P28: 10.311 | R28: 2826.354738 | S28: 0 | T28: 0 | U28: 13329.57736 | V28: 0 | W28: 0 | X28: 24988.07174 | Y28: 0 | Z28: 0 | AA28: 0 | AB28: 0 | AC28: 3245.421766 | AD28: 5347.929178 | AF28: 0 | AG28: 0 | AH28: 0 | AI28: 361.4981379 | AJ28: 0 | AK28: 0 | AL28: 677.6765057 | AM28: 0 | AN28: 0 | AO28: 0 | AP28: 0 | AQ28: 848.0287074 | AR28: 551.4249775 | AS28: 2438.628328
B29: Low voltage medium KW time of use (opt-in) | D29: 0 | E29: 3.686 | F29: 3.686 | G29: 3.686 | H29: 3.686 | I29: 3.686 | J29: 3.686 | K29: 3.686 | L29: 3.686 | M29: 0 | N29: 0 | O29: 30.492 | P29: 20.328 | R29: 90787.08005 | S29: 0 | T29: 0 | U29: 18491573.07 | V29: 0 | W29: 0 | X29: 19354558.32 | Y29: 0 | Z29: 0 | AA29: 0 | AB29: 0 | AC29: 1676011.641 | AD29: 2131721.261 | AF29: =D29/100*R29 -> 0 | AG29: =E29/100*S29 -> 0 | AH29: =F29/100*T29 -> 0 | AI29: =G29/100*U29 -> 681599.3833 | AJ29: =H29/100*V29 -> 0 | AK29: =I29/100*W29 -> 0 | AL29: =J29/100*X29 -> 713409.0198 | AM29: =K29/100*Y29 -> 0 | AN29: =L29/100*Z29 -> 0 | AO29: =M29/100*AA29 -> 0 | AP29: =N29/100*AB29 -> 0 | AQ29: =O29/100*AC29 -> 511049.4696 | AR29: =P29/100*AD29 -> 433336.2978 | AS29: =SUM(AF29:AR29) -> 2339394.171
B30: Low voltage medium KW 1 rate (mandatory) | D30: 0 | E30: 5.657 | F30: 5.657 | G30: 5.657 | H30: 5.657 | I30: 5.657 | J30: 5.657 | K30: 5.657 | L30: 5.657 | M30: 0 | N30: 0 | O30: 18.955 | P30: 12.636 | R30: 2579907.698 | S30: 0 | T30: 0 | U30: 257764758.9 | V30: 0 | W30: 0 | X30: 383778125.5 | Y30: 0 | Z30: 0 | AA30: 0 | AB30: 0 | AC30: 24833141.68 | AD30: 46272310.34 | AF30: 0 | AG30: 0 | AH30: 0 | AI30: 14581752.41 | AJ30: 0 | AK30: 0 | AL30: 21710328.56 | AM30: 0 | AN30: 0 | AO30: 0 | AP30: 0 | AQ30: 4707122.005 | AR30: 5846969.134 | AS30: 46846172.11
AF31: 0 | AG31: 0 | AH31: 0 | AI31: 0 | AJ31: 0 | AK31: 0 | AL31: 0 | AM31: 0 | AN31: 0 | AO31: 0 | AP31: 0 | AQ31: 0 | AR31: 0 | AS31: 0
AF32: 0 | AG32: 0 | AH32: 0 | AI32: 0 | AJ32: 0 | AK32: 0 | AL32: 0 | AM32: 0 | AN32: 0 | AO32: 0 | AP32: 0 | AQ32: 0 | AR32: 0 | AS32: 0
AF33: 0 | AG33: 0 | AH33: 0 | AI33: 0 | AJ33: 0 | AK33: 0 | AL33: 0 | AM33: 0 | AN33: 0 | AO33: 0 | AP33: 0 | AQ33: 0 | AR33: 0 | AS33: 0
AF34: 0 | AG34: 0 | AH34: 0 | AI34: 0 | AJ34: 0 | AK34: 0 | AL34: 0 | AM34: 0 | AN34: 0 | AO34: 0 | AP34: 0 | AQ34: 0 | AR34: 0 | AS34: 0
AF35: 0 | AG35: 0 | AH35: 0 | AI35: 0 | AJ35: 0 | AK35: 0 | AL35: 0 | AM35: 0 | AN35: 0 | AO35: 0 | AP35: 0 | AQ35: 0 | AR35: 0 | AS35: 0
AF36: 0 | AG36: 0 | AH36: 0 | AI36: 0 | AJ36: 0 | AK36: 0 | AL36: 0 | AM36: 0 | AN36: 0 | AO36: 0 | AP36: 0 | AQ36: 0 | AR36: 0 | AS36: 0
AF37: 0 | AG37: 0 | AH37: 0 | AI37: 0 | AJ37: 0 | AK37: 0 | AL37: 0 | AM37: 0 | AN37: 0 | AO37: 0 | AP37: 0 | AQ37: 0 | AR37: 0 | AS37: 0
AF38: 0 | AG38: 0 | AH38: 0 | AI38: 0 | AJ38: 0 | AK38: 0 | AL38: 0 | AM38: 0 | AN38: 0 | AO38: 0 | AP38: 0 | AQ38: 0 | AR38: 0 | AS38: 0
AF39: 0 | AG39: 0 | AH39: 0 | AI39: 0 | AJ39: 0 | AK39: 0 | AL39: 0 | AM39: 0 | AN39: 0 | AO39: 0 | AP39: 0 | AQ39: 0 | AR39: 0 | AS39: 0
AF40: 0 | AG40: 0 | AH40: 0 | AI40: 0 | AJ40: 0 | AK40: 0 | AL40: 0 | AM40: 0 | AN40: 0 | AO40: 0 | AP40: 0 | AQ40: 0 | AR40: 0 | AS40: 0
AF41: 0 | AG41: 0 | AH41: 0 | AI41: 0 | AJ41: 0 | AK41: 0 | AL41: 0 | AM41: 0 | AN41: 0 | AO41: 0 | AP41: 0 | AQ41: 0 | AR41: 0 | AS41: 0
AF42: 0 | AG42: 0 | AH42: 0 | AI42: 0 | AJ42: 0 | AK42: 0 | AL42: 0 | AM42: 0 | AN42: 0 | AO42: 0 | AP42: 0 | AQ42: 0 | AR42: 0 | AS42: 0
AF43: 0 | AG43: 0 | AH43: 0 | AI43: 0 | AJ43: 0 | AK43: 0 | AL43: 0 | AM43: 0 | AN43: 0 | AO43: 0 | AP43: 0 | AQ43: 0 | AR43: 0 | AS43: 0
AF44: 0 | AG44: 0 | AH44: 0 | AI44: 0 | AJ44: 0 | AK44: 0 | AL44: 0 | AM44: 0 | AN44: 0 | AO44: 0 | AP44: 0 | AQ44: 0 | AR44: 0 | AS44: 0
AF45: 0 | AG45: 0 | AH45: 0 | AI45: 0 | AJ45: 0 | AK45: 0 | AL45: 0 | AM45: 0 | AN45: 0 | AO45: 0 | AP45: 0 | AQ45: 0 | AR45: 0 | AS45: 0
AF46: 0 | AG46: 0 | AH46: 0 | AI46: 0 | AJ46: 0 | AK46: 0 | AL46: 0 | AM46: 0 | AN46: 0 | AO46: 0 | AP46: 0 | AQ46: 0 | AR46: 0 | AS46: 0
AF47: 0 | AG47: 0 | AH47: 0 | AI47: 0 | AJ47: 0 | AK47: 0 | AL47: 0 | AM47: 0 | AN47: 0 | AO47: 0 | AP47: 0 | AQ47: 0 | AR47: 0 | AS47: 0
AF48: 0 | AG48: 0 | AH48: 0 | AI48: 0 | AJ48: 0 | AK48: 0 | AL48: 0 | AM48: 0 | AN48: 0 | AO48: 0 | AP48: 0 | AQ48: 0 | AR48: 0 | AS48: 0
AF49: 0 | AG49: 0 | AH49: 0 | AI49: 0 | AJ49: 0 | AK49: 0 | AL49: 0 | AM49: 0 | AN49: 0 | AO49: 0 | AP49: 0 | AQ49: 0 | AR49: 0 | AS49: 0
AF50: 0 | AG50: 0 | AH50: 0 | AI50: 0 | AJ50: 0 | AK50: 0 | AL50: 0 | AM50: 0 | AN50: 0 | AO50: 0 | AP50: 0 | AQ50: 0 | AR50: 0 | AS50: 0
AF51: 0 | AG51: 0 | AH51: 0 | AI51: 0 | AJ51: 0 | AK51: 0 | AL51: 0 | AM51: 0 | AN51: 0 | AO51: 0 | AP51: 0 | AQ51: 0 | AR51: 0 | AS51: 0
AF52: 0 | AG52: 0 | AH52: 0 | AI52: 0 | AJ52: 0 | AK52: 0 | AL52: 0 | AM52: 0 | AN52: 0 | AO52: 0 | AP52: 0 | AQ52: 0 | AR52: 0 | AS52: 0
AF53: 0 | AG53: 0 | AH53: 0 | AI53: 0 | AJ53: 0 | AK53: 0 | AL53: 0 | AM53: 0 | AN53: 0 | AO53: 0 | AP53: 0 | AQ53: 0 | AR53: 0 | AS53: 0
AF54: 0 | AG54: 0 | AH54: 0 | AI54: 0 | AJ54: 0 | AK54: 0 | AL54: 0 | AM54: 0 | AN54: 0 | AO54: 0 | AP54: 0 | AQ54: 0 | AR54: 0 | AS54: 0
AF55: 0 | AG55: 0 | AH55: 0 | AI55: 0 | AJ55: 0 | AK55: 0 | AL55: 0 | AM55: 0 | AN55: 0 | AO55: 0 | AP55: 0 | AQ55: 0 | AR55: 0 | AS55: 0
AF56: 0 | AG56: 0 | AH56: 0 | AI56: 0 | AJ56: 0 | AK56: 0 | AL56: 0 | AM56: 0 | AN56: 0 | AO56: 0 | AP56: 0 | AQ56: 0 | AR56: 0 | AS56: 0
AF57: 0 | AG57: 0 | AH57: 0 | AI57: 0 | AJ57: 0 | AK57: 0 | AL57: 0 | AM57: 0 | AN57: 0 | AO57: 0 | AP57: 0 | AQ57: 0 | AR57: 0 | AS57: 0
AF58: 0 | AG58: 0 | AH58: 0 | AI58: 0 | AJ58: 0 | AK58: 0 | AL58: 0 | AM58: 0 | AN58: 0 | AO58: 0 | AP58: 0 | AQ58: 0 | AR58: 0 | AS58: 0
AF59: 0 | AG59: 0 | AH59: 0 | AI59: 0 | AJ59: 0 | AK59: 0 | AL59: 0 | AM59: 0 | AN59: 0 | AO59: 0 | AP59: 0 | AQ59: 0 | AR59: 0 | AS59: 0
AF60: 0 | AG60: 0 | AH60: 0 | AI60: 0 | AJ60: 0 | AK60: 0 | AL60: 0 | AM60: 0 | AN60: 0 | AO60: 0 | AP60: 0 | AQ60: 0 | AR60: 0 | AS60: 0
AF61: 0 | AG61: 0 | AH61: 0 | AI61: 0 | AJ61: 0 | AK61: 0 | AL61: 0 | AM61: 0 | AN61: 0 | AO61: 0 | AP61: 0 | AQ61: 0 | AR61: 0 | AS61: 0
AF62: 0 | AG62: 0 | AH62: 0 | AI62: 0 | AJ62: 0 | AK62: 0 | AL62: 0 | AM62: 0 | AN62: 0 | AO62: 0 | AP62: 0 | AQ62: 0 | AR62: 0 | AS62: 0
AF63: 0 | AG63: 0 | AH63: 0 | AI63: 0 | AJ63: 0 | AK63: 0 | AL63: 0 | AM63: 0 | AN63: 0 | AO63: 0 | AP63: 0 | AQ63: 0 | AR63: 0 | AS63: 0
AF64: 0 | AG64: 0 | AH64: 0 | AI64: 0 | AJ64: 0 | AK64: 0 | AL64: 0 | AM64: 0 | AN64: 0 | AO64: 0 | AP64: 0 | AQ64: 0 | AR64: 0 | AS64: 0
AF65: 0 | AG65: 0 | AH65: 0 | AI65: 0 | AJ65: 0 | AK65: 0 | AL65: 0 | AM65: 0 | AN65: 0 | AO65: 0 | AP65: 0 | AQ65: 0 | AR65: 0 | AS65: 0
R66: =SUM(R6:R65) -> 244214082.9 | S66: 1092439564 | T66: 15191028.08 | U66: 1042196299 | V66: 1749612853 | W66: 0 | X66: 1556088448 | Y66: 2342352609 | Z66: 28219001.3 | AA66: 430762858.5 | AB66: 130360473.1 | AC66: 26512398.74 | AD66: 48409379.53 | AF66: =SUM(AF6:AF65) -> 17666386.34 | AG66: 95360547.44 | AH66: 682265.1823 | AI66: 37255349.9 | AJ66: 97632316.32 | AK66: 0 | AL66: 48969129.35 | AM66: =SUM(AM6:AM65) -> 28894866.38 | AN66: 977352.9952 | AO66: 54738398.98 | AP66: 24583126.43 | AQ66: 5219019.503 | AR66: 6280856.857 | AS66: 418259615.7

Sheet Prop2019TransTar
B1: ="Tariff Approval - "&'Model update'!C3 -> Tariff Approval - United Energy
B3: ="PROPOSED "&'Model update'!$C$5&" TRANSMISSION TARIFFS" -> PROPOSED 2019 TRANSMISSION TARIFFS
D4: ="Proposed Transmission Tariffs (Pt) for "&'Model update'!$C$5 -> Proposed Transmission Tariffs (Pt) for 2019 | R4: ="Forecast Quantities (Qt) for "&'Model update'!$C$5 -> Forecast Quantities (Qt) for 2019 | AF4: ="Forecast Revenue (Pt "&'Model update'!$C$5&")*(Qt " &'Model update'!$C$5&")" -> Forecast Revenue (Pt 2019)*(Qt 2019)
B5: Proposed tariff | D5: PropTar Fixed | E5: PropTar PkBlk1 | F5: PropTar PkBlk2 | G5: PropTar PkBlk3 | H5: PropTar PkBlk4 | I5: PropTar OPkBlk1 | J5: PropTar OPkBlk2 | K5: PropTar OPkBlk3 | L5: PropTar OPkBlk4 | M5: PropTar DemBlk1 | N5: PropTar DemBlk2 | O5: PropTar DemBlk3 | P5: PropTar DemBlk4 | R5: FcastVol Fixed | S5: FcastVol PkBlk1 | T5: FcastVol PkBlk2 | U5: FcastVol PkBlk3 | V5: FcastVol PkBlk4 | W5: FcastVol OPkBlk1 | X5: FcastVol OPkBlk2 | Y5: FcastVol OPkBlk3 | Z5: FcastVol OPkBlk4 | AA5: FcastVol DemBlk1 | AB5: FcastVol DemBlk2 | AC5: FcastVol DemBlk3 | AD5: FcastVol DemBlk4 | AF5: PropRev Fixed | AG5: PropRev PkBlk1 | AH5: PropRev PkBlk2 | AI5: PropRev PkBlk3 | AJ5: PropRev PkBlk4 | AK5: PropRev OPkBlk1 | AL5: PropRev OPkBlk2 | AM5: PropRev OPkBlk3 | AN5: PropRev OPkBlk4 | AO5: PropRev DemBlk1 | AP5: PropRev DemBlk2 | AQ5: PropRev DemBlk3 | AR5: PropRev DemBlk4 | AS5: PropRev SumBlk1
B6: =Prop2019DistTar!B6 -> Low voltage small 1 rate | D6: 0 | E6: 1.64 | F6: 0 | G6: 0 | H6: 1.64 | I6: 0 | J6: 0 | K6: 0 | L6: 0 | M6: 0 | N6: 0 | O6: 0 | P6: 0 | R6: =Prop2019DistTar!AF6 -> 206859021.7 | S6: =Prop2019DistTar!AG6 -> 943855173.4 | T6: =Prop2019DistTar!AH6 -> 0 | U6: =Prop2019DistTar!AI6 -> 0 | V6: =Prop2019DistTar!AJ6 -> 1520207629 | W6: =Prop2019DistTar!AK6 -> 0 | X6: =Prop2019DistTar!AL6 -> 0 | Y6: =Prop2019DistTar!AM6 -> 0 | Z6: =Prop2019DistTar!AN6 -> 0 | AA6: =Prop2019DistTar!AO6 -> 0 | AB6: =Prop2019DistTar!AP6 -> 0 | AC6: =Prop2019DistTar!AQ6 -> 0 | AD6: =Prop2019DistTar!AR6 -> 0 | AF6: =D6/100*R6 -> 0 | AG6: =E6/100*S6 -> 15479224.84 | AH6: =F6/100*T6 -> 0 | AI6: =G6/100*U6 -> 0 | AJ6: =H6/100*V6 -> 24931405.11 | AK6: =I6/100*W6 -> 0 | AL6: =J6/100*X6 -> 0 | AM6: =K6/100*Y6 -> 0 | AN6: =L6/100*Z6 -> 0 | AO6: =M6/100*AA6 -> 0 | AP6: =N6/100*AB6 -> 0 | AQ6: =O6/100*AC6 -> 0 | AR6: =P6/100*AD6 -> 0 | AS6: =SUM(AF6:AR6) -> 40410629.95
B7: =Prop2019DistTar!B7 -> Winter economy tariff | D7: 0 | E7: 1.84 | F7: 0 | G7: 0 | H7: 1.47 | I7: 1.47 | J7: 0 | K7: 0 | L7: 0 | M7: 0 | N7: 0 | O7: 0 | P7: 0 | R7: =Prop2019DistTar!AF7 -> 42656.46073 | S7: =Prop2019DistTar!AG7 -> 298454.7293 | T7: =Prop2019DistTar!AH7 -> 0 | U7: =Prop2019DistTar!AI7 -> 0 | V7: =Prop2019DistTar!AJ7 -> 543138.8553 | W7: =Prop2019DistTar!AK7 -> 0 | X7: =Prop2019DistTar!AL7 -> 0 | Y7: =Prop2019DistTar!AM7 -> 0 | Z7: =Prop2019DistTar!AN7 -> 0 | AA7: =Prop2019DistTar!AO7 -> 0 | AB7: =Prop2019DistTar!AP7 -> 0 | AC7: =Prop2019DistTar!AQ7 -> 0 | AD7: =Prop2019DistTar!AR7 -> 0 | AF7: 0 | AG7: 5491.567019 | AH7: 0 | AI7: 0 | AJ7: 7984.141172 | AK7: 0 | AL7: 0 | AM7: 0 | AN7: 0 | AO7: 0 | AP7: 0 | AQ7: 0 | AR7: 0 | AS7: 13475.70819
B8: =Prop2019DistTar!B8 -> Reverse cycle airconditioning time of use | D8: 0 | E8: 0 | F8: 0 | G8: 0 | H8: 0 | I8: 0 | J8: 0 | K8: 0 | L8: 0 | M8: 0 | N8: 0 | O8: 0 | P8: 0 | R8: =Prop2019DistTar!AF8 -> 0 | S8: =Prop2019DistTar!AG8 -> 0 | T8: =Prop2019DistTar!AH8 -> 0 | U8: =Prop2019DistTar!AI8 -> 0 | V8: =Prop2019DistTar!AJ8 -> 0 | W8: =Prop2019DistTar!AK8 -> 0 | X8: =Prop2019DistTar!AL8 -> 0 | Y8: =Prop2019DistTar!AM8 -> 0 | Z8: =Prop2019DistTar!AN8 -> 0 | AA8: =Prop2019DistTar!AO8 -> 0 | AB8: =Prop2019DistTar!AP8 -> 0 | AC8: =Prop2019DistTar!AQ8 -> 0 | AD8: =Prop2019DistTar!AR8 -> 0 | AF8: 0 | AG8: 0 | AH8: 0 | AI8: 0 | AJ8: 0 | AK8: 0 | AL8: 0 | AM8: 0 | AN8: 0 | AO8: 0 | AP8: 0 | AQ8: 0 | AR8: 0 | AS8: 0
B9: =Prop2019DistTar!B9 -> Low voltage small 2 rate | D9: 0 | E9: 0 | F9: 0 | G9: 3.15 | H9: 0 | I9: 0 | J9: 2.53 | K9: 0 | L9: 0 | M9: 0 | N9: 0 | O9: 0 | P9: 0 | R9: =Prop2019DistTar!AF9 -> 1340451.159 | S9: =Prop2019DistTar!AG9 -> 0 | T9: =Prop2019DistTar!AH9 -> 0 | U9: =Prop2019DistTar!AI9 -> 3869362.149 | V9: =Prop2019DistTar!AJ9 -> 0 | W9: =Prop2019DistTar!AK9 -> 0 | X9: =Prop2019DistTar!AL9 -> 6191506.811 | Y9: =Prop2019DistTar!AM9 -> 13287140.18 | Z9: =Prop2019DistTar!AN9 -> 0 | AA9: =Prop2019DistTar!AO9 -> 0 | AB9: =Prop2019DistTar!AP9 -> 0 | AC9: =Prop2019DistTar!AQ9 -> 0 | AD9: =Prop2019DistTar!AR9 -> 0 | AF9: 0 | AG9: 0 | AH9: 0 | AI9: 121884.9077 | AJ9: 0 | AK9: 0 | AL9: 156645.1223 | AM9: 0 | AN9: 0 | AO9: 0 | AP9: 0 | AQ9: 0 | AR9: 0 | AS9: 278530.03
B10: =Prop2019DistTar!B10 -> Dedicated circuit | D10: 0 | E10: 0 | F10: 0 | G10: 0 | H10: 0 | I10: 0 | J10: 0 | K10: 0 | L10: 0 | M10: 0 | N10: 0 | O10: 0 | P10: 0 | R10: =Prop2019DistTar!AF10 -> 2556582.814 | S10: =Prop2019DistTar!AG10 -> 0 | T10: =Prop2019DistTar!AH10 -> 0 | U10: =Prop2019DistTar!AI10 -> 0 | V10: =Prop2019DistTar!AJ10 -> 0 | W10: =Prop2019DistTar!AK10 -> 0 | X10: =Prop2019DistTar!AL10 -> 0 | Y10: =Prop2019DistTar!AM10 -> 84158747.77 | Z10: =Prop2019DistTar!AN10 -> 0 | AA10: =Prop2019DistTar!AO10 -> 0 | AB10: =Prop2019DistTar!AP10 -> 0 | AC10: =Prop2019DistTar!AQ10 -> 0 | AD10: =Prop2019DistTar!AR10 -> 0 | AF10: 0 | AG10: 0 | AH10: 0 | AI10: 0 | AJ10: 0 | AK10: 0 | AL10: 0 | AM10: 0 | AN10: 0 | AO10: 0 | AP10: 0 | AQ10: 0 | AR10: 0 | AS10: 0
B11: =Prop2019DistTar!B11 -> Low voltage medium 1 rate | D11: 0 | E11: 1.86 | F11: 0 | G11: 0 | H11: 1.86 | I11: 0 | J11: 0 | K11: 0 | L11: 0 | M11: 0 | N11: 0 | O11: 0 | P11: 0 | R11: =Prop2019DistTar!AF11 -> 12146313.83 | S11: =Prop2019DistTar!AG11 -> 160384013.5 | T11: =Prop2019DistTar!AH11 -> 0 | U11: =Prop2019DistTar!AI11 -> 0 | V11: =Prop2019DistTar!AJ11 -> 248017894.4 | W11: =Prop2019DistTar!AK11 -> 0 | X11: =Prop2019DistTar!AL11 -> 0 | Y11: =Prop2019DistTar!AM11 -> 0 | Z11: =Prop2019DistTar!AN11 -> 0 | AA11: =Prop2019DistTar!AO11 -> 0 | AB11: =Prop2019DistTar!AP11 -> 0 | AC11: =Prop2019DistTar!AQ11 -> 0 | AD11: =Prop2019DistTar!AR11 -> 0 | AF11: 0 | AG11: 2983142.652 | AH11: 0 | AI11: 0 | AJ11: 4613132.836 | AK11: 0 | AL11: 0 | AM11: 0 | AN11: 0 | AO11: 0 | AP11: 0 | AQ11: 0 | AR11: 0 | AS11: 7596275.488
B12: =Prop2019DistTar!B12 -> Low voltage medium 2 rate 5 day | D12: 0 | E12: 0 | F12: 0 | G12: 1.98 | H12: 0 | I12: 0 | J12: 1.58 | K12: 0 | L12: 0 | M12: 0 | N12: 0 | O12: 0 | P12: 0 | R12: =Prop2019DistTar!AF12 -> 3142786.31 | S12: =Prop2019DistTar!AG12 -> 0 | T12: =Prop2019DistTar!AH12 -> 0 | U12: =Prop2019DistTar!AI12 -> 48750958.34 | V12: =Prop2019DistTar!AJ12 -> 0 | W12: =Prop2019DistTar!AK12 -> 0 | X12: =Prop2019DistTar!AL12 -> 71461261.27 | Y12: =Prop2019DistTar!AM12 -> 72558263.79 | Z12: =Prop2019DistTar!AN12 -> 0 | AA12: =Prop2019DistTar!AO12 -> 0 | AB12: =Prop2019DistTar!AP12 -> 0 | AC12: =Prop2019DistTar!AQ12 -> 0 | AD12: =Prop2019DistTar!AR12 -> 0 | AF12: 0 | AG12: 0 | AH12: 0 | AI12: 965268.9752 | AJ12: 0 | AK12: 0 | AL12: 1129087.928 | AM12: 0 | AN12: 0 | AO12: 0 | AP12: 0 | AQ12: 0 | AR12: 0 | AS12: 2094356.903
B13: =Prop2019DistTar!B13 -> Low voltage medium 2 rate 7 day | D13: 0 | E13: 0 | F13: 0 | G13: 1.99 | H13: 0 | I13: 0 | J13: 1.59 | K13: 0 | L13: 0 | M13: 0 | N13: 0 | O13: 0 | P13: 0 | R13: =Prop2019DistTar!AF13 -> 1806435.361 | S13: =Prop2019DistTar!AG13 -> 0 | T13: =Prop2019DistTar!AH13 -> 0 | U13: =Prop2019DistTar!AI13 -> 24677811.01 | V13: =Prop2019DistTar!AJ13 -> 0 | W13: =Prop2019DistTar!AK13 -> 0 | X13: =Prop2019DistTar!AL13 -> 38638672.97 | Y13: =Prop2019DistTar!AM13 -> 17093353.14 | Z13: =Prop2019DistTar!AN13 -> 0 | AA13: =Prop2019DistTar!AO13 -> 0 | AB13: =Prop2019DistTar!AP13 -> 0 | AC13: =Prop2019DistTar!AQ13 -> 0 | AD13: =Prop2019DistTar!AR13 -> 0 | AF13: 0 | AG13: 0 | AH13: 0 | AI13: 491088.4392 | AJ13: 0 | AK13: 0 | AL13: 614354.9002 | AM13: 0 | AN13: 0 | AO13: 0 | AP13: 0 | AQ13: 0 | AR13: 0 | AS13: 1105443.339
B14: =Prop2019DistTar!B14 -> Unmetered supplies | D14: 0 | E14: 0 | F14: 0 | G14: 2.87 | H14: 0 | I14: 0 | J14: 2.3 | K14: 0 | L14: 0 | M14: 0 | N14: 0 | O14: 0 | P14: 0 | R14: =Prop2019DistTar!AF14 -> 2772880.659 | S14: =Prop2019DistTar!AG14 -> 0 | T14: =Prop2019DistTar!AH14 -> 0 | U14: =Prop2019DistTar!AI14 -> 12344107.45 | V14: =Prop2019DistTar!AJ14 -> 0 | W14: =Prop2019DistTar!AK14 -> 0 | X14: =Prop2019DistTar!AL14 -> 20839763.87 | Y14: =Prop2019DistTar!AM14 -> 61038507.71 | Z14: =Prop2019DistTar!AN14 -> 0 | AA14: =Prop2019DistTar!AO14 -> 0 | AB14: =Prop2019DistTar!AP14 -> 0 | AC14: =Prop2019DistTar!AQ14 -> 0 | AD14: =Prop2019DistTar!AR14 -> 0 | AF14: 0 | AG14: 0 | AH14: 0 | AI14: 354275.8839 | AJ14: 0 | AK14: 0 | AL14: 479314.569 | AM14: 0 | AN14: 0 | AO14: 0 | AP14: 0 | AQ14: 0 | AR14: 0 | AS14: 833590.4529
B15: =Prop2019DistTar!B15 -> Low voltage large 1 rate | D15: 0 | E15: 1.91 | F15: 0 | G15: 0 | H15: 1.52 | I15: 0 | J15: 0 | K15: 0 | L15: 0 | M15: 0 | N15: 0 | O15: 0 | P15: 0 | R15: =Prop2019DistTar!AF15 -> 2053.793549 | S15: =Prop2019DistTar!AG15 -> 535639.4375 | T15: =Prop2019DistTar!AH15 -> 0 | U15: =Prop2019DistTar!AI15 -> 0 | V15: =Prop2019DistTar!AJ15 -> 716644.2615 | W15: =Prop2019DistTar!AK15 -> 0 | X15: =Prop2019DistTar!AL15 -> 0 | Y15: =Prop2019DistTar!AM15 -> 0 | Z15: =Prop2019DistTar!AN15 -> 0 | AA15: =Prop2019DistTar!AO15 -> 0 | AB15: =Prop2019DistTar!AP15 -> 0 | AC15: =Prop2019DistTar!AQ15 -> 0 | AD15: =Prop2019DistTar!AR15 -> 0 | AF15: 0 | AG15: 10230.71326 | AH15: 0 | AI15: 0 | AJ15: 10892.99277 | AK15: 0 | AL15: 0 | AM15: 0 | AN15: 0 | AO15: 0 | AP15: 0 | AQ15: 0 | AR15: 0 | AS15: 21123.70603
B16: =Prop2019DistTar!B16 -> Low voltage large 2 rate | D16: 0 | E16: 0 | F16: 0 | G16: 1.81 | H16: 0 | I16: 0 | J16: 1.45 | K16: 0 | L16: 0 | M16: 0 | N16: 0 | O16: 0 | P16: 0 | R16: =Prop2019DistTar!AF16 -> 6881.086986 | S16: =Prop2019DistTar!AG16 -> 0 | T16: =Prop2019DistTar!AH16 -> 0 | U16: =Prop2019DistTar!AI16 -> 913090.0885 | V16: =Prop2019DistTar!AJ16 -> 0 | W16: =Prop2019DistTar!AK16 -> 0 | X16: =Prop2019DistTar!AL16 -> 1108281.091 | Y16: =Prop2019DistTar!AM16 -> 1553601.334 | Z16: =Prop2019DistTar!AN16 -> 0 | AA16: =Prop2019DistTar!AO16 -> 0 | AB16: =Prop2019DistTar!AP16 -> 0 | AC16: =Prop2019DistTar!AQ16 -> 0 | AD16: =Prop2019DistTar!AR16 -> 0 | AF16: 0 | AG16: 0 | AH16: 0 | AI16: 16526.9306 | AJ16: 0 | AK16: 0 | AL16: 16070.07582 | AM16: 0 | AN16: 0 | AO16: 0 | AP16: 0 | AQ16: 0 | AR16: 0 | AS16: 32597.00643
B17: =Prop2019DistTar!B17 -> Low voltage KW time of use | D17: 0 | E17: 0 | F17: 0 | G17: 1.65 | H17: 0 | I17: 0 | J17: 1.32 | K17: 0 | L17: 0 | M17: 0 | N17: 7.71 | O17: 0 | P17: 0 | R17: =Prop2019DistTar!AF17 -> 67773.95967 | S17: =Prop2019DistTar!AG17 -> 0 | T17: =Prop2019DistTar!AH17 -> 0 | U17: =Prop2019DistTar!AI17 -> 2979941.977 | V17: =Prop2019DistTar!AJ17 -> 0 | W17: =Prop2019DistTar!AK17 -> 0 | X17: =Prop2019DistTar!AL17 -> 4372012.915 | Y17: =Prop2019DistTar!AM17 -> 6961060.934 | Z17: =Prop2019DistTar!AN17 -> 0 | AA17: =Prop2019DistTar!AO17 -> 0 | AB17: =Prop2019DistTar!AP17 -> 574892.5731 | AC17: =Prop2019DistTar!AQ17 -> 0 | AD17: =Prop2019DistTar!AR17 -> 0 | AF17: 0 | AG17: 0 | AH17: 0 | AI17: 49169.04262 | AJ17: 0 | AK17: 0 | AL17: 57710.57048 | AM17: 0 | AN17: 0 | AO17: 0 | AP17: 44324.21739 | AQ17: 0 | AR17: 0 | AS17: 151203.8305
B18: =Prop2019DistTar!B18 -> Low voltage KW time of use - HOT | D18: 0 | E18: 0 | F18: 0 | G18: 1.04 | H18: 0 | I18: 0 | J18: 0.83 | K18: 0 | L18: 0 | M18: 0 | N18: 9.28 | O18: 0 | P18: 0 | R18: =Prop2019DistTar!AF18 -> 6805.949179 | S18: =Prop2019DistTar!AG18 -> 0 | T18: =Prop2019DistTar!AH18 -> 0 | U18: =Prop2019DistTar!AI18 -> 183616.8054 | V18: =Prop2019DistTar!AJ18 -> 0 | W18: =Prop2019DistTar!AK18 -> 0 | X18: =Prop2019DistTar!AL18 -> 433724.4082 | Y18: =Prop2019DistTar!AM18 -> 926538.1008 | Z18: =Prop2019DistTar!AN18 -> 0 | AA18: =Prop2019DistTar!AO18 -> 0 | AB18: =Prop2019DistTar!AP18 -> 109607.5488 | AC18: =Prop2019DistTar!AQ18 -> 0 | AD18: =Prop2019DistTar!AR18 -> 0 | AF18: 0 | AG18: 0 | AH18: 0 | AI18: 1909.614776 | AJ18: 0 | AK18: 0 | AL18: 3599.912588 | AM18: 0 | AN18: 0 | AO18: 0 | AP18: 10171.58053 | AQ18: 0 | AR18: 0 | AS18: 15681.1079
B19: =Prop2019DistTar!B19 -> Low voltage large KVA time of use | D19: 0 | E19: 0 | F19: 0 | G19: 0.94 | H19: 0 | I19: 0 | J19: 0.76 | K19: 0 | L19: 0 | M19: 3.83 | N19: 5.23 | O19: 0 | P19: 0 | R19: =Prop2019DistTar!AF19 -> 1176060.684 | S19: =Prop2019DistTar!AG19 -> 0 | T19: =Prop2019DistTar!AH19 -> 0 | U19: =Prop2019DistTar!AI19 -> 473574249.8 | V19: =Prop2019DistTar!AJ19 -> 0 | W19: =Prop2019DistTar!AK19 -> 0 | X19: =Prop2019DistTar!AL19 -> 668096504 | Y19: =Prop2019DistTar!AM19 -> 1311174632 | Z19: =Prop2019DistTar!AN19 -> 0 | AA19: =Prop2019DistTar!AO19 -> 326114206.9 | AB19: =Prop2019DistTar!AP19 -> 95205640.61 | AC19: =Prop2019DistTar!AQ19 -> 0 | AD19: =Prop2019DistTar!AR19 -> 0 | AF19: 0 | AG19: 0 | AH19: 0 | AI19: 4451597.948 | AJ19: 0 | AK19: 0 | AL19: 5077533.43 | AM19: 0 | AN19: 0 | AO19: 12490174.12 | AP19: 4979255.004 | AQ19: 0 | AR19: 0 | AS19: 26998560.5
B20: =Prop2019DistTar!B20 -> Low voltage large KVA time of use - HOT | D20: 0 | E20: 0 | F20: 0 | G20: 0 | H20: 0 | I20: 0 | J20: 0 | K20: 0 | L20: 0 | M20: 0 | N20: 0 | O20: 0 | P20: 0 | R20: =Prop2019DistTar!AF20 -> 0 | S20: =Prop2019DistTar!AG20 -> 0 | T20: =Prop2019DistTar!AH20 -> 0 | U20: =Prop2019DistTar!AI20 -> 0 | V20: =Prop2019DistTar!AJ20 -> 0 | W20: =Prop2019DistTar!AK20 -> 0 | X20: =Prop2019DistTar!AL20 -> 0 | Y20: =Prop2019DistTar!AM20 -> 0 | Z20: =Prop2019DistTar!AN20 -> 0 | AA20: =Prop2019DistTar!AO20 -> 0 | AB20: =Prop2019DistTar!AP20 -> 0 | AC20: =Prop2019DistTar!AQ20 -> 0 | AD20: =Prop2019DistTar!AR20 -> 0 | AF20: 0 | AG20: 0 | AH20: 0 | AI20: 0 | AJ20: 0 | AK20: 0 | AL20: 0 | AM20: 0 | AN20: 0 | AO20: 0 | AP20: 0 | AQ20: 0 | AR20: 0 | AS20: 0
B21: =Prop2019DistTar!B21 -> High voltage KVA time of use | D21: 0 | E21: 0 | F21: 0 | G21: 0.66 | H21: 0 | I21: 0 | J21: 0.53 | K21: 0 | L21: 0 | M21: 4.38 | N21: 4.6 | O21: 0 | P21: 0 | R21: =Prop2019DistTar!AF21 -> 35844.29161 | S21: =Prop2019DistTar!AG21 -> 0 | T21: =Prop2019DistTar!AH21 -> 0 | U21: =Prop2019DistTar!AI21 -> 176841358.1 | V21: =Prop2019DistTar!AJ21 -> 0 | W21: =Prop2019DistTar!AK21 -> 0 | X21: =Prop2019DistTar!AL21 -> 258896130 | Y21: =Prop2019DistTar!AM21 -> 654578037.7 | Z21: =Prop2019DistTar!AN21 -> 0 | AA21: =Prop2019DistTar!AO21 -> 104519165.9 | AB21: =Prop2019DistTar!AP21 -> 32848258.18 | AC21: =Prop2019DistTar!AQ21 -> 0 | AD21: =Prop2019DistTar!AR21 -> 0 | AF21: 0 | AG21: 0 | AH21: 0 | AI21: 1167152.963 | AJ21: 0 | AK21: 0 | AL21: 1372149.489 | AM21: 0 | AN21: 0 | AO21: 4577939.468 | AP21: 1511019.876 | AQ21: 0 | AR21: 0 | AS21: 8628261.797
B22: =Prop2019DistTar!B22 -> High voltage KVA time of use - HOT | D22: 0 | E22: 0 | F22: 0 | G22: 0 | H22: 0 | I22: 0 | J22: 0 | K22: 0 | L22: 0 | M22: 0 | N22: 0 | O22: 0 | P22: 0 | R22: =Prop2019DistTar!AF22 -> 0 | S22: =Prop2019DistTar!AG22 -> 0 | T22: =Prop2019DistTar!AH22 -> 0 | U22: =Prop2019DistTar!AI22 -> 0 | V22: =Prop2019DistTar!AJ22 -> 0 | W22: =Prop2019DistTar!AK22 -> 0 | X22: =Prop2019DistTar!AL22 -> 0 | Y22: =Prop2019DistTar!AM22 -> 0 | Z22: =Prop2019DistTar!AN22 -> 0 | AA22: =Prop2019DistTar!AO22 -> 0 | AB22: =Prop2019DistTar!AP22 -> 0 | AC22: =Prop2019DistTar!AQ22 -> 0 | AD22: =Prop2019DistTar!AR22 -> 0 | AF22: 0 | AG22: 0 | AH22: 0 | AI22: 0 | AJ22: 0 | AK22: 0 | AL22: 0 | AM22: 0 | AN22: 0 | AO22: 0 | AP22: 0 | AQ22: 0 | AR22: 0 | AS22: 0
B23: =Prop2019DistTar!B23 -> Subtransmission KVA time of use | D23: 0 | E23: 0 | F23: 0 | G23: 0.44 | H23: 0 | I23: 0 | J23: 0.36 | K23: 0 | L23: 0 | M23: 3.15 | N23: 3.82 | O23: 0 | P23: 0 | R23: =Prop2019DistTar!AF23 -> 388.1848269 | S23: =Prop2019DistTar!AG23 -> 0 | T23: =Prop2019DistTar!AH23 -> 0 | U23: =Prop2019DistTar!AI23 -> 8469104.472 | V23: =Prop2019DistTar!AJ23 -> 0 | W23: =Prop2019DistTar!AK23 -> 0 | X23: =Prop2019DistTar!AL23 -> 11811835.97 | Y23: =Prop2019DistTar!AM23 -> 17135510.08 | Z23: =Prop2019DistTar!AN23 -> 0 | AA23: =Prop2019DistTar!AO23 -> 4251731.381 | AB23: =Prop2019DistTar!AP23 -> 1524422.842 | AC23: =Prop2019DistTar!AQ23 -> 0 | AD23: =Prop2019DistTar!AR23 -> 0 | AF23: 0 | AG23: 0 | AH23: 0 | AI23: 37264.05968 | AJ23: 0 | AK23: 0 | AL23: 42522.6095 | AM23: 0 | AN23: 0 | AO23: 133929.5385 | AP23: 58232.95257 | AQ23: 0 | AR23: 0 | AS23: 271949.1602
B24: =Prop2019DistTar!B24 -> TOD | D24: 0 | E24: 0 | F24: 2.55 | G24: 3.01 | H24: 0 | I24: 0 | J24: 2.55 | K24: 0 | L24: 2.26 | M24: 0 | N24: 0 | O24: 0 | P24: 0 | R24: =Prop2019DistTar!AF24 -> 14958828.75 | S24: =Prop2019DistTar!AG24 -> 0 | T24: =Prop2019DistTar!AH24 -> 11157824.73 | U24: =Prop2019DistTar!AI24 -> 21858787.26 | V24: =Prop2019DistTar!AJ24 -> 0 | W24: =Prop2019DistTar!AK24 -> 0 | X24: =Prop2019DistTar!AL24 -> 41608118.3 | Y24: =Prop2019DistTar!AM24 -> 106719624.5 | Z24: =Prop2019DistTar!AN24 -> 23289542.67 | AA24: =Prop2019DistTar!AO24 -> 0 | AB24: =Prop2019DistTar!AP24 -> 0 | AC24: =Prop2019DistTar!AQ24 -> 0 | AD24: =Prop2019DistTar!AR24 -> 0 | AF24: 0 | AG24: 0 | AH24: 284524.5305 | AI24: 657949.4965 | AJ24: 0 | AK24: 0 | AL24: 1061007.017 | AM24: 0 | AN24: 526343.6643 | AO24: 0 | AP24: 0 | AQ24: 0 | AR24: 0 | AS24: 2529824.708
B25: =Prop2019DistTar!B25 -> TOD9 | D25: 0 | E25: 0 | F25: 3.83 | G25: 4.12 | H25: 0 | I25: 0 | J25: 3.83 | K25: 0 | L25: 3.64 | M25: 0 | N25: 0 | O25: 0 | P25: 0 | R25: =Prop2019DistTar!AF25 -> 1230260.531 | S25: =Prop2019DistTar!AG25 -> 0 | T25: =Prop2019DistTar!AH25 -> 591618.8357 | U25: =Prop2019DistTar!AI25 -> 1033562.689 | V25: =Prop2019DistTar!AJ25 -> 0 | W25: =Prop2019DistTar!AK25 -> 0 | X25: =Prop2019DistTar!AL25 -> 2066829.117 | Y25: =Prop2019DistTar!AM25 -> 6482902.611 | Z25: =Prop2019DistTar!AN25 -> 1333840.095 | AA25: =Prop2019DistTar!AO25 -> 0 | AB25: =Prop2019DistTar!AP25 -> 0 | AC25: =Prop2019DistTar!AQ25 -> 0 | AD25: =Prop2019DistTar!AR25 -> 0 | AF25: 0 | AG25: 0 | AH25: 22659.00141 | AI25: 42582.78279 | AJ25: 0 | AK25: 0 | AL25: 79159.55519 | AM25: 0 | AN25: 48551.77947 | AO25: 0 | AP25: 0 | AQ25: 0 | AR25: 0 | AS25: 192953.1189
B26: =Prop2019DistTar!B26 -> TOU | D26: 0 | E26: 0 | F26: 0 | G26: 2.2 | H26: 0 | I26: 0 | J26: 1.01 | K26: 0 | L26: 0 | M26: 0 | N26: 5.76 | O26: 0 | P26: 0 | R26: =Prop2019DistTar!AF26 -> 245380.3348 | S26: =Prop2019DistTar!AG26 -> 0 | T26: =Prop2019DistTar!AH26 -> 0 | U26: =Prop2019DistTar!AI26 -> 4426421.454 | V26: =Prop2019DistTar!AJ26 -> 0 | W26: =Prop2019DistTar!AK26 -> 0 | X26: =Prop2019DistTar!AL26 -> 7275039.43 | Y26: =Prop2019DistTar!AM26 -> 8972065.135 | Z26: =Prop2019DistTar!AN26 -> 0 | AA26: =Prop2019DistTar!AO26 -> 0 | AB26: =Prop2019DistTar!AP26 -> 995491.8472 | AC26: =Prop2019DistTar!AQ26 -> 0 | AD26: =Prop2019DistTar!AR26 -> 0 | AF26: 0 | AG26: 0 | AH26: 0 | AI26: 97381.27198 | AJ26: 0 | AK26: 0 | AL26: 73477.89824 | AM26: 0 | AN26: 0 | AO26: 0 | AP26: 57340.3304 | AQ26: 0 | AR26: 0 | AS26: 228199.5006
B27: =Prop2019DistTar!B27 -> TODFLEX | D27: 0 | E27: 0 | F27: 1.68 | G27: 3.36 | H27: 0 | I27: 0 | J27: 3.13 | K27: 0 | L27: 1.48 | M27: 0 | N27: 0 | O27: 0 | P27: 0 | R27: =Prop2019DistTar!AF27 -> 748713.2967 | S27: =Prop2019DistTar!AG27 -> 0 | T27: =Prop2019DistTar!AH27 -> 1841551.61 | U27: =Prop2019DistTar!AI27 -> 897829.5467 | V27: =Prop2019DistTar!AJ27 -> 0 | W27: =Prop2019DistTar!AK27 -> 0 | X27: =Prop2019DistTar!AL27 -> 1476591.166 | Y27: =Prop2019DistTar!AM27 -> 3741242.014 | Z27: =Prop2019DistTar!AN27 -> 3096046.168 | AA27: =Prop2019DistTar!AO27 -> 0 | AB27: =Prop2019DistTar!AP27 -> 0 | AC27: =Prop2019DistTar!AQ27 -> 0 | AD27: =Prop2019DistTar!AR27 -> 0 | AF27: 0 | AG27: 0 | AH27: 30938.06706 | AI27: 30167.07277 | AJ27: 0 | AK27: 0 | AL27: 46217.30348 | AM27: 0 | AN27: 45821.48329 | AO27: 0 | AP27: 0 | AQ27: 0 | AR27: 0 | AS27: 153143.9266
B28: =Prop2019DistTar!B28 -> Low Voltage KW 1 rate | D28: 0 | E28: 0.62 | F28: 0.62 | G28: 0.62 | H28: 0.62 | I28: 0.62 | J28: 0.62 | K28: 0.62 | L28: 0.62 | M28: 0 | N28: 0 | O28: 4.62 | P28: 3 | R28: =Prop2019DistTar!AF28 -> 2365.964603 | S28: =Prop2019DistTar!AG28 -> 0 | T28: =Prop2019DistTar!AH28 -> 0 | U28: =Prop2019DistTar!AI28 -> 10094.26433 | V28: =Prop2019DistTar!AJ28 -> 0 | W28: =Prop2019DistTar!AK28 -> 0 | X28: =Prop2019DistTar!AL28 -> 19252.67605 | Y28: =Prop2019DistTar!AM28 -> 0 | Z28: =Prop2019DistTar!AN28 -> 0 | AA28: =Prop2019DistTar!AO28 -> 0 | AB28: =Prop2019DistTar!AP28 -> 0 | AC28: =Prop2019DistTar!AQ28 -> 2402.709273 | AD28: =Prop2019DistTar!AR28 -> 4357.306608 | AF28: 0 | AG28: 0 | AH28: 0 | AI28: 62.58443884 | AJ28: 0 | AK28: 0 | AL28: 119.3665915 | AM28: 0 | AN28: 0 | AO28: 0 | AP28: 0 | AQ28: 111.0051684 | AR28: 130.7191982 | AS28: 423.675397
B29: =Prop2019DistTar!B29 -> Low voltage medium KW time of use (opt-in) | D29: 0 | E29: 0 | F29: 0 | G29: 0.76 | H29: 0 | I29: 0 | J29: 0.76 | K29: 0 | L29: 0 | M29: 0 | N29: 0 | O29: 8.58 | P29: 5.72 | R29: =Prop2019DistTar!AF29 -> 61897.88761 | S29: =Prop2019DistTar!AG29 -> 0 | T29: =Prop2019DistTar!AH29 -> 0 | U29: =Prop2019DistTar!AI29 -> 6336827.861 | V29: =Prop2019DistTar!AJ29 -> 0 | W29: =Prop2019DistTar!AK29 -> 0 | X29: =Prop2019DistTar!AL29 -> 8872080.024 | Y29: =Prop2019DistTar!AM29 -> 0 | Z29: =Prop2019DistTar!AN29 -> 0 | AA29: =Prop2019DistTar!AO29 -> 0 | AB29: =Prop2019DistTar!AP29 -> 0 | AC29: =Prop2019DistTar!AQ29 -> 602643.8077 | AD29: =Prop2019DistTar!AR29 -> 1112070.385 | AF29: 0 | AG29: 0 | AH29: 0 | AI29: 48159.89174 | AJ29: 0 | AK29: 0 | AL29: 67427.80818 | AM29: 0 | AN29: 0 | AO29: 0 | AP29: 0 | AQ29: 51706.8387 | AR29: 63610.426 | AS29: 230904.9646
B30: =Prop2019DistTar!B30 -> Low voltage medium KW 1 rate (mandatory) | D30: 0 | E30: 0 | F30: 0 | G30: 0.76 | H30: 0 | I30: 0 | J30: 0.76 | K30: 0 | L30: 0 | M30: 0 | N30: 0 | O30: 8.58 | P30: 5.72 | R30: =Prop2019DistTar!AF30 -> 2660202.423 | S30: =Prop2019DistTar!AG30 -> 0 | T30: =Prop2019DistTar!AH30 -> 0 | U30: =Prop2019DistTar!AI30 -> 283591412.7 | V30: =Prop2019DistTar!AJ30 -> 0 | W30: =Prop2019DistTar!AK30 -> 0 | X30: =Prop2019DistTar!AL30 -> 392448914.1 | Y30: =Prop2019DistTar!AM30 -> 0 | Z30: =Prop2019DistTar!AN30 -> 0 | AA30: =Prop2019DistTar!AO30 -> 0 | AB30: =Prop2019DistTar!AP30 -> 0 | AC30: =Prop2019DistTar!AQ30 -> 27235556.86 | AD30: =Prop2019DistTar!AR30 -> 49015175.38 | AF30: 0 | AG30: 0 | AH30: 0 | AI30: 2155294.736 | AJ30: 0 | AK30: 0 | AL30: 2982611.747 | AM30: 0 | AN30: 0 | AO30: 0 | AP30: 0 | AQ30: 2336810.779 | AR30: 2803668.032 | AS30: 10278385.29
AF31: 0 | AG31: 0 | AH31: 0 | AI31: 0 | AJ31: 0 | AK31: 0 | AL31: 0 | AM31: 0 | AN31: 0 | AO31: 0 | AP31: 0 | AQ31: 0 | AR31: 0 | AS31: 0
AF32: 0 | AG32: 0 | AH32: 0 | AI32: 0 | AJ32: 0 | AK32: 0 | AL32: 0 | AM32: 0 | AN32: 0 | AO32: 0 | AP32: 0 | AQ32: 0 | AR32: 0 | AS32: 0
AF33: 0 | AG33: 0 | AH33: 0 | AI33: 0 | AJ33: 0 | AK33: 0 | AL33: 0 | AM33: 0 | AN33: 0 | AO33: 0 | AP33: 0 | AQ33: 0 | AR33: 0 | AS33: 0
AF34: 0 | AG34: 0 | AH34: 0 | AI34: 0 | AJ34: 0 | AK34: 0 | AL34: 0 | AM34: 0 | AN34: 0 | AO34: 0 | AP34: 0 | AQ34: 0 | AR34: 0 | AS34: 0
AF35: 0 | AG35: 0 | AH35: 0 | AI35: 0 | AJ35: 0 | AK35: 0 | AL35: 0 | AM35: 0 | AN35: 0 | AO35: 0 | AP35: 0 | AQ35: 0 | AR35: 0 | AS35: 0
AF36: 0 | AG36: 0 | AH36: 0 | AI36: 0 | AJ36: 0 | AK36: 0 | AL36: 0 | AM36: 0 | AN36: 0 | AO36: 0 | AP36: 0 | AQ36: 0 | AR36: 0 | AS36: 0
AF37: 0 | AG37: 0 | AH37: 0 | AI37: 0 | AJ37: 0 | AK37: 0 | AL37: 0 | AM37: 0 | AN37: 0 | AO37: 0 | AP37: 0 | AQ37: 0 | AR37: 0 | AS37: 0
AF38: 0 | AG38: 0 | AH38: 0 | AI38: 0 | AJ38: 0 | AK38: 0 | AL38: 0 | AM38: 0 | AN38: 0 | AO38: 0 | AP38: 0 | AQ38: 0 | AR38: 0 | AS38: 0
AF39: 0 | AG39: 0 | AH39: 0 | AI39: 0 | AJ39: 0 | AK39: 0 | AL39: 0 | AM39: 0 | AN39: 0 | AO39: 0 | AP39: 0 | AQ39: 0 | AR39: 0 | AS39: 0
AF40: 0 | AG40: 0 | AH40: 0 | AI40: 0 | AJ40: 0 | AK40: 0 | AL40: 0 | AM40: 0 | AN40: 0 | AO40: 0 | AP40: 0 | AQ40: 0 | AR40: 0 | AS40: 0
AF41: 0 | AG41: 0 | AH41: 0 | AI41: 0 | AJ41: 0 | AK41: 0 | AL41: 0 | AM41: 0 | AN41: 0 | AO41: 0 | AP41: 0 | AQ41: 0 | AR41: 0 | AS41: 0
AF42: 0 | AG42: 0 | AH42: 0 | AI42: 0 | AJ42: 0 | AK42: 0 | AL42: 0 | AM42: 0 | AN42: 0 | AO42: 0 | AP42: 0 | AQ42: 0 | AR42: 0 | AS42: 0
AF43: 0 | AG43: 0 | AH43: 0 | AI43: 0 | AJ43: 0 | AK43: 0 | AL43: 0 | AM43: 0 | AN43: 0 | AO43: 0 | AP43: 0 | AQ43: 0 | AR43: 0 | AS43: 0
AF44: 0 | AG44: 0 | AH44: 0 | AI44: 0 | AJ44: 0 | AK44: 0 | AL44: 0 | AM44: 0 | AN44: 0 | AO44: 0 | AP44: 0 | AQ44: 0 | AR44: 0 | AS44: 0
AF45: 0 | AG45: 0 | AH45: 0 | AI45: 0 | AJ45: 0 | AK45: 0 | AL45: 0 | AM45: 0 | AN45: 0 | AO45: 0 | AP45: 0 | AQ45: 0 | AR45: 0 | AS45: 0
AF46: 0 | AG46: 0 | AH46: 0 | AI46: 0 | AJ46: 0 | AK46: 0 | AL46: 0 | AM46: 0 | AN46: 0 | AO46: 0 | AP46: 0 | AQ46: 0 | AR46: 0 | AS46: 0
AF47: 0 | AG47: 0 | AH47: 0 | AI47: 0 | AJ47: 0 | AK47: 0 | AL47: 0 | AM47: 0 | AN47: 0 | AO47: 0 | AP47: 0 | AQ47: 0 | AR47: 0 | AS47: 0
AF48: 0 | AG48: 0 | AH48: 0 | AI48: 0 | AJ48: 0 | AK48: 0 | AL48: 0 | AM48: 0 | AN48: 0 | AO48: 0 | AP48: 0 | AQ48: 0 | AR48: 0 | AS48: 0
AF49: 0 | AG49: 0 | AH49: 0 | AI49: 0 | AJ49: 0 | AK49: 0 | AL49: 0 | AM49: 0 | AN49: 0 | AO49: 0 | AP49: 0 | AQ49: 0 | AR49: 0 | AS49: 0
AF50: 0 | AG50: 0 | AH50: 0 | AI50: 0 | AJ50: 0 | AK50: 0 | AL50: 0 | AM50: 0 | AN50: 0 | AO50: 0 | AP50: 0 | AQ50: 0 | AR50: 0 | AS50: 0
AF51: 0 | AG51: 0 | AH51: 0 | AI51: 0 | AJ51: 0 | AK51: 0 | AL51: 0 | AM51: 0 | AN51: 0 | AO51: 0 | AP51: 0 | AQ51: 0 | AR51: 0 | AS51: 0
AF52: 0 | AG52: 0 | AH52: 0 | AI52: 0 | AJ52: 0 | AK52: 0 | AL52: 0 | AM52: 0 | AN52: 0 | AO52: 0 | AP52: 0 | AQ52: 0 | AR52: 0 | AS52: 0
AF53: 0 | AG53: 0 | AH53: 0 | AI53: 0 | AJ53: 0 | AK53: 0 | AL53: 0 | AM53: 0 | AN53: 0 | AO53: 0 | AP53: 0 | AQ53: 0 | AR53: 0 | AS53: 0
AF54: 0 | AG54: 0 | AH54: 0 | AI54: 0 | AJ54: 0 | AK54: 0 | AL54: 0 | AM54: 0 | AN54: 0 | AO54: 0 | AP54: 0 | AQ54: 0 | AR54: 0 | AS54: 0
AF55: 0 | AG55: 0 | AH55: 0 | AI55: 0 | AJ55: 0 | AK55: 0 | AL55: 0 | AM55: 0 | AN55: 0 | AO55: 0 | AP55: 0 | AQ55: 0 | AR55: 0 | AS55: 0
AF56: 0 | AG56: 0 | AH56: 0 | AI56: 0 | AJ56: 0 | AK56: 0 | AL56: 0 | AM56: 0 | AN56: 0 | AO56: 0 | AP56: 0 | AQ56: 0 | AR56: 0 | AS56: 0
AF57: 0 | AG57: 0 | AH57: 0 | AI57: 0 | AJ57: 0 | AK57: 0 | AL57: 0 | AM57: 0 | AN57: 0 | AO57: 0 | AP57: 0 | AQ57: 0 | AR57: 0 | AS57: 0
AF58: 0 | AG58: 0 | AH58: 0 | AI58: 0 | AJ58: 0 | AK58: 0 | AL58: 0 | AM58: 0 | AN58: 0 | AO58: 0 | AP58: 0 | AQ58: 0 | AR58: 0 | AS58: 0
AF59: 0 | AG59: 0 | AH59: 0 | AI59: 0 | AJ59: 0 | AK59: 0 | AL59: 0 | AM59: 0 | AN59: 0 | AO59: 0 | AP59: 0 | AQ59: 0 | AR59: 0 | AS59: 0
AF60: 0 | AG60: 0 | AH60: 0 | AI60: 0 | AJ60: 0 | AK60: 0 | AL60: 0 | AM60: 0 | AN60: 0 | AO60: 0 | AP60: 0 | AQ60: 0 | AR60: 0 | AS60: 0
AF61: 0 | AG61: 0 | AH61: 0 | AI61: 0 | AJ61: 0 | AK61: 0 | AL61: 0 | AM61: 0 | AN61: 0 | AO61: 0 | AP61: 0 | AQ61: 0 | AR61: 0 | AS61: 0
AF62: 0 | AG62: 0 | AH62: 0 | AI62: 0 | AJ62: 0 | AK62: 0 | AL62: 0 | AM62: 0 | AN62: 0 | AO62: 0 | AP62: 0 | AQ62: 0 | AR62: 0 | AS62: 0
AF63: 0 | AG63: 0 | AH63: 0 | AI63: 0 | AJ63: 0 | AK63: 0 | AL63: 0 | AM63: 0 | AN63: 0 | AO63: 0 | AP63: 0 | AQ63: 0 | AR63: 0 | AS63: 0
AF64: 0 | AG64: 0 | AH64: 0 | AI64: 0 | AJ64: 0 | AK64: 0 | AL64: 0 | AM64: 0 | AN64: 0 | AO64: 0 | AP64: 0 | AQ64: 0 | AR64: 0 | AS64: 0
AF65: 0 | AG65: 0 | AH65: 0 | AI65: 0 | AJ65: 0 | AK65: 0 | AL65: 0 | AM65: 0 | AN65: 0 | AO65: 0 | AP65: 0 | AQ65: 0 | AR65: 0 | AS65: 0
R66: =SUM(R6:R65) -> 251870585.4 | S66: 1105073281 | T66: 13590995.17 | U66: 1070758536 | V66: 1769485306 | W66: 0 | X66: 1535616518 | Y66: =SUM(Y6:Y65) -> 2366381227 | Z66: 27719428.93 | AA66: 434885104.2 | AB66: 131258313.6 | AC66: 27840603.38 | AD66: 50131603.07 | AF66: =SUM(AF6:AF65) -> 0 | AG66: 18478089.78 | AH66: 338121.599 | AI66: 10687736.6 | AJ66: 29563415.08 | AK66: 0 | AL66: 13259009.3 | AM66: =SUM(AM6:AM65) -> 0 | AN66: 620716.927 | AO66: 17202043.13 | AP66: 6660343.961 | AQ66: 2388628.622 | AR66: 2867409.177 | AS66: 102065514.2

Sheet Est2018TransRev
B1: ="Tariff Approval - "&'Model update'!C3 -> Tariff Approval - United Energy
B3: ="ESTIMATED "&'Model update'!C8&" TRANSMISSION TARIFF REVENUE" -> ESTIMATED 2018 TRANSMISSION TARIFF REVENUE
D4: ="Current Transmission Tariffs (Pt-1) for "&'Model update'!$C$8 -> Current Transmission Tariffs (Pt-1) for 2018 | R4: ="Estimated Quantities (Qt-1) for "&'Model update'!$C$8 -> Estimated Quantities (Qt-1) for 2018 | AF4: ="Estimated Revenue (Pt-1 "&'Model update'!$C$8&")*(Qt-1 " &'Model update'!$C$8&")" -> Estimated Revenue (Pt-1 2018)*(Qt-1 2018)
B5: ="Tariffs "&'Model update'!C8 -> Tariffs 2018 | D5: Current Fixed | E5: CurrentPkBlk1 | F5: CurrentPkBlk2 | G5: Current PkBlk3 | H5: Current PkBlk4 | I5: Current OPkBlk1 | J5: Current OPkBlk2 | K5: Current OPkBlk3 | L5: Current OPkBlk4 | M5: Current DemBlk1 | N5: Current DemBlk2 | O5: Current DemBlk3 | P5: Current DemBlk4 | R5: EstVol Fixed | S5: EstVol PkBlk1 | T5: EstVol PkBlk2 | U5: EstVol PkBlk3 | V5: EstVol PkBlk4 | W5: EstVol OPkBlk1 | X5: EstVol OPkBlk2 | Y5: EstVol OPkBlk3 | Z5: EstVol OPkBlk4 | AA5: EstVol DemBlk1 | AB5: EstVol DemBlk2 | AC5: EstVol DemBlk3 | AD5: EstVol DemBlk4 | AF5: EstRev Fixed | AG5: EstRev PkBlk1 | AH5: EstRev PkBlk2 | AI5: EstRev PkBlk3 | AJ5: EstRev PkBlk4 | AK5: EstRev OPkBlk1 | AL5: EstRev OPkBlk2 | AM5: EstRev OPkBlk3 | AN5: EstRev OPkBlk4 | AO5: EstRev DemBlk1 | AP5: EstRev DemBlk2 | AQ5: EstRev DemBlk3 | AR5: EstRev DemBlk4 | AS5: EstRev Total
B6: =Est2018DistRev!B6 -> Low voltage small 1 rate | D6: 0 | E6: 1.755 | F6: 0 | G6: 0 | H6: 1.467 | I6: 0 | J6: 0 | K6: 0 | L6: 0 | M6: 0 | N6: 0 | O6: 0 | P6: 0 | R6: =Est2018DistRev!R6 -> 200952788.4 | S6: =Est2018DistRev!S6 -> 928008318.5 | T6: =Est2018DistRev!T6 -> 0 | U6: =Est2018DistRev!U6 -> 0 | V6: =Est2018DistRev!V6 -> 1503738155 | W6: =Est2018DistRev!W6 -> 0 | X6: =Est2018DistRev!X6 -> 0 | Y6: =Est2018DistRev!Y6 -> 0 | Z6: =Est2018DistRev!Z6 -> 0 | AA6: =Est2018DistRev!AA6 -> 0 | AB6: =Est2018DistRev!AB6 -> 0 | AC6: =Est2018DistRev!AC6 -> 0 | AD6: =Est2018DistRev!AD6 -> 0 | AF6: =D6/100*R6 -> 0 | AG6: =E6/100*S6 -> 16286545.99 | AH6: =F6/100*T6 -> 0 | AI6: =G6/100*U6 -> 0 | AJ6: =H6/100*V6 -> 22059838.73 | AK6: =I6/100*W6 -> 0 | AL6: =J6/100*X6 -> 0 | AM6: =K6/100*Y6 -> 0 | AN6: =L6/100*Z6 -> 0 | AO6: =M6/100*AA6 -> 0 | AP6: =N6/100*AB6 -> 0 | AQ6: =O6/100*AC6 -> 0 | AR6: =P6/100*AD6 -> 0 | AS6: =SUM(AF6:AR6) -> 38346384.72
B7: =Est2018DistRev!B7 -> Winter economy tariff | D7: 0 | E7: 1.964 | F7: 0 | G7: 0 | H7: 1.571 | I7: 1.571 | J7: 0 | K7: 0 | L7: 0 | M7: 0 | N7: 0 | O7: 0 | P7: 0 | R7: =Est2018DistRev!R7 -> 45377.16506 | S7: =Est2018DistRev!S7 -> 302993.8914 | T7: =Est2018DistRev!T7 -> 0 | U7: =Est2018DistRev!U7 -> 0 | V7: =Est2018DistRev!V7 -> 578609.4826 | W7: =Est2018DistRev!W7 -> 0 | X7: =Est2018DistRev!X7 -> 0 | Y7: =Est2018DistRev!Y7 -> 0 | Z7: =Est2018DistRev!Z7 -> 0 | AA7: =Est2018DistRev!AA7 -> 0 | AB7: =Est2018DistRev!AB7 -> 0 | AC7: =Est2018DistRev!AC7 -> 0 | AD7: =Est2018DistRev!AD7 -> 0 | AF7: 0 | AG7: 5950.800028 | AH7: 0 | AI7: 0 | AJ7: 9089.954972 | AK7: 0 | AL7: 0 | AM7: 0 | AN7: 0 | AO7: 0 | AP7: 0 | AQ7: 0 | AR7: 0 | AS7: 15040.755
B8: =Est2018DistRev!B8 -> Reverse cycle airconditioning time of use | D8: 0 | E8: 0 | F8: 0 | G8: 0 | H8: 0 | I8: 0 | J8: 0 | K8: 0 | L8: 0 | M8: 0 | N8: 0 | O8: 0 | P8: 0 | R8: =Est2018DistRev!R8 -> 0 | S8: =Est2018DistRev!S8 -> 0 | T8: =Est2018DistRev!T8 -> 0 | U8: =Est2018DistRev!U8 -> 0 | V8: =Est2018DistRev!V8 -> 0 | W8: =Est2018DistRev!W8 -> 0 | X8: =Est2018DistRev!X8 -> 0 | Y8: =Est2018DistRev!Y8 -> 0 | Z8: =Est2018DistRev!Z8 -> 0 | AA8: =Est2018DistRev!AA8 -> 0 | AB8: =Est2018DistRev!AB8 -> 0 | AC8: =Est2018DistRev!AC8 -> 0 | AD8: =Est2018DistRev!AD8 -> 0 | AF8: 0 | AG8: 0 | AH8: 0 | AI8: 0 | AJ8: 0 | AK8: 0 | AL8: 0 | AM8: 0 | AN8: 0 | AO8: 0 | AP8: 0 | AQ8: 0 | AR8: 0 | AS8: 0
B9: =Est2018DistRev!B9 -> Low voltage small 2 rate | D9: 0 | E9: 0 | F9: 0 | G9: 2.947 | H9: 0 | I9: 0 | J9: 2.359 | K9: 0 | L9: 0 | M9: 0 | N9: 0 | O9: 0 | P9: 0 | R9: =Est2018DistRev!R9 -> 1512412.683 | S9: =Est2018DistRev!S9 -> 0 | T9: =Est2018DistRev!T9 -> 0 | U9: =Est2018DistRev!U9 -> 4357801.9 | V9: =Est2018DistRev!V9 -> 0 | W9: =Est2018DistRev!W9 -> 0 | X9: =Est2018DistRev!X9 -> 6953080.242 | Y9: =Est2018DistRev!Y9 -> 14873749.96 | Z9: =Est2018DistRev!Z9 -> 0 | AA9: =Est2018DistRev!AA9 -> 0 | AB9: =Est2018DistRev!AB9 -> 0 | AC9: =Est2018DistRev!AC9 -> 0 | AD9: =Est2018DistRev!AD9 -> 0 | AF9: 0 | AG9: 0 | AH9: 0 | AI9: 128424.422 | AJ9: 0 | AK9: 0 | AL9: 164023.1629 | AM9: 0 | AN9: 0 | AO9: 0 | AP9: 0 | AQ9: 0 | AR9: 0 | AS9: 292447.5849
B10: =Est2018DistRev!B10 -> Dedicated circuit | D10: 0 | E10: 0 | F10: 0 | G10: 0 | H10: 0 | I10: 0 | J10: 0 | K10: 0 | L10: 0 | M10: 0 | N10: 0 | O10: 0 | P10: 0 | R10: =Est2018DistRev!R10 -> 1960437.019 | S10: =Est2018DistRev!S10 -> 0 | T10: =Est2018DistRev!T10 -> 0 | U10: =Est2018DistRev!U10 -> 0 | V10: =Est2018DistRev!V10 -> 0 | W10: =Est2018DistRev!W10 -> 0 | X10: =Est2018DistRev!X10 -> 0 | Y10: =Est2018DistRev!Y10 -> 89664408.34 | Z10: =Est2018DistRev!Z10 -> 0 | AA10: =Est2018DistRev!AA10 -> 0 | AB10: =Est2018DistRev!AB10 -> 0 | AC10: =Est2018DistRev!AC10 -> 0 | AD10: =Est2018DistRev!AD10 -> 0 | AF10: 0 | AG10: 0 | AH10: 0 | AI10: 0 | AJ10: 0 | AK10: 0 | AL10: 0 | AM10: 0 | AN10: 0 | AO10: 0 | AP10: 0 | AQ10: 0 | AR10: 0 | AS10: 0
B11: =Est2018DistRev!B11 -> Low voltage medium 1 rate | D11: 0 | E11: 2.062 | F11: 0 | G11: 0 | H11: 1.647 | I11: 0 | J11: 0 | K11: 0 | L11: 0 | M11: 0 | N11: 0 | O11: 0 | P11: 0 | R11: =Est2018DistRev!R11 -> 12103894.64 | S11: =Est2018DistRev!S11 -> 163534676.5 | T11: =Est2018DistRev!T11 -> 0 | U11: =Est2018DistRev!U11 -> 0 | V11: =Est2018DistRev!V11 -> 244508549.5 | W11: =Est2018DistRev!W11 -> 0 | X11: =Est2018DistRev!X11 -> 0 | Y11: =Est2018DistRev!Y11 -> 0 | Z11: =Est2018DistRev!Z11 -> 0 | AA11: =Est2018DistRev!AA11 -> 0 | AB11: =Est2018DistRev!AB11 -> 0 | AC11: =Est2018DistRev!AC11 -> 0 | AD11: =Est2018DistRev!AD11 -> 0 | AF11: 0 | AG11: 3372085.03 | AH11: 0 | AI11: 0 | AJ11: 4027055.81 | AK11: 0 | AL11: 0 | AM11: 0 | AN11: 0 | AO11: 0 | AP11: 0 | AQ11: 0 | AR11: 0 | AS11: 7399140.84
B12: =Est2018DistRev!B12 -> Low voltage medium 2 rate 5 day | D12: 0 | E12: 0 | F12: 0 | G12: 1.786 | H12: 0 | I12: 0 | J12: 1.428 | K12: 0 | L12: 0 | M12: 0 | N12: 0 | O12: 0 | P12: 0 | R12: =Est2018DistRev!R12 -> 3269874.017 | S12: =Est2018DistRev!S12 -> 0 | T12: =Est2018DistRev!T12 -> 0 | U12: =Est2018DistRev!U12 -> 48815797.8 | V12: =Est2018DistRev!V12 -> 0 | W12: =Est2018DistRev!W12 -> 0 | X12: =Est2018DistRev!X12 -> 76642995.38 | Y12: =Est2018DistRev!Y12 -> 73750815.48 | Z12: =Est2018DistRev!Z12 -> 0 | AA12: =Est2018DistRev!AA12 -> 0 | AB12: =Est2018DistRev!AB12 -> 0 | AC12: =Est2018DistRev!AC12 -> 0 | AD12: =Est2018DistRev!AD12 -> 0 | AF12: 0 | AG12: 0 | AH12: 0 | AI12: 871850.1488 | AJ12: 0 | AK12: 0 | AL12: 1094461.974 | AM12: 0 | AN12: 0 | AO12: 0 | AP12: 0 | AQ12: 0 | AR12: 0 | AS12: 1966312.123
B13: =Est2018DistRev!B13 -> Low voltage medium 2 rate 7 day | D13: 0 | E13: 0 | F13: 0 | G13: 2.126 | H13: 0 | I13: 0 | J13: 1.702 | K13: 0 | L13: 0 | M13: 0 | N13: 0 | O13: 0 | P13: 0 | R13: =Est2018DistRev!R13 -> 1655208.392 | S13: =Est2018DistRev!S13 -> 0 | T13: =Est2018DistRev!T13 -> 0 | U13: =Est2018DistRev!U13 -> 21784409.06 | V13: =Est2018DistRev!V13 -> 0 | W13: =Est2018DistRev!W13 -> 0 | X13: =Est2018DistRev!X13 -> 35541857.1 | Y13: =Est2018DistRev!Y13 -> 15171726.59 | Z13: =Est2018DistRev!Z13 -> 0 | AA13: =Est2018DistRev!AA13 -> 0 | AB13: =Est2018DistRev!AB13 -> 0 | AC13: =Est2018DistRev!AC13 -> 0 | AD13: =Est2018DistRev!AD13 -> 0 | AF13: 0 | AG13: 0 | AH13: 0 | AI13: 463136.5366 | AJ13: 0 | AK13: 0 | AL13: 604922.4078 | AM13: 0 | AN13: 0 | AO13: 0 | AP13: 0 | AQ13: 0 | AR13: 0 | AS13: 1068058.944
B14: =Est2018DistRev!B14 -> Unmetered supplies | D14: 0 | E14: 0 | F14: 0 | G14: 2.761 | H14: 0 | I14: 0 | J14: 2.207 | K14: 0 | L14: 0 | M14: 0 | N14: 0 | O14: 0 | P14: 0 | R14: =Est2018DistRev!R14 -> 1969509.477 | S14: =Est2018DistRev!S14 -> 0 | T14: =Est2018DistRev!T14 -> 0 | U14: =Est2018DistRev!U14 -> 13849579.43 | V14: =Est2018DistRev!V14 -> 0 | W14: =Est2018DistRev!W14 -> 0 | X14: =Est2018DistRev!X14 -> 26202949.44 | Y14: =Est2018DistRev!Y14 -> 60264599.84 | Z14: =Est2018DistRev!Z14 -> 0 | AA14: =Est2018DistRev!AA14 -> 0 | AB14: =Est2018DistRev!AB14 -> 0 | AC14: =Est2018DistRev!AC14 -> 0 | AD14: =Est2018DistRev!AD14 -> 0 | AF14: 0 | AG14: 0 | AH14: 0 | AI14: 382386.8879 | AJ14: 0 | AK14: 0 | AL14: 578299.0941 | AM14: 0 | AN14: 0 | AO14: 0 | AP14: 0 | AQ14: 0 | AR14: 0 | AS14: 960685.982
B15: =Est2018DistRev!B15 -> Low voltage large 1 rate | D15: 0 | E15: 2.056 | F15: 0 | G15: 0 | H15: 1.643 | I15: 0 | J15: 0 | K15: 0 | L15: 0 | M15: 0 | N15: 0 | O15: 0 | P15: 0 | R15: =Est2018DistRev!R15 -> 2284.066115 | S15: =Est2018DistRev!S15 -> 593575.6229 | T15: =Est2018DistRev!T15 -> 0 | U15: =Est2018DistRev!U15 -> 0 | V15: =Est2018DistRev!V15 -> 787538.8044 | W15: =Est2018DistRev!W15 -> 0 | X15: =Est2018DistRev!X15 -> 0 | Y15: =Est2018DistRev!Y15 -> 0 | Z15: =Est2018DistRev!Z15 -> 0 | AA15: =Est2018DistRev!AA15 -> 0 | AB15: =Est2018DistRev!AB15 -> 0 | AC15: =Est2018DistRev!AC15 -> 0 | AD15: =Est2018DistRev!AD15 -> 0 | AF15: 0 | AG15: 12203.91481 | AH15: 0 | AI15: 0 | AJ15: 12939.26256 | AK15: 0 | AL15: 0 | AM15: 0 | AN15: 0 | AO15: 0 | AP15: 0 | AQ15: 0 | AR15: 0 | AS15: 25143.17736
B16: =Est2018DistRev!B16 -> Low voltage large 2 rate | D16: 0 | E16: 0 | F16: 0 | G16: 1.58 | H16: 0 | I16: 0 | J16: 1.266 | K16: 0 | L16: 0 | M16: 0 | N16: 0 | O16: 0 | P16: 0 | R16: =Est2018DistRev!R16 -> 6546.679367 | S16: =Est2018DistRev!S16 -> 0 | T16: =Est2018DistRev!T16 -> 0 | U16: =Est2018DistRev!U16 -> 849445.1711 | V16: =Est2018DistRev!V16 -> 0 | W16: =Est2018DistRev!W16 -> 0 | X16: =Est2018DistRev!X16 -> 1153521.686 | Y16: =Est2018DistRev!Y16 -> 1508497.259 | Z16: =Est2018DistRev!Z16 -> 0 | AA16: =Est2018DistRev!AA16 -> 0 | AB16: =Est2018DistRev!AB16 -> 0 | AC16: =Est2018DistRev!AC16 -> 0 | AD16: =Est2018DistRev!AD16 -> 0 | AF16: 0 | AG16: 0 | AH16: 0 | AI16: 13421.2337 | AJ16: 0 | AK16: 0 | AL16: 14603.58455 | AM16: 0 | AN16: 0 | AO16: 0 | AP16: 0 | AQ16: 0 | AR16: 0 | AS16: 28024.81825
B17: =Est2018DistRev!B17 -> Low voltage KW time of use | D17: 0 | E17: 0 | F17: 0 | G17: 1.654 | H17: 0 | I17: 0 | J17: 1.323 | K17: 0 | L17: 0 | M17: 0 | N17: 7.715 | O17: 0 | P17: 0 | R17: =Est2018DistRev!R17 -> 48172.70651 | S17: =Est2018DistRev!S17 -> 0 | T17: =Est2018DistRev!T17 -> 0 | U17: =Est2018DistRev!U17 -> 3089851.322 | V17: =Est2018DistRev!V17 -> 0 | W17: =Est2018DistRev!W17 -> 0 | X17: =Est2018DistRev!X17 -> 4905638.084 | Y17: =Est2018DistRev!Y17 -> 7484286.26 | Z17: =Est2018DistRev!Z17 -> 0 | AA17: =Est2018DistRev!AA17 -> 0 | AB17: =Est2018DistRev!AB17 -> 593374.188 | AC17: =Est2018DistRev!AC17 -> 0 | AD17: =Est2018DistRev!AD17 -> 0 | AF17: 0 | AG17: 0 | AH17: 0 | AI17: 51106.14086 | AJ17: 0 | AK17: 0 | AL17: 64901.59185 | AM17: 0 | AN17: 0 | AO17: 0 | AP17: 45778.81861 | AQ17: 0 | AR17: 0 | AS17: 161786.5513
B18: =Est2018DistRev!B18 -> Low voltage KW time of use - HOT | D18: 0 | E18: 0 | F18: 0 | G18: 0.905 | H18: 0 | I18: 0 | J18: 0.723 | K18: 0 | L18: 0 | M18: 0 | N18: 8.108 | O18: 0 | P18: 0 | R18: =Est2018DistRev!R18 -> 3377.296348 | S18: =Est2018DistRev!S18 -> 0 | T18: =Est2018DistRev!T18 -> 0 | U18: =Est2018DistRev!U18 -> 108342.1137 | V18: =Est2018DistRev!V18 -> 0 | W18: =Est2018DistRev!W18 -> 0 | X18: =Est2018DistRev!X18 -> 359846.0624 | Y18: =Est2018DistRev!Y18 -> 701806.4274 | Z18: =Est2018DistRev!Z18 -> 0 | AA18: =Est2018DistRev!AA18 -> 0 | AB18: =Est2018DistRev!AB18 -> 83234.84677 | AC18: =Est2018DistRev!AC18 -> 0 | AD18: =Est2018DistRev!AD18 -> 0 | AF18: 0 | AG18: 0 | AH18: 0 | AI18: 980.4961289 | AJ18: 0 | AK18: 0 | AL18: 2601.687031 | AM18: 0 | AN18: 0 | AO18: 0 | AP18: 6748.681376 | AQ18: 0 | AR18: 0 | AS18: 10330.86454
B19: =Est2018DistRev!B19 -> Low voltage large KVA time of use | D19: 0 | E19: 0 | F19: 0 | G19: 0.902 | H19: 0 | I19: 0 | J19: 0.723 | K19: 0 | L19: 0 | M19: 3.679 | N19: 5.029 | O19: 0 | P19: 0 | R19: =Est2018DistRev!R19 -> 764344.9569 | S19: =Est2018DistRev!S19 -> 0 | T19: =Est2018DistRev!T19 -> 0 | U19: =Est2018DistRev!U19 -> 460132576.9 | V19: =Est2018DistRev!V19 -> 0 | W19: =Est2018DistRev!W19 -> 0 | X19: =Est2018DistRev!X19 -> 673775020.5 | Y19: =Est2018DistRev!Y19 -> 1285828208 | Z19: =Est2018DistRev!Z19 -> 0 | AA19: =Est2018DistRev!AA19 -> 322292593.4 | AB19: =Est2018DistRev!AB19 -> 94706335.24 | AC19: =Est2018DistRev!AC19 -> 0 | AD19: =Est2018DistRev!AD19 -> 0 | AF19: 0 | AG19: 0 | AH19: 0 | AI19: 4150395.844 | AJ19: 0 | AK19: 0 | AL19: 4871393.398 | AM19: 0 | AN19: 0 | AO19: 11857144.51 | AP19: 4762781.599 | AQ19: 0 | AR19: 0 | AS19: 25641715.35
B20: =Est2018DistRev!B20 -> Low voltage large KVA time of use - HOT | D20: 0 | E20: 0 | F20: 0 | G20: 0 | H20: 0 | I20: 0 | J20: 0 | K20: 0 | L20: 0 | M20: 0 | N20: 0 | O20: 0 | P20: 0 | R20: =Est2018DistRev!R20 -> 0 | S20: =Est2018DistRev!S20 -> 0 | T20: =Est2018DistRev!T20 -> 0 | U20: =Est2018DistRev!U20 -> 0 | V20: =Est2018DistRev!V20 -> 0 | W20: =Est2018DistRev!W20 -> 0 | X20: =Est2018DistRev!X20 -> 0 | Y20: =Est2018DistRev!Y20 -> 0 | Z20: =Est2018DistRev!Z20 -> 0 | AA20: =Est2018DistRev!AA20 -> 0 | AB20: =Est2018DistRev!AB20 -> 0 | AC20: =Est2018DistRev!AC20 -> 0 | AD20: =Est2018DistRev!AD20 -> 0 | AF20: 0 | AG20: 0 | AH20: 0 | AI20: 0 | AJ20: 0 | AK20: 0 | AL20: 0 | AM20: 0 | AN20: 0 | AO20: 0 | AP20: 0 | AQ20: 0 | AR20: 0 | AS20: 0
B21: =Est2018DistRev!B21 -> High voltage KVA time of use | D21: 0 | E21: 0 | F21: 0 | G21: 0.633 | H21: 0 | I21: 0 | J21: 0.507 | K21: 0 | L21: 0 | M21: 4.213 | N21: 4.422 | O21: 0 | P21: 0 | R21: =Est2018DistRev!R21 -> 23617.12423 | S21: =Est2018DistRev!S21 -> 0 | T21: =Est2018DistRev!T21 -> 0 | U21: =Est2018DistRev!U21 -> 174081366.6 | V21: =Est2018DistRev!V21 -> 0 | W21: =Est2018DistRev!W21 -> 0 | X21: =Est2018DistRev!X21 -> 259668945.4 | Y21: =Est2018DistRev!Y21 -> 644419593.1 | Z21: =Est2018DistRev!Z21 -> 0 | AA21: =Est2018DistRev!AA21 -> 104174290.3 | AB21: =Est2018DistRev!AB21 -> 32696351.56 | AC21: =Est2018DistRev!AC21 -> 0 | AD21: =Est2018DistRev!AD21 -> 0 | AF21: 0 | AG21: 0 | AH21: 0 | AI21: 1101935.05 | AJ21: 0 | AK21: 0 | AL21: 1316521.553 | AM21: 0 | AN21: 0 | AO21: 4388862.85 | AP21: 1445832.666 | AQ21: 0 | AR21: 0 | AS21: 8253152.12
B22: =Est2018DistRev!B22 -> High voltage KVA time of use - HOT | D22: 0 | E22: 0 | F22: 0 | G22: 0 | H22: 0 | I22: 0 | J22: 0 | K22: 0 | L22: 0 | M22: 0 | N22: 0 | O22: 0 | P22: 0 | R22: =Est2018DistRev!R22 -> 0 | S22: =Est2018DistRev!S22 -> 0 | T22: =Est2018DistRev!T22 -> 0 | U22: =Est2018DistRev!U22 -> 0 | V22: =Est2018DistRev!V22 -> 0 | W22: =Est2018DistRev!W22 -> 0 | X22: =Est2018DistRev!X22 -> 0 | Y22: =Est2018DistRev!Y22 -> 0 | Z22: =Est2018DistRev!Z22 -> 0 | AA22: =Est2018DistRev!AA22 -> 0 | AB22: =Est2018DistRev!AB22 -> 0 | AC22: =Est2018DistRev!AC22 -> 0 | AD22: =Est2018DistRev!AD22 -> 0 | AF22: 0 | AG22: 0 | AH22: 0 | AI22: 0 | AJ22: 0 | AK22: 0 | AL22: 0 | AM22: 0 | AN22: 0 | AO22: 0 | AP22: 0 | AQ22: 0 | AR22: 0 | AS22: 0
B23: =Est2018DistRev!B23 -> Subtransmission KVA time of use | D23: 0 | E23: 0 | F23: 0 | G23: 0.427 | H23: 0 | I23: 0 | J23: 0.344 | K23: 0 | L23: 0 | M23: 3.029 | N23: 3.675 | O23: 0 | P23: 0 | R23: =Est2018DistRev!R23 -> 254.9822872 | S23: =Est2018DistRev!S23 -> 0 | T23: =Est2018DistRev!T23 -> 0 | U23: =Est2018DistRev!U23 -> 8490617.738 | V23: =Est2018DistRev!V23 -> 0 | W23: =Est2018DistRev!W23 -> 0 | X23: =Est2018DistRev!X23 -> 11592624.6 | Y23: =Est2018DistRev!Y23 -> 16560893.6 | Z23: =Est2018DistRev!Z23 -> 0 | AA23: =Est2018DistRev!AA23 -> 4295974.833 | AB23: =Est2018DistRev!AB23 -> 1468306.64 | AC23: =Est2018DistRev!AC23 -> 0 | AD23: =Est2018DistRev!AD23 -> 0 | AF23: 0 | AG23: 0 | AH23: 0 | AI23: 36254.93774 | AJ23: 0 | AK23: 0 | AL23: 39878.62861 | AM23: 0 | AN23: 0 | AO23: 130125.0777 | AP23: 53960.26902 | AQ23: 0 | AR23: 0 | AS23: 260218.9131
B24: =Est2018DistRev!B24 -> TOD | D24: 0 | E24: 0 | F24: 2.413 | G24: 2.843 | H24: 0 | I24: 0 | J24: 2.413 | K24: 0 | L24: 2.131 | M24: 0 | N24: 0 | O24: 0 | P24: 0 | R24: =Est2018DistRev!R24 -> 15646965.57 | S24: =Est2018DistRev!S24 -> 0 | T24: =Est2018DistRev!T24 -> 12981338.04 | U24: =Est2018DistRev!U24 -> 24005631.64 | V24: =Est2018DistRev!V24 -> 0 | W24: =Est2018DistRev!W24 -> 0 | X24: =Est2018DistRev!X24 -> 44926998.69 | Y24: =Est2018DistRev!Y24 -> 113601967.9 | Z24: =Est2018DistRev!Z24 -> 24041636.92 | AA24: =Est2018DistRev!AA24 -> 0 | AB24: =Est2018DistRev!AB24 -> 0 | AC24: =Est2018DistRev!AC24 -> 0 | AD24: =Est2018DistRev!AD24 -> 0 | AF24: 0 | AG24: 0 | AH24: 313239.687 | AI24: 682480.1075 | AJ24: 0 | AK24: 0 | AL24: 1084088.478 | AM24: 0 | AN24: 512327.2827 | AO24: 0 | AP24: 0 | AQ24: 0 | AR24: 0 | AS24: 2592135.556
B25: =Est2018DistRev!B25 -> TOD9 | D25: 0 | E25: 0 | F25: 3.547 | G25: 3.815 | H25: 0 | I25: 0 | J25: 3.547 | K25: 0 | L25: 3.37 | M25: 0 | N25: 0 | O25: 0 | P25: 0 | R25: =Est2018DistRev!R25 -> 698982.3765 | S25: =Est2018DistRev!S25 -> 0 | T25: =Est2018DistRev!T25 -> 458383.2728 | U25: =Est2018DistRev!U25 -> 704379.183 | V25: =Est2018DistRev!V25 -> 0 | W25: =Est2018DistRev!W25 -> 0 | X25: =Est2018DistRev!X25 -> 1715045.284 | Y25: =Est2018DistRev!Y25 -> 5147486.298 | Z25: =Est2018DistRev!Z25 -> 1156234.759 | AA25: =Est2018DistRev!AA25 -> 0 | AB25: =Est2018DistRev!AB25 -> 0 | AC25: =Est2018DistRev!AC25 -> 0 | AD25: =Est2018DistRev!AD25 -> 0 | AF25: 0 | AG25: 0 | AH25: 16258.85469 | AI25: 26872.06583 | AJ25: 0 | AK25: 0 | AL25: 60832.65623 | AM25: 0 | AN25: 38965.11139 | AO25: 0 | AP25: 0 | AQ25: 0 | AR25: 0 | AS25: 142928.6881
B26: =Est2018DistRev!B26 -> TOU | D26: 0 | E26: 0 | F26: 0 | G26: 2.112 | H26: 0 | I26: 0 | J26: 0.97 | K26: 0 | L26: 0 | M26: 0 | N26: 5.534 | O26: 0 | P26: 0 | R26: =Est2018DistRev!R26 -> 168848.1992 | S26: =Est2018DistRev!S26 -> 0 | T26: =Est2018DistRev!T26 -> 0 | U26: =Est2018DistRev!U26 -> 4805127.268 | V26: =Est2018DistRev!V26 -> 0 | W26: =Est2018DistRev!W26 -> 0 | X26: =Est2018DistRev!X26 -> 8039117.801 | Y26: =Est2018DistRev!Y26 -> 9760139.229 | Z26: =Est2018DistRev!Z26 -> 0 | AA26: =Est2018DistRev!AA26 -> 0 | AB26: =Est2018DistRev!AB26 -> 812870.6615 | AC26: =Est2018DistRev!AC26 -> 0 | AD26: =Est2018DistRev!AD26 -> 0 | AF26: 0 | AG26: 0 | AH26: 0 | AI26: 101484.2879 | AJ26: 0 | AK26: 0 | AL26: 77979.44267 | AM26: 0 | AN26: 0 | AO26: 0 | AP26: 44984.26241 | AQ26: 0 | AR26: 0 | AS26: 224447.993
B27: =Est2018DistRev!B27 -> TODFLEX | D27: 0 | E27: 0 | F27: 1.612 | G27: 3.226 | H27: 0 | I27: 0 | J27: 3.009 | K27: 0 | L27: 1.422 | M27: 0 | N27: 0 | O27: 0 | P27: 0 | R27: =Est2018DistRev!R27 -> 707665.9846 | S27: =Est2018DistRev!S27 -> 0 | T27: =Est2018DistRev!T27 -> 1751306.767 | U27: =Est2018DistRev!U27 -> 851710.9317 | V27: =Est2018DistRev!V27 -> 0 | W27: =Est2018DistRev!W27 -> 0 | X27: =Est2018DistRev!X27 -> 1453136.032 | Y27: =Est2018DistRev!Y27 -> 3614429.943 | Z27: =Est2018DistRev!Z27 -> 3021129.623 | AA27: =Est2018DistRev!AA27 -> 0 | AB27: =Est2018DistRev!AB27 -> 0 | AC27: =Est2018DistRev!AC27 -> 0 | AD27: =Est2018DistRev!AD27 -> 0 | AF27: 0 | AG27: 0 | AH27: 28231.06508 | AI27: 27476.19466 | AJ27: 0 | AK27: 0 | AL27: 43724.86321 | AM27: 0 | AN27: 42960.46324 | AO27: 0 | AP27: 0 | AQ27: 0 | AR27: 0 | AS27: 142392.5862
B28: =Est2018DistRev!B28 -> Low Voltage KW 1 rate | D28: 0 | E28: 0.593 | F28: 0.593 | G28: 0.593 | H28: 0.593 | I28: 0.593 | J28: 0.593 | K28: 0.593 | L28: 0.593 | M28: 0 | N28: 0 | O28: 4.441 | P28: 2.887 | R28: =Est2018DistRev!R28 -> 2826.354738 | S28: =Est2018DistRev!S28 -> 0 | T28: =Est2018DistRev!T28 -> 0 | U28: =Est2018DistRev!U28 -> 13329.57736 | V28: =Est2018DistRev!V28 -> 0 | W28: =Est2018DistRev!W28 -> 0 | X28: =Est2018DistRev!X28 -> 24988.07174 | Y28: =Est2018DistRev!Y28 -> 0 | Z28: =Est2018DistRev!Z28 -> 0 | AA28: =Est2018DistRev!AA28 -> 0 | AB28: =Est2018DistRev!AB28 -> 0 | AC28: =Est2018DistRev!AC28 -> 3245.421766 | AD28: =Est2018DistRev!AD28 -> 5347.929178 | AF28: 0 | AG28: 0 | AH28: 0 | AI28: 79.04439372 | AJ28: 0 | AK28: 0 | AL28: 148.1792654 | AM28: 0 | AN28: 0 | AO28: 0 | AP28: 0 | AQ28: 144.1291806 | AR28: 154.3947154 | AS28: 525.7475551
B29: =Est2018DistRev!B29 -> Low voltage medium KW time of use (opt-in) | D29: 0 | E29: 0.75 | F29: 0.75 | G29: 0.75 | H29: 0.75 | I29: 0.75 | J29: 0.75 | K29: 0.75 | L29: 0.75 | M29: 0 | N29: 0 | O29: 6.198 | P29: 4.132 | R29: =Est2018DistRev!R29 -> 90787.08005 | S29: =Est2018DistRev!S29 -> 0 | T29: =Est2018DistRev!T29 -> 0 | U29: =Est2018DistRev!U29 -> 18491573.07 | V29: =Est2018DistRev!V29 -> 0 | W29: =Est2018DistRev!W29 -> 0 | X29: =Est2018DistRev!X29 -> 19354558.32 | Y29: =Est2018DistRev!Y29 -> 0 | Z29: =Est2018DistRev!Z29 -> 0 | AA29: =Est2018DistRev!AA29 -> 0 | AB29: =Est2018DistRev!AB29 -> 0 | AC29: =Est2018DistRev!AC29 -> 1676011.641 | AD29: =Est2018DistRev!AD29 -> 2131721.261 | AF29: 0 | AG29: 0 | AH29: 0 | AI29: 138686.798 | AJ29: 0 | AK29: 0 | AL29: 145159.1874 | AM29: 0 | AN29: 0 | AO29: 0 | AP29: 0 | AQ29: 103879.2015 | AR29: 88082.72249 | AS29: 475807.9094
B30: =Est2018DistRev!B30 -> Low voltage medium KW 1 rate (mandatory) | D30: 0 | E30: 1.129 | F30: 1.129 | G30: 1.129 | H30: 1.129 | I30: 1.129 | J30: 1.129 | K30: 1.129 | L30: 1.129 | M30: 0 | N30: 0 | O30: 3.785 | P30: 2.523 | R30: =Est2018DistRev!R30 -> 2579907.698 | S30: =Est2018DistRev!S30 -> 0 | T30: =Est2018DistRev!T30 -> 0 | U30: =Est2018DistRev!U30 -> 257764758.9 | V30: =Est2018DistRev!V30 -> 0 | W30: =Est2018DistRev!W30 -> 0 | X30: =Est2018DistRev!X30 -> 383778125.5 | Y30: =Est2018DistRev!Y30 -> 0 | Z30: =Est2018DistRev!Z30 -> 0 | AA30: =Est2018DistRev!AA30 -> 0 | AB30: =Est2018DistRev!AB30 -> 0 | AC30: =Est2018DistRev!AC30 -> 24833141.68 | AD30: =Est2018DistRev!AD30 -> 46272310.34 | AF30: 0 | AG30: 0 | AH30: 0 | AI30: 2910164.127 | AJ30: 0 | AK30: 0 | AL30: 4332855.037 | AM30: 0 | AN30: 0 | AO30: 0 | AP30: 0 | AQ30: 939934.4125 | AR30: 1167450.39 | AS30: 9350403.967
AF31: 0 | AG31: 0 | AH31: 0 | AI31: 0 | AJ31: 0 | AK31: 0 | AL31: 0 | AM31: 0 | AN31: 0 | AO31: 0 | AP31: 0 | AQ31: 0 | AR31: 0 | AS31: 0
AF32: 0 | AG32: 0 | AH32: 0 | AI32: 0 | AJ32: 0 | AK32: 0 | AL32: 0 | AM32: 0 | AN32: 0 | AO32: 0 | AP32: 0 | AQ32: 0 | AR32: 0 | AS32: 0
AF33: 0 | AG33: 0 | AH33: 0 | AI33: 0 | AJ33: 0 | AK33: 0 | AL33: 0 | AM33: 0 | AN33: 0 | AO33: 0 | AP33: 0 | AQ33: 0 | AR33: 0 | AS33: 0
AF34: 0 | AG34: 0 | AH34: 0 | AI34: 0 | AJ34: 0 | AK34: 0 | AL34: 0 | AM34: 0 | AN34: 0 | AO34: 0 | AP34: 0 | AQ34: 0 | AR34: 0 | AS34: 0
AF35: 0 | AG35: 0 | AH35: 0 | AI35: 0 | AJ35: 0 | AK35: 0 | AL35: 0 | AM35: 0 | AN35: 0 | AO35: 0 | AP35: 0 | AQ35: 0 | AR35: 0 | AS35: 0
AF36: 0 | AG36: 0 | AH36: 0 | AI36: 0 | AJ36: 0 | AK36: 0 | AL36: 0 | AM36: 0 | AN36: 0 | AO36: 0 | AP36: 0 | AQ36: 0 | AR36: 0 | AS36: 0
AF37: 0 | AG37: 0 | AH37: 0 | AI37: 0 | AJ37: 0 | AK37: 0 | AL37: 0 | AM37: 0 | AN37: 0 | AO37: 0 | AP37: 0 | AQ37: 0 | AR37: 0 | AS37: 0
AF38: 0 | AG38: 0 | AH38: 0 | AI38: 0 | AJ38: 0 | AK38: 0 | AL38: 0 | AM38: 0 | AN38: 0 | AO38: 0 | AP38: 0 | AQ38: 0 | AR38: 0 | AS38: 0
AF39: 0 | AG39: 0 | AH39: 0 | AI39: 0 | AJ39: 0 | AK39: 0 | AL39: 0 | AM39: 0 | AN39: 0 | AO39: 0 | AP39: 0 | AQ39: 0 | AR39: 0 | AS39: 0
AF40: 0 | AG40: 0 | AH40: 0 | AI40: 0 | AJ40: 0 | AK40: 0 | AL40: 0 | AM40: 0 | AN40: 0 | AO40: 0 | AP40: 0 | AQ40: 0 | AR40: 0 | AS40: 0
AF41: 0 | AG41: 0 | AH41: 0 | AI41: 0 | AJ41: 0 | AK41: 0 | AL41: 0 | AM41: 0 | AN41: 0 | AO41: 0 | AP41: 0 | AQ41: 0 | AR41: 0 | AS41: 0
AF42: 0 | AG42: 0 | AH42: 0 | AI42: 0 | AJ42: 0 | AK42: 0 | AL42: 0 | AM42: 0 | AN42: 0 | AO42: 0 | AP42: 0 | AQ42: 0 | AR42: 0 | AS42: 0
AF43: 0 | AG43: 0 | AH43: 0 | AI43: 0 | AJ43: 0 | AK43: 0 | AL43: 0 | AM43: 0 | AN43: 0 | AO43: 0 | AP43: 0 | AQ43: 0 | AR43: 0 | AS43: 0
AF44: 0 | AG44: 0 | AH44: 0 | AI44: 0 | AJ44: 0 | AK44: 0 | AL44: 0 | AM44: 0 | AN44: 0 | AO44: 0 | AP44: 0 | AQ44: 0 | AR44: 0 | AS44: 0
AF45: 0 | AG45: 0 | AH45: 0 | AI45: 0 | AJ45: 0 | AK45: 0 | AL45: 0 | AM45: 0 | AN45: 0 | AO45: 0 | AP45: 0 | AQ45: 0 | AR45: 0 | AS45: 0
AF46: 0 | AG46: 0 | AH46: 0 | AI46: 0 | AJ46: 0 | AK46: 0 | AL46: 0 | AM46: 0 | AN46: 0 | AO46: 0 | AP46: 0 | AQ46: 0 | AR46: 0 | AS46: 0
AF47: 0 | AG47: 0 | AH47: 0 | AI47: 0 | AJ47: 0 | AK47: 0 | AL47: 0 | AM47: 0 | AN47: 0 | AO47: 0 | AP47: 0 | AQ47: 0 | AR47: 0 | AS47: 0
AF48: 0 | AG48: 0 | AH48: 0 | AI48: 0 | AJ48: 0 | AK48: 0 | AL48: 0 | AM48: 0 | AN48: 0 | AO48: 0 | AP48: 0 | AQ48: 0 | AR48: 0 | AS48: 0
AF49: 0 | AG49: 0 | AH49: 0 | AI49: 0 | AJ49: 0 | AK49: 0 | AL49: 0 | AM49: 0 | AN49: 0 | AO49: 0 | AP49: 0 | AQ49: 0 | AR49: 0 | AS49: 0
AF50: 0 | AG50: 0 | AH50: 0 | AI50: 0 | AJ50: 0 | AK50: 0 | AL50: 0 | AM50: 0 | AN50: 0 | AO50: 0 | AP50: 0 | AQ50: 0 | AR50: 0 | AS50: 0
AF51: 0 | AG51: 0 | AH51: 0 | AI51: 0 | AJ51: 0 | AK51: 0 | AL51: 0 | AM51: 0 | AN51: 0 | AO51: 0 | AP51: 0 | AQ51: 0 | AR51: 0 | AS51: 0
AF52: 0 | AG52: 0 | AH52: 0 | AI52: 0 | AJ52: 0 | AK52: 0 | AL52: 0 | AM52: 0 | AN52: 0 | AO52: 0 | AP52: 0 | AQ52: 0 | AR52: 0 | AS52: 0
AF53: 0 | AG53: 0 | AH53: 0 | AI53: 0 | AJ53: 0 | AK53: 0 | AL53: 0 | AM53: 0 | AN53: 0 | AO53: 0 | AP53: 0 | AQ53: 0 | AR53: 0 | AS53: 0
AF54: 0 | AG54: 0 | AH54: 0 | AI54: 0 | AJ54: 0 | AK54: 0 | AL54: 0 | AM54: 0 | AN54: 0 | AO54: 0 | AP54: 0 | AQ54: 0 | AR54: 0 | AS54: 0
AF55: 0 | AG55: 0 | AH55: 0 | AI55: 0 | AJ55: 0 | AK55: 0 | AL55: 0 | AM55: 0 | AN55: 0 | AO55: 0 | AP55: 0 | AQ55: 0 | AR55: 0 | AS55: 0
AF56: 0 | AG56: 0 | AH56: 0 | AI56: 0 | AJ56: 0 | AK56: 0 | AL56: 0 | AM56: 0 | AN56: 0 | AO56: 0 | AP56: 0 | AQ56: 0 | AR56: 0 | AS56: 0
AF57: 0 | AG57: 0 | AH57: 0 | AI57: 0 | AJ57: 0 | AK57: 0 | AL57: 0 | AM57: 0 | AN57: 0 | AO57: 0 | AP57: 0 | AQ57: 0 | AR57: 0 | AS57: 0
AF58: 0 | AG58: 0 | AH58: 0 | AI58: 0 | AJ58: 0 | AK58: 0 | AL58: 0 | AM58: 0 | AN58: 0 | AO58: 0 | AP58: 0 | AQ58: 0 | AR58: 0 | AS58: 0
AF59: 0 | AG59: 0 | AH59: 0 | AI59: 0 | AJ59: 0 | AK59: 0 | AL59: 0 | AM59: 0 | AN59: 0 | AO59: 0 | AP59: 0 | AQ59: 0 | AR59: 0 | AS59: 0
AF60: 0 | AG60: 0 | AH60: 0 | AI60: 0 | AJ60: 0 | AK60: 0 | AL60: 0 | AM60: 0 | AN60: 0 | AO60: 0 | AP60: 0 | AQ60: 0 | AR60: 0 | AS60: 0
AF61: 0 | AG61: 0 | AH61: 0 | AI61: 0 | AJ61: 0 | AK61: 0 | AL61: 0 | AM61: 0 | AN61: 0 | AO61: 0 | AP61: 0 | AQ61: 0 | AR61: 0 | AS61: 0
AF62: 0 | AG62: 0 | AH62: 0 | AI62: 0 | AJ62: 0 | AK62: 0 | AL62: 0 | AM62: 0 | AN62: 0 | AO62: 0 | AP62: 0 | AQ62: 0 | AR62: 0 | AS62: 0
AF63: 0 | AG63: 0 | AH63: 0 | AI63: 0 | AJ63: 0 | AK63: 0 | AL63: 0 | AM63: 0 | AN63: 0 | AO63: 0 | AP63: 0 | AQ63: 0 | AR63: 0 | AS63: 0
AF64: 0 | AG64: 0 | AH64: 0 | AI64: 0 | AJ64: 0 | AK64: 0 | AL64: 0 | AM64: 0 | AN64: 0 | AO64: 0 | AP64: 0 | AQ64: 0 | AR64: 0 | AS64: 0
AF65: 0 | AG65: 0 | AH65: 0 | AI65: 0 | AJ65: 0 | AK65: 0 | AL65: 0 | AM65: 0 | AN65: 0 | AO65: 0 | AP65: 0 | AQ65: 0 | AR65: 0 | AS65: 0
R66: =SUM(R6:R65) -> 244214082.9 | S66: 1092439564 | T66: 15191028.08 | U66: 1042196299 | V66: 1749612853 | W66: 0 | X66: 1556088448 | Y66: 2342352609 | Z66: 28219001.3 | AA66: 430762858.5 | AB66: 130360473.1 | AC66: 26512398.74 | AD66: 48409379.53 | AF66: =SUM(AF6:AF65) -> 0 | AG66: 19676785.73 | AH66: 357729.6068 | AI66: 11087134.32 | AJ66: 26108923.76 | AK66: 0 | AL66: 14496394.93 | AM66: =SUM(AM6:AM65) -> 0 | AN66: 594252.8574 | AO66: 16376132.44 | AP66: 6360086.297 | AQ66: 1043957.743 | AR66: 1255687.507 | AS66: 97357085.19

Sheet 2019TransRevCont
B2: ="Tariff Approval - "&'Model update'!$C$3 -> Tariff Approval - United Energy
B4: Designated pricing proposal charges (DPPC)
B6: Year (t) | C6: ='Model update'!C5 -> 2019
B8: Table 1- Compliance with DPPC Revenue Formula
B9: Revenue from designated pricing proposal charges for year t | C9: =Prop2019TransTar!AS66 -> 102065514.2
B10: Total DPPC related payments for year t | C10: =C17 -> 102067604.8
C11: =IF(C9="","",IF(C10>=C9,"DPPC REVENUE FORMULA COMPLIANT","DPPC REVENUE FORMULA BREACHED")) -> DPPC REVENUE FORMULA COMPLIANT
B13: Table 2 - Total DPPC related payments for year t
B14: Transmission charges for year t | C14: =C24 -> 106828611.9
B15: DPPC revenue under/over recovery approved | C15: =-E60*(1+E58)^0.5 -> -4761007.089
B16: Transmission revenue under/over recovery for years 2014 and 2015
B17: Total DPPC related payments for year t | C17: =SUM(C14:C16) -> 102067604.8
B19: Table 3 - Transmission charges for year t
B20: AEMO (TCt) | C20: 95105981.68
B21: Transmission connection (TCt) | C21: 10113996.73
B22: Embedded generators (Gt) | C22: 186551.1864
B23: Inter-network (Dt) | C23: -1422082.289
B24: TC + G - D | C24: =C20+C21+C22-C23 -> 106828611.9
B29: Table 4 - DPPC Recovery Arrangements
C30: Year t-2 | D30: Year t-1 | E30: Year t
C31: (actual) | D31: (estimate) | E31: (forecast)
C32: =D32-1 -> 2017 | D32: =E32-1 -> 2018 | E32: =C$6 -> 2019
B34: (A) Revenue from designated pricing proposal charges | C34: 115290472.5 | D34: =Est2018TransRev!AS66 -> 97357085.19 | E34: =C9 -> 102065514.2
B37: (B) Less Total DPPC related payments = | C37: =SUM(C39:C41) -> 108563214.2 | D37: =SUM(D39:D41) -> 106186871.3 | E37: =SUM(E39:E41) -> 106828611.9
B39: + Transmission revenue under/over recovery for years 2014 and 2015 | C39: -86801.76941
B41: +Transmission charges = | C41: =C42+C43+C44-C45 -> 108650016 | D41: =D42+D43+D44-D45 -> 106186871.3 | E41: =E42+E43+E44-E45 -> 106828611.9
B42: +AEMO | C42: ='TUoS cost audit template'!F7 -> 97069630 | D42: 94725946.68 | E42: =C20 -> 95105981.68
B43: +PowerNet | C43: ='TUoS cost audit template'!F14 -> 10089960 | D43: 9883832.931 | E43: =C21 -> 10113996.73
B44: +Embedded generators | C44: ='TUoS cost audit template'!F42 -> 11279 | D44: 182893.32 | E44: =C22 -> 186551.1864
B45: -Inter-network | C45: ='TUoS cost audit template'!F24 -> -1479147 | D45: -1394198.322 | E45: =C23 -> -1422082.289
B49: (A minus B) Under/over recovery of revenue for regulatory year | C49: =C34-C37 -> 6727258.251 | D49: =D34-D37 -> -8829786.059 | E49: =E34-E37 -> -4763097.709
B53: Table 5 - DPPC Unders and Overs Account
C54: Year t-2 | D54: Year t-1 | E54: Year t
C55: (actual) | D55: (estimate) | E55: (forecast)
B56: Calendar year | C56: =D56-1 -> 2017 | D56: =E56-1 -> 2018 | E56: =C$6 -> 2019
B58: Nominal WACC | C58: =(1+'Model update'!$B$47)*(1+'Model update'!$C$28)-1 -> 0.04932353899 | D58: =(1+'Model update'!$B$45)*(1+'Model update'!$C$29)-1 -> 0.05819803957 | E58: =(1+'Model update'!$B$43)*(1+'Model update'!$C$30)-1 -> 0.05907249241
B60: Opening balance | C60: 5779214.526 | D60: =C64 -> 12955433.36 | E60: =D64 -> 4626323.352
B61: Interest on Opening balance | C61: =C60*C58 -> 285051.313 | D61: =D60*D58 -> 753980.8235 | E61: =E60*E58 -> 273288.4511
B62: Under/over recovery of revenue for regulatory year | C62: =C49 -> 6727258.251 | D62: =D49 -> -8829786.059 | E62: =E49 -> -4763097.709
B63: Interest on under/over recovery for regulatory year | C63: =C62*((1+C58)^0.5-1) -> 163909.2722 | D63: =D62*((1+D58)^0.5-1) -> -253304.7748 | E63: =E62*((1+E58)^0.5-1) -> -138665.5774
B64: Closing balance of DPPC overs/ (unders) account | C64: =SUM(C60:C63) -> 12955433.36 | D64: =SUM(D60:D63) -> 4626323.352 | E64: -2151.483183
B66: The DNSP is expected to achieve a closing balance as close to zero as practicable in its DPPC unders and overs account in each forecast year in its annual pricing proposals in the 2016–20 regulatory control period.

Sheet TUoS cost audit template
B1: ="Tariff Approval - "&'Model update'!C3 -> Tariff Approval - United Energy
B2: TUOS charges (AEMO) | F2: t-2 actual
B4: AEMO (TUOS Locational Charge) - 2017 | F4: 21691128
B5: AEMO (TUOS Non Locational and Common Service) - 2017 | F5: 72806702
B6: Grid equalisation - 2017 | F6: 2571800
E7: Total | F7: =SUM(F3:F6) -> 97069630
B9: Transmission connection fees (SPI Powernet) | F9: t-2 actual
B11: Ausnet (Connection) - 2017 | F11: 8653641
B12: Ausnet & AEMO (Augmentation) - 2017 | F12: 1436319
E14: Total | F14: =SUM(F10:F13) -> 10089960
B16: Cross boundary network charges (internetwork charges) | F16: t-2 actual
B17: Distribution Business | C17: Amount (payable)/receivable
C18: HV crossings | D18: Subtransmission crossings | E18: TUoS Adjustment | F18: Total
B20: Citipower | C20: 0 | D20: 0 | E20: 0 | F20: =SUM(C20:E20) -> 0
B21: Ausnet | C21: 0 | D21: 0 | E21: -1479147 | F21: =SUM(C21:E21) -> -1479147
B24: Total | F24: =SUM(F19:F23) -> -1479147
B26: Payments to embedded generators | F26: t-2 actual
B27: Avoided transmission costs
B30: Embedded generators | F30: 11279
B33: Total | F33: =SUM(F28:F32) -> 11279
B35: Avoided TUoS usage charges
B41: Total | F41: =SUM(F36:F40) -> 0
B42: Total payments to embedded generators | F42: =F41+F33 -> 11279
B44: Where the following definitions apply
B45: HV Crossings | C45: Payments/Receipts for energy transferred utilising the distributor’s HV and LV line assets.
B46: Sub-transmission Crossings | C46: Payments/Receipts for the Sub-transmission assets in shared loops that support each distributor’s Zone Substation capacity to ensure N-1 reliability is maintained.
B47: TuoS Adjustment | C47: Payments/Receipts for the adjustment of TuoS paid by a distributor for energy delivered to another distribution business through a shared loop.

Sheet Prop2019JSTar
B1: ="Tariff Approval - "&'Model update'!C3 -> Tariff Approval - United Energy
B3: ="PROPOSED "&'Model update'!$C$5&" JURISDICTIONAL SCHEME TARIFFS" -> PROPOSED 2019 JURISDICTIONAL SCHEME TARIFFS
D4: ="Proposed Jurisdictional scheme Tariffs (Pt) for "&'Model update'!$C$5 -> Proposed Jurisdictional scheme Tariffs (Pt) for 2019 | R4: ="Forecast Quantities (Qt) for "&'Model update'!$C$5 -> Forecast Quantities (Qt) for 2019 | AF4: ="Forecast Revenue (Pt "&'Model update'!$C$5&")*(Qt " &'Model update'!$C$5&")" -> Forecast Revenue (Pt 2019)*(Qt 2019)
B5: Proposed tariff | D5: PropTar Fixed | E5: PropTar PkBlk1 | F5: PropTar PkBlk2 | G5: PropTar PkBlk3 | H5: PropTar PkBlk4 | I5: PropTar OPkBlk1 | J5: PropTar OPkBlk2 | K5: PropTar OPkBlk3 | L5: PropTar OPkBlk4 | M5: PropTar DemBlk1 | N5: PropTar DemBlk2 | O5: PropTar DemBlk3 | P5: PropTar DemBlk4 | R5: FcastVol Fixed | S5: FcastVol PkBlk1 | T5: FcastVol PkBlk2 | U5: FcastVol PkBlk3 | V5: FcastVol PkBlk4 | W5: FcastVol OPkBlk1 | X5: FcastVol OPkBlk2 | Y5: FcastVol OPkBlk3 | Z5: FcastVol OPkBlk4 | AA5: FcastVol DemBlk1 | AB5: FcastVol DemBlk2 | AC5: FcastVol DemBlk3 | AD5: FcastVol DemBlk4 | AF5: PropRev Fixed | AG5: PropRev PkBlk1 | AH5: PropRev PkBlk2 | AI5: PropRev PkBlk3 | AJ5: PropRev PkBlk4 | AK5: PropRev OPkBlk1 | AL5: PropRev OPkBlk2 | AM5: PropRev OPkBlk3 | AN5: PropRev OPkBlk4 | AO5: PropRev DemBlk1 | AP5: PropRev DemBlk2 | AQ5: PropRev DemBlk3 | AR5: PropRev DemBlk4 | AS5: PropRev SumBlk1
B6: =Prop2019DistTar!B6 -> Low voltage small 1 rate | D6: 5.32 | E6: 0 | F6: 0 | G6: 0 | H6: 0 | I6: 0 | J6: 0 | K6: 0 | L6: 0 | M6: 0 | N6: 0 | O6: 0 | P6: 0 | R6: =Prop2019TransTar!R6 -> 206859021.7 | S6: =Prop2019TransTar!S6 -> 943855173.4 | T6: =Prop2019TransTar!T6 -> 0 | U6: =Prop2019TransTar!U6 -> 0 | V6: =Prop2019TransTar!V6 -> 1520207629 | W6: =Prop2019TransTar!W6 -> 0 | X6: =Prop2019TransTar!X6 -> 0 | Y6: =Prop2019TransTar!Y6 -> 0 | Z6: =Prop2019TransTar!Z6 -> 0 | AA6: =Prop2019TransTar!AA6 -> 0 | AB6: =Prop2019TransTar!AB6 -> 0 | AC6: =Prop2019TransTar!AC6 -> 0 | AD6: =Prop2019TransTar!AD6 -> 0 | AF6: =D6/100*R6 -> 11004899.95 | AG6: =E6/100*S6 -> 0 | AH6: =F6/100*T6 -> 0 | AI6: =G6/100*U6 -> 0 | AJ6: =H6/100*V6 -> 0 | AK6: =I6/100*W6 -> 0 | AL6: =J6/100*X6 -> 0 | AM6: =K6/100*Y6 -> 0 | AN6: =L6/100*Z6 -> 0 | AO6: =M6/100*AA6 -> 0 | AP6: =N6/100*AB6 -> 0 | AQ6: =O6/100*AC6 -> 0 | AR6: =P6/100*AD6 -> 0 | AS6: =SUM(AF6:AR6) -> 11004899.95
B7: =Prop2019DistTar!B7 -> Winter economy tariff | D7: 5.32 | E7: 0 | F7: 0 | G7: 0 | H7: 0 | I7: 0 | J7: 0 | K7: 0 | L7: 0 | M7: 0 | N7: 0 | O7: 0 | P7: 0 | R7: =Prop2019TransTar!R7 -> 42656.46073 | S7: =Prop2019TransTar!S7 -> 298454.7293 | T7: =Prop2019TransTar!T7 -> 0 | U7: =Prop2019TransTar!U7 -> 0 | V7: =Prop2019TransTar!V7 -> 543138.8553 | W7: =Prop2019TransTar!W7 -> 0 | X7: =Prop2019TransTar!X7 -> 0 | Y7: =Prop2019TransTar!Y7 -> 0 | Z7: =Prop2019TransTar!Z7 -> 0 | AA7: =Prop2019TransTar!AA7 -> 0 | AB7: =Prop2019TransTar!AB7 -> 0 | AC7: =Prop2019TransTar!AC7 -> 0 | AD7: =Prop2019TransTar!AD7 -> 0 | AF7: 2269.323711 | AG7: 0 | AH7: 0 | AI7: 0 | AJ7: 0 | AK7: 0 | AL7: 0 | AM7: 0 | AN7: 0 | AO7: 0 | AP7: 0 | AQ7: 0 | AR7: 0 | AS7: 2269.323711
B8: =Prop2019DistTar!B8 -> Reverse cycle airconditioning time of use | D8: 5.32 | E8: 0 | F8: 0 | G8: 0 | H8: 0 | I8: 0 | J8: 0 | K8: 0 | L8: 0 | M8: 0 | N8: 0 | O8: 0 | P8: 0 | R8: =Prop2019TransTar!R8 -> 0 | S8: =Prop2019TransTar!S8 -> 0 | T8: =Prop2019TransTar!T8 -> 0 | U8: =Prop2019TransTar!U8 -> 0 | V8: =Prop2019TransTar!V8 -> 0 | W8: =Prop2019TransTar!W8 -> 0 | X8: =Prop2019TransTar!X8 -> 0 | Y8: =Prop2019TransTar!Y8 -> 0 | Z8: =Prop2019TransTar!Z8 -> 0 | AA8: =Prop2019TransTar!AA8 -> 0 | AB8: =Prop2019TransTar!AB8 -> 0 | AC8: =Prop2019TransTar!AC8 -> 0 | AD8: =Prop2019TransTar!AD8 -> 0 | AF8: 0 | AG8: 0 | AH8: 0 | AI8: 0 | AJ8: 0 | AK8: 0 | AL8: 0 | AM8: 0 | AN8: 0 | AO8: 0 | AP8: 0 | AQ8: 0 | AR8: 0 | AS8: 0
B9: =Prop2019DistTar!B9 -> Low voltage small 2 rate | D9: 5.32 | E9: 0 | F9: 0 | G9: 0 | H9: 0 | I9: 0 | J9: 0 | K9: 0 | L9: 0 | M9: 0 | N9: 0 | O9: 0 | P9: 0 | R9: =Prop2019TransTar!R9 -> 1340451.159 | S9: =Prop2019TransTar!S9 -> 0 | T9: =Prop2019TransTar!T9 -> 0 | U9: =Prop2019TransTar!U9 -> 3869362.149 | V9: =Prop2019TransTar!V9 -> 0 | W9: =Prop2019TransTar!W9 -> 0 | X9: =Prop2019TransTar!X9 -> 6191506.811 | Y9: =Prop2019TransTar!Y9 -> 13287140.18 | Z9: =Prop2019TransTar!Z9 -> 0 | AA9: =Prop2019TransTar!AA9 -> 0 | AB9: =Prop2019TransTar!AB9 -> 0 | AC9: =Prop2019TransTar!AC9 -> 0 | AD9: =Prop2019TransTar!AD9 -> 0 | AF9: 71312.00165 | AG9: 0 | AH9: 0 | AI9: 0 | AJ9: 0 | AK9: 0 | AL9: 0 | AM9: 0 | AN9: 0 | AO9: 0 | AP9: 0 | AQ9: 0 | AR9: 0 | AS9: 71312.00165
B10: =Prop2019DistTar!B10 -> Dedicated circuit | D10: 0 | E10: 0 | F10: 0 | G10: 0 | H10: 0 | I10: 0 | J10: 0 | K10: 0 | L10: 0 | M10: 0 | N10: 0 | O10: 0 | P10: 0 | R10: =Prop2019TransTar!R10 -> 2556582.814 | S10: =Prop2019TransTar!S10 -> 0 | T10: =Prop2019TransTar!T10 -> 0 | U10: =Prop2019TransTar!U10 -> 0 | V10: =Prop2019TransTar!V10 -> 0 | W10: =Prop2019TransTar!W10 -> 0 | X10: =Prop2019TransTar!X10 -> 0 | Y10: =Prop2019TransTar!Y10 -> 84158747.77 | Z10: =Prop2019TransTar!Z10 -> 0 | AA10: =Prop2019TransTar!AA10 -> 0 | AB10: =Prop2019TransTar!AB10 -> 0 | AC10: =Prop2019TransTar!AC10 -> 0 | AD10: =Prop2019TransTar!AD10 -> 0 | AF10: 0 | AG10: 0 | AH10: 0 | AI10: 0 | AJ10: 0 | AK10: 0 | AL10: 0 | AM10: 0 | AN10: 0 | AO10: 0 | AP10: 0 | AQ10: 0 | AR10: 0 | AS10: 0
B11: =Prop2019DistTar!B11 -> Low voltage medium 1 rate | D11: 5.32 | E11: 0 | F11: 0 | G11: 0 | H11: 0 | I11: 0 | J11: 0 | K11: 0 | L11: 0 | M11: 0 | N11: 0 | O11: 0 | P11: 0 | R11: =Prop2019TransTar!R11 -> 12146313.83 | S11: =Prop2019TransTar!S11 -> 160384013.5 | T11: =Prop2019TransTar!T11 -> 0 | U11: =Prop2019TransTar!U11 -> 0 | V11: =Prop2019TransTar!V11 -> 248017894.4 | W11: =Prop2019TransTar!W11 -> 0 | X11: =Prop2019TransTar!X11 -> 0 | Y11: =Prop2019TransTar!Y11 -> 0 | Z11: =Prop2019TransTar!Z11 -> 0 | AA11: =Prop2019TransTar!AA11 -> 0 | AB11: =Prop2019TransTar!AB11 -> 0 | AC11: =Prop2019TransTar!AC11 -> 0 | AD11: =Prop2019TransTar!AD11 -> 0 | AF11: 646183.896 | AG11: 0 | AH11: 0 | AI11: 0 | AJ11: 0 | AK11: 0 | AL11: 0 | AM11: 0 | AN11: 0 | AO11: 0 | AP11: 0 | AQ11: 0 | AR11: 0 | AS11: 646183.896
B12: =Prop2019DistTar!B12 -> Low voltage medium 2 rate 5 day | D12: 5.32 | E12: 0 | F12: 0 | G12: 0 | H12: 0 | I12: 0 | J12: 0 | K12: 0 | L12: 0 | M12: 0 | N12: 0 | O12: 0 | P12: 0 | R12: =Prop2019TransTar!R12 -> 3142786.31 | S12: =Prop2019TransTar!S12 -> 0 | T12: =Prop2019TransTar!T12 -> 0 | U12: =Prop2019TransTar!U12 -> 48750958.34 | V12: =Prop2019TransTar!V12 -> 0 | W12: =Prop2019TransTar!W12 -> 0 | X12: =Prop2019TransTar!X12 -> 71461261.27 | Y12: =Prop2019TransTar!Y12 -> 72558263.79 | Z12: =Prop2019TransTar!Z12 -> 0 | AA12: =Prop2019TransTar!AA12 -> 0 | AB12: =Prop2019TransTar!AB12 -> 0 | AC12: =Prop2019TransTar!AC12 -> 0 | AD12: =Prop2019TransTar!AD12 -> 0 | AF12: 167196.2317 | AG12: 0 | AH12: 0 | AI12: 0 | AJ12: 0 | AK12: 0 | AL12: 0 | AM12: 0 | AN12: 0 | AO12: 0 | AP12: 0 | AQ12: 0 | AR12: 0 | AS12: 167196.2317
B13: =Prop2019DistTar!B13 -> Low voltage medium 2 rate 7 day | D13: 5.32 | E13: 0 | F13: 0 | G13: 0 | H13: 0 | I13: 0 | J13: 0 | K13: 0 | L13: 0 | M13: 0 | N13: 0 | O13: 0 | P13: 0 | R13: =Prop2019TransTar!R13 -> 1806435.361 | S13: =Prop2019TransTar!S13 -> 0 | T13: =Prop2019TransTar!T13 -> 0 | U13: =Prop2019TransTar!U13 -> 24677811.01 | V13: =Prop2019TransTar!V13 -> 0 | W13: =Prop2019TransTar!W13 -> 0 | X13: =Prop2019TransTar!X13 -> 38638672.97 | Y13: =Prop2019TransTar!Y13 -> 17093353.14 | Z13: =Prop2019TransTar!Z13 -> 0 | AA13: =Prop2019TransTar!AA13 -> 0 | AB13: =Prop2019TransTar!AB13 -> 0 | AC13: =Prop2019TransTar!AC13 -> 0 | AD13: =Prop2019TransTar!AD13 -> 0 | AF13: 96102.36119 | AG13: 0 | AH13: 0 | AI13: 0 | AJ13: 0 | AK13: 0 | AL13: 0 | AM13: 0 | AN13: 0 | AO13: 0 | AP13: 0 | AQ13: 0 | AR13: 0 | AS13: 96102.36119
B14: =Prop2019DistTar!B14 -> Unmetered supplies | D14: 0 | E14: 0 | F14: 0 | G14: 0 | H14: 0 | I14: 0 | J14: 0 | K14: 0 | L14: 0 | M14: 0 | N14: 0 | O14: 0 | P14: 0 | R14: =Prop2019TransTar!R14 -> 2772880.659 | S14: =Prop2019TransTar!S14 -> 0 | T14: =Prop2019TransTar!T14 -> 0 | U14: =Prop2019TransTar!U14 -> 12344107.45 | V14: =Prop2019TransTar!V14 -> 0 | W14: =Prop2019TransTar!W14 -> 0 | X14: =Prop2019TransTar!X14 -> 20839763.87 | Y14: =Prop2019TransTar!Y14 -> 61038507.71 | Z14: =Prop2019TransTar!Z14 -> 0 | AA14: =Prop2019TransTar!AA14 -> 0 | AB14: =Prop2019TransTar!AB14 -> 0 | AC14: =Prop2019TransTar!AC14 -> 0 | AD14: =Prop2019TransTar!AD14 -> 0 | AF14: 0 | AG14: 0 | AH14: 0 | AI14: 0 | AJ14: 0 | AK14: 0 | AL14: 0 | AM14: 0 | AN14: 0 | AO14: 0 | AP14: 0 | AQ14: 0 | AR14: 0 | AS14: 0
B15: =Prop2019DistTar!B15 -> Low voltage large 1 rate | D15: 5.32 | E15: 0 | F15: 0 | G15: 0 | H15: 0 | I15: 0 | J15: 0 | K15: 0 | L15: 0 | M15: 0 | N15: 0 | O15: 0 | P15: 0 | R15: =Prop2019TransTar!R15 -> 2053.793549 | S15: =Prop2019TransTar!S15 -> 535639.4375 | T15: =Prop2019TransTar!T15 -> 0 | U15: =Prop2019TransTar!U15 -> 0 | V15: =Prop2019TransTar!V15 -> 716644.2615 | W15: =Prop2019TransTar!W15 -> 0 | X15: =Prop2019TransTar!X15 -> 0 | Y15: =Prop2019TransTar!Y15 -> 0 | Z15: =Prop2019TransTar!Z15 -> 0 | AA15: =Prop2019TransTar!AA15 -> 0 | AB15: =Prop2019TransTar!AB15 -> 0 | AC15: =Prop2019TransTar!AC15 -> 0 | AD15: =Prop2019TransTar!AD15 -> 0 | AF15: 109.2618168 | AG15: 0 | AH15: 0 | AI15: 0 | AJ15: 0 | AK15: 0 | AL15: 0 | AM15: 0 | AN15: 0 | AO15: 0 | AP15: 0 | AQ15: 0 | AR15: 0 | AS15: 109.2618168
B16: =Prop2019DistTar!B16 -> Low voltage large 2 rate | D16: 5.32 | E16: 0 | F16: 0 | G16: 0 | H16: 0 | I16: 0 | J16: 0 | K16: 0 | L16: 0 | M16: 0 | N16: 0 | O16: 0 | P16: 0 | R16: =Prop2019TransTar!R16 -> 6881.086986 | S16: =Prop2019TransTar!S16 -> 0 | T16: =Prop2019TransTar!T16 -> 0 | U16: =Prop2019TransTar!U16 -> 913090.0885 | V16: =Prop2019TransTar!V16 -> 0 | W16: =Prop2019TransTar!W16 -> 0 | X16: =Prop2019TransTar!X16 -> 1108281.091 | Y16: =Prop2019TransTar!Y16 -> 1553601.334 | Z16: =Prop2019TransTar!Z16 -> 0 | AA16: =Prop2019TransTar!AA16 -> 0 | AB16: =Prop2019TransTar!AB16 -> 0 | AC16: =Prop2019TransTar!AC16 -> 0 | AD16: =Prop2019TransTar!AD16 -> 0 | AF16: 366.0738277 | AG16: 0 | AH16: 0 | AI16: 0 | AJ16: 0 | AK16: 0 | AL16: 0 | AM16: 0 | AN16: 0 | AO16: 0 | AP16: 0 | AQ16: 0 | AR16: 0 | AS16: 366.0738277
B17: =Prop2019DistTar!B17 -> Low voltage KW time of use | D17: 5.32 | E17: 0 | F17: 0 | G17: 0 | H17: 0 | I17: 0 | J17: 0 | K17: 0 | L17: 0 | M17: 0 | N17: 0 | O17: 0 | P17: 0 | R17: =Prop2019TransTar!R17 -> 67773.95967 | S17: =Prop2019TransTar!S17 -> 0 | T17: =Prop2019TransTar!T17 -> 0 | U17: =Prop2019TransTar!U17 -> 2979941.977 | V17: =Prop2019TransTar!V17 -> 0 | W17: =Prop2019TransTar!W17 -> 0 | X17: =Prop2019TransTar!X17 -> 4372012.915 | Y17: =Prop2019TransTar!Y17 -> 6961060.934 | Z17: =Prop2019TransTar!Z17 -> 0 | AA17: =Prop2019TransTar!AA17 -> 0 | AB17: =Prop2019TransTar!AB17 -> 574892.5731 | AC17: =Prop2019TransTar!AC17 -> 0 | AD17: =Prop2019TransTar!AD17 -> 0 | AF17: 3605.574655 | AG17: 0 | AH17: 0 | AI17: 0 | AJ17: 0 | AK17: 0 | AL17: 0 | AM17: 0 | AN17: 0 | AO17: 0 | AP17: 0 | AQ17: 0 | AR17: 0 | AS17: 3605.574655
B18: =Prop2019DistTar!B18 -> Low voltage KW time of use - HOT | D18: 5.32 | E18: 0 | F18: 0 | G18: 0 | H18: 0 | I18: 0 | J18: 0 | K18: 0 | L18: 0 | M18: 0 | N18: 0 | O18: 0 | P18: 0 | R18: =Prop2019TransTar!R18 -> 6805.949179 | S18: =Prop2019TransTar!S18 -> 0 | T18: =Prop2019TransTar!T18 -> 0 | U18: =Prop2019TransTar!U18 -> 183616.8054 | V18: =Prop2019TransTar!V18 -> 0 | W18: =Prop2019TransTar!W18 -> 0 | X18: =Prop2019TransTar!X18 -> 433724.4082 | Y18: =Prop2019TransTar!Y18 -> 926538.1008 | Z18: =Prop2019TransTar!Z18 -> 0 | AA18: =Prop2019TransTar!AA18 -> 0 | AB18: =Prop2019TransTar!AB18 -> 109607.5488 | AC18: =Prop2019TransTar!AC18 -> 0 | AD18: =Prop2019TransTar!AD18 -> 0 | AF18: 362.0764963 | AG18: 0 | AH18: 0 | AI18: 0 | AJ18: 0 | AK18: 0 | AL18: 0 | AM18: 0 | AN18: 0 | AO18: 0 | AP18: 0 | AQ18: 0 | AR18: 0 | AS18: 362.0764963
B19: =Prop2019DistTar!B19 -> Low voltage large KVA time of use | D19: 5.32 | E19: 0 | F19: 0 | G19: 0 | H19: 0 | I19: 0 | J19: 0 | K19: 0 | L19: 0 | M19: 0 | N19: 0 | O19: 0 | P19: 0 | R19: =Prop2019TransTar!R19 -> 1176060.684 | S19: =Prop2019TransTar!S19 -> 0 | T19: =Prop2019TransTar!T19 -> 0 | U19: =Prop2019TransTar!U19 -> 473574249.8 | V19: =Prop2019TransTar!V19 -> 0 | W19: =Prop2019TransTar!W19 -> 0 | X19: =Prop2019TransTar!X19 -> 668096504 | Y19: =Prop2019TransTar!Y19 -> 1311174632 | Z19: =Prop2019TransTar!Z19 -> 0 | AA19: =Prop2019TransTar!AA19 -> 326114206.9 | AB19: =Prop2019TransTar!AB19 -> 95205640.61 | AC19: =Prop2019TransTar!AC19 -> 0 | AD19: =Prop2019TransTar!AD19 -> 0 | AF19: 62566.42837 | AG19: 0 | AH19: 0 | AI19: 0 | AJ19: 0 | AK19: 0 | AL19: 0 | AM19: 0 | AN19: 0 | AO19: 0 | AP19: 0 | AQ19: 0 | AR19: 0 | AS19: 62566.42837
B20: =Prop2019DistTar!B20 -> Low voltage large KVA time of use - HOT | D20: 5.32 | E20: 0 | F20: 0 | G20: 0 | H20: 0 | I20: 0 | J20: 0 | K20: 0 | L20: 0 | M20: 0 | N20: 0 | O20: 0 | P20: 0 | R20: =Prop2019TransTar!R20 -> 0 | S20: =Prop2019TransTar!S20 -> 0 | T20: =Prop2019TransTar!T20 -> 0 | U20: =Prop2019TransTar!U20 -> 0 | V20: =Prop2019TransTar!V20 -> 0 | W20: =Prop2019TransTar!W20 -> 0 | X20: =Prop2019TransTar!X20 -> 0 | Y20: =Prop2019TransTar!Y20 -> 0 | Z20: =Prop2019TransTar!Z20 -> 0 | AA20: =Prop2019TransTar!AA20 -> 0 | AB20: =Prop2019TransTar!AB20 -> 0 | AC20: =Prop2019TransTar!AC20 -> 0 | AD20: =Prop2019TransTar!AD20 -> 0 | AF20: 0 | AG20: 0 | AH20: 0 | AI20: 0 | AJ20: 0 | AK20: 0 | AL20: 0 | AM20: 0 | AN20: 0 | AO20: 0 | AP20: 0 | AQ20: 0 | AR20: 0 | AS20: 0
B21: =Prop2019DistTar!B21 -> High voltage KVA time of use | D21: 5.32 | E21: 0 | F21: 0 | G21: 0 | H21: 0 | I21: 0 | J21: 0 | K21: 0 | L21: 0 | M21: 0 | N21: 0 | O21: 0 | P21: 0 | R21: =Prop2019TransTar!R21 -> 35844.29161 | S21: =Prop2019TransTar!S21 -> 0 | T21: =Prop2019TransTar!T21 -> 0 | U21: =Prop2019TransTar!U21 -> 176841358.1 | V21: =Prop2019TransTar!V21 -> 0 | W21: =Prop2019TransTar!W21 -> 0 | X21: =Prop2019TransTar!X21 -> 258896130 | Y21: =Prop2019TransTar!Y21 -> 654578037.7 | Z21: =Prop2019TransTar!Z21 -> 0 | AA21: =Prop2019TransTar!AA21 -> 104519165.9 | AB21: =Prop2019TransTar!AB21 -> 32848258.18 | AC21: =Prop2019TransTar!AC21 -> 0 | AD21: =Prop2019TransTar!AD21 -> 0 | AF21: 1906.916314 | AG21: 0 | AH21: 0 | AI21: 0 | AJ21: 0 | AK21: 0 | AL21: 0 | AM21: 0 | AN21: 0 | AO21: 0 | AP21: 0 | AQ21: 0 | AR21: 0 | AS21: 1906.916314
B22: =Prop2019DistTar!B22 -> High voltage KVA time of use - HOT | D22: 5.32 | E22: 0 | F22: 0 | G22: 0 | H22: 0 | I22: 0 | J22: 0 | K22: 0 | L22: 0 | M22: 0 | N22: 0 | O22: 0 | P22: 0 | R22: =Prop2019TransTar!R22 -> 0 | S22: =Prop2019TransTar!S22 -> 0 | T22: =Prop2019TransTar!T22 -> 0 | U22: =Prop2019TransTar!U22 -> 0 | V22: =Prop2019TransTar!V22 -> 0 | W22: =Prop2019TransTar!W22 -> 0 | X22: =Prop2019TransTar!X22 -> 0 | Y22: =Prop2019TransTar!Y22 -> 0 | Z22: =Prop2019TransTar!Z22 -> 0 | AA22: =Prop2019TransTar!AA22 -> 0 | AB22: =Prop2019TransTar!AB22 -> 0 | AC22: =Prop2019TransTar!AC22 -> 0 | AD22: =Prop2019TransTar!AD22 -> 0 | AF22: 0 | AG22: 0 | AH22: 0 | AI22: 0 | AJ22: 0 | AK22: 0 | AL22: 0 | AM22: 0 | AN22: 0 | AO22: 0 | AP22: 0 | AQ22: 0 | AR22: 0 | AS22: 0
B23: =Prop2019DistTar!B23 -> Subtransmission KVA time of use | D23: 5.32 | E23: 0 | F23: 0 | G23: 0 | H23: 0 | I23: 0 | J23: 0 | K23: 0 | L23: 0 | M23: 0 | N23: 0 | O23: 0 | P23: 0 | R23: =Prop2019TransTar!R23 -> 388.1848269 | S23: =Prop2019TransTar!S23 -> 0 | T23: =Prop2019TransTar!T23 -> 0 | U23: =Prop2019TransTar!U23 -> 8469104.472 | V23: =Prop2019TransTar!V23 -> 0 | W23: =Prop2019TransTar!W23 -> 0 | X23: =Prop2019TransTar!X23 -> 11811835.97 | Y23: =Prop2019TransTar!Y23 -> 17135510.08 | Z23: =Prop2019TransTar!Z23 -> 0 | AA23: =Prop2019TransTar!AA23 -> 4251731.381 | AB23: =Prop2019TransTar!AB23 -> 1524422.842 | AC23: =Prop2019TransTar!AC23 -> 0 | AD23: =Prop2019TransTar!AD23 -> 0 | AF23: 20.65143279 | AG23: 0 | AH23: 0 | AI23: 0 | AJ23: 0 | AK23: 0 | AL23: 0 | AM23: 0 | AN23: 0 | AO23: 0 | AP23: 0 | AQ23: 0 | AR23: 0 | AS23: 20.65143279
B24: =Prop2019DistTar!B24 -> TOD | D24: 5.32 | E24: 0 | F24: 0 | G24: 0 | H24: 0 | I24: 0 | J24: 0 | K24: 0 | L24: 0 | M24: 0 | N24: 0 | O24: 0 | P24: 0 | R24: =Prop2019TransTar!R24 -> 14958828.75 | S24: =Prop2019TransTar!S24 -> 0 | T24: =Prop2019TransTar!T24 -> 11157824.73 | U24: =Prop2019TransTar!U24 -> 21858787.26 | V24: =Prop2019TransTar!V24 -> 0 | W24: =Prop2019TransTar!W24 -> 0 | X24: =Prop2019TransTar!X24 -> 41608118.3 | Y24: =Prop2019TransTar!Y24 -> 106719624.5 | Z24: =Prop2019TransTar!Z24 -> 23289542.67 | AA24: =Prop2019TransTar!AA24 -> 0 | AB24: =Prop2019TransTar!AB24 -> 0 | AC24: =Prop2019TransTar!AC24 -> 0 | AD24: =Prop2019TransTar!AD24 -> 0 | AF24: 795809.6893 | AG24: 0 | AH24: 0 | AI24: 0 | AJ24: 0 | AK24: 0 | AL24: 0 | AM24: 0 | AN24: 0 | AO24: 0 | AP24: 0 | AQ24: 0 | AR24: 0 | AS24: 795809.6893
B25: =Prop2019DistTar!B25 -> TOD9 | D25: 5.32 | E25: 0 | F25: 0 | G25: 0 | H25: 0 | I25: 0 | J25: 0 | K25: 0 | L25: 0 | M25: 0 | N25: 0 | O25: 0 | P25: 0 | R25: =Prop2019TransTar!R25 -> 1230260.531 | S25: =Prop2019TransTar!S25 -> 0 | T25: =Prop2019TransTar!T25 -> 591618.8357 | U25: =Prop2019TransTar!U25 -> 1033562.689 | V25: =Prop2019TransTar!V25 -> 0 | W25: =Prop2019TransTar!W25 -> 0 | X25: =Prop2019TransTar!X25 -> 2066829.117 | Y25: =Prop2019TransTar!Y25 -> 6482902.611 | Z25: =Prop2019TransTar!Z25 -> 1333840.095 | AA25: =Prop2019TransTar!AA25 -> 0 | AB25: =Prop2019TransTar!AB25 -> 0 | AC25: =Prop2019TransTar!AC25 -> 0 | AD25: =Prop2019TransTar!AD25 -> 0 | AF25: 65449.86023 | AG25: 0 | AH25: 0 | AI25: 0 | AJ25: 0 | AK25: 0 | AL25: 0 | AM25: 0 | AN25: 0 | AO25: 0 | AP25: 0 | AQ25: 0 | AR25: 0 | AS25: 65449.86023
B26: =Prop2019DistTar!B26 -> TOU | D26: 5.32 | E26: 0 | F26: 0 | G26: 0 | H26: 0 | I26: 0 | J26: 0 | K26: 0 | L26: 0 | M26: 0 | N26: 0 | O26: 0 | P26: 0 | R26: =Prop2019TransTar!R26 -> 245380.3348 | S26: =Prop2019TransTar!S26 -> 0 | T26: =Prop2019TransTar!T26 -> 0 | U26: =Prop2019TransTar!U26 -> 4426421.454 | V26: =Prop2019TransTar!V26 -> 0 | W26: =Prop2019TransTar!W26 -> 0 | X26: =Prop2019TransTar!X26 -> 7275039.43 | Y26: =Prop2019TransTar!Y26 -> 8972065.135 | Z26: =Prop2019TransTar!Z26 -> 0 | AA26: =Prop2019TransTar!AA26 -> 0 | AB26: =Prop2019TransTar!AB26 -> 995491.8472 | AC26: =Prop2019TransTar!AC26 -> 0 | AD26: =Prop2019TransTar!AD26 -> 0 | AF26: 13054.23381 | AG26: 0 | AH26: 0 | AI26: 0 | AJ26: 0 | AK26: 0 | AL26: 0 | AM26: 0 | AN26: 0 | AO26: 0 | AP26: 0 | AQ26: 0 | AR26: 0 | AS26: 13054.23381
B27: =Prop2019DistTar!B27 -> TODFLEX | D27: 5.32 | E27: 0 | F27: 0 | G27: 0 | H27: 0 | I27: 0 | J27: 0 | K27: 0 | L27: 0 | M27: 0 | N27: 0 | O27: 0 | P27: 0 | R27: =Prop2019TransTar!R27 -> 748713.2967 | S27: =Prop2019TransTar!S27 -> 0 | T27: =Prop2019TransTar!T27 -> 1841551.61 | U27: =Prop2019TransTar!U27 -> 897829.5467 | V27: =Prop2019TransTar!V27 -> 0 | W27: =Prop2019TransTar!W27 -> 0 | X27: =Prop2019TransTar!X27 -> 1476591.166 | Y27: =Prop2019TransTar!Y27 -> 3741242.014 | Z27: =Prop2019TransTar!Z27 -> 3096046.168 | AA27: =Prop2019TransTar!AA27 -> 0 | AB27: =Prop2019TransTar!AB27 -> 0 | AC27: =Prop2019TransTar!AC27 -> 0 | AD27: =Prop2019TransTar!AD27 -> 0 | AF27: 39831.54739 | AG27: 0 | AH27: 0 | AI27: 0 | AJ27: 0 | AK27: 0 | AL27: 0 | AM27: 0 | AN27: 0 | AO27: 0 | AP27: 0 | AQ27: 0 | AR27: 0 | AS27: 39831.54739
B28: =Prop2019DistTar!B28 -> Low Voltage KW 1 rate | D28: 5.32 | E28: 0 | F28: 0 | G28: 0 | H28: 0 | I28: 0 | J28: 0 | K28: 0 | L28: 0 | M28: 0 | N28: 0 | O28: 0 | P28: 0 | R28: =Prop2019TransTar!R28 -> 2365.964603 | S28: =Prop2019TransTar!S28 -> 0 | T28: =Prop2019TransTar!T28 -> 0 | U28: =Prop2019TransTar!U28 -> 10094.26433 | V28: =Prop2019TransTar!V28 -> 0 | W28: =Prop2019TransTar!W28 -> 0 | X28: =Prop2019TransTar!X28 -> 19252.67605 | Y28: =Prop2019TransTar!Y28 -> 0 | Z28: =Prop2019TransTar!Z28 -> 0 | AA28: =Prop2019TransTar!AA28 -> 0 | AB28: =Prop2019TransTar!AB28 -> 0 | AC28: =Prop2019TransTar!AC28 -> 2402.709273 | AD28: =Prop2019TransTar!AD28 -> 4357.306608 | AF28: 125.8693169 | AG28: 0 | AH28: 0 | AI28: 0 | AJ28: 0 | AK28: 0 | AL28: 0 | AM28: 0 | AN28: 0 | AO28: 0 | AP28: 0 | AQ28: 0 | AR28: 0 | AS28: 125.8693169
B29: =Prop2019DistTar!B29 -> Low voltage medium KW time of use (opt-in) | D29: 5.32 | E29: 0 | F29: 0 | G29: 0 | H29: 0 | I29: 0 | J29: 0 | K29: 0 | L29: 0 | M29: 0 | N29: 0 | O29: 0 | P29: 0 | R29: =Prop2019TransTar!R29 -> 61897.88761 | S29: =Prop2019TransTar!S29 -> 0 | T29: =Prop2019TransTar!T29 -> 0 | U29: =Prop2019TransTar!U29 -> 6336827.861 | V29: =Prop2019TransTar!V29 -> 0 | W29: =Prop2019TransTar!W29 -> 0 | X29: =Prop2019TransTar!X29 -> 8872080.024 | Y29: =Prop2019TransTar!Y29 -> 0 | Z29: =Prop2019TransTar!Z29 -> 0 | AA29: =Prop2019TransTar!AA29 -> 0 | AB29: =Prop2019TransTar!AB29 -> 0 | AC29: =Prop2019TransTar!AC29 -> 602643.8077 | AD29: =Prop2019TransTar!AD29 -> 1112070.385 | AF29: 3292.967621 | AG29: 0 | AH29: 0 | AI29: 0 | AJ29: 0 | AK29: 0 | AL29: 0 | AM29: 0 | AN29: 0 | AO29: 0 | AP29: 0 | AQ29: 0 | AR29: 0 | AS29: 3292.967621
B30: =Prop2019DistTar!B30 -> Low voltage medium KW 1 rate (mandatory) | D30: 5.32 | E30: 0 | F30: 0 | G30: 0 | H30: 0 | I30: 0 | J30: 0 | K30: 0 | L30: 0 | M30: 0 | N30: 0 | O30: 0 | P30: 0 | R30: =Prop2019TransTar!R30 -> 2660202.423 | S30: =Prop2019TransTar!S30 -> 0 | T30: =Prop2019TransTar!T30 -> 0 | U30: =Prop2019TransTar!U30 -> 283591412.7 | V30: =Prop2019TransTar!V30 -> 0 | W30: =Prop2019TransTar!W30 -> 0 | X30: =Prop2019TransTar!X30 -> 392448914.1 | Y30: =Prop2019TransTar!Y30 -> 0 | Z30: =Prop2019TransTar!Z30 -> 0 | AA30: =Prop2019TransTar!AA30 -> 0 | AB30: =Prop2019TransTar!AB30 -> 0 | AC30: =Prop2019TransTar!AC30 -> 27235556.86 | AD30: =Prop2019TransTar!AD30 -> 49015175.38 | AF30: 141522.7689 | AG30: 0 | AH30: 0 | AI30: 0 | AJ30: 0 | AK30: 0 | AL30: 0 | AM30: 0 | AN30: 0 | AO30: 0 | AP30: 0 | AQ30: 0 | AR30: 0 | AS30: 141522.7689
AF31: 0 | AG31: 0 | AH31: 0 | AI31: 0 | AJ31: 0 | AK31: 0 | AL31: 0 | AM31: 0 | AN31: 0 | AO31: 0 | AP31: 0 | AQ31: 0 | AR31: 0 | AS31: 0
AF32: 0 | AG32: 0 | AH32: 0 | AI32: 0 | AJ32: 0 | AK32: 0 | AL32: 0 | AM32: 0 | AN32: 0 | AO32: 0 | AP32: 0 | AQ32: 0 | AR32: 0 | AS32: 0
AF33: 0 | AG33: 0 | AH33: 0 | AI33: 0 | AJ33: 0 | AK33: 0 | AL33: 0 | AM33: 0 | AN33: 0 | AO33: 0 | AP33: 0 | AQ33: 0 | AR33: 0 | AS33: 0
AF34: 0 | AG34: 0 | AH34: 0 | AI34: 0 | AJ34: 0 | AK34: 0 | AL34: 0 | AM34: 0 | AN34: 0 | AO34: 0 | AP34: 0 | AQ34: 0 | AR34: 0 | AS34: 0
AF35: 0 | AG35: 0 | AH35: 0 | AI35: 0 | AJ35: 0 | AK35: 0 | AL35: 0 | AM35: 0 | AN35: 0 | AO35: 0 | AP35: 0 | AQ35: 0 | AR35: 0 | AS35: 0
AF36: 0 | AG36: 0 | AH36: 0 | AI36: 0 | AJ36: 0 | AK36: 0 | AL36: 0 | AM36: 0 | AN36: 0 | AO36: 0 | AP36: 0 | AQ36: 0 | AR36: 0 | AS36: 0
AF37: 0 | AG37: 0 | AH37: 0 | AI37: 0 | AJ37: 0 | AK37: 0 | AL37: 0 | AM37: 0 | AN37: 0 | AO37: 0 | AP37: 0 | AQ37: 0 | AR37: 0 | AS37: 0
AF38: 0 | AG38: 0 | AH38: 0 | AI38: 0 | AJ38: 0 | AK38: 0 | AL38: 0 | AM38: 0 | AN38: 0 | AO38: 0 | AP38: 0 | AQ38: 0 | AR38: 0 | AS38: 0
AF39: 0 | AG39: 0 | AH39: 0 | AI39: 0 | AJ39: 0 | AK39: 0 | AL39: 0 | AM39: 0 | AN39: 0 | AO39: 0 | AP39: 0 | AQ39: 0 | AR39: 0 | AS39: 0
AF40: 0 | AG40: 0 | AH40: 0 | AI40: 0 | AJ40: 0 | AK40: 0 | AL40: 0 | AM40: 0 | AN40: 0 | AO40: 0 | AP40: 0 | AQ40: 0 | AR40: 0 | AS40: 0
AF41: 0 | AG41: 0 | AH41: 0 | AI41: 0 | AJ41: 0 | AK41: 0 | AL41: 0 | AM41: 0 | AN41: 0 | AO41: 0 | AP41: 0 | AQ41: 0 | AR41: 0 | AS41: 0
AF42: 0 | AG42: 0 | AH42: 0 | AI42: 0 | AJ42: 0 | AK42: 0 | AL42: 0 | AM42: 0 | AN42: 0 | AO42: 0 | AP42: 0 | AQ42: 0 | AR42: 0 | AS42: 0
AF43: 0 | AG43: 0 | AH43: 0 | AI43: 0 | AJ43: 0 | AK43: 0 | AL43: 0 | AM43: 0 | AN43: 0 | AO43: 0 | AP43: 0 | AQ43: 0 | AR43: 0 | AS43: 0
AF44: 0 | AG44: 0 | AH44: 0 | AI44: 0 | AJ44: 0 | AK44: 0 | AL44: 0 | AM44: 0 | AN44: 0 | AO44: 0 | AP44: 0 | AQ44: 0 | AR44: 0 | AS44: 0
AF45: 0 | AG45: 0 | AH45: 0 | AI45: 0 | AJ45: 0 | AK45: 0 | AL45: 0 | AM45: 0 | AN45: 0 | AO45: 0 | AP45: 0 | AQ45: 0 | AR45: 0 | AS45: 0
AF46: 0 | AG46: 0 | AH46: 0 | AI46: 0 | AJ46: 0 | AK46: 0 | AL46: 0 | AM46: 0 | AN46: 0 | AO46: 0 | AP46: 0 | AQ46: 0 | AR46: 0 | AS46: 0
AF47: 0 | AG47: 0 | AH47: 0 | AI47: 0 | AJ47: 0 | AK47: 0 | AL47: 0 | AM47: 0 | AN47: 0 | AO47: 0 | AP47: 0 | AQ47: 0 | AR47: 0 | AS47: 0
AF48: 0 | AG48: 0 | AH48: 0 | AI48: 0 | AJ48: 0 | AK48: 0 | AL48: 0 | AM48: 0 | AN48: 0 | AO48: 0 | AP48: 0 | AQ48: 0 | AR48: 0 | AS48: 0
AF49: 0 | AG49: 0 | AH49: 0 | AI49: 0 | AJ49: 0 | AK49: 0 | AL49: 0 | AM49: 0 | AN49: 0 | AO49: 0 | AP49: 0 | AQ49: 0 | AR49: 0 | AS49: 0
AF50: 0 | AG50: 0 | AH50: 0 | AI50: 0 | AJ50: 0 | AK50: 0 | AL50: 0 | AM50: 0 | AN50: 0 | AO50: 0 | AP50: 0 | AQ50: 0 | AR50: 0 | AS50: 0
AF51: 0 | AG51: 0 | AH51: 0 | AI51: 0 | AJ51: 0 | AK51: 0 | AL51: 0 | AM51: 0 | AN51: 0 | AO51: 0 | AP51: 0 | AQ51: 0 | AR51: 0 | AS51: 0
AF52: 0 | AG52: 0 | AH52: 0 | AI52: 0 | AJ52: 0 | AK52: 0 | AL52: 0 | AM52: 0 | AN52: 0 | AO52: 0 | AP52: 0 | AQ52: 0 | AR52: 0 | AS52: 0
AF53: 0 | AG53: 0 | AH53: 0 | AI53: 0 | AJ53: 0 | AK53: 0 | AL53: 0 | AM53: 0 | AN53: 0 | AO53: 0 | AP53: 0 | AQ53: 0 | AR53: 0 | AS53: 0
AF54: 0 | AG54: 0 | AH54: 0 | AI54: 0 | AJ54: 0 | AK54: 0 | AL54: 0 | AM54: 0 | AN54: 0 | AO54: 0 | AP54: 0 | AQ54: 0 | AR54: 0 | AS54: 0
AF55: 0 | AG55: 0 | AH55: 0 | AI55: 0 | AJ55: 0 | AK55: 0 | AL55: 0 | AM55: 0 | AN55: 0 | AO55: 0 | AP55: 0 | AQ55: 0 | AR55: 0 | AS55: 0
AF56: 0 | AG56: 0 | AH56: 0 | AI56: 0 | AJ56: 0 | AK56: 0 | AL56: 0 | AM56: 0 | AN56: 0 | AO56: 0 | AP56: 0 | AQ56: 0 | AR56: 0 | AS56: 0
AF57: 0 | AG57: 0 | AH57: 0 | AI57: 0 | AJ57: 0 | AK57: 0 | AL57: 0 | AM57: 0 | AN57: 0 | AO57: 0 | AP57: 0 | AQ57: 0 | AR57: 0 | AS57: 0
AF58: 0 | AG58: 0 | AH58: 0 | AI58: 0 | AJ58: 0 | AK58: 0 | AL58: 0 | AM58: 0 | AN58: 0 | AO58: 0 | AP58: 0 | AQ58: 0 | AR58: 0 | AS58: 0
AF59: 0 | AG59: 0 | AH59: 0 | AI59: 0 | AJ59: 0 | AK59: 0 | AL59: 0 | AM59: 0 | AN59: 0 | AO59: 0 | AP59: 0 | AQ59: 0 | AR59: 0 | AS59: 0
AF60: 0 | AG60: 0 | AH60: 0 | AI60: 0 | AJ60: 0 | AK60: 0 | AL60: 0 | AM60: 0 | AN60: 0 | AO60: 0 | AP60: 0 | AQ60: 0 | AR60: 0 | AS60: 0
AF61: 0 | AG61: 0 | AH61: 0 | AI61: 0 | AJ61: 0 | AK61: 0 | AL61: 0 | AM61: 0 | AN61: 0 | AO61: 0 | AP61: 0 | AQ61: 0 | AR61: 0 | AS61: 0
AF62: 0 | AG62: 0 | AH62: 0 | AI62: 0 | AJ62: 0 | AK62: 0 | AL62: 0 | AM62: 0 | AN62: 0 | AO62: 0 | AP62: 0 | AQ62: 0 | AR62: 0 | AS62: 0
AF63: 0 | AG63: 0 | AH63: 0 | AI63: 0 | AJ63: 0 | AK63: 0 | AL63: 0 | AM63: 0 | AN63: 0 | AO63: 0 | AP63: 0 | AQ63: 0 | AR63: 0 | AS63: 0
AF64: 0 | AG64: 0 | AH64: 0 | AI64: 0 | AJ64: 0 | AK64: 0 | AL64: 0 | AM64: 0 | AN64: 0 | AO64: 0 | AP64: 0 | AQ64: 0 | AR64: 0 | AS64: 0
AF65: 0 | AG65: 0 | AH65: 0 | AI65: 0 | AJ65: 0 | AK65: 0 | AL65: 0 | AM65: 0 | AN65: 0 | AO65: 0 | AP65: 0 | AQ65: 0 | AR65: 0 | AS65: 0
R66: =SUM(R6:R65) -> 251870585.4 | S66: 1105073281 | T66: 13590995.17 | U66: 1070758536 | V66: 1769485306 | W66: 0 | X66: 1535616518 | Y66: =SUM(Y6:Y65) -> 2366381227 | Z66: 27719428.93 | AA66: 434885104.2 | AB66: 131258313.6 | AC66: 27840603.38 | AD66: 50131603.07 | AF66: =SUM(AF6:AF65) -> 13115987.69 | AG66: 0 | AH66: 0 | AI66: 0 | AJ66: 0 | AK66: 0 | AL66: 0 | AM66: =SUM(AM6:AM65) -> 0 | AN66: 0 | AO66: 0 | AP66: 0 | AQ66: 0 | AR66: 0 | AS66: 13115987.69

Sheet Est2018JSRev
B1: ="Tariff Approval - "&'Model update'!C3 -> Tariff Approval - United Energy
B3: ="ESTIMATED "&'Model update'!C8&" JURISDICTIONAL SCHEME REVENUE" -> ESTIMATED 2018 JURISDICTIONAL SCHEME REVENUE
D4: ="Current Jurisdictional scheme Tariffs (Pt-1) for "&'Model update'!$C$8 -> Current Jurisdictional scheme Tariffs (Pt-1) for 2018 | R4: ="Estimated Quantities (Qt-1) for "&'Model update'!$C$8 -> Estimated Quantities (Qt-1) for 2018 | AF4: ="Estimated Revenue (Pt-1 "&'Model update'!$C$8&")*(Qt-1 " &'Model update'!$C$8&")" -> Estimated Revenue (Pt-1 2018)*(Qt-1 2018)
B5: ="Tariffs "&'Model update'!C8 -> Tariffs 2018 | D5: Current Fixed | E5: CurrentPkBlk1 | F5: CurrentPkBlk2 | G5: Current PkBlk3 | H5: Current PkBlk4 | I5: Current OPkBlk1 | J5: Current OPkBlk2 | K5: Current OPkBlk3 | L5: Current OPkBlk4 | M5: Current DemBlk1 | N5: Current DemBlk2 | O5: Current DemBlk3 | P5: Current DemBlk4 | R5: EstVol Fixed | S5: EstVol PkBlk1 | T5: EstVol PkBlk2 | U5: EstVol PkBlk3 | V5: EstVol PkBlk4 | W5: EstVol OPkBlk1 | X5: EstVol OPkBlk2 | Y5: EstVol OPkBlk3 | Z5: EstVol OPkBlk4 | AA5: EstVol DemBlk1 | AB5: EstVol DemBlk2 | AC5: EstVol DemBlk3 | AD5: EstVol DemBlk4 | AF5: EstRev Fixed | AG5: EstRev PkBlk1 | AH5: EstRev PkBlk2 | AI5: EstRev PkBlk3 | AJ5: EstRev PkBlk4 | AK5: EstRev OPkBlk1 | AL5: EstRev OPkBlk2 | AM5: EstRev OPkBlk3 | AN5: EstRev OPkBlk4 | AO5: EstRev DemBlk1 | AP5: EstRev DemBlk2 | AQ5: EstRev DemBlk3 | AR5: EstRev DemBlk4 | AS5: EstRev Total
B6: =Est2018TransRev!B6 -> Low voltage small 1 rate | D6: 5.409 | E6: 0 | F6: 0 | G6: 0 | H6: 0 | I6: 0 | J6: 0 | K6: 0 | L6: 0 | M6: 0 | N6: 0 | O6: 0 | P6: 0 | R6: =Est2018TransRev!R6 -> 200952788.4 | S6: =Est2018TransRev!S6 -> 928008318.5 | T6: =Est2018TransRev!T6 -> 0 | U6: =Est2018TransRev!U6 -> 0 | V6: =Est2018TransRev!V6 -> 1503738155 | W6: =Est2018TransRev!W6 -> 0 | X6: =Est2018TransRev!X6 -> 0 | Y6: =Est2018TransRev!Y6 -> 0 | Z6: =Est2018TransRev!Z6 -> 0 | AA6: =Est2018TransRev!AA6 -> 0 | AB6: =Est2018TransRev!AB6 -> 0 | AC6: =Est2018TransRev!AC6 -> 0 | AD6: =Est2018TransRev!AD6 -> 0 | AF6: =D6/100*R6 -> 10869536.33 | AG6: =E6/100*S6 -> 0 | AH6: =F6/100*T6 -> 0 | AI6: =G6/100*U6 -> 0 | AJ6: =H6/100*V6 -> 0 | AK6: =I6/100*W6 -> 0 | AL6: =J6/100*X6 -> 0 | AM6: =K6/100*Y6 -> 0 | AN6: =L6/100*Z6 -> 0 | AO6: =M6/100*AA6 -> 0 | AP6: =N6/100*AB6 -> 0 | AQ6: =O6/100*AC6 -> 0 | AR6: =P6/100*AD6 -> 0 | AS6: =SUM(AF6:AR6) -> 10869536.33
B7: =Est2018TransRev!B7 -> Winter economy tariff | D7: 5.409 | E7: 0 | F7: 0 | G7: 0 | H7: 0 | I7: 0 | J7: 0 | K7: 0 | L7: 0 | M7: 0 | N7: 0 | O7: 0 | P7: 0 | R7: =Est2018TransRev!R7 -> 45377.16506 | S7: =Est2018TransRev!S7 -> 302993.8914 | T7: =Est2018TransRev!T7 -> 0 | U7: =Est2018TransRev!U7 -> 0 | V7: =Est2018TransRev!V7 -> 578609.4826 | W7: =Est2018TransRev!W7 -> 0 | X7: =Est2018TransRev!X7 -> 0 | Y7: =Est2018TransRev!Y7 -> 0 | Z7: =Est2018TransRev!Z7 -> 0 | AA7: =Est2018TransRev!AA7 -> 0 | AB7: =Est2018TransRev!AB7 -> 0 | AC7: =Est2018TransRev!AC7 -> 0 | AD7: =Est2018TransRev!AD7 -> 0 | AF7: 2454.450858 | AG7: 0 | AH7: 0 | AI7: 0 | AJ7: 0 | AK7: 0 | AL7: 0 | AM7: 0 | AN7: 0 | AO7: 0 | AP7: 0 | AQ7: 0 | AR7: 0 | AS7: 2454.450858
B8: =Est2018TransRev!B8 -> Reverse cycle airconditioning time of use | D8: 5.409 | E8: 0 | F8: 0 | G8: 0 | H8: 0 | I8: 0 | J8: 0 | K8: 0 | L8: 0 | M8: 0 | N8: 0 | O8: 0 | P8: 0 | R8: =Est2018TransRev!R8 -> 0 | S8: =Est2018TransRev!S8 -> 0 | T8: =Est2018TransRev!T8 -> 0 | U8: =Est2018TransRev!U8 -> 0 | V8: =Est2018TransRev!V8 -> 0 | W8: =Est2018TransRev!W8 -> 0 | X8: =Est2018TransRev!X8 -> 0 | Y8: =Est2018TransRev!Y8 -> 0 | Z8: =Est2018TransRev!Z8 -> 0 | AA8: =Est2018TransRev!AA8 -> 0 | AB8: =Est2018TransRev!AB8 -> 0 | AC8: =Est2018TransRev!AC8 -> 0 | AD8: =Est2018TransRev!AD8 -> 0 | AF8: 0 | AG8: 0 | AH8: 0 | AI8: 0 | AJ8: 0 | AK8: 0 | AL8: 0 | AM8: 0 | AN8: 0 | AO8: 0 | AP8: 0 | AQ8: 0 | AR8: 0 | AS8: 0
B9: =Est2018TransRev!B9 -> Low voltage small 2 rate | D9: 5.409 | E9: 0 | F9: 0 | G9: 0 | H9: 0 | I9: 0 | J9: 0 | K9: 0 | L9: 0 | M9: 0 | N9: 0 | O9: 0 | P9: 0 | R9: =Est2018TransRev!R9 -> 1512412.683 | S9: =Est2018TransRev!S9 -> 0 | T9: =Est2018TransRev!T9 -> 0 | U9: =Est2018TransRev!U9 -> 4357801.9 | V9: =Est2018TransRev!V9 -> 0 | W9: =Est2018TransRev!W9 -> 0 | X9: =Est2018TransRev!X9 -> 6953080.242 | Y9: =Est2018TransRev!Y9 -> 14873749.96 | Z9: =Est2018TransRev!Z9 -> 0 | AA9: =Est2018TransRev!AA9 -> 0 | AB9: =Est2018TransRev!AB9 -> 0 | AC9: =Est2018TransRev!AC9 -> 0 | AD9: =Est2018TransRev!AD9 -> 0 | AF9: 81806.40202 | AG9: 0 | AH9: 0 | AI9: 0 | AJ9: 0 | AK9: 0 | AL9: 0 | AM9: 0 | AN9: 0 | AO9: 0 | AP9: 0 | AQ9: 0 | AR9: 0 | AS9: 81806.40202
B10: =Est2018TransRev!B10 -> Dedicated circuit | D10: 0 | E10: 0 | F10: 0 | G10: 0 | H10: 0 | I10: 0 | J10: 0 | K10: 0 | L10: 0 | M10: 0 | N10: 0 | O10: 0 | P10: 0 | R10: =Est2018TransRev!R10 -> 1960437.019 | S10: =Est2018TransRev!S10 -> 0 | T10: =Est2018TransRev!T10 -> 0 | U10: =Est2018TransRev!U10 -> 0 | V10: =Est2018TransRev!V10 -> 0 | W10: =Est2018TransRev!W10 -> 0 | X10: =Est2018TransRev!X10 -> 0 | Y10: =Est2018TransRev!Y10 -> 89664408.34 | Z10: =Est2018TransRev!Z10 -> 0 | AA10: =Est2018TransRev!AA10 -> 0 | AB10: =Est2018TransRev!AB10 -> 0 | AC10: =Est2018TransRev!AC10 -> 0 | AD10: =Est2018TransRev!AD10 -> 0 | AF10: 0 | AG10: 0 | AH10: 0 | AI10: 0 | AJ10: 0 | AK10: 0 | AL10: 0 | AM10: 0 | AN10: 0 | AO10: 0 | AP10: 0 | AQ10: 0 | AR10: 0 | AS10: 0
B11: =Est2018TransRev!B11 -> Low voltage medium 1 rate | D11: 5.409 | E11: 0 | F11: 0 | G11: 0 | H11: 0 | I11: 0 | J11: 0 | K11: 0 | L11: 0 | M11: 0 | N11: 0 | O11: 0 | P11: 0 | R11: =Est2018TransRev!R11 -> 12103894.64 | S11: =Est2018TransRev!S11 -> 163534676.5 | T11: =Est2018TransRev!T11 -> 0 | U11: =Est2018TransRev!U11 -> 0 | V11: =Est2018TransRev!V11 -> 244508549.5 | W11: =Est2018TransRev!W11 -> 0 | X11: =Est2018TransRev!X11 -> 0 | Y11: =Est2018TransRev!Y11 -> 0 | Z11: =Est2018TransRev!Z11 -> 0 | AA11: =Est2018TransRev!AA11 -> 0 | AB11: =Est2018TransRev!AB11 -> 0 | AC11: =Est2018TransRev!AC11 -> 0 | AD11: =Est2018TransRev!AD11 -> 0 | AF11: 654699.6612 | AG11: 0 | AH11: 0 | AI11: 0 | AJ11: 0 | AK11: 0 | AL11: 0 | AM11: 0 | AN11: 0 | AO11: 0 | AP11: 0 | AQ11: 0 | AR11: 0 | AS11: 654699.6612
B12: =Est2018TransRev!B12 -> Low voltage medium 2 rate 5 day | D12: 5.409 | E12: 0 | F12: 0 | G12: 0 | H12: 0 | I12: 0 | J12: 0 | K12: 0 | L12: 0 | M12: 0 | N12: 0 | O12: 0 | P12: 0 | R12: =Est2018TransRev!R12 -> 3269874.017 | S12: =Est2018TransRev!S12 -> 0 | T12: =Est2018TransRev!T12 -> 0 | U12: =Est2018TransRev!U12 -> 48815797.8 | V12: =Est2018TransRev!V12 -> 0 | W12: =Est2018TransRev!W12 -> 0 | X12: =Est2018TransRev!X12 -> 76642995.38 | Y12: =Est2018TransRev!Y12 -> 73750815.48 | Z12: =Est2018TransRev!Z12 -> 0 | AA12: =Est2018TransRev!AA12 -> 0 | AB12: =Est2018TransRev!AB12 -> 0 | AC12: =Est2018TransRev!AC12 -> 0 | AD12: =Est2018TransRev!AD12 -> 0 | AF12: 176867.4856 | AG12: 0 | AH12: 0 | AI12: 0 | AJ12: 0 | AK12: 0 | AL12: 0 | AM12: 0 | AN12: 0 | AO12: 0 | AP12: 0 | AQ12: 0 | AR12: 0 | AS12: 176867.4856
B13: =Est2018TransRev!B13 -> Low voltage medium 2 rate 7 day | D13: 5.409 | E13: 0 | F13: 0 | G13: 0 | H13: 0 | I13: 0 | J13: 0 | K13: 0 | L13: 0 | M13: 0 | N13: 0 | O13: 0 | P13: 0 | R13: =Est2018TransRev!R13 -> 1655208.392 | S13: =Est2018TransRev!S13 -> 0 | T13: =Est2018TransRev!T13 -> 0 | U13: =Est2018TransRev!U13 -> 21784409.06 | V13: =Est2018TransRev!V13 -> 0 | W13: =Est2018TransRev!W13 -> 0 | X13: =Est2018TransRev!X13 -> 35541857.1 | Y13: =Est2018TransRev!Y13 -> 15171726.59 | Z13: =Est2018TransRev!Z13 -> 0 | AA13: =Est2018TransRev!AA13 -> 0 | AB13: =Est2018TransRev!AB13 -> 0 | AC13: =Est2018TransRev!AC13 -> 0 | AD13: =Est2018TransRev!AD13 -> 0 | AF13: 89530.22193 | AG13: 0 | AH13: 0 | AI13: 0 | AJ13: 0 | AK13: 0 | AL13: 0 | AM13: 0 | AN13: 0 | AO13: 0 | AP13: 0 | AQ13: 0 | AR13: 0 | AS13: 89530.22193
B14: =Est2018TransRev!B14 -> Unmetered supplies | D14: 0 | E14: 0 | F14: 0 | G14: 0 | H14: 0 | I14: 0 | J14: 0 | K14: 0 | L14: 0 | M14: 0 | N14: 0 | O14: 0 | P14: 0 | R14: =Est2018TransRev!R14 -> 1969509.477 | S14: =Est2018TransRev!S14 -> 0 | T14: =Est2018TransRev!T14 -> 0 | U14: =Est2018TransRev!U14 -> 13849579.43 | V14: =Est2018TransRev!V14 -> 0 | W14: =Est2018TransRev!W14 -> 0 | X14: =Est2018TransRev!X14 -> 26202949.44 | Y14: =Est2018TransRev!Y14 -> 60264599.84 | Z14: =Est2018TransRev!Z14 -> 0 | AA14: =Est2018TransRev!AA14 -> 0 | AB14: =Est2018TransRev!AB14 -> 0 | AC14: =Est2018TransRev!AC14 -> 0 | AD14: =Est2018TransRev!AD14 -> 0 | AF14: 0 | AG14: 0 | AH14: 0 | AI14: 0 | AJ14: 0 | AK14: 0 | AL14: 0 | AM14: 0 | AN14: 0 | AO14: 0 | AP14: 0 | AQ14: 0 | AR14: 0 | AS14: 0
B15: =Est2018TransRev!B15 -> Low voltage large 1 rate | D15: 5.409 | E15: 0 | F15: 0 | G15: 0 | H15: 0 | I15: 0 | J15: 0 | K15: 0 | L15: 0 | M15: 0 | N15: 0 | O15: 0 | P15: 0 | R15: =Est2018TransRev!R15 -> 2284.066115 | S15: =Est2018TransRev!S15 -> 593575.6229 | T15: =Est2018TransRev!T15 -> 0 | U15: =Est2018TransRev!U15 -> 0 | V15: =Est2018TransRev!V15 -> 787538.8044 | W15: =Est2018TransRev!W15 -> 0 | X15: =Est2018TransRev!X15 -> 0 | Y15: =Est2018TransRev!Y15 -> 0 | Z15: =Est2018TransRev!Z15 -> 0 | AA15: =Est2018TransRev!AA15 -> 0 | AB15: =Est2018TransRev!AB15 -> 0 | AC15: =Est2018TransRev!AC15 -> 0 | AD15: =Est2018TransRev!AD15 -> 0 | AF15: 123.5451362 | AG15: 0 | AH15: 0 | AI15: 0 | AJ15: 0 | AK15: 0 | AL15: 0 | AM15: 0 | AN15: 0 | AO15: 0 | AP15: 0 | AQ15: 0 | AR15: 0 | AS15: 123.5451362
B16: =Est2018TransRev!B16 -> Low voltage large 2 rate | D16: 5.409 | E16: 0 | F16: 0 | G16: 0 | H16: 0 | I16: 0 | J16: 0 | K16: 0 | L16: 0 | M16: 0 | N16: 0 | O16: 0 | P16: 0 | R16: =Est2018TransRev!R16 -> 6546.679367 | S16: =Est2018TransRev!S16 -> 0 | T16: =Est2018TransRev!T16 -> 0 | U16: =Est2018TransRev!U16 -> 849445.1711 | V16: =Est2018TransRev!V16 -> 0 | W16: =Est2018TransRev!W16 -> 0 | X16: =Est2018TransRev!X16 -> 1153521.686 | Y16: =Est2018TransRev!Y16 -> 1508497.259 | Z16: =Est2018TransRev!Z16 -> 0 | AA16: =Est2018TransRev!AA16 -> 0 | AB16: =Est2018TransRev!AB16 -> 0 | AC16: =Est2018TransRev!AC16 -> 0 | AD16: =Est2018TransRev!AD16 -> 0 | AF16: 354.109887 | AG16: 0 | AH16: 0 | AI16: 0 | AJ16: 0 | AK16: 0 | AL16: 0 | AM16: 0 | AN16: 0 | AO16: 0 | AP16: 0 | AQ16: 0 | AR16: 0 | AS16: 354.109887
B17: =Est2018TransRev!B17 -> Low voltage KW time of use | D17: 5.409 | E17: 0 | F17: 0 | G17: 0 | H17: 0 | I17: 0 | J17: 0 | K17: 0 | L17: 0 | M17: 0 | N17: 0 | O17: 0 | P17: 0 | R17: =Est2018TransRev!R17 -> 48172.70651 | S17: =Est2018TransRev!S17 -> 0 | T17: =Est2018TransRev!T17 -> 0 | U17: =Est2018TransRev!U17 -> 3089851.322 | V17: =Est2018TransRev!V17 -> 0 | W17: =Est2018TransRev!W17 -> 0 | X17: =Est2018TransRev!X17 -> 4905638.084 | Y17: =Est2018TransRev!Y17 -> 7484286.26 | Z17: =Est2018TransRev!Z17 -> 0 | AA17: =Est2018TransRev!AA17 -> 0 | AB17: =Est2018TransRev!AB17 -> 593374.188 | AC17: =Est2018TransRev!AC17 -> 0 | AD17: =Est2018TransRev!AD17 -> 0 | AF17: 2605.661695 | AG17: 0 | AH17: 0 | AI17: 0 | AJ17: 0 | AK17: 0 | AL17: 0 | AM17: 0 | AN17: 0 | AO17: 0 | AP17: 0 | AQ17: 0 | AR17: 0 | AS17: 2605.661695
B18: =Est2018TransRev!B18 -> Low voltage KW time of use - HOT | D18: 5.409 | E18: 0 | F18: 0 | G18: 0 | H18: 0 | I18: 0 | J18: 0 | K18: 0 | L18: 0 | M18: 0 | N18: 0 | O18: 0 | P18: 0 | R18: =Est2018TransRev!R18 -> 3377.296348 | S18: =Est2018TransRev!S18 -> 0 | T18: =Est2018TransRev!T18 -> 0 | U18: =Est2018TransRev!U18 -> 108342.1137 | V18: =Est2018TransRev!V18 -> 0 | W18: =Est2018TransRev!W18 -> 0 | X18: =Est2018TransRev!X18 -> 359846.0624 | Y18: =Est2018TransRev!Y18 -> 701806.4274 | Z18: =Est2018TransRev!Z18 -> 0 | AA18: =Est2018TransRev!AA18 -> 0 | AB18: =Est2018TransRev!AB18 -> 83234.84677 | AC18: =Est2018TransRev!AC18 -> 0 | AD18: =Est2018TransRev!AD18 -> 0 | AF18: 182.6779595 | AG18: 0 | AH18: 0 | AI18: 0 | AJ18: 0 | AK18: 0 | AL18: 0 | AM18: 0 | AN18: 0 | AO18: 0 | AP18: 0 | AQ18: 0 | AR18: 0 | AS18: 182.6779595
B19: =Est2018TransRev!B19 -> Low voltage large KVA time of use | D19: 5.409 | E19: 0 | F19: 0 | G19: 0 | H19: 0 | I19: 0 | J19: 0 | K19: 0 | L19: 0 | M19: 0 | N19: 0 | O19: 0 | P19: 0 | R19: =Est2018TransRev!R19 -> 764344.9569 | S19: =Est2018TransRev!S19 -> 0 | T19: =Est2018TransRev!T19 -> 0 | U19: =Est2018TransRev!U19 -> 460132576.9 | V19: =Est2018TransRev!V19 -> 0 | W19: =Est2018TransRev!W19 -> 0 | X19: =Est2018TransRev!X19 -> 673775020.5 | Y19: =Est2018TransRev!Y19 -> 1285828208 | Z19: =Est2018TransRev!Z19 -> 0 | AA19: =Est2018TransRev!AA19 -> 322292593.4 | AB19: =Est2018TransRev!AB19 -> 94706335.24 | AC19: =Est2018TransRev!AC19 -> 0 | AD19: =Est2018TransRev!AD19 -> 0 | AF19: 41343.41872 | AG19: 0 | AH19: 0 | AI19: 0 | AJ19: 0 | AK19: 0 | AL19: 0 | AM19: 0 | AN19: 0 | AO19: 0 | AP19: 0 | AQ19: 0 | AR19: 0 | AS19: 41343.41872
B20: =Est2018TransRev!B20 -> Low voltage large KVA time of use - HOT | D20: 5.409 | E20: 0 | F20: 0 | G20: 0 | H20: 0 | I20: 0 | J20: 0 | K20: 0 | L20: 0 | M20: 0 | N20: 0 | O20: 0 | P20: 0 | R20: =Est2018TransRev!R20 -> 0 | S20: =Est2018TransRev!S20 -> 0 | T20: =Est2018TransRev!T20 -> 0 | U20: =Est2018TransRev!U20 -> 0 | V20: =Est2018TransRev!V20 -> 0 | W20: =Est2018TransRev!W20 -> 0 | X20: =Est2018TransRev!X20 -> 0 | Y20: =Est2018TransRev!Y20 -> 0 | Z20: =Est2018TransRev!Z20 -> 0 | AA20: =Est2018TransRev!AA20 -> 0 | AB20: =Est2018TransRev!AB20 -> 0 | AC20: =Est2018TransRev!AC20 -> 0 | AD20: =Est2018TransRev!AD20 -> 0 | AF20: 0 | AG20: 0 | AH20: 0 | AI20: 0 | AJ20: 0 | AK20: 0 | AL20: 0 | AM20: 0 | AN20: 0 | AO20: 0 | AP20: 0 | AQ20: 0 | AR20: 0 | AS20: 0
B21: =Est2018TransRev!B21 -> High voltage KVA time of use | D21: 5.409 | E21: 0 | F21: 0 | G21: 0 | H21: 0 | I21: 0 | J21: 0 | K21: 0 | L21: 0 | M21: 0 | N21: 0 | O21: 0 | P21: 0 | R21: =Est2018TransRev!R21 -> 23617.12423 | S21: =Est2018TransRev!S21 -> 0 | T21: =Est2018TransRev!T21 -> 0 | U21: =Est2018TransRev!U21 -> 174081366.6 | V21: =Est2018TransRev!V21 -> 0 | W21: =Est2018TransRev!W21 -> 0 | X21: =Est2018TransRev!X21 -> 259668945.4 | Y21: =Est2018TransRev!Y21 -> 644419593.1 | Z21: =Est2018TransRev!Z21 -> 0 | AA21: =Est2018TransRev!AA21 -> 104174290.3 | AB21: =Est2018TransRev!AB21 -> 32696351.56 | AC21: =Est2018TransRev!AC21 -> 0 | AD21: =Est2018TransRev!AD21 -> 0 | AF21: 1277.45025 | AG21: 0 | AH21: 0 | AI21: 0 | AJ21: 0 | AK21: 0 | AL21: 0 | AM21: 0 | AN21: 0 | AO21: 0 | AP21: 0 | AQ21: 0 | AR21: 0 | AS21: 1277.45025
B22: =Est2018TransRev!B22 -> High voltage KVA time of use - HOT | D22: 5.409 | E22: 0 | F22: 0 | G22: 0 | H22: 0 | I22: 0 | J22: 0 | K22: 0 | L22: 0 | M22: 0 | N22: 0 | O22: 0 | P22: 0 | R22: =Est2018TransRev!R22 -> 0 | S22: =Est2018TransRev!S22 -> 0 | T22: =Est2018TransRev!T22 -> 0 | U22: =Est2018TransRev!U22 -> 0 | V22: =Est2018TransRev!V22 -> 0 | W22: =Est2018TransRev!W22 -> 0 | X22: =Est2018TransRev!X22 -> 0 | Y22: =Est2018TransRev!Y22 -> 0 | Z22: =Est2018TransRev!Z22 -> 0 | AA22: =Est2018TransRev!AA22 -> 0 | AB22: =Est2018TransRev!AB22 -> 0 | AC22: =Est2018TransRev!AC22 -> 0 | AD22: =Est2018TransRev!AD22 -> 0 | AF22: 0 | AG22: 0 | AH22: 0 | AI22: 0 | AJ22: 0 | AK22: 0 | AL22: 0 | AM22: 0 | AN22: 0 | AO22: 0 | AP22: 0 | AQ22: 0 | AR22: 0 | AS22: 0
B23: =Est2018TransRev!B23 -> Subtransmission KVA time of use | D23: 5.409 | E23: 0 | F23: 0 | G23: 0 | H23: 0 | I23: 0 | J23: 0 | K23: 0 | L23: 0 | M23: 0 | N23: 0 | O23: 0 | P23: 0 | R23: =Est2018TransRev!R23 -> 254.9822872 | S23: =Est2018TransRev!S23 -> 0 | T23: =Est2018TransRev!T23 -> 0 | U23: =Est2018TransRev!U23 -> 8490617.738 | V23: =Est2018TransRev!V23 -> 0 | W23: =Est2018TransRev!W23 -> 0 | X23: =Est2018TransRev!X23 -> 11592624.6 | Y23: =Est2018TransRev!Y23 -> 16560893.6 | Z23: =Est2018TransRev!Z23 -> 0 | AA23: =Est2018TransRev!AA23 -> 4295974.833 | AB23: =Est2018TransRev!AB23 -> 1468306.64 | AC23: =Est2018TransRev!AC23 -> 0 | AD23: =Est2018TransRev!AD23 -> 0 | AF23: 13.79199192 | AG23: 0 | AH23: 0 | AI23: 0 | AJ23: 0 | AK23: 0 | AL23: 0 | AM23: 0 | AN23: 0 | AO23: 0 | AP23: 0 | AQ23: 0 | AR23: 0 | AS23: 13.79199192
B24: =Est2018TransRev!B24 -> TOD | D24: 5.409 | E24: 0 | F24: 0 | G24: 0 | H24: 0 | I24: 0 | J24: 0 | K24: 0 | L24: 0 | M24: 0 | N24: 0 | O24: 0 | P24: 0 | R24: =Est2018TransRev!R24 -> 15646965.57 | S24: =Est2018TransRev!S24 -> 0 | T24: =Est2018TransRev!T24 -> 12981338.04 | U24: =Est2018TransRev!U24 -> 24005631.64 | V24: =Est2018TransRev!V24 -> 0 | W24: =Est2018TransRev!W24 -> 0 | X24: =Est2018TransRev!X24 -> 44926998.69 | Y24: =Est2018TransRev!Y24 -> 113601967.9 | Z24: =Est2018TransRev!Z24 -> 24041636.92 | AA24: =Est2018TransRev!AA24 -> 0 | AB24: =Est2018TransRev!AB24 -> 0 | AC24: =Est2018TransRev!AC24 -> 0 | AD24: =Est2018TransRev!AD24 -> 0 | AF24: 846344.3678 | AG24: 0 | AH24: 0 | AI24: 0 | AJ24: 0 | AK24: 0 | AL24: 0 | AM24: 0 | AN24: 0 | AO24: 0 | AP24: 0 | AQ24: 0 | AR24: 0 | AS24: 846344.3678
B25: =Est2018TransRev!B25 -> TOD9 | D25: 5.409 | E25: 0 | F25: 0 | G25: 0 | H25: 0 | I25: 0 | J25: 0 | K25: 0 | L25: 0 | M25: 0 | N25: 0 | O25: 0 | P25: 0 | R25: =Est2018TransRev!R25 -> 698982.3765 | S25: =Est2018TransRev!S25 -> 0 | T25: =Est2018TransRev!T25 -> 458383.2728 | U25: =Est2018TransRev!U25 -> 704379.183 | V25: =Est2018TransRev!V25 -> 0 | W25: =Est2018TransRev!W25 -> 0 | X25: =Est2018TransRev!X25 -> 1715045.284 | Y25: =Est2018TransRev!Y25 -> 5147486.298 | Z25: =Est2018TransRev!Z25 -> 1156234.759 | AA25: =Est2018TransRev!AA25 -> 0 | AB25: =Est2018TransRev!AB25 -> 0 | AC25: =Est2018TransRev!AC25 -> 0 | AD25: =Est2018TransRev!AD25 -> 0 | AF25: 37807.95674 | AG25: 0 | AH25: 0 | AI25: 0 | AJ25: 0 | AK25: 0 | AL25: 0 | AM25: 0 | AN25: 0 | AO25: 0 | AP25: 0 | AQ25: 0 | AR25: 0 | AS25: 37807.95674
B26: =Est2018TransRev!B26 -> TOU | D26: 5.409 | E26: 0 | F26: 0 | G26: 0 | H26: 0 | I26: 0 | J26: 0 | K26: 0 | L26: 0 | M26: 0 | N26: 0 | O26: 0 | P26: 0 | R26: =Est2018TransRev!R26 -> 168848.1992 | S26: =Est2018TransRev!S26 -> 0 | T26: =Est2018TransRev!T26 -> 0 | U26: =Est2018TransRev!U26 -> 4805127.268 | V26: =Est2018TransRev!V26 -> 0 | W26: =Est2018TransRev!W26 -> 0 | X26: =Est2018TransRev!X26 -> 8039117.801 | Y26: =Est2018TransRev!Y26 -> 9760139.229 | Z26: =Est2018TransRev!Z26 -> 0 | AA26: =Est2018TransRev!AA26 -> 0 | AB26: =Est2018TransRev!AB26 -> 812870.6615 | AC26: =Est2018TransRev!AC26 -> 0 | AD26: =Est2018TransRev!AD26 -> 0 | AF26: 9132.999092 | AG26: 0 | AH26: 0 | AI26: 0 | AJ26: 0 | AK26: 0 | AL26: 0 | AM26: 0 | AN26: 0 | AO26: 0 | AP26: 0 | AQ26: 0 | AR26: 0 | AS26: 9132.999092
B27: =Est2018TransRev!B27 -> TODFLEX | D27: 5.409 | E27: 0 | F27: 0 | G27: 0 | H27: 0 | I27: 0 | J27: 0 | K27: 0 | L27: 0 | M27: 0 | N27: 0 | O27: 0 | P27: 0 | R27: =Est2018TransRev!R27 -> 707665.9846 | S27: =Est2018TransRev!S27 -> 0 | T27: =Est2018TransRev!T27 -> 1751306.767 | U27: =Est2018TransRev!U27 -> 851710.9317 | V27: =Est2018TransRev!V27 -> 0 | W27: =Est2018TransRev!W27 -> 0 | X27: =Est2018TransRev!X27 -> 1453136.032 | Y27: =Est2018TransRev!Y27 -> 3614429.943 | Z27: =Est2018TransRev!Z27 -> 3021129.623 | AA27: =Est2018TransRev!AA27 -> 0 | AB27: =Est2018TransRev!AB27 -> 0 | AC27: =Est2018TransRev!AC27 -> 0 | AD27: =Est2018TransRev!AD27 -> 0 | AF27: 38277.6531 | AG27: 0 | AH27: 0 | AI27: 0 | AJ27: 0 | AK27: 0 | AL27: 0 | AM27: 0 | AN27: 0 | AO27: 0 | AP27: 0 | AQ27: 0 | AR27: 0 | AS27: 38277.6531
B28: =Est2018TransRev!B28 -> Low Voltage KW 1 rate | D28: 5.409 | E28: 0 | F28: 0 | G28: 0 | H28: 0 | I28: 0 | J28: 0 | K28: 0 | L28: 0 | M28: 0 | N28: 0 | O28: 0 | P28: 0 | R28: =Est2018TransRev!R28 -> 2826.354738 | S28: =Est2018TransRev!S28 -> 0 | T28: =Est2018TransRev!T28 -> 0 | U28: =Est2018TransRev!U28 -> 13329.57736 | V28: =Est2018TransRev!V28 -> 0 | W28: =Est2018TransRev!W28 -> 0 | X28: =Est2018TransRev!X28 -> 24988.07174 | Y28: =Est2018TransRev!Y28 -> 0 | Z28: =Est2018TransRev!Z28 -> 0 | AA28: =Est2018TransRev!AA28 -> 0 | AB28: =Est2018TransRev!AB28 -> 0 | AC28: =Est2018TransRev!AC28 -> 3245.421766 | AD28: =Est2018TransRev!AD28 -> 5347.929178 | AF28: 152.8775278 | AG28: 0 | AH28: 0 | AI28: 0 | AJ28: 0 | AK28: 0 | AL28: 0 | AM28: 0 | AN28: 0 | AO28: 0 | AP28: 0 | AQ28: 0 | AR28: 0 | AS28: 152.8775278
B29: =Est2018TransRev!B29 -> Low voltage medium KW time of use (opt-in) | D29: 5.409 | E29: 0 | F29: 0 | G29: 0 | H29: 0 | I29: 0 | J29: 0 | K29: 0 | L29: 0 | M29: 0 | N29: 0 | O29: 0 | P29: 0 | R29: =Est2018TransRev!R29 -> 90787.08005 | S29: =Est2018TransRev!S29 -> 0 | T29: =Est2018TransRev!T29 -> 0 | U29: =Est2018TransRev!U29 -> 18491573.07 | V29: =Est2018TransRev!V29 -> 0 | W29: =Est2018TransRev!W29 -> 0 | X29: =Est2018TransRev!X29 -> 19354558.32 | Y29: =Est2018TransRev!Y29 -> 0 | Z29: =Est2018TransRev!Z29 -> 0 | AA29: =Est2018TransRev!AA29 -> 0 | AB29: =Est2018TransRev!AB29 -> 0 | AC29: =Est2018TransRev!AC29 -> 1676011.641 | AD29: =Est2018TransRev!AD29 -> 2131721.261 | AF29: 4910.67316 | AG29: 0 | AH29: 0 | AI29: 0 | AJ29: 0 | AK29: 0 | AL29: 0 | AM29: 0 | AN29: 0 | AO29: 0 | AP29: 0 | AQ29: 0 | AR29: 0 | AS29: 4910.67316
B30: =Est2018TransRev!B30 -> Low voltage medium KW 1 rate (mandatory) | D30: 5.409 | E30: 0 | F30: 0 | G30: 0 | H30: 0 | I30: 0 | J30: 0 | K30: 0 | L30: 0 | M30: 0 | N30: 0 | O30: 0 | P30: 0 | R30: =Est2018TransRev!R30 -> 2579907.698 | S30: =Est2018TransRev!S30 -> 0 | T30: =Est2018TransRev!T30 -> 0 | U30: =Est2018TransRev!U30 -> 257764758.9 | V30: =Est2018TransRev!V30 -> 0 | W30: =Est2018TransRev!W30 -> 0 | X30: =Est2018TransRev!X30 -> 383778125.5 | Y30: =Est2018TransRev!Y30 -> 0 | Z30: =Est2018TransRev!Z30 -> 0 | AA30: =Est2018TransRev!AA30 -> 0 | AB30: =Est2018TransRev!AB30 -> 0 | AC30: =Est2018TransRev!AC30 -> 24833141.68 | AD30: =Est2018TransRev!AD30 -> 46272310.34 | AF30: 139547.2074 | AG30: 0 | AH30: 0 | AI30: 0 | AJ30: 0 | AK30: 0 | AL30: 0 | AM30: 0 | AN30: 0 | AO30: 0 | AP30: 0 | AQ30: 0 | AR30: 0 | AS30: 139547.2074
AF31: 0 | AG31: 0 | AH31: 0 | AI31: 0 | AJ31: 0 | AK31: 0 | AL31: 0 | AM31: 0 | AN31: 0 | AO31: 0 | AP31: 0 | AQ31: 0 | AR31: 0 | AS31: 0
AF32: 0 | AG32: 0 | AH32: 0 | AI32: 0 | AJ32: 0 | AK32: 0 | AL32: 0 | AM32: 0 | AN32: 0 | AO32: 0 | AP32: 0 | AQ32: 0 | AR32: 0 | AS32: 0
AF33: 0 | AG33: 0 | AH33: 0 | AI33: 0 | AJ33: 0 | AK33: 0 | AL33: 0 | AM33: 0 | AN33: 0 | AO33: 0 | AP33: 0 | AQ33: 0 | AR33: 0 | AS33: 0
AF34: 0 | AG34: 0 | AH34: 0 | AI34: 0 | AJ34: 0 | AK34: 0 | AL34: 0 | AM34: 0 | AN34: 0 | AO34: 0 | AP34: 0 | AQ34: 0 | AR34: 0 | AS34: 0
AF35: 0 | AG35: 0 | AH35: 0 | AI35: 0 | AJ35: 0 | AK35: 0 | AL35: 0 | AM35: 0 | AN35: 0 | AO35: 0 | AP35: 0 | AQ35: 0 | AR35: 0 | AS35: 0
AF36: 0 | AG36: 0 | AH36: 0 | AI36: 0 | AJ36: 0 | AK36: 0 | AL36: 0 | AM36: 0 | AN36: 0 | AO36: 0 | AP36: 0 | AQ36: 0 | AR36: 0 | AS36: 0
AF37: 0 | AG37: 0 | AH37: 0 | AI37: 0 | AJ37: 0 | AK37: 0 | AL37: 0 | AM37: 0 | AN37: 0 | AO37: 0 | AP37: 0 | AQ37: 0 | AR37: 0 | AS37: 0
AF38: 0 | AG38: 0 | AH38: 0 | AI38: 0 | AJ38: 0 | AK38: 0 | AL38: 0 | AM38: 0 | AN38: 0 | AO38: 0 | AP38: 0 | AQ38: 0 | AR38: 0 | AS38: 0
AF39: 0 | AG39: 0 | AH39: 0 | AI39: 0 | AJ39: 0 | AK39: 0 | AL39: 0 | AM39: 0 | AN39: 0 | AO39: 0 | AP39: 0 | AQ39: 0 | AR39: 0 | AS39: 0
AF40: 0 | AG40: 0 | AH40: 0 | AI40: 0 | AJ40: 0 | AK40: 0 | AL40: 0 | AM40: 0 | AN40: 0 | AO40: 0 | AP40: 0 | AQ40: 0 | AR40: 0 | AS40: 0
AF41: 0 | AG41: 0 | AH41: 0 | AI41: 0 | AJ41: 0 | AK41: 0 | AL41: 0 | AM41: 0 | AN41: 0 | AO41: 0 | AP41: 0 | AQ41: 0 | AR41: 0 | AS41: 0
AF42: 0 | AG42: 0 | AH42: 0 | AI42: 0 | AJ42: 0 | AK42: 0 | AL42: 0 | AM42: 0 | AN42: 0 | AO42: 0 | AP42: 0 | AQ42: 0 | AR42: 0 | AS42: 0
AF43: 0 | AG43: 0 | AH43: 0 | AI43: 0 | AJ43: 0 | AK43: 0 | AL43: 0 | AM43: 0 | AN43: 0 | AO43: 0 | AP43: 0 | AQ43: 0 | AR43: 0 | AS43: 0
AF44: 0 | AG44: 0 | AH44: 0 | AI44: 0 | AJ44: 0 | AK44: 0 | AL44: 0 | AM44: 0 | AN44: 0 | AO44: 0 | AP44: 0 | AQ44: 0 | AR44: 0 | AS44: 0
AF45: 0 | AG45: 0 | AH45: 0 | AI45: 0 | AJ45: 0 | AK45: 0 | AL45: 0 | AM45: 0 | AN45: 0 | AO45: 0 | AP45: 0 | AQ45: 0 | AR45: 0 | AS45: 0
AF46: 0 | AG46: 0 | AH46: 0 | AI46: 0 | AJ46: 0 | AK46: 0 | AL46: 0 | AM46: 0 | AN46: 0 | AO46: 0 | AP46: 0 | AQ46: 0 | AR46: 0 | AS46: 0
AF47: 0 | AG47: 0 | AH47: 0 | AI47: 0 | AJ47: 0 | AK47: 0 | AL47: 0 | AM47: 0 | AN47: 0 | AO47: 0 | AP47: 0 | AQ47: 0 | AR47: 0 | AS47: 0
AF48: 0 | AG48: 0 | AH48: 0 | AI48: 0 | AJ48: 0 | AK48: 0 | AL48: 0 | AM48: 0 | AN48: 0 | AO48: 0 | AP48: 0 | AQ48: 0 | AR48: 0 | AS48: 0
AF49: 0 | AG49: 0 | AH49: 0 | AI49: 0 | AJ49: 0 | AK49: 0 | AL49: 0 | AM49: 0 | AN49: 0 | AO49: 0 | AP49: 0 | AQ49: 0 | AR49: 0 | AS49: 0
AF50: 0 | AG50: 0 | AH50: 0 | AI50: 0 | AJ50: 0 | AK50: 0 | AL50: 0 | AM50: 0 | AN50: 0 | AO50: 0 | AP50: 0 | AQ50: 0 | AR50: 0 | AS50: 0
AF51: 0 | AG51: 0 | AH51: 0 | AI51: 0 | AJ51: 0 | AK51: 0 | AL51: 0 | AM51: 0 | AN51: 0 | AO51: 0 | AP51: 0 | AQ51: 0 | AR51: 0 | AS51: 0
AF52: 0 | AG52: 0 | AH52: 0 | AI52: 0 | AJ52: 0 | AK52: 0 | AL52: 0 | AM52: 0 | AN52: 0 | AO52: 0 | AP52: 0 | AQ52: 0 | AR52: 0 | AS52: 0
AF53: 0 | AG53: 0 | AH53: 0 | AI53: 0 | AJ53: 0 | AK53: 0 | AL53: 0 | AM53: 0 | AN53: 0 | AO53: 0 | AP53: 0 | AQ53: 0 | AR53: 0 | AS53: 0
AF54: 0 | AG54: 0 | AH54: 0 | AI54: 0 | AJ54: 0 | AK54: 0 | AL54: 0 | AM54: 0 | AN54: 0 | AO54: 0 | AP54: 0 | AQ54: 0 | AR54: 0 | AS54: 0
AF55: 0 | AG55: 0 | AH55: 0 | AI55: 0 | AJ55: 0 | AK55: 0 | AL55: 0 | AM55: 0 | AN55: 0 | AO55: 0 | AP55: 0 | AQ55: 0 | AR55: 0 | AS55: 0
AF56: 0 | AG56: 0 | AH56: 0 | AI56: 0 | AJ56: 0 | AK56: 0 | AL56: 0 | AM56: 0 | AN56: 0 | AO56: 0 | AP56: 0 | AQ56: 0 | AR56: 0 | AS56: 0
AF57: 0 | AG57: 0 | AH57: 0 | AI57: 0 | AJ57: 0 | AK57: 0 | AL57: 0 | AM57: 0 | AN57: 0 | AO57: 0 | AP57: 0 | AQ57: 0 | AR57: 0 | AS57: 0
AF58: 0 | AG58: 0 | AH58: 0 | AI58: 0 | AJ58: 0 | AK58: 0 | AL58: 0 | AM58: 0 | AN58: 0 | AO58: 0 | AP58: 0 | AQ58: 0 | AR58: 0 | AS58: 0
AF59: 0 | AG59: 0 | AH59: 0 | AI59: 0 | AJ59: 0 | AK59: 0 | AL59: 0 | AM59: 0 | AN59: 0 | AO59: 0 | AP59: 0 | AQ59: 0 | AR59: 0 | AS59: 0
AF60: 0 | AG60: 0 | AH60: 0 | AI60: 0 | AJ60: 0 | AK60: 0 | AL60: 0 | AM60: 0 | AN60: 0 | AO60: 0 | AP60: 0 | AQ60: 0 | AR60: 0 | AS60: 0
AF61: 0 | AG61: 0 | AH61: 0 | AI61: 0 | AJ61: 0 | AK61: 0 | AL61: 0 | AM61: 0 | AN61: 0 | AO61: 0 | AP61: 0 | AQ61: 0 | AR61: 0 | AS61: 0
AF62: 0 | AG62: 0 | AH62: 0 | AI62: 0 | AJ62: 0 | AK62: 0 | AL62: 0 | AM62: 0 | AN62: 0 | AO62: 0 | AP62: 0 | AQ62: 0 | AR62: 0 | AS62: 0
AF63: 0 | AG63: 0 | AH63: 0 | AI63: 0 | AJ63: 0 | AK63: 0 | AL63: 0 | AM63: 0 | AN63: 0 | AO63: 0 | AP63: 0 | AQ63: 0 | AR63: 0 | AS63: 0
AF64: 0 | AG64: 0 | AH64: 0 | AI64: 0 | AJ64: 0 | AK64: 0 | AL64: 0 | AM64: 0 | AN64: 0 | AO64: 0 | AP64: 0 | AQ64: 0 | AR64: 0 | AS64: 0
AF65: 0 | AG65: 0 | AH65: 0 | AI65: 0 | AJ65: 0 | AK65: 0 | AL65: 0 | AM65: 0 | AN65: 0 | AO65: 0 | AP65: 0 | AQ65: 0 | AR65: 0 | AS65: 0
R66: =SUM(R6:R65) -> 244214082.9 | S66: 1092439564 | T66: 15191028.08 | U66: 1042196299 | V66: 1749612853 | W66: 0 | X66: 1556088448 | Y66: 2342352609 | Z66: 28219001.3 | AA66: 430762858.5 | AB66: 130360473.1 | AC66: 26512398.74 | AD66: 48409379.53 | AF66: =SUM(AF6:AF65) -> 12996968.94 | AG66: 0 | AH66: 0 | AI66: 0 | AJ66: 0 | AK66: 0 | AL66: 0 | AM66: =SUM(AM6:AM65) -> 0 | AN66: 0 | AO66: 0 | AP66: 0 | AQ66: 0 | AR66: 0 | AS66: 12996968.94

Sheet 2019JSRevCont
B2: ="Tariff Approval - "&'Model update'!$C$3 -> Tariff Approval - United Energy
B4: Jurisdictional Scheme Amounts (JSA)
B6: Year (t) | C6: ='Model update'!C5 -> 2019
B8: Table 1- Compliance with JSA Revenue Formula
B9: Revenue from Jurisdictional Scheme Amounts charges for year t | C9: =Prop2019JSTar!AS66 -> 13115987.69
B10: Total JSA related payments for year t | C10: =C17 -> 13169076.82
C11: =IF(C9="","",IF(C10>=C9,"JSA REVENUE FORMULA COMPLIANT","JSA REVENUE FORMULA BREACHED")) -> JSA REVENUE FORMULA COMPLIANT
B13: Table 2 - Total JSA related payments for year t
B14: PFIT & TFIT charges for year t | C14: =C22 -> 14161615.91
B15: JSA revenue under/over recovery approved | C15: =-E56*(1+E54)^0.5 -> -992539.0867
B16: JSA revenue under/over recovery for years 2014 and 2015
B17: Total JSA related payments for year t | C17: =SUM(C14:C16) -> 13169076.82
B19: Table 3 - PFIT & TFIT charges for year t
B20: PFIT | C20: 14161615.91
B21: TFIT | C21: 0
B22: PFIT & TFIT charges | C22: =SUM(C20:C21) -> 14161615.91
B27: Table 4 - JSA Recovery Arrangements
C28: Year t-2 | D28: Year t-1 | E28: Year t
C29: (actual) | D29: (estimate) | E29: (forecast)
C30: =D30-1 -> 2017 | D30: =E30-1 -> 2018 | E30: =C$6 -> 2019
B32: (A) Revenue from JSA proposal charges | C32: 15190536.56 | D32: =Est2018JSRev!AS66 -> 12996968.94 | E32: =C9 -> 13115987.69
B35: (B) Less Total JSA related payments = | C35: =SUM(C37:C39) -> 13816418.15 | D35: =SUM(D37:D39) -> 13856650.66 | E35: =SUM(E37:E39) -> 14161615.91
B37: + JSA revenue under/over recovery for years 2014 and 2015 | C37: 317074.7929
B39: +PFIT & TFIT charges = | C39: =SUM(C40:C41) -> 13499343.36 | D39: =SUM(D40:D41) -> 13856650.66 | E39: =SUM(E40:E41) -> 14161615.91
B40: +PFIT amount | C40: ='JS cost audit template'!F4 -> 12876415.92 | D40: 13856650.66 | E40: =C20 -> 14161615.91
B41: +TFIT amount | C41: ='JS cost audit template'!F5 -> 622927.44 | D41: 0 | E41: =C21 -> 0
B45: (A minus B) Under/over recovery of revenue for regulatory year | C45: =C32-C35 -> 1374118.407 | D45: =D32-D35 -> -859681.7193 | E45: =E32-E35 -> -1045628.22
B49: Table 5 - JSA Unders and Overs Account
C50: Year t-2 | D50: Year t-1 | E50: Year t
C51: (actual) | D51: (estimate) | E51: (forecast)
B52: Calendar year | C52: =D52-1 -> 2017 | D52: =E52-1 -> 2018 | E52: =C$6 -> 2019
B54: Nominal WACC | C54: =(1+'Model update'!$B$47)*(1+'Model update'!$C$28)-1 -> 0.04932353899 | D54: =(1+'Model update'!$B$45)*(1+'Model update'!$C$29)-1 -> 0.05819803957 | E54: =(1+'Model update'!$B$43)*(1+'Model update'!$C$30)-1 -> 0.05907249241
B56: Opening balance | C56: 323567.577 | D56: =C60 -> 1747125.8 | E56: =D60 -> 964461.2304
B57: Interest on Opening balance | C57: =C56*C54 -> 15959.498 | D57: =D56*D54 -> 101679.2965 | E57: =E56*E54 -> 56973.12871
B58: Under/over recovery of revenue for regulatory year | C58: =C45 -> 1374118.407 | D58: =D45 -> -859681.7193 | E58: =E45 -> -1045628.22
B59: Interest on under/over recovery for regulatory year | C59: =C58*((1+C54)^0.5-1) -> 33480.31837 | D59: =D58*((1+D54)^0.5-1) -> -24662.14728 | E59: =E58*((1+E54)^0.5-1) -> -30440.82856
B60: Closing balance of JSA overs/ (unders) account | C60: =SUM(C56:C59) -> 1747125.8 | D60: =SUM(D56:D59) -> 964461.2304 | E60: -54634.68932
B62: The DNSP is expected to achieve a closing balance as close to zero as practicable in its jurisdictional scheme amount unders and overs account in each forecast year in its annual pricing proposals in the 2016–20 regulatory control period.

Sheet JS cost audit template
B1: ="Tariff Approval - "&'Model update'!C3 -> Tariff Approval - United Energy
B2: Jurisdictional scheme amounts | F2: t-2 actual
B4: PFIT | F4: 12876415.92
B5: TFIT | F5: 622927.44
E7: Total | F7: =SUM(F3:F6) -> 13499343.36
B10: Where the following definitions apply
B11: PFIT | C11: Premium feed-in tariff payments
B12: TFIT | C12: Transitional feed-in tariff payments

Sheet Prop2019TSSComp
B1: ="Tariff Approval - "&'Model update'!$C$3 -> Tariff Approval - United Energy
B3: ="COMPARISON OF "&'Model update'!$C$5&" PROPOSED AND TSS INDICATIVE DISTRIBUTION TARIFFS" -> COMPARISON OF 2019 PROPOSED AND TSS INDICATIVE DISTRIBUTION TARIFFS | AT3: Materiality threshold
D4: ="Proposed NUOS Tariffs (Pt) for "&'Model update'!$C$5 -> Proposed NUOS Tariffs (Pt) for 2019 | R4: ="TSS indicative tariffs for "&'Model update'!$C$5 -> TSS indicative tariffs for 2019 | AG4: ="Percentage difference between proposed "&'Model update'!$C$5&" tariffs and indicative TSS tariffs" -> Percentage difference between proposed 2019 tariffs and indicative TSS tariffs | AT4: 0.15
B5: TSS name | C5: Proposal name | D5: =Prop2019DistTar!D5 -> PropTar Fixed | E5: =Prop2019DistTar!E5 -> PropTar PkBlk1 | F5: =Prop2019DistTar!F5 -> PropTar PkBlk2 | G5: =Prop2019DistTar!G5 -> PropTar PkBlk3 | H5: =Prop2019DistTar!H5 -> PropTar PkBlk4 | I5: =Prop2019DistTar!I5 -> PropTar OPkBlk1 | J5: =Prop2019DistTar!J5 -> PropTar OPkBlk2 | K5: =Prop2019DistTar!K5 -> PropTar OPkBlk3 | L5: =Prop2019DistTar!L5 -> PropTar OPkBlk4 | M5: =Prop2019DistTar!M5 -> PropTar DemBlk1 | N5: =Prop2019DistTar!N5 -> PropTar DemBlk2 | O5: =Prop2019DistTar!O5 -> PropTar DemBlk3 | P5: =Prop2019DistTar!P5 -> PropTar DemBlk4 | R5: IndTar Fixed | S5: IndTar PkBlk1 | T5: IndTar PkBlk2 | U5: IndTar PkBlk3 | V5: IndTar PkBlk4 | W5: IndTar OPkBlk1 | X5: IndTar OPkBlk2 | Y5: IndTar OPkBlk3 | Z5: IndTar OPkBlk4 | AA5: IndTar DemBlk1 | AB5: IndTar DemBlk2 | AC5: IndTar DemBlk3 | AD5: IndTar DemBlk4 | AG5: Fixed | AH5: PkBlk1 | AI5: PkBlk2 | AJ5: PkBlk3 | AK5: PkBlk4 | AL5: OPkBlk1 | AM5: OPkBlk2 | AN5: OPkBlk3 | AO5: OPkBlk4 | AP5: DemBlk1 | AQ5: DemBlk2 | AR5: DemBlk3 | AS5: DemBlk4 | AT5: Explanation required?
B6: Low voltage small 1 rate | C6: =Prop2019DistTar!B6 -> Low voltage small 1 rate | D6: =SUM(Prop2019DistTar!D6,Prop2019TransTar!D6) -> 7.09 | E6: =SUM(Prop2019DistTar!E6,Prop2019TransTar!E6,Prop2019JSTar!E6) -> 9.36 | F6: =SUM(Prop2019DistTar!F6,Prop2019TransTar!F6,Prop2019JSTar!F6) -> 0 | G6: =SUM(Prop2019DistTar!G6,Prop2019TransTar!G6,Prop2019JSTar!G6) -> 0 | H6: =SUM(Prop2019DistTar!H6,Prop2019TransTar!H6,Prop2019JSTar!H6) -> 7.83 | I6: =SUM(Prop2019DistTar!I6,Prop2019TransTar!I6,Prop2019JSTar!I6) -> 0 | J6: =SUM(Prop2019DistTar!J6,Prop2019TransTar!J6,Prop2019JSTar!J6) -> 0 | K6: =SUM(Prop2019DistTar!K6,Prop2019TransTar!K6,Prop2019JSTar!K6) -> 0 | L6: =SUM(Prop2019DistTar!L6,Prop2019TransTar!L6,Prop2019JSTar!L6) -> 0 | M6: =SUM(Prop2019DistTar!M6,Prop2019TransTar!M6,Prop2019JSTar!M6) -> 0 | N6: =SUM(Prop2019DistTar!N6,Prop2019TransTar!N6,Prop2019JSTar!N6) -> 0 | O6: =SUM(Prop2019DistTar!O6,Prop2019TransTar!O6,Prop2019JSTar!O6) -> 0 | P6: =SUM(Prop2019DistTar!P6,Prop2019TransTar!P6,Prop2019JSTar!P6) -> 0 | R6: 7.247 | S6: 10.726 | V6: 7.248 | AG6: =IFERROR(D6/R6-1,0) -> -0.02166413688 | AH6: -0.1273540929 | AI6: 0 | AJ6: 0 | AK6: 0.08029801325 | AL6: 0 | AM6: 0 | AN6: 0 | AO6: 0 | AP6: 0 | AQ6: 0 | AR6: 0 | AS6: 0 | AT6: =IF(MAX(ABS(AG6:AS6))>$AT$4,"EXPLAIN","") -> 
B7: Winter Energy Tariff* | C7: =Prop2019DistTar!B7 -> Winter economy tariff | D7: =SUM(Prop2019DistTar!D7,Prop2019TransTar!D7) -> 9.13 | E7: =SUM(Prop2019DistTar!E7,Prop2019TransTar!E7,Prop2019JSTar!E7) -> 9.33 | F7: =SUM(Prop2019DistTar!F7,Prop2019TransTar!F7,Prop2019JSTar!F7) -> 0 | G7: =SUM(Prop2019DistTar!G7,Prop2019TransTar!G7,Prop2019JSTar!G7) -> 0 | H7: =SUM(Prop2019DistTar!H7,Prop2019TransTar!H7,Prop2019JSTar!H7) -> 7.02 | I7: =SUM(Prop2019DistTar!I7,Prop2019TransTar!I7,Prop2019JSTar!I7) -> 3.55 | J7: =SUM(Prop2019DistTar!J7,Prop2019TransTar!J7,Prop2019JSTar!J7) -> 0 | K7: =SUM(Prop2019DistTar!K7,Prop2019TransTar!K7,Prop2019JSTar!K7) -> 0 | L7: =SUM(Prop2019DistTar!L7,Prop2019TransTar!L7,Prop2019JSTar!L7) -> 0 | M7: =SUM(Prop2019DistTar!M7,Prop2019TransTar!M7,Prop2019JSTar!M7) -> 0 | N7: =SUM(Prop2019DistTar!N7,Prop2019TransTar!N7,Prop2019JSTar!N7) -> 0 | O7: =SUM(Prop2019DistTar!O7,Prop2019TransTar!O7,Prop2019JSTar!O7) -> 0 | P7: =SUM(Prop2019DistTar!P7,Prop2019TransTar!P7,Prop2019JSTar!P7) -> 0 | R7: 9.333 | S7: 8.963 | V7: 6.76 | W7: 3.535 | AG7: -0.02175077681 | AH7: 0.04094611179 | AI7: 0 | AJ7: 0 | AK7: 0.03846153846 | AL7: 0.004243281471 | AM7: 0 | AN7: 0 | AO7: 0 | AP7: 0 | AQ7: 0 | AR7: 0 | AS7: 0 | AT7: =IF(MAX(ABS(AG7:AS7))>$AT$4,"EXPLAIN","") -> 
B8: Reverse cycle airconditioning time of use* | C8: =Prop2019DistTar!B8 -> Reverse cycle airconditioning time of use | D8: =SUM(Prop2019DistTar!D8,Prop2019TransTar!D8) -> 0 | E8: =SUM(Prop2019DistTar!E8,Prop2019TransTar!E8,Prop2019JSTar!E8) -> 0 | F8: =SUM(Prop2019DistTar!F8,Prop2019TransTar!F8,Prop2019JSTar!F8) -> 0 | G8: =SUM(Prop2019DistTar!G8,Prop2019TransTar!G8,Prop2019JSTar!G8) -> 0 | H8: =SUM(Prop2019DistTar!H8,Prop2019TransTar!H8,Prop2019JSTar!H8) -> 0 | I8: =SUM(Prop2019DistTar!I8,Prop2019TransTar!I8,Prop2019JSTar!I8) -> 0 | J8: =SUM(Prop2019DistTar!J8,Prop2019TransTar!J8,Prop2019JSTar!J8) -> 0 | K8: =SUM(Prop2019DistTar!K8,Prop2019TransTar!K8,Prop2019JSTar!K8) -> 0 | L8: =SUM(Prop2019DistTar!L8,Prop2019TransTar!L8,Prop2019JSTar!L8) -> 0 | M8: =SUM(Prop2019DistTar!M8,Prop2019TransTar!M8,Prop2019JSTar!M8) -> 0 | N8: =SUM(Prop2019DistTar!N8,Prop2019TransTar!N8,Prop2019JSTar!N8) -> 0 | O8: =SUM(Prop2019DistTar!O8,Prop2019TransTar!O8,Prop2019JSTar!O8) -> 0 | P8: =SUM(Prop2019DistTar!P8,Prop2019TransTar!P8,Prop2019JSTar!P8) -> 0 | AG8: 0 | AH8: 0 | AI8: 0 | AJ8: 0 | AK8: 0 | AL8: 0 | AM8: 0 | AN8: 0 | AO8: 0 | AP8: 0 | AQ8: 0 | AR8: 0 | AS8: 0 | AT8: =IF(MAX(ABS(AG8:AS8))>$AT$4,"EXPLAIN","") -> 
B9: Low voltage small 2 rate* | C9: =Prop2019DistTar!B9 -> Low voltage small 2 rate | D9: =SUM(Prop2019DistTar!D9,Prop2019TransTar!D9) -> 14.48 | E9: =SUM(Prop2019DistTar!E9,Prop2019TransTar!E9,Prop2019JSTar!E9) -> 0 | F9: =SUM(Prop2019DistTar!F9,Prop2019TransTar!F9,Prop2019JSTar!F9) -> 0 | G9: =SUM(Prop2019DistTar!G9,Prop2019TransTar!G9,Prop2019JSTar!G9) -> 14.58 | H9: =SUM(Prop2019DistTar!H9,Prop2019TransTar!H9,Prop2019JSTar!H9) -> 0 | I9: =SUM(Prop2019DistTar!I9,Prop2019TransTar!I9,Prop2019JSTar!I9) -> 0 | J9: =SUM(Prop2019DistTar!J9,Prop2019TransTar!J9,Prop2019JSTar!J9) -> 11.2 | K9: =SUM(Prop2019DistTar!K9,Prop2019TransTar!K9,Prop2019JSTar!K9) -> 1.98 | L9: =SUM(Prop2019DistTar!L9,Prop2019TransTar!L9,Prop2019JSTar!L9) -> 0 | M9: =SUM(Prop2019DistTar!M9,Prop2019TransTar!M9,Prop2019JSTar!M9) -> 0 | N9: =SUM(Prop2019DistTar!N9,Prop2019TransTar!N9,Prop2019JSTar!N9) -> 0 | O9: =SUM(Prop2019DistTar!O9,Prop2019TransTar!O9,Prop2019JSTar!O9) -> 0 | P9: =SUM(Prop2019DistTar!P9,Prop2019TransTar!P9,Prop2019JSTar!P9) -> 0 | R9: 14.801 | U9: 13.629 | X9: 10.464 | Y9: 1.842 | AG9: -0.0216877238 | AH9: 0 | AI9: 0 | AJ9: 0.06977767995 | AK9: 0 | AL9: 0 | AM9: 0.07033639144 | AN9: 0.07491856678 | AO9: 0 | AP9: 0 | AQ9: 0 | AR9: 0 | AS9: 0 | AT9: =IF(MAX(ABS(AG9:AS9))>$AT$4,"EXPLAIN","") -> 
B10: Dedicated circuit** | C10: =Prop2019DistTar!B10 -> Dedicated circuit | D10: =SUM(Prop2019DistTar!D10,Prop2019TransTar!D10) -> 0 | E10: =SUM(Prop2019DistTar!E10,Prop2019TransTar!E10,Prop2019JSTar!E10) -> 0 | F10: =SUM(Prop2019DistTar!F10,Prop2019TransTar!F10,Prop2019JSTar!F10) -> 0 | G10: =SUM(Prop2019DistTar!G10,Prop2019TransTar!G10,Prop2019JSTar!G10) -> 0 | H10: =SUM(Prop2019DistTar!H10,Prop2019TransTar!H10,Prop2019JSTar!H10) -> 0 | I10: =SUM(Prop2019DistTar!I10,Prop2019TransTar!I10,Prop2019JSTar!I10) -> 0 | J10: =SUM(Prop2019DistTar!J10,Prop2019TransTar!J10,Prop2019JSTar!J10) -> 0 | K10: =SUM(Prop2019DistTar!K10,Prop2019TransTar!K10,Prop2019JSTar!K10) -> 1.99 | L10: =SUM(Prop2019DistTar!L10,Prop2019TransTar!L10,Prop2019JSTar!L10) -> 0 | M10: =SUM(Prop2019DistTar!M10,Prop2019TransTar!M10,Prop2019JSTar!M10) -> 0 | N10: =SUM(Prop2019DistTar!N10,Prop2019TransTar!N10,Prop2019JSTar!N10) -> 0 | O10: =SUM(Prop2019DistTar!O10,Prop2019TransTar!O10,Prop2019JSTar!O10) -> 0 | P10: =SUM(Prop2019DistTar!P10,Prop2019TransTar!P10,Prop2019JSTar!P10) -> 0 | Y10: 2.038 | AG10: 0 | AH10: 0 | AI10: 0 | AJ10: 0 | AK10: 0 | AL10: 0 | AM10: 0 | AN10: -0.02355250245 | AO10: 0 | AP10: 0 | AQ10: 0 | AR10: 0 | AS10: 0 | AT10: =IF(MAX(ABS(AG10:AS10))>$AT$4,"EXPLAIN","") -> 
B11: Low voltage medium 1 rate | C11: =Prop2019DistTar!B11 -> Low voltage medium 1 rate | D11: =SUM(Prop2019DistTar!D11,Prop2019TransTar!D11) -> 12.03 | E11: =SUM(Prop2019DistTar!E11,Prop2019TransTar!E11,Prop2019JSTar!E11) -> 11.32 | F11: =SUM(Prop2019DistTar!F11,Prop2019TransTar!F11,Prop2019JSTar!F11) -> 0 | G11: =SUM(Prop2019DistTar!G11,Prop2019TransTar!G11,Prop2019JSTar!G11) -> 0 | H11: =SUM(Prop2019DistTar!H11,Prop2019TransTar!H11,Prop2019JSTar!H11) -> 9.05 | I11: =SUM(Prop2019DistTar!I11,Prop2019TransTar!I11,Prop2019JSTar!I11) -> 0 | J11: =SUM(Prop2019DistTar!J11,Prop2019TransTar!J11,Prop2019JSTar!J11) -> 0 | K11: =SUM(Prop2019DistTar!K11,Prop2019TransTar!K11,Prop2019JSTar!K11) -> 0 | L11: =SUM(Prop2019DistTar!L11,Prop2019TransTar!L11,Prop2019JSTar!L11) -> 0 | M11: =SUM(Prop2019DistTar!M11,Prop2019TransTar!M11,Prop2019JSTar!M11) -> 0 | N11: =SUM(Prop2019DistTar!N11,Prop2019TransTar!N11,Prop2019JSTar!N11) -> 0 | O11: =SUM(Prop2019DistTar!O11,Prop2019TransTar!O11,Prop2019JSTar!O11) -> 0 | P11: =SUM(Prop2019DistTar!P11,Prop2019TransTar!P11,Prop2019JSTar!P11) -> 0 | R11: 12.301 | S11: 12.915 | V11: 8.426 | AG11: -0.02203072921 | AH11: -0.1234998064 | AI11: 0 | AJ11: 0 | AK11: 0.07405649181 | AL11: 0 | AM11: 0 | AN11: 0 | AO11: 0 | AP11: 0 | AQ11: 0 | AR11: 0 | AS11: 0 | AT11: =IF(MAX(ABS(AG11:AS11))>$AT$4,"EXPLAIN","") -> 
B12: Low voltage medium 2 rate 5 day* | C12: =Prop2019DistTar!B12 -> Low voltage medium 2 rate 5 day | D12: =SUM(Prop2019DistTar!D12,Prop2019TransTar!D12) -> 23.03 | E12: =SUM(Prop2019DistTar!E12,Prop2019TransTar!E12,Prop2019JSTar!E12) -> 0 | F12: =SUM(Prop2019DistTar!F12,Prop2019TransTar!F12,Prop2019JSTar!F12) -> 0 | G12: =SUM(Prop2019DistTar!G12,Prop2019TransTar!G12,Prop2019JSTar!G12) -> 14.4 | H12: =SUM(Prop2019DistTar!H12,Prop2019TransTar!H12,Prop2019JSTar!H12) -> 0 | I12: =SUM(Prop2019DistTar!I12,Prop2019TransTar!I12,Prop2019JSTar!I12) -> 0 | J12: =SUM(Prop2019DistTar!J12,Prop2019TransTar!J12,Prop2019JSTar!J12) -> 10.89 | K12: =SUM(Prop2019DistTar!K12,Prop2019TransTar!K12,Prop2019JSTar!K12) -> 2.32 | L12: =SUM(Prop2019DistTar!L12,Prop2019TransTar!L12,Prop2019JSTar!L12) -> 0 | M12: =SUM(Prop2019DistTar!M12,Prop2019TransTar!M12,Prop2019JSTar!M12) -> 0 | N12: =SUM(Prop2019DistTar!N12,Prop2019TransTar!N12,Prop2019JSTar!N12) -> 0 | O12: =SUM(Prop2019DistTar!O12,Prop2019TransTar!O12,Prop2019JSTar!O12) -> 0 | P12: =SUM(Prop2019DistTar!P12,Prop2019TransTar!P12,Prop2019JSTar!P12) -> 0 | R12: 23.545 | U12: 13.255 | X12: 10.025 | Y12: 2.135 | AG12: -0.02187300913 | AH12: 0 | AI12: 0 | AJ12: 0.08638249717 | AK12: 0 | AL12: 0 | AM12: 0.08628428928 | AN12: 0.08665105386 | AO12: 0 | AP12: 0 | AQ12: 0 | AR12: 0 | AS12: 0 | AT12: =IF(MAX(ABS(AG12:AS12))>$AT$4,"EXPLAIN","") -> 
B13: Low voltage medium 2 rate 7 day* | C13: =Prop2019DistTar!B13 -> Low voltage medium 2 rate 7 day | D13: =SUM(Prop2019DistTar!D13,Prop2019TransTar!D13) -> 24.51 | E13: =SUM(Prop2019DistTar!E13,Prop2019TransTar!E13,Prop2019JSTar!E13) -> 0 | F13: =SUM(Prop2019DistTar!F13,Prop2019TransTar!F13,Prop2019JSTar!F13) -> 0 | G13: =SUM(Prop2019DistTar!G13,Prop2019TransTar!G13,Prop2019JSTar!G13) -> 12.23 | H13: =SUM(Prop2019DistTar!H13,Prop2019TransTar!H13,Prop2019JSTar!H13) -> 0 | I13: =SUM(Prop2019DistTar!I13,Prop2019TransTar!I13,Prop2019JSTar!I13) -> 0 | J13: =SUM(Prop2019DistTar!J13,Prop2019TransTar!J13,Prop2019JSTar!J13) -> 9.52 | K13: =SUM(Prop2019DistTar!K13,Prop2019TransTar!K13,Prop2019JSTar!K13) -> 1.87 | L13: =SUM(Prop2019DistTar!L13,Prop2019TransTar!L13,Prop2019JSTar!L13) -> 0 | M13: =SUM(Prop2019DistTar!M13,Prop2019TransTar!M13,Prop2019JSTar!M13) -> 0 | N13: =SUM(Prop2019DistTar!N13,Prop2019TransTar!N13,Prop2019JSTar!N13) -> 0 | O13: =SUM(Prop2019DistTar!O13,Prop2019TransTar!O13,Prop2019JSTar!O13) -> 0 | P13: =SUM(Prop2019DistTar!P13,Prop2019TransTar!P13,Prop2019JSTar!P13) -> 0 | R13: 25.064 | U13: 13.049 | X13: 10.162 | Y13: 1.985 | AG13: -0.02210341526 | AH13: 0 | AI13: 0 | AJ13: -0.06276343015 | AK13: 0 | AL13: 0 | AM13: -0.06317654005 | AN13: -0.05793450882 | AO13: 0 | AP13: 0 | AQ13: 0 | AR13: 0 | AS13: 0 | AT13: =IF(MAX(ABS(AG13:AS13))>$AT$4,"EXPLAIN","") -> 
B14: Unmetered supplies | C14: =Prop2019DistTar!B14 -> Unmetered supplies | D14: =SUM(Prop2019DistTar!D14,Prop2019TransTar!D14) -> 0 | E14: =SUM(Prop2019DistTar!E14,Prop2019TransTar!E14,Prop2019JSTar!E14) -> 0 | F14: =SUM(Prop2019DistTar!F14,Prop2019TransTar!F14,Prop2019JSTar!F14) -> 0 | G14: =SUM(Prop2019DistTar!G14,Prop2019TransTar!G14,Prop2019JSTar!G14) -> 11.6 | H14: =SUM(Prop2019DistTar!H14,Prop2019TransTar!H14,Prop2019JSTar!H14) -> 0 | I14: =SUM(Prop2019DistTar!I14,Prop2019TransTar!I14,Prop2019JSTar!I14) -> 0 | J14: =SUM(Prop2019DistTar!J14,Prop2019TransTar!J14,Prop2019JSTar!J14) -> 8.69 | K14: =SUM(Prop2019DistTar!K14,Prop2019TransTar!K14,Prop2019JSTar!K14) -> 1.57 | L14: =SUM(Prop2019DistTar!L14,Prop2019TransTar!L14,Prop2019JSTar!L14) -> 0 | M14: =SUM(Prop2019DistTar!M14,Prop2019TransTar!M14,Prop2019JSTar!M14) -> 0 | N14: =SUM(Prop2019DistTar!N14,Prop2019TransTar!N14,Prop2019JSTar!N14) -> 0 | O14: =SUM(Prop2019DistTar!O14,Prop2019TransTar!O14,Prop2019JSTar!O14) -> 0 | P14: =SUM(Prop2019DistTar!P14,Prop2019TransTar!P14,Prop2019JSTar!P14) -> 0 | U14: 11.747 | X14: 8.783 | Y14: 1.61 | AG14: 0 | AH14: 0 | AI14: 0 | AJ14: -0.01251383332 | AK14: 0 | AL14: 0 | AM14: -0.01058863714 | AN14: -0.0248447205 | AO14: 0 | AP14: 0 | AQ14: 0 | AR14: 0 | AS14: 0 | AT14: =IF(MAX(ABS(AG14:AS14))>$AT$4,"EXPLAIN","") -> 
B15: Low voltage large 1 rate* | C15: =Prop2019DistTar!B15 -> Low voltage large 1 rate | D15: =SUM(Prop2019DistTar!D15,Prop2019TransTar!D15) -> 14.08 | E15: =SUM(Prop2019DistTar!E15,Prop2019TransTar!E15,Prop2019JSTar!E15) -> 8.93 | F15: =SUM(Prop2019DistTar!F15,Prop2019TransTar!F15,Prop2019JSTar!F15) -> 0 | G15: =SUM(Prop2019DistTar!G15,Prop2019TransTar!G15,Prop2019JSTar!G15) -> 0 | H15: =SUM(Prop2019DistTar!H15,Prop2019TransTar!H15,Prop2019JSTar!H15) -> 7.06 | I15: =SUM(Prop2019DistTar!I15,Prop2019TransTar!I15,Prop2019JSTar!I15) -> 0 | J15: =SUM(Prop2019DistTar!J15,Prop2019TransTar!J15,Prop2019JSTar!J15) -> 0 | K15: =SUM(Prop2019DistTar!K15,Prop2019TransTar!K15,Prop2019JSTar!K15) -> 0 | L15: =SUM(Prop2019DistTar!L15,Prop2019TransTar!L15,Prop2019JSTar!L15) -> 0 | M15: =SUM(Prop2019DistTar!M15,Prop2019TransTar!M15,Prop2019JSTar!M15) -> 0 | N15: =SUM(Prop2019DistTar!N15,Prop2019TransTar!N15,Prop2019JSTar!N15) -> 0 | O15: =SUM(Prop2019DistTar!O15,Prop2019TransTar!O15,Prop2019JSTar!O15) -> 0 | P15: =SUM(Prop2019DistTar!P15,Prop2019TransTar!P15,Prop2019JSTar!P15) -> 0 | R15: 14.401 | S15: 8.692 | V15: 6.879 | AG15: -0.02229011874 | AH15: 0.02738150023 | AI15: 0 | AJ15: 0 | AK15: 0.02631196395 | AL15: 0 | AM15: 0 | AN15: 0 | AO15: 0 | AP15: 0 | AQ15: 0 | AR15: 0 | AS15: 0 | AT15: =IF(MAX(ABS(AG15:AS15))>$AT$4,"EXPLAIN","") -> 
B16: Low voltage large 2 rate* | C16: =Prop2019DistTar!B16 -> Low voltage large 2 rate | D16: =SUM(Prop2019DistTar!D16,Prop2019TransTar!D16) -> 20.32 | E16: =SUM(Prop2019DistTar!E16,Prop2019TransTar!E16,Prop2019JSTar!E16) -> 0 | F16: =SUM(Prop2019DistTar!F16,Prop2019TransTar!F16,Prop2019JSTar!F16) -> 0 | G16: =SUM(Prop2019DistTar!G16,Prop2019TransTar!G16,Prop2019JSTar!G16) -> 13.11 | H16: =SUM(Prop2019DistTar!H16,Prop2019TransTar!H16,Prop2019JSTar!H16) -> 0 | I16: =SUM(Prop2019DistTar!I16,Prop2019TransTar!I16,Prop2019JSTar!I16) -> 0 | J16: =SUM(Prop2019DistTar!J16,Prop2019TransTar!J16,Prop2019JSTar!J16) -> 10.44 | K16: =SUM(Prop2019DistTar!K16,Prop2019TransTar!K16,Prop2019JSTar!K16) -> 2.15 | L16: =SUM(Prop2019DistTar!L16,Prop2019TransTar!L16,Prop2019JSTar!L16) -> 0 | M16: =SUM(Prop2019DistTar!M16,Prop2019TransTar!M16,Prop2019JSTar!M16) -> 0 | N16: =SUM(Prop2019DistTar!N16,Prop2019TransTar!N16,Prop2019JSTar!N16) -> 0 | O16: =SUM(Prop2019DistTar!O16,Prop2019TransTar!O16,Prop2019JSTar!O16) -> 0 | P16: =SUM(Prop2019DistTar!P16,Prop2019TransTar!P16,Prop2019JSTar!P16) -> 0 | R16: 20.774 | U16: 11.936 | X16: 9.5 | Y16: 1.965 | AG16: -0.02185424088 | AH16: 0 | AI16: 0 | AJ16: 0.09835790885 | AK16: 0 | AL16: 0 | AM16: 0.09894736842 | AN16: 0.0941475827 | AO16: 0 | AP16: 0 | AQ16: 0 | AR16: 0 | AS16: 0 | AT16: =IF(MAX(ABS(AG16:AS16))>$AT$4,"EXPLAIN","") -> 
B17: Low voltage KW time of use* | C17: =Prop2019DistTar!B17 -> Low voltage KW time of use | D17: =SUM(Prop2019DistTar!D17,Prop2019TransTar!D17) -> 0 | E17: =SUM(Prop2019DistTar!E17,Prop2019TransTar!E17,Prop2019JSTar!E17) -> 0 | F17: =SUM(Prop2019DistTar!F17,Prop2019TransTar!F17,Prop2019JSTar!F17) -> 0 | G17: =SUM(Prop2019DistTar!G17,Prop2019TransTar!G17,Prop2019JSTar!G17) -> 11.95 | H17: =SUM(Prop2019DistTar!H17,Prop2019TransTar!H17,Prop2019JSTar!H17) -> 0 | I17: =SUM(Prop2019DistTar!I17,Prop2019TransTar!I17,Prop2019JSTar!I17) -> 0 | J17: =SUM(Prop2019DistTar!J17,Prop2019TransTar!J17,Prop2019JSTar!J17) -> 7.36 | K17: =SUM(Prop2019DistTar!K17,Prop2019TransTar!K17,Prop2019JSTar!K17) -> 2.4 | L17: =SUM(Prop2019DistTar!L17,Prop2019TransTar!L17,Prop2019JSTar!L17) -> 0 | M17: =SUM(Prop2019DistTar!M17,Prop2019TransTar!M17,Prop2019JSTar!M17) -> 0 | N17: =SUM(Prop2019DistTar!N17,Prop2019TransTar!N17,Prop2019JSTar!N17) -> 57.04 | O17: =SUM(Prop2019DistTar!O17,Prop2019TransTar!O17,Prop2019JSTar!O17) -> 0 | P17: =SUM(Prop2019DistTar!P17,Prop2019TransTar!P17,Prop2019JSTar!P17) -> 0 | U17: 11.096 | X17: 6.862 | Y17: 2.191 | AB17: 52.928 | AG17: 0 | AH17: 0 | AI17: 0 | AJ17: 0.07696467195 | AK17: 0 | AL17: 0 | AM17: 0.0725735937 | AN17: 0.09539023277 | AO17: 0 | AP17: 0 | AQ17: 0.0776904474 | AR17: 0 | AS17: 0 | AT17: =IF(MAX(ABS(AG17:AS17))>$AT$4,"EXPLAIN","") -> 
B18: Low voltage KW time of use - HOT* | C18: =Prop2019DistTar!B18 -> Low voltage KW time of use - HOT | D18: =SUM(Prop2019DistTar!D18,Prop2019TransTar!D18) -> 0 | E18: =SUM(Prop2019DistTar!E18,Prop2019TransTar!E18,Prop2019JSTar!E18) -> 0 | F18: =SUM(Prop2019DistTar!F18,Prop2019TransTar!F18,Prop2019JSTar!F18) -> 0 | G18: =SUM(Prop2019DistTar!G18,Prop2019TransTar!G18,Prop2019JSTar!G18) -> 8.38 | H18: =SUM(Prop2019DistTar!H18,Prop2019TransTar!H18,Prop2019JSTar!H18) -> 0 | I18: =SUM(Prop2019DistTar!I18,Prop2019TransTar!I18,Prop2019JSTar!I18) -> 0 | J18: =SUM(Prop2019DistTar!J18,Prop2019TransTar!J18,Prop2019JSTar!J18) -> 6.47 | K18: =SUM(Prop2019DistTar!K18,Prop2019TransTar!K18,Prop2019JSTar!K18) -> 1.66 | L18: =SUM(Prop2019DistTar!L18,Prop2019TransTar!L18,Prop2019JSTar!L18) -> 0 | M18: =SUM(Prop2019DistTar!M18,Prop2019TransTar!M18,Prop2019JSTar!M18) -> 0 | N18: =SUM(Prop2019DistTar!N18,Prop2019TransTar!N18,Prop2019JSTar!N18) -> 73.86 | O18: =SUM(Prop2019DistTar!O18,Prop2019TransTar!O18,Prop2019JSTar!O18) -> 0 | P18: =SUM(Prop2019DistTar!P18,Prop2019TransTar!P18,Prop2019JSTar!P18) -> 0 | U18: 9.115 | X18: 7.035 | Y18: 1.851 | AB18: 80.365 | AG18: 0 | AH18: 0 | AI18: 0 | AJ18: -0.08063631377 | AK18: 0 | AL18: 0 | AM18: -0.0803127221 | AN18: -0.1031874662 | AO18: 0 | AP18: 0 | AQ18: -0.08094319667 | AR18: 0 | AS18: 0 | AT18: =IF(MAX(ABS(AG18:AS18))>$AT$4,"EXPLAIN","") -> 
B19: Low voltage large KVA time of use | C19: =Prop2019DistTar!B19 -> Low voltage large KVA time of use | D19: =SUM(Prop2019DistTar!D19,Prop2019TransTar!D19) -> 0 | E19: =SUM(Prop2019DistTar!E19,Prop2019TransTar!E19,Prop2019JSTar!E19) -> 0 | F19: =SUM(Prop2019DistTar!F19,Prop2019TransTar!F19,Prop2019JSTar!F19) -> 0 | G19: =SUM(Prop2019DistTar!G19,Prop2019TransTar!G19,Prop2019JSTar!G19) -> 2.42 | H19: =SUM(Prop2019DistTar!H19,Prop2019TransTar!H19,Prop2019JSTar!H19) -> 0 | I19: =SUM(Prop2019DistTar!I19,Prop2019TransTar!I19,Prop2019JSTar!I19) -> 0 | J19: =SUM(Prop2019DistTar!J19,Prop2019TransTar!J19,Prop2019JSTar!J19) -> 2.02 | K19: =SUM(Prop2019DistTar!K19,Prop2019TransTar!K19,Prop2019JSTar!K19) -> 1.24 | L19: =SUM(Prop2019DistTar!L19,Prop2019TransTar!L19,Prop2019JSTar!L19) -> 0 | M19: =SUM(Prop2019DistTar!M19,Prop2019TransTar!M19,Prop2019JSTar!M19) -> 18.78 | N19: =SUM(Prop2019DistTar!N19,Prop2019TransTar!N19,Prop2019JSTar!N19) -> 27.59 | O19: =SUM(Prop2019DistTar!O19,Prop2019TransTar!O19,Prop2019JSTar!O19) -> 0 | P19: =SUM(Prop2019DistTar!P19,Prop2019TransTar!P19,Prop2019JSTar!P19) -> 0 | U19: 2.404 | X19: 1.996 | Y19: 1.246 | AA19: 18.74 | AB19: 27.487 | AG19: 0 | AH19: 0 | AI19: 0 | AJ19: 0.006655574043 | AK19: 0 | AL19: 0 | AM19: 0.0120240481 | AN19: -0.00481540931 | AO19: 0 | AP19: 0.002134471718 | AQ19: 0.003747225961 | AR19: 0 | AS19: 0 | AT19: =IF(MAX(ABS(AG19:AS19))>$AT$4,"EXPLAIN","") -> 
B20: Low voltage large KVA time of use - HOT* | C20: =Prop2019DistTar!B20 -> Low voltage large KVA time of use - HOT | D20: =SUM(Prop2019DistTar!D20,Prop2019TransTar!D20) -> 0 | E20: =SUM(Prop2019DistTar!E20,Prop2019TransTar!E20,Prop2019JSTar!E20) -> 0 | F20: =SUM(Prop2019DistTar!F20,Prop2019TransTar!F20,Prop2019JSTar!F20) -> 0 | G20: =SUM(Prop2019DistTar!G20,Prop2019TransTar!G20,Prop2019JSTar!G20) -> 0 | H20: =SUM(Prop2019DistTar!H20,Prop2019TransTar!H20,Prop2019JSTar!H20) -> 0 | I20: =SUM(Prop2019DistTar!I20,Prop2019TransTar!I20,Prop2019JSTar!I20) -> 0 | J20: =SUM(Prop2019DistTar!J20,Prop2019TransTar!J20,Prop2019JSTar!J20) -> 0 | K20: =SUM(Prop2019DistTar!K20,Prop2019TransTar!K20,Prop2019JSTar!K20) -> 0 | L20: =SUM(Prop2019DistTar!L20,Prop2019TransTar!L20,Prop2019JSTar!L20) -> 0 | M20: =SUM(Prop2019DistTar!M20,Prop2019TransTar!M20,Prop2019JSTar!M20) -> 0 | N20: =SUM(Prop2019DistTar!N20,Prop2019TransTar!N20,Prop2019JSTar!N20) -> 0 | O20: =SUM(Prop2019DistTar!O20,Prop2019TransTar!O20,Prop2019JSTar!O20) -> 0 | P20: =SUM(Prop2019DistTar!P20,Prop2019TransTar!P20,Prop2019JSTar!P20) -> 0 | AG20: 0 | AH20: 0 | AI20: 0 | AJ20: 0 | AK20: 0 | AL20: 0 | AM20: 0 | AN20: 0 | AO20: 0 | AP20: 0 | AQ20: 0 | AR20: 0 | AS20: 0 | AT20: =IF(MAX(ABS(AG20:AS20))>$AT$4,"EXPLAIN","") -> 
B21: High voltage KVA time of use | C21: =Prop2019DistTar!B21 -> High voltage KVA time of use | D21: =SUM(Prop2019DistTar!D21,Prop2019TransTar!D21) -> 0 | E21: =SUM(Prop2019DistTar!E21,Prop2019TransTar!E21,Prop2019JSTar!E21) -> 0 | F21: =SUM(Prop2019DistTar!F21,Prop2019TransTar!F21,Prop2019JSTar!F21) -> 0 | G21: =SUM(Prop2019DistTar!G21,Prop2019TransTar!G21,Prop2019JSTar!G21) -> 1.55 | H21: =SUM(Prop2019DistTar!H21,Prop2019TransTar!H21,Prop2019JSTar!H21) -> 0 | I21: =SUM(Prop2019DistTar!I21,Prop2019TransTar!I21,Prop2019JSTar!I21) -> 0 | J21: =SUM(Prop2019DistTar!J21,Prop2019TransTar!J21,Prop2019JSTar!J21) -> 1.31 | K21: =SUM(Prop2019DistTar!K21,Prop2019TransTar!K21,Prop2019JSTar!K21) -> 0.77 | L21: =SUM(Prop2019DistTar!L21,Prop2019TransTar!L21,Prop2019JSTar!L21) -> 0 | M21: =SUM(Prop2019DistTar!M21,Prop2019TransTar!M21,Prop2019JSTar!M21) -> 13.43 | N21: =SUM(Prop2019DistTar!N21,Prop2019TransTar!N21,Prop2019JSTar!N21) -> 17.03 | O21: =SUM(Prop2019DistTar!O21,Prop2019TransTar!O21,Prop2019JSTar!O21) -> 0 | P21: =SUM(Prop2019DistTar!P21,Prop2019TransTar!P21,Prop2019JSTar!P21) -> 0 | U21: 1.536 | X21: 1.303 | Y21: 0.772 | AA21: 13.367 | AB21: 16.966 | AG21: 0 | AH21: 0 | AI21: 0 | AJ21: 0.009114583333 | AK21: 0 | AL21: 0 | AM21: 0.005372217959 | AN21: -0.002590673575 | AO21: 0 | AP21: 0.004713099424 | AQ21: 0.003772250383 | AR21: 0 | AS21: 0 | AT21: =IF(MAX(ABS(AG21:AS21))>$AT$4,"EXPLAIN","") -> 
B22: High voltage KVA time of use - HOT* | C22: =Prop2019DistTar!B22 -> High voltage KVA time of use - HOT | D22: =SUM(Prop2019DistTar!D22,Prop2019TransTar!D22) -> 0 | E22: =SUM(Prop2019DistTar!E22,Prop2019TransTar!E22,Prop2019JSTar!E22) -> 0 | F22: =SUM(Prop2019DistTar!F22,Prop2019TransTar!F22,Prop2019JSTar!F22) -> 0 | G22: =SUM(Prop2019DistTar!G22,Prop2019TransTar!G22,Prop2019JSTar!G22) -> 0 | H22: =SUM(Prop2019DistTar!H22,Prop2019TransTar!H22,Prop2019JSTar!H22) -> 0 | I22: =SUM(Prop2019DistTar!I22,Prop2019TransTar!I22,Prop2019JSTar!I22) -> 0 | J22: =SUM(Prop2019DistTar!J22,Prop2019TransTar!J22,Prop2019JSTar!J22) -> 0 | K22: =SUM(Prop2019DistTar!K22,Prop2019TransTar!K22,Prop2019JSTar!K22) -> 0 | L22: =SUM(Prop2019DistTar!L22,Prop2019TransTar!L22,Prop2019JSTar!L22) -> 0 | M22: =SUM(Prop2019DistTar!M22,Prop2019TransTar!M22,Prop2019JSTar!M22) -> 0 | N22: =SUM(Prop2019DistTar!N22,Prop2019TransTar!N22,Prop2019JSTar!N22) -> 0 | O22: =SUM(Prop2019DistTar!O22,Prop2019TransTar!O22,Prop2019JSTar!O22) -> 0 | P22: =SUM(Prop2019DistTar!P22,Prop2019TransTar!P22,Prop2019JSTar!P22) -> 0 | AG22: 0 | AH22: 0 | AI22: 0 | AJ22: 0 | AK22: 0 | AL22: 0 | AM22: 0 | AN22: 0 | AO22: 0 | AP22: 0 | AQ22: 0 | AR22: 0 | AS22: 0 | AT22: =IF(MAX(ABS(AG22:AS22))>$AT$4,"EXPLAIN","") -> 
B23: Subtransmission KVA time of use* | C23: =Prop2019DistTar!B23 -> Subtransmission KVA time of use | D23: =SUM(Prop2019DistTar!D23,Prop2019TransTar!D23) -> 0 | E23: =SUM(Prop2019DistTar!E23,Prop2019TransTar!E23,Prop2019JSTar!E23) -> 0 | F23: =SUM(Prop2019DistTar!F23,Prop2019TransTar!F23,Prop2019JSTar!F23) -> 0 | G23: =SUM(Prop2019DistTar!G23,Prop2019TransTar!G23,Prop2019JSTar!G23) -> 0.95 | H23: =SUM(Prop2019DistTar!H23,Prop2019TransTar!H23,Prop2019JSTar!H23) -> 0 | I23: =SUM(Prop2019DistTar!I23,Prop2019TransTar!I23,Prop2019JSTar!I23) -> 0 | J23: =SUM(Prop2019DistTar!J23,Prop2019TransTar!J23,Prop2019JSTar!J23) -> 0.75 | K23: =SUM(Prop2019DistTar!K23,Prop2019TransTar!K23,Prop2019JSTar!K23) -> 0.34 | L23: =SUM(Prop2019DistTar!L23,Prop2019TransTar!L23,Prop2019JSTar!L23) -> 0 | M23: =SUM(Prop2019DistTar!M23,Prop2019TransTar!M23,Prop2019JSTar!M23) -> 4.04 | N23: =SUM(Prop2019DistTar!N23,Prop2019TransTar!N23,Prop2019JSTar!N23) -> 5.12 | O23: =SUM(Prop2019DistTar!O23,Prop2019TransTar!O23,Prop2019JSTar!O23) -> 0 | P23: =SUM(Prop2019DistTar!P23,Prop2019TransTar!P23,Prop2019JSTar!P23) -> 0 | U23: 0.943 | X23: 0.746 | Y23: 0.342 | AA23: 3.977 | AB23: 5.049 | AG23: 0 | AH23: 0 | AI23: 0 | AJ23: 0.007423117709 | AK23: 0 | AL23: 0 | AM23: 0.005361930295 | AN23: -0.005847953216 | AO23: 0 | AP23: 0.01584108625 | AQ23: 0.01406219053 | AR23: 0 | AS23: 0 | AT23: =IF(MAX(ABS(AG23:AS23))>$AT$4,"EXPLAIN","") -> 
B24: Time of Day | C24: =Prop2019DistTar!B24 -> TOD | D24: =SUM(Prop2019DistTar!D24,Prop2019TransTar!D24) -> 6.74 | E24: =SUM(Prop2019DistTar!E24,Prop2019TransTar!E24,Prop2019JSTar!E24) -> 0 | F24: =SUM(Prop2019DistTar!F24,Prop2019TransTar!F24,Prop2019JSTar!F24) -> 7.48 | G24: =SUM(Prop2019DistTar!G24,Prop2019TransTar!G24,Prop2019JSTar!G24) -> 20.49 | H24: =SUM(Prop2019DistTar!H24,Prop2019TransTar!H24,Prop2019JSTar!H24) -> 0 | I24: =SUM(Prop2019DistTar!I24,Prop2019TransTar!I24,Prop2019JSTar!I24) -> 0 | J24: =SUM(Prop2019DistTar!J24,Prop2019TransTar!J24,Prop2019JSTar!J24) -> 12.85 | K24: =SUM(Prop2019DistTar!K24,Prop2019TransTar!K24,Prop2019JSTar!K24) -> 3.37 | L24: =SUM(Prop2019DistTar!L24,Prop2019TransTar!L24,Prop2019JSTar!L24) -> 5.89 | M24: =SUM(Prop2019DistTar!M24,Prop2019TransTar!M24,Prop2019JSTar!M24) -> 0 | N24: =SUM(Prop2019DistTar!N24,Prop2019TransTar!N24,Prop2019JSTar!N24) -> 0 | O24: =SUM(Prop2019DistTar!O24,Prop2019TransTar!O24,Prop2019JSTar!O24) -> 0 | P24: =SUM(Prop2019DistTar!P24,Prop2019TransTar!P24,Prop2019JSTar!P24) -> 0 | R24: 6.894 | T24: 7.132 | U24: 19.473 | X24: 12.228 | Y24: 3.195 | Z24: 5.614 | AG24: -0.02233826516 | AH24: 0 | AI24: 0.04879416713 | AJ24: 0.0522261593 | AK24: 0 | AL24: 0 | AM24: 0.05086686294 | AN24: 0.05477308294 | AO24: 0.04916280727 | AP24: 0 | AQ24: 0 | AR24: 0 | AS24: 0 | AT24: =IF(MAX(ABS(AG24:AS24))>$AT$4,"EXPLAIN","") -> 
B25: Time of Day 9pm off-peak | C25: =Prop2019DistTar!B25 -> TOD9 | D25: =SUM(Prop2019DistTar!D25,Prop2019TransTar!D25) -> 6.99 | E25: =SUM(Prop2019DistTar!E25,Prop2019TransTar!E25,Prop2019JSTar!E25) -> 0 | F25: =SUM(Prop2019DistTar!F25,Prop2019TransTar!F25,Prop2019JSTar!F25) -> 8.94 | G25: =SUM(Prop2019DistTar!G25,Prop2019TransTar!G25,Prop2019JSTar!G25) -> 20.6 | H25: =SUM(Prop2019DistTar!H25,Prop2019TransTar!H25,Prop2019JSTar!H25) -> 0 | I25: =SUM(Prop2019DistTar!I25,Prop2019TransTar!I25,Prop2019JSTar!I25) -> 0 | J25: =SUM(Prop2019DistTar!J25,Prop2019TransTar!J25,Prop2019JSTar!J25) -> 14.07 | K25: =SUM(Prop2019DistTar!K25,Prop2019TransTar!K25,Prop2019JSTar!K25) -> 3.9 | L25: =SUM(Prop2019DistTar!L25,Prop2019TransTar!L25,Prop2019JSTar!L25) -> 7.74 | M25: =SUM(Prop2019DistTar!M25,Prop2019TransTar!M25,Prop2019JSTar!M25) -> 0 | N25: =SUM(Prop2019DistTar!N25,Prop2019TransTar!N25,Prop2019JSTar!N25) -> 0 | O25: =SUM(Prop2019DistTar!O25,Prop2019TransTar!O25,Prop2019JSTar!O25) -> 0 | P25: =SUM(Prop2019DistTar!P25,Prop2019TransTar!P25,Prop2019JSTar!P25) -> 0 | R25: 7.151 | T25: 9.41 | U25: 22.578 | X25: 15.23 | Y25: 4.426 | Z25: 8.091 | AG25: -0.02251433366 | AH25: 0 | AI25: -0.04994686504 | AJ25: -0.08760740544 | AK25: 0 | AL25: 0 | AM25: -0.0761654629 | AN25: -0.1188431993 | AO25: =IFERROR(L25/Z25-1,0) -> -0.04338153504 | AP25: 0 | AQ25: 0 | AR25: 0 | AS25: 0 | AT25: =IF(MAX(ABS(AG25:AS25))>$AT$4,"EXPLAIN","") -> 
B26: Time of Use | C26: =Prop2019DistTar!B26 -> TOU | D26: =SUM(Prop2019DistTar!D26,Prop2019TransTar!D26) -> 0 | E26: =SUM(Prop2019DistTar!E26,Prop2019TransTar!E26,Prop2019JSTar!E26) -> 0 | F26: =SUM(Prop2019DistTar!F26,Prop2019TransTar!F26,Prop2019JSTar!F26) -> 0 | G26: =SUM(Prop2019DistTar!G26,Prop2019TransTar!G26,Prop2019JSTar!G26) -> 12.34 | H26: =SUM(Prop2019DistTar!H26,Prop2019TransTar!H26,Prop2019JSTar!H26) -> 0 | I26: =SUM(Prop2019DistTar!I26,Prop2019TransTar!I26,Prop2019JSTar!I26) -> 0 | J26: =SUM(Prop2019DistTar!J26,Prop2019TransTar!J26,Prop2019JSTar!J26) -> 7.17 | K26: =SUM(Prop2019DistTar!K26,Prop2019TransTar!K26,Prop2019JSTar!K26) -> 2.97 | L26: =SUM(Prop2019DistTar!L26,Prop2019TransTar!L26,Prop2019JSTar!L26) -> 0 | M26: =SUM(Prop2019DistTar!M26,Prop2019TransTar!M26,Prop2019JSTar!M26) -> 0 | N26: =SUM(Prop2019DistTar!N26,Prop2019TransTar!N26,Prop2019JSTar!N26) -> 49.78 | O26: =SUM(Prop2019DistTar!O26,Prop2019TransTar!O26,Prop2019JSTar!O26) -> 0 | P26: =SUM(Prop2019DistTar!P26,Prop2019TransTar!P26,Prop2019JSTar!P26) -> 0 | U26: 12.338 | X26: 7.176 | Y26: 2.987 | AB26: 49.869 | AG26: =IFERROR(D26/R26-1,0) -> 0 | AH26: 0 | AI26: 0 | AJ26: 0.0001621008267 | AK26: 0 | AL26: 0 | AM26: -0.0008361204013 | AN26: -0.005691329093 | AO26: 0 | AP26: 0 | AQ26: -0.001784675851 | AR26: 0 | AS26: 0 | AT26: =IF(MAX(ABS(AG26:AS26))>$AT$4,"EXPLAIN","") -> 
B27: Time of Day Flexible | C27: =Prop2019DistTar!B27 -> TODFLEX | D27: =SUM(Prop2019DistTar!D27,Prop2019TransTar!D27) -> 7.53 | E27: =SUM(Prop2019DistTar!E27,Prop2019TransTar!E27,Prop2019JSTar!E27) -> 0 | F27: =SUM(Prop2019DistTar!F27,Prop2019TransTar!F27,Prop2019JSTar!F27) -> 6.56 | G27: =SUM(Prop2019DistTar!G27,Prop2019TransTar!G27,Prop2019JSTar!G27) -> 21.34 | H27: =SUM(Prop2019DistTar!H27,Prop2019TransTar!H27,Prop2019JSTar!H27) -> 0 | I27: =SUM(Prop2019DistTar!I27,Prop2019TransTar!I27,Prop2019JSTar!I27) -> 0 | J27: =SUM(Prop2019DistTar!J27,Prop2019TransTar!J27,Prop2019JSTar!J27) -> 13.45 | K27: =SUM(Prop2019DistTar!K27,Prop2019TransTar!K27,Prop2019JSTar!K27) -> 4.14 | L27: =SUM(Prop2019DistTar!L27,Prop2019TransTar!L27,Prop2019JSTar!L27) -> 6.36 | M27: =SUM(Prop2019DistTar!M27,Prop2019TransTar!M27,Prop2019JSTar!M27) -> 0 | N27: =SUM(Prop2019DistTar!N27,Prop2019TransTar!N27,Prop2019JSTar!N27) -> 0 | O27: =SUM(Prop2019DistTar!O27,Prop2019TransTar!O27,Prop2019JSTar!O27) -> 0 | P27: =SUM(Prop2019DistTar!P27,Prop2019TransTar!P27,Prop2019JSTar!P27) -> 0 | R27: 7.701 | T27: 6.636 | U27: 21.674 | X27: 13.622 | Y27: 4.233 | Z27: 6.442 | AG27: -0.02220490845 | AH27: 0 | AI27: -0.01145268234 | AJ27: -0.01541016887 | AK27: 0 | AL27: 0 | AM27: -0.01262663339 | AN27: -0.02197023388 | AO27: -0.01272896616 | AP27: 0 | AQ27: 0 | AR27: 0 | AS27: 0 | AT27: =IF(MAX(ABS(AG27:AS27))>$AT$4,"EXPLAIN","") -> 
B28: Low voltage KW 1 rate | C28: =Prop2019DistTar!B28 -> Low Voltage KW 1 rate | D28: =SUM(Prop2019DistTar!D28,Prop2019TransTar!D28) -> 0 | E28: =SUM(Prop2019DistTar!E28,Prop2019TransTar!E28,Prop2019JSTar!E28) -> 3.42 | F28: =SUM(Prop2019DistTar!F28,Prop2019TransTar!F28,Prop2019JSTar!F28) -> 3.42 | G28: =SUM(Prop2019DistTar!G28,Prop2019TransTar!G28,Prop2019JSTar!G28) -> 3.42 | H28: =SUM(Prop2019DistTar!H28,Prop2019TransTar!H28,Prop2019JSTar!H28) -> 3.42 | I28: =SUM(Prop2019DistTar!I28,Prop2019TransTar!I28,Prop2019JSTar!I28) -> 3.42 | J28: =SUM(Prop2019DistTar!J28,Prop2019TransTar!J28,Prop2019JSTar!J28) -> 3.42 | K28: =SUM(Prop2019DistTar!K28,Prop2019TransTar!K28,Prop2019JSTar!K28) -> 3.42 | L28: =SUM(Prop2019DistTar!L28,Prop2019TransTar!L28,Prop2019JSTar!L28) -> 3.42 | M28: =SUM(Prop2019DistTar!M28,Prop2019TransTar!M28,Prop2019JSTar!M28) -> 0 | N28: =SUM(Prop2019DistTar!N28,Prop2019TransTar!N28,Prop2019JSTar!N28) -> 0 | O28: =SUM(Prop2019DistTar!O28,Prop2019TransTar!O28,Prop2019JSTar!O28) -> 31.6 | P28: =SUM(Prop2019DistTar!P28,Prop2019TransTar!P28,Prop2019JSTar!P28) -> 13.65 | S28: 3.468 | T28: 3.468 | U28: =S28 -> 3.468 | V28: 3.468 | W28: 3.468 | X28: =V28 -> 3.468 | Y28: 3.468 | Z28: 3.468 | AC28: 32.115 | AD28: 13.831 | AG28: 0 | AH28: -0.01384083045 | AI28: -0.01384083045 | AJ28: -0.01384083045 | AK28: -0.01384083045 | AL28: -0.01384083045 | AM28: -0.01384083045 | AN28: -0.01384083045 | AO28: -0.01384083045 | AP28: 0 | AQ28: 0 | AR28: -0.01603612019 | AS28: -0.01308654472 | AT28: =IF(MAX(ABS(AG28:AS28))>$AT$4,"EXPLAIN","") -> 
B29: Low Voltage Medium kW Time of Use (Opt-in) | C29: =Prop2019DistTar!B29 -> Low voltage medium KW time of use (opt-in) | D29: =SUM(Prop2019DistTar!D29,Prop2019TransTar!D29) -> 0 | E29: =SUM(Prop2019DistTar!E29,Prop2019TransTar!E29,Prop2019JSTar!E29) -> 0 | F29: =SUM(Prop2019DistTar!F29,Prop2019TransTar!F29,Prop2019JSTar!F29) -> 0 | G29: =SUM(Prop2019DistTar!G29,Prop2019TransTar!G29,Prop2019JSTar!G29) -> 4.26 | H29: =SUM(Prop2019DistTar!H29,Prop2019TransTar!H29,Prop2019JSTar!H29) -> 0 | I29: =SUM(Prop2019DistTar!I29,Prop2019TransTar!I29,Prop2019JSTar!I29) -> 0 | J29: =SUM(Prop2019DistTar!J29,Prop2019TransTar!J29,Prop2019JSTar!J29) -> 4.26 | K29: =SUM(Prop2019DistTar!K29,Prop2019TransTar!K29,Prop2019JSTar!K29) -> 0 | L29: =SUM(Prop2019DistTar!L29,Prop2019TransTar!L29,Prop2019JSTar!L29) -> 0 | M29: =SUM(Prop2019DistTar!M29,Prop2019TransTar!M29,Prop2019JSTar!M29) -> 0 | N29: =SUM(Prop2019DistTar!N29,Prop2019TransTar!N29,Prop2019JSTar!N29) -> 0 | O29: =SUM(Prop2019DistTar!O29,Prop2019TransTar!O29,Prop2019JSTar!O29) -> 48.2 | P29: =SUM(Prop2019DistTar!P29,Prop2019TransTar!P29,Prop2019JSTar!P29) -> 32.13 | S29: 4.656 | T29: 4.656 | U29: =S29 -> 4.656 | V29: 4.656 | W29: 4.656 | X29: =V29 -> 4.656 | Y29: 4.656 | Z29: 4.656 | AC29: 38.512 | AD29: 25.675 | AG29: 0 | AH29: -1 | AI29: -1 | AJ29: -0.08505154639 | AK29: -1 | AL29: -1 | AM29: -0.08505154639 | AN29: -1 | AO29: -1 | AP29: 0 | AQ29: 0 | AR29: 0.251557956 | AS29: 0.2514118793 | AT29: =IF(MAX(ABS(AG29:AS29))>$AT$4,"EXPLAIN","") -> EXPLAIN
B30: Low Voltage Medium kW 1 rate (Mandatory) | C30: =Prop2019DistTar!B30 -> Low voltage medium KW 1 rate (mandatory) | D30: =SUM(Prop2019DistTar!D30,Prop2019TransTar!D30) -> 0 | E30: =SUM(Prop2019DistTar!E30,Prop2019TransTar!E30,Prop2019JSTar!E30) -> 0 | F30: =SUM(Prop2019DistTar!F30,Prop2019TransTar!F30,Prop2019JSTar!F30) -> 0 | G30: =SUM(Prop2019DistTar!G30,Prop2019TransTar!G30,Prop2019JSTar!G30) -> 4.26 | H30: =SUM(Prop2019DistTar!H30,Prop2019TransTar!H30,Prop2019JSTar!H30) -> 0 | I30: =SUM(Prop2019DistTar!I30,Prop2019TransTar!I30,Prop2019JSTar!I30) -> 0 | J30: =SUM(Prop2019DistTar!J30,Prop2019TransTar!J30,Prop2019JSTar!J30) -> 4.26 | K30: =SUM(Prop2019DistTar!K30,Prop2019TransTar!K30,Prop2019JSTar!K30) -> 0 | L30: =SUM(Prop2019DistTar!L30,Prop2019TransTar!L30,Prop2019JSTar!L30) -> 0 | M30: =SUM(Prop2019DistTar!M30,Prop2019TransTar!M30,Prop2019JSTar!M30) -> 0 | N30: =SUM(Prop2019DistTar!N30,Prop2019TransTar!N30,Prop2019JSTar!N30) -> 0 | O30: =SUM(Prop2019DistTar!O30,Prop2019TransTar!O30,Prop2019JSTar!O30) -> 48.2 | P30: =SUM(Prop2019DistTar!P30,Prop2019TransTar!P30,Prop2019JSTar!P30) -> 32.13 | S30: 7.124 | T30: 7.124 | U30: 7.124 | V30: 7.124 | W30: 7.124 | X30: 7.124 | Y30: 7.124 | Z30: 7.124 | AC30: 23.871 | AD30: 15.914 | AG30: 0 | AH30: -1 | AI30: -1 | AJ30: -0.4020213363 | AK30: -1 | AL30: -1 | AM30: -0.4020213363 | AN30: -1 | AO30: -1 | AP30: 0 | AQ30: 0 | AR30: 1.019186461 | AS30: 1.018977001 | AT30: =IF(MAX(ABS(AG30:AS30))>$AT$4,"EXPLAIN","") -> EXPLAIN
AG31: 0 | AH31: 0 | AI31: 0 | AJ31: 0 | AK31: 0 | AL31: 0 | AM31: 0 | AN31: 0 | AO31: 0 | AP31: 0 | AQ31: 0 | AR31: 0 | AS31: 0 | AT31: =IF(MAX(ABS(AG31:AS31))>$AT$4,"EXPLAIN","") -> 
AG32: 0 | AH32: 0 | AI32: 0 | AJ32: 0 | AK32: 0 | AL32: 0 | AM32: 0 | AN32: 0 | AO32: 0 | AP32: 0 | AQ32: 0 | AR32: 0 | AS32: 0 | AT32: =IF(MAX(ABS(AG32:AS32))>$AT$4,"EXPLAIN","") -> 
AG33: 0 | AH33: 0 | AI33: 0 | AJ33: 0 | AK33: 0 | AL33: 0 | AM33: 0 | AN33: 0 | AO33: 0 | AP33: 0 | AQ33: 0 | AR33: 0 | AS33: 0 | AT33: =IF(MAX(ABS(AG33:AS33))>$AT$4,"EXPLAIN","") -> 
AG34: 0 | AH34: 0 | AI34: 0 | AJ34: 0 | AK34: 0 | AL34: 0 | AM34: 0 | AN34: 0 | AO34: 0 | AP34: 0 | AQ34: 0 | AR34: 0 | AS34: 0 | AT34: =IF(MAX(ABS(AG34:AS34))>$AT$4,"EXPLAIN","") -> 
AG35: 0 | AH35: 0 | AI35: 0 | AJ35: 0 | AK35: 0 | AL35: 0 | AM35: 0 | AN35: 0 | AO35: 0 | AP35: 0 | AQ35: 0 | AR35: 0 | AS35: 0 | AT35: =IF(MAX(ABS(AG35:AS35))>$AT$4,"EXPLAIN","") -> 
AG36: 0 | AH36: 0 | AI36: 0 | AJ36: 0 | AK36: 0 | AL36: 0 | AM36: 0 | AN36: 0 | AO36: 0 | AP36: 0 | AQ36: 0 | AR36: 0 | AS36: 0 | AT36: =IF(MAX(ABS(AG36:AS36))>$AT$4,"EXPLAIN","") -> 
AG37: 0 | AH37: 0 | AI37: 0 | AJ37: 0 | AK37: 0 | AL37: 0 | AM37: 0 | AN37: 0 | AO37: 0 | AP37: 0 | AQ37: 0 | AR37: 0 | AS37: 0 | AT37: =IF(MAX(ABS(AG37:AS37))>$AT$4,"EXPLAIN","") -> 
AG38: 0 | AH38: 0 | AI38: 0 | AJ38: 0 | AK38: 0 | AL38: 0 | AM38: 0 | AN38: 0 | AO38: 0 | AP38: 0 | AQ38: 0 | AR38: 0 | AS38: 0 | AT38: =IF(MAX(ABS(AG38:AS38))>$AT$4,"EXPLAIN","") -> 
AG39: 0 | AH39: 0 | AI39: 0 | AJ39: 0 | AK39: 0 | AL39: 0 | AM39: 0 | AN39: 0 | AO39: 0 | AP39: 0 | AQ39: 0 | AR39: 0 | AS39: 0 | AT39: =IF(MAX(ABS(AG39:AS39))>$AT$4,"EXPLAIN","") -> 
AG40: 0 | AH40: 0 | AI40: 0 | AJ40: 0 | AK40: 0 | AL40: 0 | AM40: 0 | AN40: 0 | AO40: 0 | AP40: 0 | AQ40: 0 | AR40: 0 | AS40: 0 | AT40: =IF(MAX(ABS(AG40:AS40))>$AT$4,"EXPLAIN","") -> 
AG41: 0 | AH41: 0 | AI41: 0 | AJ41: 0 | AK41: 0 | AL41: 0 | AM41: 0 | AN41: 0 | AO41: 0 | AP41: 0 | AQ41: 0 | AR41: 0 | AS41: 0 | AT41: =IF(MAX(ABS(AG41:AS41))>$AT$4,"EXPLAIN","") -> 
AG42: 0 | AH42: 0 | AI42: 0 | AJ42: 0 | AK42: 0 | AL42: 0 | AM42: 0 | AN42: 0 | AO42: 0 | AP42: 0 | AQ42: 0 | AR42: 0 | AS42: 0 | AT42: =IF(MAX(ABS(AG42:AS42))>$AT$4,"EXPLAIN","") -> 
AG43: 0 | AH43: 0 | AI43: 0 | AJ43: 0 | AK43: 0 | AL43: 0 | AM43: 0 | AN43: 0 | AO43: 0 | AP43: 0 | AQ43: 0 | AR43: 0 | AS43: 0 | AT43: =IF(MAX(ABS(AG43:AS43))>$AT$4,"EXPLAIN","") -> 
AG44: 0 | AH44: 0 | AI44: 0 | AJ44: 0 | AK44: 0 | AL44: 0 | AM44: 0 | AN44: 0 | AO44: 0 | AP44: 0 | AQ44: 0 | AR44: 0 | AS44: 0 | AT44: =IF(MAX(ABS(AG44:AS44))>$AT$4,"EXPLAIN","") -> 
AG45: 0 | AH45: 0 | AI45: 0 | AJ45: 0 | AK45: 0 | AL45: 0 | AM45: 0 | AN45: 0 | AO45: 0 | AP45: 0 | AQ45: 0 | AR45: 0 | AS45: 0 | AT45: =IF(MAX(ABS(AG45:AS45))>$AT$4,"EXPLAIN","") -> 
AG46: 0 | AH46: 0 | AI46: 0 | AJ46: 0 | AK46: 0 | AL46: 0 | AM46: 0 | AN46: 0 | AO46: 0 | AP46: 0 | AQ46: 0 | AR46: 0 | AS46: 0 | AT46: =IF(MAX(ABS(AG46:AS46))>$AT$4,"EXPLAIN","") -> 
AG47: 0 | AH47: 0 | AI47: 0 | AJ47: 0 | AK47: 0 | AL47: 0 | AM47: 0 | AN47: 0 | AO47: 0 | AP47: 0 | AQ47: 0 | AR47: 0 | AS47: 0 | AT47: =IF(MAX(ABS(AG47:AS47))>$AT$4,"EXPLAIN","") -> 
